Workbook

Sheet Sheet1
C2: Quelles sont la température d’échappement et la puissance
C3: d’une turbine pour les conditions de fonctionnement suivantes :
C4: – débit : | F4: 50
C5: – pression d’admission : | F5: 15
C6: – température d’admission : | F6: 20
C7: – pression d’échappement : | F7: 1.2
C8: – efficacité de la turbine : | F8: 0.75
D13: =F4 -> 50 | F13: h1 = | G13: =[3]!h_(11,D14,D15) -> 112.1523783
D14: 15 | F14: s1 = | G14: =[3]!S_(11,D14,D15) -> 11.57321477
D15: 20
F16: h2_is = | G16: =+[1]!HeCalc(9,0,1,D25*10^5,8,G14*1000,1)/1000 -> 49.35322432
F17: Δhis = h1-h2_is = | G17: =G13-G16 -> 62.79915396
F18: ΔhR = Δhis x η = | G18: =G17*C19 -> 50.23932317
C19: 0.8
F20: h2 = | G20: =G13-G18 -> 61.91305511
F22: T2 = | G22: =[1]!HeCalc(2,0,1,D25*10^5,9,G20*1000,1) -> 9.406070093
F24: P= | G24: =D13*G18 -> 2511.966158
D25: 1.2
C31: P (bar) | D31: 13.71
C32: T (K)
C33: 6.276
F37: H (J/g) | G37: m (g/s) | H37: Power (W) | I37: a | J37: Efficacité
E38: 43.64 | F38: =[3]!h_(11,D31,E38) -> 242.8156648 | G38: 25 | H38: =G38*(F38-F39) -> 1248.002032 | I38: =G38*(E38)^0.5/D31 -> 12.0460573 | J38: =C19 -> 0.8
E39: =[3]!T2_turb(11,D31,E38,C33,J38) -> 34.28308533 | F39: =[3]!h_(11,C33,E39) -> 192.8955835

Sheet JT60
A1: 1 | B1: 2 | C1: 3 | D1: 4 | E1: 5 | F1: 6 | G1: 7 | H1: 8 | I1: 9 | J1: 10 | K1: 11 | L1: 12 | M1: 13 | N1: 14 | O1: 15 | P1: 16 | Q1: 17 | R1: 18 | S1: 19 | T1: 20 | U1: 21 | V1: 22 | W1: 23 | X1: 24 | Y1: 25 | Z1: 26 | AA1: 27 | AB1: 28
AF2: =1-1/3 -> 0.6666666667
E5: Vitesse de la roue ajustée en fonction de la puissance du frein | L5: =D56*0.3 -> 492
B8: Relation entre la puissance et la vitesse de rotation | M8: ²
B10: TURBINE 1
F11: =IF(ISERROR(F14),"","X") -> X | G11: X | H11: =IF(ISERROR(H14),"","X") -> X | I11: =IF(ISERROR(I14),"","X") -> X
D12: DESIGN | F12: D3 | G12: STS | H12: start-up | I12: =L41 -> BAKING
B14: m | C14: g/s | D14: 175.1 | F14: 100 | G14: =G26*G15/G16^0.5 -> 159.3893646 | H14: =H26*H15/H16^0.5 -> 104.0903563 | I14: =I26*I15/I16^0.5 -> 124.6473319 | K14: =F14/D14 -> 0.5711022273
B15: Pin | C15: Bara | D15: 14.77 | F15: =F14*F16^0.5/F26 -> 7.20590918 | G15: 12.39 | H15: 10.3 | I15: 9.25
B16: Tin | C16: K | D16: 47.96 | F16: 35 | G16: 40.73 | H16: 66 | I16: 37.12
B17: Pout | C17: Bara | D17: 6.35 | F17: 6.36 | G17: 5.242 | H17: 4.97 | I17: 4.06
B18: Tout | C18: K | D18: =[3]!T2_turb(11,D15,D16,D17,D19) -> 37.2751336 | F18: =[3]!T2_turb(11,F15,F16,F17,F19) -> 33.71874247 | G18: =[3]!T2_turb(11,G15,G16,G17,G19) -> 31.55119777 | H18: =[3]!T2_turb(11,H15,H16,H17,H19) -> 53.28225486 | I18: =[3]!T2_turb(11,I15,I16,I17,I19) -> 29.20216658
B19: Efficacity | C19: % | D19: 0.78 | F19: =(0.321*F40^4-1.6098*F40^3+1.316*F40^2+0.9448*F40)*($D$19/0.97215493) -> 0.7501704679 | G19: =(0.321*G40^4-1.6098*G40^3+1.316*G40^2+0.9448*G40)*($D$19/0.97215493) -> 0.7740082938 | H19: =(0.321*H40^4-1.6098*H40^3+1.316*H40^2+0.9448*H40)*($D$19/0.97215493) -> 0.7655552265 | I19: =(0.321*I40^4-1.6098*I40^3+1.316*I40^2+0.9448*I40)*($D$19/0.97215493) -> 0.758427599
B20: Power | C20: W | D20: =+D14*(D30-D31) -> 10009.68988 | F20: =+F14*(F30-F31) -> 676.059518 | G20: =+G14*(G30-G31) -> 7765.951077 | H20: =+H14*(H30-H31) -> 7022.95794 | I20: =+I14*(I30-I31) -> 5196.408659
B21: Speed | C21: Hz | D21: 2170 | F21: 883.1312559 | G21: 2167.621507 | H21: 2147.40195 | I21: 2139.049491 | K21: =F21/D21 -> 0.406972929
B22: Speed calculated from P=K.rho.N^3 | F22: =(F20/$D20*$D23/F23)^(1/3)*$D21 -> 883.1312709 | G22: =(G20/$D20*$D23/G23)^(1/3)*$D21 -> 2167.621587 | H22: =(H20/$D20*$D23/H23)^(1/3)*$D21 -> 2147.402034 | I22: =(I20/$D20*$D23/I23)^(1/3)*$D21 -> 2139.049641
B23: Brake Pressure | D23: 5 | F23: =($D23-$D17)+F17 -> 5.01 | G23: =($D23-$D17)+G17 -> 3.892 | H23: =($D23-$D17)+H17 -> 3.62 | I23: =($D23-$D17)+I17 -> 2.71
B24: Rho (brake) | D24: =[3]!rho_(11,D23,330) -> 0.7279198097 | F24: =[3]!rho_(11,F23,330) -> 0.7293726647 | G24: =[3]!rho_(11,G23,330) -> 0.5668697685 | H24: =[3]!rho_(11,H23,330) -> 0.527311674 | I24: =[3]!rho_(11,I23,330) -> 0.3949025042
B25: Wheel | C25: mm | D25: 35.75 | F25: =$D$25 -> 35.75 | G25: =$D$25 -> 35.75 | H25: =$D$25 -> 35.75 | I25: =$D$25 -> 35.75
B26: a = mÖT/P | D26: =D14*D16^0.5/D15 -> 82.10039337 | F26: =+$D$26 -> 82.10039337 | G26: =+$D$26 -> 82.10039337 | H26: =+$D$26 -> 82.10039337 | I26: =+$D$26 -> 82.10039337
B27: Rho (in) | C27: kg/m3 | D27: =[3]!rho_(11,D15,D16) -> 14.29409686 | F27: =[3]!rho_(11,F15,F16) -> 9.7272626 | G27: =[3]!rho_(11,G15,G16) -> 14.1781416 | H27: =[3]!rho_(11,H15,H16) -> 7.3557574 | I27: =[3]!rho_(11,I15,I16) -> 11.70816291
B28: Sound Speed @inlet | D28: =[3]!Sound_speed(11,D15,D16) -> 425.2927145 | F28: =[3]!Sound_speed(11,F15,F16) -> 357.5529789 | G28: =[3]!Sound_speed(11,G15,G16) -> 391.2891989 | H28: =[3]!Sound_speed(11,H15,H16) -> 488.8557373 | I28: =[3]!Sound_speed(11,I15,I16) -> 370.5157737
B29: S=Q/(rho*V) = cte | D29: =D14/(D27*D28) -> 0.02880324924 | F29: =F14/(F27*F28) -> 0.02875205953 | G29: =G14/(G27*G28) -> 0.02873043292 | H29: =H14/(H27*H28) -> 0.02894692135 | I29: =I14/(I27*I28) -> 0.02873343373
B30: Hin | D30: =[3]!h_(11,D15,D16) -> 265.9017574 | F30: =[3]!h_(11,F15,F16) -> 196.6561414 | G30: =[3]!h_(11,G15,G16) -> 227.2127422 | H30: =[3]!h_(11,H15,H16) -> 360.1422039 | I30: =[3]!h_(11,I15,I16) -> 207.8908573
B31: Hout | D31: =[3]!h_(11,D17,D18) -> 208.7361955 | F31: =[3]!h_(11,F17,F18) -> 189.8955462 | G31: =[3]!h_(11,G17,G18) -> 178.4895975 | H31: =[3]!h_(11,H17,H18) -> 292.6723807 | I31: =[3]!h_(11,I17,I18) -> 166.2019693
B32: Sin = Sout | D32: =[3]!S_(11,D15,D16) -> 16.45318923 | F32: =[3]!S_(11,F15,F16) -> 16.30269695 | G32: =[3]!S_(11,G15,G16) -> 15.95659187 | H32: =[3]!S_(11,H15,H16) -> 18.89203458 | I32: =[3]!S_(11,I15,I16) -> 16.08435866
B33: Tout(iso) | D33: =[1]!HeCalc(2,0,1,D17*10^5,8,D32*1000,1) -> 34.23053055 | F33: =[1]!HeCalc(2,0,1,F17*10^5,8,F32*1000,1) -> 33.29483506 | G33: =[1]!HeCalc(2,0,1,G17*10^5,8,G32*1000,1) -> 28.87508647 | H33: =[1]!HeCalc(2,0,1,H17*10^5,8,H32*1000,1) -> 49.33078138 | I33: =[1]!HeCalc(2,0,1,I17*10^5,8,I32*1000,1) -> 26.69973777
B34: Hout(iso) | D34: =[3]!h_(11,D17,D33) -> 192.6125755 | F34: =[3]!h_(11,F17,F33) -> 187.6440629 | G34: =[3]!h_(11,G17,G33) -> 164.2636174 | H34: =[3]!h_(11,H17,H33) -> 272.0103214 | I34: =[3]!h_(11,I17,I33) -> 152.9233323
B35: ΔHs | D35: =D30-D34 -> 73.28918187 | F35: 9.012078547 | G35: 62.94912484 | H35: 88.1318825 | I35: 54.96752496
B36: u1 | C36: m/s | D36: =(2*52.7%*D35*1000*D19)^0.5 -> 245.4638511 | F36: =PI()*$D$37*F21 -> 99.89714244 | G36: =PI()*$D$37*G21 -> 245.1948032 | H36: =PI()*$D$37*H21 -> 242.9076279 | I36: =PI()*$D$37*I21 -> 241.9628229
B37: D1 | D37: =D36/PI()/D21 -> 0.03600625369 | M37: T1
B38: Co = (2*ΔHs)^0,5 | D38: =(2000*D35)^0.5 -> 382.855539 | F38: 134.2540766 | G38: 354.8214335 | H38: 419.8377841 | I38: 331.5645487 | L38: MAX | M38: =ROUND(F14,0)&"g/s @ "&F15&" b ; "&F16&"K" -> 100g/s @ 7,20590918031859 b ; 35K
B39: u1/Co | D39: =D36/D38 -> 0.6411396104 | F39: 0.7440901978 | G39: 0.691037181 | H39: 0.5785749569 | I39: 0.729760838 | L39: MIN | M39: =ROUND(G14,0)&"g/s @ "&G15&" b ; "&G16&"K" -> 159g/s @ 12,39 b ; 40,73K
B40: U1/C0 off de / U1/C0 nom | D40: =D39/$D$39 -> 1 | F40: =F39/$D39 -> 1.160574367 | G40: =G39/$D39 -> 1.077826373 | H40: =H39/$D39 -> 0.9024164901 | I40: =I39/$D39 -> 1.13822454 | L40: STS | M40: =ROUND(H14,0)&"g/s @ "&H15&" b ; "&H16&"K" -> 104g/s @ 10,3 b ; 66K
B41: Rdt | D41: =(0.321*D40^4-1.6098*D40^3+1.316*D40^2+0.9448*D40)*($D19/0.97215493) -> 0.7798756933 | F41: =(0.321*F40^4-1.6098*F40^3+1.316*F40^2+0.9448*F40)*($D19/0.97215493) -> 0.7501704679 | G41: =(0.321*G40^4-1.6098*G40^3+1.316*G40^2+0.9448*G40)*($D19/0.97215493) -> 0.7740082938 | H41: =(0.321*H40^4-1.6098*H40^3+1.316*H40^2+0.9448*H40)*($D19/0.97) -> 0.7672559667 | I41: =(0.321*I40^4-1.6098*I40^3+1.316*I40^2+0.9448*I40)*($D19/0.97215493) -> 0.758427599 | L41: BAKING | M41: =ROUND(I14,0)&"g/s @ "&I15&" b ; "&I16&"K" -> 125g/s @ 9,25 b ; 37,12K
A42: ligne_ToBeNull_T1 | B42: Converge brake Power | F42: =F21-F22 -> -1.500752114e-05 | G42: =G21-G22 -> -7.965093846e-05 | H42: =H21-H22 -> -8.417069466e-05 | I42: =I21-I22 -> -0.0001506678382
A43: ligne_ToChange_T1 | B43: By changing turbine speed | F43: =CELL("address",F21) -> $F$21 | G43: =CELL("address",G21) -> $G$21 | H43: =CELL("address",H21) -> $H$21 | I43: =CELL("address",I21) -> $I$21
B45: TURBINE 2
F46: =IF(ISERROR(F49),"","X") -> X | G46: X | H46: =IF(ISERROR(H49),"","X") -> X | I46: =IF(ISERROR(I49),"","X") -> X
D47: DESIGN | F47: =F12 -> D3 | G47: =G12 -> STS | H47: =H12 -> start-up | I47: =I12 -> BAKING | S47: K.rho
H48: 18 | Q48: 838 | R48: 2075 | S48: =R48/Q48^(3) -> 3.526030342e-06
B49: m | C49: g/s | D49: 174.8 | F49: =F14 -> 100 | G49: =G14 -> 159.3893646 | H49: =H61/(H52*H51)^0.5*H50 -> 80.51503191 | I49: =I14 -> 124.6473319 | Q49: 650 | R49: =S48*Q49^3 -> 968.3360827
B50: Pin | C50: Bara | D50: 6.343 | F50: =F49*F51^0.5/F61 -> 3.726754003 | G50: =G49*G51^0.5/G61 -> 5.227354315 | H50: 4.87 | I50: =I49*I51^0.5/I61 -> 4.020606352 | Q50: =Q49/Q48 -> 0.7756563246 | R50: =R49/R48 -> 0.4666679917
B51: Tin | C51: K | D51: 21.73 | F51: 22.92 | G51: 17.75 | H51: 52.5 | I51: 17.17
B52: Pout | C52: Bara | D52: 1.35 | F52: 1.35 | G52: 1.29 | H52: 1.15 | I52: 1.35
B53: Tout | C53: K | D53: =[3]!T2_turb(11,D50,D51,D52,D54) -> 13.94620695 | F53: =[3]!T2_turb(11,F50,F51,F52,F54) -> 17.24995164 | G53: =[3]!T2_turb(11,G50,G51,G52,G54) -> 11.78271473 | H53: =[3]!T2_turb(11,H50,H51,H52,H54) -> 38.88660898 | I53: =[3]!T2_turb(11,I50,I51,I52,I54) -> 12.43155713
B54: Efficacity | C54: % | D54: 0.76 | F54: =(0.321*F75^4-1.6098*F75^3+1.316*F75^2+0.9448*F75)*($D$54/0.97215493) -> 0.7315357486 | G54: =(0.321*G75^4-1.6098*G75^3+1.316*G75^2+0.9448*G75)*($D$54/0.97215493) -> 0.7598604234 | H54: =(0.321*H75^4-1.6098*H75^3+1.316*H75^2+0.9448*H75)*($D$54/0.97215493) -> 0.5925358401 | I54: =(0.321*I75^4-1.6098*I75^3+1.316*I75^2+0.9448*I75)*($D$54/0.97215493) -> 0.7582269526
B55: Power | C55: W | D55: =+D49*(D65-D66) -> 6836.201344 | F55: =+F49*(F65-F66) -> 2898.292681 | G55: =+G49*(G65-G66) -> 4662.503197 | H55: =+H49*(H65-H66) -> 5745.234036 | I55: =+I49*(I65-I66) -> 2918.263438
B56: Speed | C56: Hz | D56: 1640 | F56: 1232.02531 | G56: 1447.46489 | H56: 1561.664007 | I56: 1234.848597
B57: Speed calculated from P=K.rho.N^3 | F57: =(F55/$D55*$D58/F58)^(1/3)*$D56 -> 1232.025357 | G57: =(G55/$D55*$D58/G58)^(1/3)*$D56 -> 1447.464951 | H57: =(H55/$D55*$D58/H58)^(1/3)*$D56 -> 1561.664036 | I57: =(I55/$D55*$D58/I58)^(1/3)*$D56 -> 1234.848649
B58: Brake Pressure | D58: 7.5 | F58: =($D58-$D52)+F52 -> 7.5 | G58: =($D58-$D52)+G52 -> 7.44 | H58: =($D58-$D52)+H52 -> 7.3 | I58: =($D58-$D52)+I52 -> 7.5
B59: Rho (brake) | D59: =[3]!rho_(11,D58,345) -> 1.04349745 | F59: =[3]!rho_(11,F58,345) -> 1.04349745 | G59: =[3]!rho_(11,G58,345) -> 1.03517362 | H59: =[3]!rho_(11,H58,345) -> 1.015749836 | I59: =[3]!rho_(11,I58,345) -> 1.04349745
B60: Wheel | C60: mm | D60: 39.5 | F60: =$D$25 -> 35.75 | G60: =$D$25 -> 35.75 | H60: =$D$25 -> 35.75 | I60: =$D$25 -> 35.75
B61: a = mÖT/P | D61: =D49*D51^0.5/D50 -> 128.4625623 | F61: =$D$61 -> 128.4625623 | G61: =$D$61 -> 128.4625623 | H61: 128.4625623 | I61: 128.4625623
B62: Rho (in) | C62: kg/m3 | D62: =[3]!rho_(11,D50,D51) -> 13.98462535 | F62: =[3]!rho_(11,F50,F51) -> 7.796363065 | G62: =[3]!rho_(11,G50,G51) -> 14.31879313 | H62: =[3]!rho_(11,H50,H51) -> 4.414094183 | I62: =[3]!rho_(11,I50,I51) -> 11.39330859
B63: Sound Speed | D63: =[3]!Sound_speed(11,D50,D51) -> 282.3968331 | F63: =[3]!Sound_speed(11,F50,F51) -> 286.4028937 | G63: =[3]!Sound_speed(11,G50,G51) -> 253.6255908 | H63: =[3]!Sound_speed(11,H50,H51) -> 431.9913023 | I63: =[3]!Sound_speed(11,I50,I51) -> 247.8825754 | T63: T2
B64: S=Q/(rho*V) = cte | D64: =D49/(D62*D63) -> 0.04426197311 | F64: =F49/(F62*F63) -> 0.0447847901 | G64: =G49/(G62*G63) -> 0.04388942112 | H64: =H49/(H62*H63) -> 0.04222409706 | I64: =I49/(I62*I63) -> 0.04413540609 | S64: MAX | T64: =ROUND(F49,0)&"g/s @ "&F50&" b ; "&F51&"K" -> 100g/s @ 3,72675400267742 b ; 22,92K
B65: Hin | D65: =[3]!h_(11,D50,D51) -> 125.4100512 | F65: =[3]!h_(11,F50,F51) -> 132.865695 | G65: =[3]!h_(11,G50,G51) -> 103.9887359 | H65: =[3]!h_(11,H50,H51) -> 288.5702542 | I65: =[3]!h_(11,I50,I51) -> 101.5761208 | S65: MIN | T65: =ROUND(G49,0)&"g/s @ "&G50&" b ; "&G51&"K" -> 159g/s @ 5,22735431461238 b ; 17,75K
B66: Hout | D66: =[3]!h_(11,D52,D53) -> 86.30134787 | F66: =[3]!h_(11,F52,F53) -> 103.8827682 | G66: =[3]!h_(11,G52,G53) -> 74.73645039 | H66: =[3]!h_(11,H52,H53) -> 217.2142118 | I66: =[3]!h_(11,I52,I53) -> 78.1639595 | S66: STS | T66: =ROUND(H49,0)&"g/s @ "&H50&" b ; "&H51&"K" -> 81g/s @ 4,87 b ; 52,5K
B67: Sin = Sout | D67: =[3]!S_(11,D50,D51) -> 14.00948999 | F67: =[3]!S_(11,F50,F51) -> 15.45330014 | G67: =[3]!S_(11,G50,G51) -> 13.32153238 | H67: =[3]!S_(11,H50,H51) -> 19.26011356 | I67: =[3]!S_(11,I50,I51) -> 13.72293336 | S67: BAKING | T67: =ROUND(I49,0)&"g/s @ "&I50&" b ; "&I51&"K" -> 125g/s @ 4,02060635222861 b ; 17,17K
B68: Tout(iso) | D68: =[1]!HeCalc(2,0,1,D52*10^5,8,D67*1000,1) -> 11.65270392 | F68: =[1]!HeCalc(2,0,1,F52*10^5,8,F67*1000,1) -> 15.24707779 | G68: =[1]!HeCalc(2,0,1,G52*10^5,8,G67*1000,1) -> 10.08538078 | H68: =[1]!HeCalc(2,0,1,H52*10^5,8,H67*1000,1) -> 29.47686334 | I68: =[1]!HeCalc(2,0,1,I52*10^5,8,I67*1000,1) -> 11.0544689
B69: Hout(iso) | D69: =[3]!h_(11,D52,D68) -> 73.95123102 | F69: =[3]!h_(11,F52,F68) -> 93.24640525 | G69: =[3]!h_(11,G52,G68) -> 65.49181646 | H69: =[3]!h_(11,H52,H68) -> 168.1453995 | I69: =[3]!h_(11,I52,I68) -> 70.69860951
B70: ΔHs | D70: =D65-D69 -> 51.45882018 | F70: 39.61928978 | G70: 38.49691942 | H70: 120.4248547 | I70: 30.87751127
B71: u1 | C71: m/s | D71: =(2*52.7%*D70*1000*D54)^0.5 -> 203.0285037 | F71: =PI()*$D$72*F56 -> 152.5221068 | G71: =PI()*$D$72*G56 -> 179.1930675 | H71: 193.3306748 | I71: 152.8716238
B72: D1 | D72: =D71/PI()/D56 -> 0.03940608531
B73: Co = (2*ΔHs)^0,5 | D73: =(2000*D70)^0.5 -> 320.8077935 | F73: 281.4934805 | G73: 277.4776366 | H73: 490.7644134 | I73: 248.5055785
B74: u1/Co | D74: =D71/D73 -> 0.6328664946 | F74: 0.541831756 | G74: 0.6457928275 | H74: 0.3939378437 | I74: 0.6151637509
B75: U1/C0 off de / U1/C0 nom | D75: =D74/$D$39 -> 0.9870962336 | F75: =F74/$D74 -> 0.8561549088 | G75: =G74/$D74 -> 1.020425055 | H75: =H74/$D74 -> 0.6224659498 | I75: =I74/$D74 -> 0.9720276807
B76: Rdt | D76: =(0.321*D75^4-1.6098*D75^3+1.316*D75^2+0.9448*D75)*($D54/0.97215493) -> 0.7593560473 | F76: =(0.321*F75^4-1.6098*F75^3+1.316*F75^2+0.9448*F75)*($D54/0.97215493) -> 0.7315357486 | G76: =(0.321*G75^4-1.6098*G75^3+1.316*G75^2+0.9448*G75)*($D54/0.97215493) -> 0.7598604234 | H76: =(0.321*H75^4-1.6098*H75^3+1.316*H75^2+0.9448*H75)*($D54/0.97215493) -> 0.5925358401 | I76: =(0.321*I75^4-1.6098*I75^3+1.316*I75^2+0.9448*I75)*($D54/0.97215493) -> 0.7582269526
A77: ligne_ToBeNull_T2 | B77: Converge brake Power | F77: =F56-F57 -> -4.690649098e-05 | G77: =G56-G57 -> -6.086016288e-05 | H77: =H56-H57 -> -2.915934783e-05 | I77: =I56-I57 -> -5.181412962e-05
A78: ligne_ToChange_T2 | B78: By changing turbine speed | F78: =CELL("address",F56) -> $F$56 | G78: =CELL("address",G56) -> $G$56 | H78: =CELL("address",H56) -> $H$56 | I78: =CELL("address",I56) -> $I$56
B80: CV330
B81: Pin | C81: Bara | D81: 13.15 | F81: 13.15 | G81: 13.25 | H81: 13.5 | I81: 12.25 | J81: 13.15 | K81: 13.15 | L81: 13.15 | M81: 13.15 | N81: 13.15 | O81: 13.15 | P81: 13.15 | Q81: 13.15 | R81: 13.15 | S81: 13.15 | T81: 13.15 | U81: 13.15 | V81: 13.15 | W81: 13.15 | X81: 13.15 | Y81: 13.15 | Z81: 13.15 | AA81: 13.15 | AB81: 13.15
B82: Tin | C82: K | D82: =[3]!T_P_H_(11,D81,[3]!h_(11,D96,D97)) -> 8.835144154 | F82: =[3]!T_P_H_(11,F81,[3]!h_(11,F96,F97)) -> 9.166149668 | G82: =[3]!T_P_H_(11,G81,[3]!h_(11,G96,G97)) -> 8.622314625 | H82: =+H97 -> 8.828 | I82: =[3]!T_P_H_(11,I81,[3]!h_(11,I96,I97)) -> 10.79564053 | J82: =[3]!T_P_H_(11,J81,[3]!h_(11,J96,J97)) -> 7.289570189 | K82: =[3]!T_P_H_(11,K81,[3]!h_(11,K96,K97)) -> 7.287549476 | L82: =[3]!T_P_H_(11,L81,[3]!h_(11,L96,L97)) -> 7.286091223 | M82: =[3]!T_P_H_(11,M81,[3]!h_(11,M96,M97)) -> 7.281767836 | N82: =[3]!T_P_H_(11,N81,[3]!h_(11,N96,N97)) -> 7.280175123 | O82: =[3]!T_P_H_(11,O81,[3]!h_(11,O96,O97)) -> 7.280885227 | P82: =[3]!T_P_H_(11,P81,[3]!h_(11,P96,P97)) -> 7.283576767 | Q82: =[3]!T_P_H_(11,Q81,[3]!h_(11,Q96,Q97)) -> 7.292977542 | R82: =[3]!T_P_H_(11,R81,[3]!h_(11,R96,R97)) -> 7.309641747 | S82: =[3]!T_P_H_(11,S81,[3]!h_(11,S96,S97)) -> 7.335170768 | T82: =[3]!T_P_H_(11,T81,[3]!h_(11,T96,T97)) -> 7.371597533 | U82: =[3]!T_P_H_(11,U81,[3]!h_(11,U96,U97)) -> 7.421486544 | V82: =[3]!T_P_H_(11,V81,[3]!h_(11,V96,V97)) -> 7.488001 | W82: =[3]!T_P_H_(11,W81,[3]!h_(11,W96,W97)) -> 7.574845196 | X82: =[3]!T_P_H_(11,X81,[3]!h_(11,X96,X97)) -> 7.685926083 | Y82: =[3]!T_P_H_(11,Y81,[3]!h_(11,Y96,Y97)) -> 7.824616101 | Z82: =[3]!T_P_H_(11,Z81,[3]!h_(11,Z96,Z97)) -> 7.992825409 | AA82: =[3]!T_P_H_(11,AA81,[3]!h_(11,AA96,AA97)) -> 8.190438153 | AB82: =[3]!T_P_H_(11,AB81,[3]!h_(11,AB96,AB97)) -> 8.414996515
B83: Rho | D83: =[3]!rho_(11,D81,D82) -> 97.61868533 | F83: =[3]!rho_(11,F81,F82) -> 92.38543687 | G83: =[3]!rho_(11,G81,G82) -> 101.5881159 | H83: =[3]!rho_(11,H81,H82) -> 99.5385923 | I83: =[3]!rho_(11,I81,I82) -> 66.47696107 | J83: =[3]!rho_(11,J81,J82) -> 122.3554603 | K83: =[3]!rho_(11,K81,K82) -> 122.3852561 | L83: =[3]!rho_(11,L81,L82) -> 122.4067517 | M83: =[3]!rho_(11,M81,M82) -> 122.4704488 | N83: =[3]!rho_(11,N81,N82) -> 122.4939023 | O83: =[3]!rho_(11,O81,O82) -> 122.4834465 | P83: =[3]!rho_(11,P81,P82) -> 122.4438034 | Q83: =[3]!rho_(11,Q81,Q82) -> 122.3051943 | R83: =[3]!rho_(11,R81,R82) -> 122.0589282 | S83: =[3]!rho_(11,S81,S82) -> 121.6802709 | T83: =[3]!rho_(11,T81,T82) -> 121.1370961 | U83: =[3]!rho_(11,U81,U82) -> 120.3877662 | V83: =[3]!rho_(11,V81,V82) -> 119.3792007 | W83: =[3]!rho_(11,W81,W82) -> 118.0465516 | X83: =[3]!rho_(11,X81,X82) -> 116.3172901 | Y83: =[3]!rho_(11,Y81,Y82) -> 114.12278 | Z83: =[3]!rho_(11,Z81,Z82) -> 111.4162419 | AA83: =[3]!rho_(11,AA81,AA82) -> 108.1899242 | AB83: =[3]!rho_(11,AB81,AB82) -> 104.4920853
B84: dP | D84: =(D81-D96)*1000 -> 80 | F84: =(F81-F96)*1000 -> 80 | G84: 5881 | H84: 430 | I84: 1770 | J84: 25 | K84: 150 | L84: =(L81-L96)*1000 -> 250 | M84: 650 | N84: 1150 | O84: 1350 | P84: 1650 | Q84: =(Q81-Q96)*1000 -> 2150 | R84: 2650 | S84: 3150 | T84: 3650 | U84: =(U81-U96)*1000 -> 4150 | V84: 4650 | W84: 5150 | X84: 5650 | Y84: 6150 | Z84: 6650 | AA84: 7150 | AB84: 7650
B85: Cvs | D85: 30 | F85: 30 | G85: 30 | H85: 30 | I85: 30 | J85: 30 | K85: 30 | L85: 30 | M85: 30 | N85: 30 | O85: 30 | P85: 30 | Q85: 30 | R85: 30 | S85: 30 | T85: 30 | U85: 30 | V85: 30 | W85: 30 | X85: 30 | Y85: 30 | Z85: 30 | AA85: 30 | AB85: 30
B86: Range | D86: 250 | F86: 250 | G86: 250 | H86: 250 | I86: 250 | J86: 250 | K86: 250 | L86: 250 | M86: 250 | N86: 250 | O86: 250 | P86: 250 | Q86: 250 | R86: 250 | S86: 250 | T86: 250 | U86: 250 | V86: 250 | W86: 250 | X86: 250 | Y86: 250 | Z86: 250 | AA86: 250 | AB86: 250
B87: Flow | D87: =IF(D81/2>D96,"S","SS") -> SS | F87: =IF(F81/2>F96,"S","SS") -> SS | G87: SS | H87: SS | I87: SS | J87: SS | K87: SS | L87: =IF(L81/2>L96,"S","SS") -> SS | M87: SS | N87: SS | O87: SS | P87: SS | Q87: =IF(Q81/2>Q96,"S","SS") -> SS | R87: SS | S87: SS | T87: SS | U87: =IF(U81/2>U96,"S","SS") -> SS | V87: SS | W87: SS | X87: SS | Y87: SS | Z87: S | AA87: S | AB87: S
B88: Cv | D88: =[3]!Cv_Simple(D82,D81,D81-D96,D83,D95,D87) -> 16.86490567 | F88: =[3]!Cv_Simple(F82,F81,F81-F96,F83,F95,F87) -> 17.02085022 | G88: =[3]!Cv_Simple(G82,G81,G81-G96,G83,G95,G87) -> 1.535313626 | H88: =[3]!Cv_Simple(H82,H81,H81-H96,H83,H95,H87) -> 7.299928551 | I88: =[3]!Cv_Simple(I82,I81,I81-I96,I83,I95,I87) -> 3.435384188 | J88: =[3]!Cv_Simple(J82,J81,J81-J96,J83,J95,J87) -> 29.71954492 | K88: =[3]!Cv_Simple(K82,K81,K81-K96,K83,K95,K87) -> 12.07356924 | L88: =[3]!Cv_Simple(L82,L81,L81-L96,L83,L95,L87) -> 9.315289259 | M88: =[3]!Cv_Simple(M82,M81,M81-M96,M83,M95,M87) -> 5.685345401 | N88: =[3]!Cv_Simple(N82,N81,N81-N96,N83,N95,N87) -> 4.187536917 | O88: =[3]!Cv_Simple(O82,O81,O81-O96,O83,O95,O87) -> 3.832742136 | P88: =[3]!Cv_Simple(P82,P81,P81-P96,P83,P95,P87) -> 3.423045904 | Q88: =[3]!Cv_Simple(Q82,Q81,Q81-Q96,Q83,Q95,Q87) -> 2.934464382 | R88: =[3]!Cv_Simple(R82,R81,R81-R96,R83,R95,R87) -> 2.585003392 | S88: =[3]!Cv_Simple(S82,S81,S81-S96,S83,S95,S87) -> 2.317441714 | T88: =[3]!Cv_Simple(T82,T81,T81-T96,T83,T95,T87) -> 2.103056653 | U88: =[3]!Cv_Simple(U82,U81,U81-U96,U83,U95,U87) -> 1.92566266 | V88: =[3]!Cv_Simple(V82,V81,V81-V96,V83,V95,V87) -> 1.775386176 | W88: =[3]!Cv_Simple(W82,W81,W81-W96,W83,W95,W87) -> 1.645844905 | X88: =[3]!Cv_Simple(X82,X81,X81-X96,X83,X95,X87) -> 1.532704565 | Y88: =[3]!Cv_Simple(Y82,Y81,Y81-Y96,Y83,Y95,Y87) -> 1.432845856 | Z88: =[3]!Cv_Simple(Z82,Z81,Z81-Z96,Z83,Z95,Z87) -> 1.083224672 | AA88: =[3]!Cv_Simple(AA82,AA81,AA81-AA96,AA83,AA95,AA87) -> 1.014699115 | AB88: =[3]!Cv_Simple(AB82,AB81,AB81-AB96,AB83,AB95,AB87) -> 0.9464560042
B89: Cv | D89: =[3]!cv_gaz(11,D95,D81,D96,D82,0.87) -> 16.8465038 | F89: =[3]!cv_gaz(11,F95,F81,F96,F82,0.87) -> 17.00210509 | G89: =[3]!cv_gaz(11,G95,G81,G96,G82,0.87) -> 1.262712032 | H89: =[3]!cv_gaz(11,H95,H81,H96,H82,0.87) -> 7.235828175 | I89: =[3]!cv_gaz(11,I95,I81,I96,I82,0.87) -> 3.282301331 | J89: =[3]!cv_gaz(11,J95,J81,J96,J82,0.87) -> 29.72640181 | K89: =[3]!cv_gaz(11,K95,K81,K96,K82,0.87) -> 12.04718245 | L89: =[3]!cv_gaz(11,L95,L81,L96,L82,0.87) -> 9.276702787 | M89: =[3]!cv_gaz(11,M95,M81,M96,M82,0.87) -> 5.616038986 | N89: =[3]!cv_gaz(11,N95,N81,N96,N82,0.87) -> 4.09212531 | O89: =[3]!cv_gaz(11,O95,O81,O96,O82,0.87) -> 3.728482501 | P89: =[3]!cv_gaz(11,P95,P81,P96,P82,0.87) -> 3.306536964 | Q89: =[3]!cv_gaz(11,Q95,Q81,Q96,Q82,0.87) -> 2.799404492 | R89: =[3]!cv_gaz(11,R95,R81,R96,R82,0.87) -> 2.432893687 | S89: =[3]!cv_gaz(11,S95,S81,S96,S82,0.87) -> 2.149201215 | T89: =[3]!cv_gaz(11,T95,T81,T96,T82,0.87) -> 1.91921943 | U89: =[3]!cv_gaz(11,U95,U81,U96,U82,0.87) -> 1.726473135 | V89: =[3]!cv_gaz(11,V95,V81,V96,V82,0.87) -> 1.56085014 | W89: =[3]!cv_gaz(11,W95,W81,W96,W82,0.87) -> 1.41576645 | X89: =[3]!cv_gaz(11,X95,X81,X96,X82,0.87) -> 1.286735331 | Y89: =[3]!cv_gaz(11,Y95,Y81,Y96,Y82,0.87) -> 1.17057365 | Z89: =[3]!cv_gaz(11,Z95,Z81,Z96,Z82,0.87) -> 1.064924609 | AA89: =[3]!cv_gaz(11,AA95,AA81,AA96,AA82,0.87) -> 0.9679512005 | AB89: =[3]!cv_gaz(11,AB95,AB81,AB96,AB82,0.87) -> 0.8780927781
B90: Trim | D90: =[3]!Trim_From_Cv(D88/D85,D86) -> 0.8956865737 | F90: =[3]!Trim_From_Cv(F89/F85,F86) -> 0.8971539915 | G90: =[3]!Trim_From_Cv(G89/G85,G86) -> 0.426250477 | H90: =[3]!Trim_From_Cv(H89/H85,H86) -> 0.7424318344 | I90: =[3]!Trim_From_Cv(I89/I85,I86) -> 0.5992631999 | J90: =[3]!Trim_From_Cv(J89/J85,J86) -> 0.9983406962 | K90: =[3]!Trim_From_Cv(K89/K85,K86) -> 0.8347599333 | L90: =[3]!Trim_From_Cv(L89/L85,L86) -> 0.7874310407 | M90: =[3]!Trim_From_Cv(M89/M85,M86) -> 0.6965348849 | N90: =[3]!Trim_From_Cv(N89/N85,N86) -> 0.6392018452 | O90: =[3]!Trim_From_Cv(O89/O85,O86) -> 0.6223470386 | P90: =[3]!Trim_From_Cv(P89/P85,P86) -> 0.6005955657 | Q90: =[3]!Trim_From_Cv(Q89/Q85,Q86) -> 0.570441464 | R90: =[3]!Trim_From_Cv(R89/R85,R86) -> 0.5450269318 | S90: =[3]!Trim_From_Cv(S89/S85,S86) -> 0.522571802 | T90: =[3]!Trim_From_Cv(T89/T85,T86) -> 0.5020740224 | U90: =[3]!Trim_From_Cv(U89/U85,U86) -> 0.4829055667 | V90: =[3]!Trim_From_Cv(V89/V85,V86) -> 0.4646404654 | W90: =[3]!Trim_From_Cv(W89/W85,W86) -> 0.4469713031 | X90: =[3]!Trim_From_Cv(X89/X85,X86) -> 0.4296637848 | Y90: =[3]!Trim_From_Cv(Y89/Y85,Y86) -> 0.4125280425 | Z90: =[3]!Trim_From_Cv(Z89/Z85,Z86) -> 0.3953967211 | AA90: =[3]!Trim_From_Cv(AA89/AA85,AA86) -> 0.3781046288 | AB90: =[3]!Trim_From_Cv(AB89/AB85,AB86) -> 0.3604590424
B91: TURBINE 3
F92: =IF(ISERROR(F95),"","X") -> X | G92: X | H92: X | I92: =IF(ISERROR(I95),"","X") -> X | J92: X | K92: =IF(ISERROR(K95),"","X") -> X | L92: X | M92: X | N92: X | O92: X | P92: X | Q92: =IF(ISERROR(Q95),"","X") -> X | R92: X | S92: X | T92: X | U92: =IF(ISERROR(U95),"","X") -> X | V92: X | W92: X | X92: X | Y92: X | Z92: X | AA92: X | AB92: X
D93: DESIGN | F93: =F47 -> D3 | G93: =G47 -> STS | H93: D | I93: =I47 -> BAKING | J93: Lamin 1 | K93: Lamin 2 | L93: Lamin 3 | M93: Lamin 4 | N93: Lamin 5 | O93: Lamin 6 | P93: Lamin 7 | Q93: Lamin 8 | R93: Lamin 9 | S93: Lamin 10 | T93: Lamin 11 | U93: Lamin 12 | V93: Lamin 13 | W93: Lamin 14 | X93: Lamin 15 | Y93: Lamin 16 | Z93: Lamin 17 | AA93: Lamin 18 | AB93: Lamin 19
B95: m | C95: g/s | D95: 357 | F95: =F107*F96/F97^0.5 -> 350.5103375 | G95: 212.6367851 | H95: 357.0404372 | I95: 261.8834377 | J95: 394.5558875 | K95: 390.7982124 | L95: 387.7920723 | M95: 375.7675119 | N95: 360.7368114 | O95: 354.7245312 | P95: 345.706111 | Q95: 330.6754105 | R95: 315.64471 | S95: 300.6140095 | T95: 285.583309 | U95: 270.5526086 | V95: 255.5219081 | W95: 240.4912076 | X95: 225.4605071 | Y95: 210.4298067 | Z95: 195.3991062 | AA95: 180.3684057 | AB95: 165.3377052
B96: Pin | C96: Bara | D96: 13.07 | F96: 13.07 | G96: 7.369 | H96: 13.07 | I96: 10.48 | J96: 13.125 | K96: 13 | L96: 12.9 | M96: 12.5 | N96: 12 | O96: 11.8 | P96: 11.5 | Q96: 11 | R96: 10.5 | S96: 10 | T96: =S96-0.5 -> 9.5 | U96: =T96-0.5 -> 9 | V96: 8.5 | W96: 8 | X96: 7.5 | Y96: 7 | Z96: 6.5 | AA96: 6 | AB96: 5.5
B97: Tin | C97: K | D97: 8.83 | F97: 9.16 | G97: 7.912 | H97: 8.828 | I97: 10.55 | J97: 7.29 | K97: 7.29 | L97: 7.29 | M97: 7.29 | N97: 7.29 | O97: 7.29 | P97: 7.29 | Q97: 7.29 | R97: 7.29 | S97: 7.29 | T97: 7.29 | U97: 7.29 | V97: 7.29 | W97: 7.29 | X97: 7.29 | Y97: 7.29 | Z97: 7.29 | AA97: 7.29 | AB97: 7.29
B98: Pout | C98: Bara | D98: 4.88 | F98: 4.88 | G98: 5.18 | H98: 4.88 | I98: 5.18 | J98: 4.88 | K98: 4.88 | L98: 4.88 | M98: 4.88 | N98: 4.88 | O98: 4.88 | P98: 4.88 | Q98: 4.88 | R98: 4.88 | S98: 4.88 | T98: 4.88 | U98: 4.88 | V98: 4.88 | W98: 4.88 | X98: 4.88 | Y98: 4.88 | Z98: 4.88 | AA98: 4.88 | AB98: 4.88
B99: Tout | C99: K | D99: =[3]!T2_turb(11,D96,D97,D98,D100) -> 6.764910138 | F99: =[3]!T2_turb(11,F96,F97,F98,F100) -> 6.932519254 | G99: =[3]!T2_turb(11,G96,G97,G98,G100) -> 7.105446542 | H99: =[3]!T2_turb(11,H96,H97,H98,H100) -> 6.765834444 | I99: =[3]!T2_turb(11,I96,I97,I98,I100) -> 8.448159366 | J99: =[3]!T2_turb(11,J96,J97,J98,J100) -> 6.118169926 | K99: =[3]!T2_turb(11,K96,K97,K98,K100) -> 6.122260207 | L99: =[3]!T2_turb(11,L96,L97,L98,L100) -> 6.125605949 | M99: =[3]!T2_turb(11,M96,M97,M98,M100) -> 6.139678112 | N99: =[3]!T2_turb(11,N96,N97,N98,N100) -> 6.158965386 | O99: =[3]!T2_turb(11,O96,O97,O98,O100) -> 6.167265907 | P99: =[3]!T2_turb(11,P96,P97,P98,P100) -> 6.180410565 | Q99: =[3]!T2_turb(11,Q96,Q97,Q98,Q100) -> 6.204383559 | R99: =[3]!T2_turb(11,R96,R97,R98,R100) -> 6.2313673 | S99: =[3]!T2_turb(11,S96,S97,S98,S100) -> 6.262003722 | T99: =[3]!T2_turb(11,T96,T97,T98,T100) -> 6.297160697 | U99: =[3]!T2_turb(11,U96,U97,U98,U100) -> 6.338027464 | V99: =[3]!T2_turb(11,V96,V97,V98,V100) -> 6.386244262 | W99: =[3]!T2_turb(11,W96,W97,W98,W100) -> 6.444060882 | X99: =[3]!T2_turb(11,X96,X97,X98,X100) -> 6.514495175 | Y99: =[3]!T2_turb(11,Y96,Y97,Y98,Y100) -> 6.601450712 | Z99: =[3]!T2_turb(11,Z96,Z97,Z98,Z100) -> 6.709830759 | AA99: =[3]!T2_turb(11,AA96,AA97,AA98,AA100) -> 6.845836916 | AB99: =[3]!T2_turb(11,AB96,AB97,AB98,AB100) -> 7.018725769
B100: Efficacity | C100: % | D100: 0.72 | F100: =(0.321*F121^4-1.6098*F121^3+1.316*F121^2+0.9448*F121)*($D$100/0.97215493) -> 0.7151458528 | G100: 0.7167791895 | H100: 0.7174910501 | I100: 0.6834971758 | J100: 0.7183796021 | K100: 0.7184905123 | L100: =(0.321*L121^4-1.6098*L121^3+1.316*L121^2+0.9448*L121)*($D$100/0.97215493) -> 0.7185765998 | M100: 0.7188970387 | N100: 0.7192421859 | O100: 0.7193625175 | P100: 0.7195236266 | Q100: =(0.321*Q121^4-1.6098*Q121^3+1.316*Q121^2+0.9448*Q121)*($D$100/0.97215493) -> 0.7197397225 | R100: 0.7198899274 | S100: 0.7199753881 | T100: 0.7199998968 | U100: =(0.321*U121^4-1.6098*U121^3+1.316*U121^2+0.9448*U121)*($D$100/0.97215493) -> 0.7199714429 | V100: 0.7199048518 | W100: 0.7198262205 | X100: 0.7197790497 | Y100: 0.7198237879 | Z100: 0.7199732934 | AA100: 0.7197069272 | AB100: 0.7
B101: Power | C101: W | D101: =+D95*(D111-D112) -> 2444.694425 | F101: =+F95*(F111-F112) -> 2547.423955 | G101: 502.0718355 | H101: 2435.474434 | I101: 1859.424914 | J101: 2053.761819 | K101: 2010.502766 | L101: 1976.178372 | M101: 1841.410621 | N101: 1678.698121 | O101: 1615.419966 | P101: 1522.45693 | Q101: 1372.77691 | R101: 1229.742286 | S101: 1093.425192 | T101: 963.8728168 | U101: 841.0840516 | V101: 724.9655867 | W101: 615.2542859 | X101: 511.3930763 | Y101: 412.3683727 | Z101: 316.5589778 | AA101: 221.629107 | AB101: 121.8947268
B102: Speed | C102: Hz | D102: 920 | F102: 899.0323655 | G102: 518.3649656 | H102: 886.3167585 | I102: 798.4158766 | J102: 840.546807 | K102: 834.5493001 | L102: 829.7298134 | M102: 810.255188 | N102: 785.4481545 | O102: 775.3731054 | P102: 760.0888102 | Q102: 734.1309445 | R102: 707.518922 | S102: 680.1836862 | T102: 652.0353987 | U102: 622.9499241 | V102: 592.7421933 | W102: 561.1124841 | X102: 527.5373582 | Y102: 491.0493013 | Z102: 449.7744273 | AA102: 399.7611854 | AB102: 327.6431633
B103: Speed calculated from P=K.rho.N^3 | F103: =(F101/$D101*$D104/F104)^(1/3)*$D102 -> 932.710164 | G103: 537.4720008 | H103: 918.8419715 | I103: 831.5597122 | J103: 868.086479 | K103: 861.9482486 | L103: 857.01485 | M103: 837.0727058 | N103: 811.6531929 | O103: 801.3239356 | P103: 785.6479321 | Q103: 759.0078865 | R103: 731.6740779 | S103: 703.5732597 | T103: 674.6101597 | U103: 644.6531354 | V103: 613.5059285 | W103: 580.8506984 | X103: 546.132365 | Y103: 508.3249379 | Z103: 465.4408656 | AA103: 413.2903188 | AB103: 338.616362
B104: Brake Pressure | D104: 10 | F104: =($D104-$D98)+F98 -> 10 | G104: 10.3 | H104: 10 | I104: 10.3 | J104: 10 | K104: 10 | L104: 10 | M104: 10 | N104: 10 | O104: 10 | P104: 10 | Q104: 10 | R104: 10 | S104: 10 | T104: 10 | U104: 10 | V104: 10 | W104: 10 | X104: 10 | Y104: 10 | Z104: 10 | AA104: 10 | AB104: 10
B105: Rho (brake) | D105: =[3]!rho_(11,D104,330) -> 1.452865531 | F105: =[3]!rho_(11,F104,330) -> 1.452865531 | G105: =[3]!rho_(11,G104,330) -> 1.496268 | H105: =[3]!rho_(11,H104,330) -> 1.452865531 | I105: =[3]!rho_(11,I104,330) -> 1.496268 | J105: =[3]!rho_(11,J104,330) -> 1.452865531 | K105: =[3]!rho_(11,K104,330) -> 1.452865531 | L105: =[3]!rho_(11,L104,330) -> 1.452865531 | M105: =[3]!rho_(11,M104,330) -> 1.452865531 | N105: =[3]!rho_(11,N104,330) -> 1.452865531 | O105: =[3]!rho_(11,O104,330) -> 1.452865531 | P105: =[3]!rho_(11,P104,330) -> 1.452865531 | Q105: =[3]!rho_(11,Q104,330) -> 1.452865531 | R105: =[3]!rho_(11,R104,330) -> 1.452865531 | S105: =[3]!rho_(11,S104,330) -> 1.452865531 | T105: =[3]!rho_(11,T104,330) -> 1.452865531 | U105: =[3]!rho_(11,U104,330) -> 1.452865531 | V105: =[3]!rho_(11,V104,330) -> 1.452865531 | W105: =[3]!rho_(11,W104,330) -> 1.452865531 | X105: =[3]!rho_(11,X104,330) -> 1.452865531 | Y105: =[3]!rho_(11,Y104,330) -> 1.452865531 | Z105: =[3]!rho_(11,Z104,330) -> 1.452865531 | AA105: =[3]!rho_(11,AA104,330) -> 1.452865531 | AB105: =[3]!rho_(11,AB104,330) -> 1.452865531
B106: Wheel | C106: mm | D106: 29.5 | F106: =$D$106 -> 29.5 | G106: 29.5 | H106: 29.5 | I106: 29.5 | J106: 29.5 | K106: 29.5 | L106: =$D$106 -> 29.5 | M106: 29.5 | N106: 29.5 | O106: 29.5 | P106: 29.5 | Q106: 29.5 | R106: 29.5 | S106: 29.5 | T106: 29.5 | U106: 29.5 | V106: 29.5 | W106: 29.5 | X106: 29.5 | Y106: 29.5 | Z106: 29.5 | AA106: 29.5 | AB106: 29.5
B107: a = mÖT/P | D107: =D95*D97^0.5/D96 -> 81.16578257 | F107: =$D$107 -> 81.16578257 | G107: =$D$107 -> 81.16578257 | H107: 81.16578257 | I107: 81.16578257 | J107: =$D$107 -> 81.16578257 | K107: =$D$107 -> 81.16578257 | L107: =$D$107 -> 81.16578257 | M107: 81.16578257 | N107: 81.16578257 | O107: 81.16578257 | P107: 81.16578257 | Q107: 81.16578257 | R107: 81.16578257 | S107: 81.16578257 | T107: 81.16578257 | U107: 81.16578257 | V107: 81.16578257 | W107: 81.16578257 | X107: 81.16578257 | Y107: 81.16578257 | Z107: 81.16578257 | AA107: 81.16578257 | AB107: 81.16578257
B108: Rho (in) | C108: kg/m3 | D108: =[3]!rho_(11,D96,D97) -> 97.27777073 | F108: =[3]!rho_(11,F96,F97) -> 92.04202254 | G108: =[3]!rho_(11,G96,G97) -> 70.6496495 | H108: =[3]!rho_(11,H96,H97) -> 97.31015975 | I108: =[3]!rho_(11,I96,I97) -> 58.78998557 | J108: =[3]!rho_(11,J96,J97) -> 122.2625446 | K108: =[3]!rho_(11,K96,K97) -> 121.8254128 | L108: =[3]!rho_(11,L96,L97) -> 121.4704899 | M108: =[3]!rho_(11,M96,M97) -> 120.0015845 | N108: =[3]!rho_(11,N96,N97) -> 118.043234 | O108: =[3]!rho_(11,O96,O97) -> 117.2174039 | P108: =[3]!rho_(11,P96,P97) -> 115.9280725 | Q108: =[3]!rho_(11,Q96,Q97) -> 113.6283127 | R108: =[3]!rho_(11,R96,R97) -> 111.1090057 | S108: =[3]!rho_(11,S96,S97) -> 108.3259257 | T108: =[3]!rho_(11,T96,T97) -> 105.2230497 | U108: =[3]!rho_(11,U96,U97) -> 101.7300643 | V108: =[3]!rho_(11,V96,V97) -> 97.76122979 | W108: =[3]!rho_(11,W96,W97) -> 93.21874636 | X108: =[3]!rho_(11,X96,X97) -> 88.00609082 | Y108: =[3]!rho_(11,Y96,Y97) -> 82.05609149 | Z108: =[3]!rho_(11,Z96,Z97) -> 75.36830641 | AA108: =[3]!rho_(11,AA96,AA97) -> 68.03621188 | AB108: =[3]!rho_(11,AB96,AB97) -> 60.25606767
B109: Sound Speed | D109: =[3]!Sound_speed(11,D96,D97) -> 221.844273 | F109: =[3]!Sound_speed(11,F96,F97) -> 219.0353462 | G109: =[3]!Sound_speed(11,G96,G97) -> 170.7864441 | H109: =[3]!Sound_speed(11,H96,H97) -> 221.8649954 | I109: =[3]!Sound_speed(11,I96,I97) -> 204.2669237 | J109: =[3]!Sound_speed(11,J96,J97) -> 249.6648035 | K109: =[3]!Sound_speed(11,K96,K97) -> 248.379925 | L109: =[3]!Sound_speed(11,L96,L97) -> 247.3421552 | M109: =[3]!Sound_speed(11,M96,M97) -> 243.1002378 | N109: =[3]!Sound_speed(11,N96,N97) -> 237.581766 | O109: =[3]!Sound_speed(11,O96,O97) -> 235.3030379 | P109: =[3]!Sound_speed(11,P96,P97) -> 231.8044394 | Q109: =[3]!Sound_speed(11,Q96,Q97) -> 225.7481479 | R109: =[3]!Sound_speed(11,R96,R97) -> 219.3945943 | S109: =[3]!Sound_speed(11,S96,S97) -> 212.7308077 | T109: =[3]!Sound_speed(11,T96,T97) -> 205.7554615 | U109: =[3]!Sound_speed(11,U96,U97) -> 198.4897055 | V109: =[3]!Sound_speed(11,V96,V97) -> 190.994269 | W109: =[3]!Sound_speed(11,W96,W97) -> 183.3923611 | X109: =[3]!Sound_speed(11,X96,X97) -> 175.889713 | Y109: =[3]!Sound_speed(11,Y96,Y97) -> 168.7679982 | Z109: =[3]!Sound_speed(11,Z96,Z97) -> 162.3265086 | AA109: =[3]!Sound_speed(11,AA96,AA97) -> 156.8004965 | AB109: =[3]!Sound_speed(11,AB96,AB97) -> 152.3494648
B110: S=Q/(rho*V) = cte | D110: =D95/(D108*D109) -> 0.01654269965 | F110: =F95/(F108*F109) -> 0.01738603198 | G110: 0.01762280313 | H110: 0.01653752192 | I110: 0.02180753766 | J110: 0.01292581024 | K110: 0.01291511226 | L110: 0.01290713947 | M110: 0.01288091947 | N110: 0.01286282191 | O110: 0.01286090679 | P110: 0.012864612 | Q110: 0.01289113473 | R110: 0.01294861539 | S110: 0.01304507013 | T110: 0.01319078266 | U110: 0.01339875418 | V110: 0.01368488492 | W110: 0.01406742807 | X110: 0.01456522873 | Y110: 0.01519519684 | Z110: 0.01597145082 | AA110: 0.01690724742 | AB110: 0.01801068318
B111: Hin | D111: =[3]!h_(11,D96,D97) -> 38.4105443 | F111: =[3]!h_(11,F96,F97) -> 40.89014045 | G111: =[3]!h_(11,G96,G97) -> 36.81164396 | H111: =[3]!h_(11,H96,H97) -> 38.39568816 | I111: =[3]!h_(11,I96,I97) -> 54.05983231 | J111: =[3]!h_(11,J96,J97) -> 28.14464519 | K111: =[3]!h_(11,K96,K97) -> 28.13311798 | L111: =[3]!h_(11,L96,L97) -> 28.12480257 | M111: =[3]!h_(11,M96,M97) -> 28.10016525 | N111: =[3]!h_(11,N96,N97) -> 28.091095 | O111: =[3]!h_(11,O96,O97) -> 28.09513853 | P111: =[3]!h_(11,P96,P97) -> 28.11047075 | Q111: =[3]!h_(11,Q96,Q97) -> 28.16409435 | R111: =[3]!h_(11,R96,R97) -> 28.25942746 | S111: =[3]!h_(11,S96,S97) -> 28.40616451 | T111: =[3]!h_(11,T96,T97) -> 28.61698913 | U111: =[3]!h_(11,U96,U97) -> 28.90850144 | V111: =[3]!h_(11,V96,V97) -> 29.30216214 | W111: =[3]!h_(11,W96,W97) -> 29.82476846 | X111: =[3]!h_(11,X96,X97) -> 30.50745846 | Y111: =[3]!h_(11,Y96,Y97) -> 31.38210065 | Z111: =[3]!h_(11,Z96,Z97) -> 32.47542568 | AA111: =[3]!h_(11,AA96,AA97) -> 33.80343278 | AB111: =[3]!h_(11,AB96,AB97) -> 35.36504856
B112: Hout | D112: =[3]!h_(11,D98,D99) -> 31.56266076 | F112: =[3]!h_(11,F98,F99) -> 33.62238347 | G112: =[3]!h_(11,G98,G99) -> 34.45047284 | H112: =[3]!h_(11,H98,H99) -> 31.57440356 | I112: =[3]!h_(11,I98,I99) -> 46.95963181 | J112: =[3]!h_(11,J98,J99) -> 22.93939574 | K112: =[3]!h_(11,K98,K99) -> 22.98851213 | L112: =[3]!h_(11,L98,L99) -> 23.02882843 | M112: =[3]!h_(11,M98,M99) -> 23.19976656 | N112: =[3]!h_(11,N98,N99) -> 23.43756903 | O112: =[3]!h_(11,O98,O99) -> 23.54112599 | P112: =[3]!h_(11,P98,P99) -> 23.70656557 | Q112: =[3]!h_(11,Q98,Q99) -> 24.01266106 | R112: =[3]!h_(11,R98,R99) -> 24.36345757 | S112: =[3]!h_(11,S98,S99) -> 24.76885834 | T112: =[3]!h_(11,T98,T99) -> 25.24188706 | U112: =[3]!h_(11,U98,U99) -> 25.79973802 | V112: =[3]!h_(11,V98,V99) -> 26.46496673 | W112: =[3]!h_(11,W98,W99) -> 27.26644505 | X112: =[3]!h_(11,X98,X99) -> 28.2392427 | Y112: =[3]!h_(11,Y98,Y99) -> 29.42245254 | Z112: =[3]!h_(11,Z98,Z99) -> 30.85536208 | AA112: =[3]!h_(11,AA98,AA99) -> 32.57467486 | AB112: =[3]!h_(11,AB98,AB99) -> 34.62780156
B113: Sin = Sout | D113: =[3]!S_(11,D96,D97) -> 6.33129547 | F113: =[3]!S_(11,F96,F97) -> 6.606972814 | G113: =[3]!S_(11,G96,G97) -> 6.945830207 | H113: =[3]!S_(11,H96,H97) -> 6.329612817 | I113: =[3]!S_(11,I96,I97) -> 8.300020451 | J113: =[3]!S_(11,J96,J97) -> 5.052973367 | K113: =[3]!S_(11,K96,K97) -> 5.065441747 | L113: =[3]!S_(11,L96,L97) -> 5.075577387 | M113: =[3]!S_(11,M96,M97) -> 5.117641788 | N113: =[3]!S_(11,N96,N97) -> 5.174018415 | O113: =[3]!S_(11,O96,O97) -> 5.197895686 | P113: =[3]!S_(11,P96,P97) -> 5.235299437 | Q113: =[3]!S_(11,Q96,Q97) -> 5.302404719 | R113: =[3]!S_(11,R96,R97) -> 5.376511244 | S113: =[3]!S_(11,S96,S97) -> 5.459141872 | T113: =[3]!S_(11,T96,T97) -> 5.552283922 | U113: =[3]!S_(11,U96,U97) -> 5.658537972 | V113: =[3]!S_(11,V96,V97) -> 5.781279079 | W113: =[3]!S_(11,W96,W97) -> 5.924768117 | X113: =[3]!S_(11,X96,X97) -> 6.094079702 | Y113: =[3]!S_(11,Y96,Y97) -> 6.294692674 | Z113: =[3]!S_(11,Z96,Z97) -> 6.531792269 | AA113: =[3]!S_(11,AA96,AA97) -> 6.809636678 | AB113: =[3]!S_(11,AB96,AB97) -> 7.130860838
B114: Tout(iso) | D114: =[1]!HeCalc(2,0,1,D98*10^5,8,D113*1000,1) -> 6.562795094 | F114: =[1]!HeCalc(2,0,1,F98*10^5,8,F113*1000,1) -> 6.699995029 | G114: =[1]!HeCalc(2,0,1,G98*10^5,8,G113*1000,1) -> 7.024181985 | H114: =[1]!HeCalc(2,0,1,H98*10^5,8,H113*1000,1) -> 6.561982995 | I114: =[1]!HeCalc(2,0,1,I98*10^5,8,I113*1000,1) -> 8.048894673 | J114: =[1]!HeCalc(2,0,1,J98*10^5,8,J113*1000,1) -> 5.930905392 | K114: =[1]!HeCalc(2,0,1,K98*10^5,8,K113*1000,1) -> 5.938401007 | L114: =[1]!HeCalc(2,0,1,L98*10^5,8,L113*1000,1) -> 5.944456168 | M114: =[1]!HeCalc(2,0,1,M98*10^5,8,M113*1000,1) -> 5.969228596 | N114: =[1]!HeCalc(2,0,1,N98*10^5,8,N113*1000,1) -> 6.001560455 | O114: =[1]!HeCalc(2,0,1,O98*10^5,8,O113*1000,1) -> 6.014967851 | P114: =[1]!HeCalc(2,0,1,P98*10^5,8,P113*1000,1) -> 6.035645285 | Q114: =[1]!HeCalc(2,0,1,Q98*10^5,8,Q113*1000,1) -> 6.071807126 | R114: =[1]!HeCalc(2,0,1,R98*10^5,8,R113*1000,1) -> 6.11047678 | S114: =[1]!HeCalc(2,0,1,S98*10^5,8,S113*1000,1) -> 6.152238618 | T114: =[1]!HeCalc(2,0,1,T98*10^5,8,T113*1000,1) -> 6.197900655 | U114: =[1]!HeCalc(2,0,1,U98*10^5,8,U113*1000,1) -> 6.248597973 | V114: =[1]!HeCalc(2,0,1,V98*10^5,8,V113*1000,1) -> 6.305939581 | W114: =[1]!HeCalc(2,0,1,W98*10^5,8,W113*1000,1) -> 6.372200427 | X114: =[1]!HeCalc(2,0,1,X98*10^5,8,X113*1000,1) -> 6.450537159 | Y114: =[1]!HeCalc(2,0,1,Y98*10^5,8,Y113*1000,1) -> 6.545188261 | Z114: =[1]!HeCalc(2,0,1,Z98*10^5,8,Z113*1000,1) -> 6.661684082 | AA114: =[1]!HeCalc(2,0,1,AA98*10^5,8,AA113*1000,1) -> 6.807243307 | AB114: =[1]!HeCalc(2,0,1,AB98*10^5,8,AB113*1000,1) -> 6.991302408
B115: Hout(iso) | D115: =[3]!h_(11,D98,D114) -> 28.89959493 | F115: =[3]!h_(11,F98,F114) -> 30.72751844 | G115: =[3]!h_(11,G98,G114) -> 33.5175038 | H115: =[3]!h_(11,H98,H114) -> 28.88855271 | I115: =[3]!h_(11,I98,I114) -> 43.67178554 | J115: =[3]!h_(11,J98,J114) -> 20.89882496 | K115: =[3]!h_(11,K98,K114) -> 20.97282045 | L115: =[3]!h_(11,L98,L114) -> 21.03304069 | M115: =[3]!h_(11,M98,M114) -> 21.28361375 | N115: =[3]!h_(11,N98,N114) -> 21.62105464 | O115: =[3]!h_(11,O98,O114) -> 21.76451602 | P115: =[3]!h_(11,P98,P114) -> 21.98988623 | Q115: =[3]!h_(11,Q98,Q114) -> 22.39612968 | R115: =[3]!h_(11,R98,R114) -> 22.84753074 | S115: =[3]!h_(11,S98,S114) -> 23.35417769 | T115: =[3]!h_(11,T98,T114) -> 23.9293467 | U115: =[3]!h_(11,U98,U114) -> 24.59060321 | V115: =[3]!h_(11,V98,V114) -> 25.36109214 | W115: =[3]!h_(11,W98,W114) -> 26.27068369 | X115: =[3]!h_(11,X98,X114) -> 27.35619174 | Y115: =[3]!h_(11,Y98,Y114) -> 28.65970088 | Z115: =[3]!h_(11,Z98,Z114) -> 30.22525389 | AA115: =[3]!h_(11,AA98,AA114) -> 32.09612961 | AB115: =[3]!h_(11,AB98,AB114) -> 34.31183852
B116: ΔHs | D116: =D111-D115 -> 9.510949367 | F116: 10.16262202 | G116: 3.294140164 | H116: 9.507135448 | I116: 10.38804677 | J116: =J111-J115 -> 7.245820234 | K116: 7.160297529 | L116: =L111-L115 -> 7.091761882 | M116: 6.816551497 | N116: 6.47004036 | O116: 6.330622509 | P116: 6.12058452 | Q116: =Q111-Q115 -> 5.76796467 | R116: 5.411896722 | S116: 5.051986818 | T116: 4.687642432 | U116: =U111-U115 -> 4.317898226 | V116: 3.941070005 | W116: 3.554084773 | X116: 3.15126672 | Y116: 2.722399764 | Z116: 2.250171787 | AA116: 1.707303172 | AB116: 1.053210045
B117: u1 | C117: m/s | D117: =(2*52.7%*D116*1000*D100)^0.5 -> 84.95686703 | F117: =PI()*$D$118*F102 -> 83.02062297 | G117: =PI()*$D$118*G102 -> 47.86811245 | H117: 81.84640761 | I117: 73.72925159 | J117: =PI()*$D$118*J102 -> 77.61980795 | K117: =PI()*$D$118*K102 -> 77.06597165 | L117: =PI()*$D$118*L102 -> 76.62091894 | M117: 74.82254595 | N117: 72.53175481 | O117: 71.60138023 | P117: 70.18996084 | Q117: =PI()*$D$118*Q102 -> 67.79289678 | R117: 65.33542498 | S117: 62.81116847 | T117: 60.21183116 | U117: =PI()*$D$118*U102 -> 57.52594986 | V117: 54.73643445 | W117: 51.81560729 | X117: 48.71513174 | Y117: 45.34566326 | Z117: 41.53415893 | AA117: 36.91571508 | AB117: 30.2560181
B118: D1 | D118: =D117/PI()/D102 -> 0.02939414204
B119: Co = (2*ΔHs)^0,5 | D119: =(2000*D116)^0.5 -> 137.9198997 | F119: 142.5666302 | G119: 81.1682224 | H119: 137.8922438 | I119: 144.1391464 | J119: =(2000*J116)^0.5 -> 120.3812297 | K119: 119.6686887 | L119: =(2000*L116)^0.5 -> 119.0946001 | M119: 116.7608796 | N119: 113.7544756 | O119: 112.5221979 | P119: 110.6398167 | Q119: =(2000*Q116)^0.5 -> 107.4054437 | R119: 104.0374617 | S119: 100.5185238 | T119: 96.82605468 | U119: =(2000*U116)^0.5 -> 92.92898607 | V119: 88.78141703 | W119: 84.30996113 | X119: 79.3884969 | Y119: 73.78888485 | Z119: 67.08460013 | AA119: 58.43463309 | AB119: 45.89575242
B120: u1/Co | D120: =D117/D119 -> 0.6159870129 | F120: 0.5823285777 | G120: 0.5897395684 | H120: 0.5935533817 | I120: 0.511514418 | J120: =J117/J119 -> 0.6447833116 | K120: 0.6439944523 | L120: =L117/L119 -> 0.6433618225 | M120: 0.6408186221 | N120: 0.6376167129 | O120: 0.6363311558 | P120: 0.6344005525 | Q120: =Q117/Q119 -> 0.6311867856 | R120: 0.6279990293 | S120: 0.6248715765 | T120: 0.6218556705 | U120: =U117/U119 -> 0.6190312871 | V120: 0.6165303088 | W120: 0.6145846421 | X120: 0.6136296018 | Y120: 0.6145324374 | Z120: 0.6191310502 | AA120: 0.6317437644 | AB120: 0.6592335132
B121: U1/C0 off de / U1/C0 nom | D121: =D120/$D$39 -> 0.9607689228 | F121: =F120/$D120 -> 0.9453585312 | G121: 0.957389614 | H121: 0.9635809998 | I121: 0.830398056 | J121: 1.046748224 | K121: 1.045467581 | L121: =L120/$D120 -> 1.044440563 | M121: 1.040311904 | N121: 1.03511389 | O121: 1.033026902 | P121: 1.02989274 | Q121: =Q120/$D120 -> 1.024675476 | R121: 1.019500438 | S121: 1.014423297 | T121: 1.009527243 | U121: =U120/$D120 -> 1.004942108 | V121: 1.000881992 | W121: 0.9977233761 | X121: 0.9961729533 | Y121: 0.9976386264 | Z121: 1.005104064 | AA121: 1.025579681 | AB121: 1.070206838
B122: Rdt | D122: =(0.321*D121^4-1.6098*D121^3+1.316*D121^2+0.9448*D121)*($D100/0.97215493) -> 0.7171786088 | F122: =(0.321*F121^4-1.6098*F121^3+1.316*F121^2+0.9448*F121)*($D100/0.97215493) -> 0.7151458528 | G122: 0.7167791895 | H122: 0.7174910501 | I122: 0.6834971758 | J122: 0.7183796021 | K122: 0.7184905123 | L122: 0.7185765998 | M122: 0.7188970387 | N122: 0.7192421859 | O122: 0.7193625175 | P122: 0.7195236266 | Q122: 0.7197397225 | R122: 0.7198899274 | S122: 0.7199753881 | T122: 0.7199998968 | U122: 0.7199714429 | V122: 0.7199048518 | W122: 0.7198262205 | X122: 0.7197790497 | Y122: 0.7198237879 | Z122: 0.7199732934 | AA122: 0.7197069272 | AB122: 0.7156453798
A123: ligne_ToBeNull_T3 | B123: Converge brake Power | F123: =F102-F103 -> -33.67779859 | G123: -19.10703521 | H123: -32.52521301 | I123: -33.14383564 | J123: -27.53967198 | K123: -27.39894857 | L123: -27.28503658 | M123: -26.81751777 | N123: -26.20503833 | O123: -25.9508302 | P123: -25.5591219 | Q123: -24.87694205 | R123: -24.15515592 | S123: -23.38957347 | T123: -22.57476105 | U123: -21.70321131 | V123: -20.76373525 | W123: -19.73821426 | X123: -18.5950068 | Y123: -17.27563655 | Z123: -15.66643834 | AA123: -13.52913332 | AB123: -10.97319869
A124: ligne_ToChange_T3 | B124: By changing turbine speed
B126: CV220A
B127: flow | D127: =$D$95-D95 -> 0 | F127: =$D$95-F95 -> 6.489662456 | G127: 144.3632149 | H127: -0.0404372205 | I127: 95.11656233 | J127: -37.5558875 | K127: -33.79821238 | L127: -30.79207229 | M127: -18.7675119 | N127: -3.736811429 | O127: 2.275468762 | P127: 11.29388905 | Q127: =$D$95-Q95 -> 26.32458952 | R127: 41.35529 | S127: 56.38599048 | T127: 71.41669095 | U127: =$D$95-U95 -> 86.44739143 | V127: 101.4780919 | W127: 116.5087924 | X127: 131.5394929 | Y127: 146.5701933 | Z127: 161.6008938 | AA127: 176.6315943 | AB127: 191.6622948
B128: Pin | C128: Bara | D128: 13.5 | F128: 13.5 | G128: 13.5 | H128: 13.5 | I128: 13.5 | J128: 13.5 | K128: 13.5 | L128: 13.5 | M128: 13.5 | N128: 13.5 | O128: 13.5 | P128: 13.5 | Q128: 13.5 | R128: 13.5 | S128: 13.5 | T128: 13.5 | U128: 13.5 | V128: 13.5 | W128: 13.5 | X128: 13.5 | Y128: 13.5 | Z128: 13.5 | AA128: 13.5 | AB128: 13.5
B129: Tin | C129: K | D129: 100 | F129: 100 | G129: 100 | H129: 100 | I129: 100 | J129: 100 | K129: 100 | L129: 100 | M129: 100 | N129: 100 | O129: 100 | P129: 100 | Q129: 100 | R129: 100 | S129: 100 | T129: 100 | U129: 100 | V129: 100 | W129: 100 | X129: 100 | Y129: 100 | Z129: 100 | AA129: 100 | AB129: 100
B130: Rho | D130: =[3]!rho_(11,D128,D129) -> 6.373331124 | F130: =[3]!rho_(11,F128,F129) -> 6.373331124 | G130: =[3]!rho_(11,G128,G129) -> 6.373331124 | H130: =[3]!rho_(11,H128,H129) -> 6.373331124 | I130: =[3]!rho_(11,I128,I129) -> 6.373331124 | J130: =[3]!rho_(11,J128,J129) -> 6.373331124 | K130: =[3]!rho_(11,K128,K129) -> 6.373331124 | L130: =[3]!rho_(11,L128,L129) -> 6.373331124 | M130: =[3]!rho_(11,M128,M129) -> 6.373331124 | N130: =[3]!rho_(11,N128,N129) -> 6.373331124 | O130: =[3]!rho_(11,O128,O129) -> 6.373331124 | P130: =[3]!rho_(11,P128,P129) -> 6.373331124 | Q130: =[3]!rho_(11,Q128,Q129) -> 6.373331124 | R130: =[3]!rho_(11,R128,R129) -> 6.373331124 | S130: =[3]!rho_(11,S128,S129) -> 6.373331124 | T130: =[3]!rho_(11,T128,T129) -> 6.373331124 | U130: =[3]!rho_(11,U128,U129) -> 6.373331124 | V130: =[3]!rho_(11,V128,V129) -> 6.373331124 | W130: =[3]!rho_(11,W128,W129) -> 6.373331124 | X130: =[3]!rho_(11,X128,X129) -> 6.373331124 | Y130: =[3]!rho_(11,Y128,Y129) -> 6.373331124 | Z130: =[3]!rho_(11,Z128,Z129) -> 6.373331124 | AA130: =[3]!rho_(11,AA128,AA129) -> 6.373331124 | AB130: =[3]!rho_(11,AB128,AB129) -> 6.373331124
B131: Pout | D131: =1.15 -> 1.15 | F131: =1.15 -> 1.15 | G131: 1.15 | H131: 1.15 | I131: 1.15 | J131: 1.15 | K131: 1.15 | L131: 1.15 | M131: 1.15 | N131: 1.15 | O131: 1.15 | P131: 1.15 | Q131: 1.15 | R131: 1.15 | S131: 1.15 | T131: 1.15 | U131: 1.15 | V131: 1.15 | W131: 1.15 | X131: 1.15 | Y131: 1.15 | Z131: 1.15 | AA131: 1.15 | AB131: 1.15
B132: Cvs | D132: 35 | F132: 35 | G132: 35 | H132: 35 | I132: 35 | J132: 35 | K132: 35 | L132: 35 | M132: 35 | N132: 35 | O132: 35 | P132: 35 | Q132: 35 | R132: 35 | S132: 35 | T132: 35 | U132: 35 | V132: 35 | W132: 35 | X132: 35 | Y132: 35 | Z132: 35 | AA132: 35 | AB132: 35
B133: Range | D133: 100 | F133: 100 | G133: 100 | H133: 100 | I133: 100 | J133: 100 | K133: 100 | L133: 100 | M133: 100 | N133: 100 | O133: 100 | P133: 100 | Q133: 100 | R133: 100 | S133: 100 | T133: 100 | U133: 100 | V133: 100 | W133: 100 | X133: 100 | Y133: 100 | Z133: 100 | AA133: 100 | AB133: 100
B134: Flow | D134: =IF(D128/2>D131,"S","SS") -> S | F134: =IF(F128/2>F131,"S","SS") -> S | G134: S | H134: S | I134: S | J134: S | K134: S | L134: S | M134: S | N134: S | O134: S | P134: S | Q134: =IF(Q128/2>Q131,"S","SS") -> S | R134: S | S134: S | T134: S | U134: =IF(U128/2>U131,"S","SS") -> S | V134: S | W134: S | X134: S | Y134: S | Z134: S | AA134: S | AB134: S
B135: Cv | D135: =[3]!Cv_Simple(D129,D128,D131/1000,D130,D127,D134) -> 0 | E135: =[3]!Cv_Simple(E129,E128,E131/1000,E130,E127,E134) -> 0 | F135: =[3]!Cv_Simple(F129,F128,F131/1000,F130,F127,F134) -> 0.148458505 | G135: =[3]!Cv_Simple(G129,G128,G131/1000,G130,G127,G134) -> 3.30247485 | H135: =[3]!Cv_Simple(H129,H128,H131/1000,H130,H127,H134) -> -0.0009250480036 | I135: =[3]!Cv_Simple(I129,I128,I131/1000,I130,I127,I134) -> 2.17590094 | J135: =[3]!Cv_Simple(J129,J128,J131/1000,J130,J127,J134) -> -0.8591341919 | K135: =[3]!Cv_Simple(K129,K128,K131/1000,K130,K127,K134) -> -0.7731730447 | L135: =[3]!Cv_Simple(L129,L128,L131/1000,L130,L127,L134) -> -0.7044041268 | M135: =[3]!Cv_Simple(M129,M128,M131/1000,M130,M127,M134) -> -0.4293284555 | N135: =[3]!Cv_Simple(N129,N128,N131/1000,N130,N127,N134) -> -0.08548386633 | O135: =[3]!Cv_Simple(O129,O128,O131/1000,O130,O127,O134) -> 0.05205396933 | P135: =[3]!Cv_Simple(P129,P128,P131/1000,P130,P127,P134) -> 0.2583607228 | Q135: =[3]!Cv_Simple(Q129,Q128,Q131/1000,Q130,Q127,Q134) -> 0.602205312 | R135: =[3]!Cv_Simple(R129,R128,R131/1000,R130,R127,R134) -> 0.9460499011 | S135: =[3]!Cv_Simple(S129,S128,S131/1000,S130,S127,S134) -> 1.28989449 | T135: =[3]!Cv_Simple(T129,T128,T131/1000,T130,T127,T134) -> 1.633739079 | U135: =[3]!Cv_Simple(U129,U128,U131/1000,U130,U127,U134) -> 1.977583669 | V135: =[3]!Cv_Simple(V129,V128,V131/1000,V130,V127,V134) -> 2.321428258 | W135: =[3]!Cv_Simple(W129,W128,W131/1000,W130,W127,W134) -> 2.665272847 | X135: =[3]!Cv_Simple(X129,X128,X131/1000,X130,X127,X134) -> 3.009117436 | Y135: =[3]!Cv_Simple(Y129,Y128,Y131/1000,Y130,Y127,Y134) -> 3.352962025 | Z135: =[3]!Cv_Simple(Z129,Z128,Z131/1000,Z130,Z127,Z134) -> 3.696806614 | AA135: =[3]!Cv_Simple(AA129,AA128,AA131/1000,AA130,AA127,AA134) -> 4.040651204 | AB135: =[3]!Cv_Simple(AB129,AB128,AB131/1000,AB130,AB127,AB134) -> 4.384495793
B136: Trim | D136: =IF(D135=0,0,[3]!Trim_From_Cv(D135/D132,D133)) -> 0 | F136: =IF(F135=0,0,[3]!Trim_From_Cv(F135/F132,F133)) -> 0.0267631383 | G136: =IF(G135=0,0,[3]!Trim_From_Cv(G135/G132,G133)) -> 0.4873857373 | H136: =IF(H135=0,0,[3]!Trim_From_Cv(H135/H132,H133)) -> -0.0001667616662 | I136: =IF(I135=0,0,[3]!Trim_From_Cv(I135/I132,I133)) -> 0.3967855377 | J136: =IF(J135<0.00001,0,[3]!Trim_From_Cv(J135/J132,J133)) -> 0 | K136: =IF(K135=0,0,[3]!Trim_From_Cv(K135/K132,K133)) -> -0.1393826317 | L136: =IF(L135=0,0,[3]!Trim_From_Cv(L135/L132,L133)) -> -0.1269854164 | M136: =IF(M135=0,0,[3]!Trim_From_Cv(M135/M132,M133)) -> -0.07739655491 | N136: =IF(N135=0,0,[3]!Trim_From_Cv(N135/N132,N133)) -> -0.01541047809 | O136: =IF(O135=0,0,[3]!Trim_From_Cv(O135/O132,O133)) -> 0.009383952645 | P136: =IF(P135=0,0,[3]!Trim_From_Cv(P135/P132,P133)) -> 0.04657559874 | Q136: =IF(Q135=0,0,[3]!Trim_From_Cv(Q135/Q132,Q133)) -> 0.1178382689 | R136: =IF(R135=0,0,[3]!Trim_From_Cv(R135/R132,R133)) -> 0.2159230002 | S136: =IF(S135=0,0,[3]!Trim_From_Cv(S135/S132,S133)) -> 0.2832430717 | T136: =IF(T135=0,0,[3]!Trim_From_Cv(T135/T132,T133)) -> 0.3345573266 | U136: =IF(U135=0,0,[3]!Trim_From_Cv(U135/U132,U133)) -> 0.3760334113 | V136: =IF(V135=0,0,[3]!Trim_From_Cv(V135/V132,V133)) -> 0.4108436111 | W136: =IF(W135=0,0,[3]!Trim_From_Cv(W135/W132,W133)) -> 0.4408368152 | X136: =IF(X135=0,0,[3]!Trim_From_Cv(X135/X132,X133)) -> 0.4671855464 | Y136: =IF(Y135=0,0,[3]!Trim_From_Cv(Y135/Y132,Y133)) -> 0.4906802952 | Z136: =IF(Z135=0,0,[3]!Trim_From_Cv(Z135/Z132,Z133)) -> 0.5118793441 | AA136: =IF(AA135=0,0,[3]!Trim_From_Cv(AA135/AA132,AA133)) -> 0.5311916593 | AB136: =IF(AB135=0,0,[3]!Trim_From_Cv(AB135/AB132,AB133)) -> 0.5489258067
B137: Tout | D137: =[3]!T_P_H_(11,D85,[3]!h_(11,D128,D129)) -> 99.10840613 | F137: =[3]!T_P_H_(11,F85,[3]!h_(11,F128,F129)) -> 99.10840613 | G137: =[3]!T_P_H_(11,G85,[3]!h_(11,G128,G129)) -> 99.10840613 | H137: =[3]!T_P_H_(11,H85,[3]!h_(11,H128,H129)) -> 99.10840613 | I137: =[3]!T_P_H_(11,I85,[3]!h_(11,I128,I129)) -> 99.10840613 | J137: =[3]!T_P_H_(11,J85,[3]!h_(11,J128,J129)) -> 99.10840613 | K137: =[3]!T_P_H_(11,K85,[3]!h_(11,K128,K129)) -> 99.10840613 | L137: =[3]!T_P_H_(11,L85,[3]!h_(11,L128,L129)) -> 99.10840613 | M137: =[3]!T_P_H_(11,M85,[3]!h_(11,M128,M129)) -> 99.10840613 | N137: =[3]!T_P_H_(11,N85,[3]!h_(11,N128,N129)) -> 99.10840613 | O137: =[3]!T_P_H_(11,O85,[3]!h_(11,O128,O129)) -> 99.10840613 | P137: =[3]!T_P_H_(11,P85,[3]!h_(11,P128,P129)) -> 99.10840613 | Q137: =[3]!T_P_H_(11,Q85,[3]!h_(11,Q128,Q129)) -> 99.10840613 | R137: =[3]!T_P_H_(11,R85,[3]!h_(11,R128,R129)) -> 99.10840613 | S137: =[3]!T_P_H_(11,S85,[3]!h_(11,S128,S129)) -> 99.10840613 | T137: =[3]!T_P_H_(11,T85,[3]!h_(11,T128,T129)) -> 99.10840613 | U137: =[3]!T_P_H_(11,U85,[3]!h_(11,U128,U129)) -> 99.10840613 | V137: =[3]!T_P_H_(11,V85,[3]!h_(11,V128,V129)) -> 99.10840613 | W137: =[3]!T_P_H_(11,W85,[3]!h_(11,W128,W129)) -> 99.10840613 | X137: =[3]!T_P_H_(11,X85,[3]!h_(11,X128,X129)) -> 99.10840613 | Y137: =[3]!T_P_H_(11,Y85,[3]!h_(11,Y128,Y129)) -> 99.10840613 | Z137: =[3]!T_P_H_(11,Z85,[3]!h_(11,Z128,Z129)) -> 99.10840613 | AA137: =[3]!T_P_H_(11,AA85,[3]!h_(11,AA128,AA129)) -> 99.10840613 | AB137: =[3]!T_P_H_(11,AB85,[3]!h_(11,AB128,AB129)) -> 99.10840613
B138: delta T | D138: =D137-D85 -> 69.10840613 | F138: =F137-F85 -> 69.10840613 | G138: 69.10840613 | H138: 69.10840613 | I138: 69.10840613 | J138: 69.10840613 | K138: 69.10840613 | L138: 69.10840613 | M138: 69.10840613 | N138: 69.10840613 | O138: 69.10840613 | P138: 69.10840613 | Q138: 69.10840613 | R138: 69.10840613 | S138: 69.10840613 | T138: 69.10840613 | U138: 69.10840613 | V138: 69.10840613 | W138: 69.10840613 | X138: 69.10840613 | Y138: 69.10840613 | Z138: 69.10840613 | AA138: 69.10840613 | AB138: 69.10840613
B139: CV335
B140: Pin | C140: Bara | D140: =D81 -> 13.15 | F140: =F81 -> 13.15 | G140: 13.25 | H140: 13.5 | I140: 12.25 | J140: 13.15 | K140: 13.15 | L140: 13.15 | M140: 13.15 | N140: 13.15 | O140: 13.15 | P140: 13.15 | Q140: 13.15 | R140: 13.15 | S140: 13.15 | T140: 13.15 | U140: 13.15 | V140: 13.15 | W140: 13.15 | X140: 13.15 | Y140: 13.15 | Z140: 13.15 | AA140: 13.15 | AB140: 13.15
B141: Tin | C141: K | D141: =D82 -> 8.835144154 | F141: =F82 -> 9.166149668 | G141: 8.622314625 | H141: 8.828 | I141: 10.79564053 | J141: 7.289570189 | K141: 7.287549476 | L141: 7.286091223 | M141: 7.281767836 | N141: 7.280175123 | O141: 7.280885227 | P141: 7.283576767 | Q141: 7.292977542 | R141: 7.309641747 | S141: 7.335170768 | T141: 7.371597533 | U141: 7.421486544 | V141: 7.488001 | W141: 7.574845196 | X141: 7.685926083 | Y141: 7.824616101 | Z141: 7.992825409 | AA141: 8.190438153 | AB141: 8.414996515
B142: Rho | D142: =[3]!rho_(11,D140,D141) -> 97.61868533 | F142: =[3]!rho_(11,F140,F141) -> 92.38543687 | G142: =[3]!rho_(11,G140,G141) -> 101.5881159 | H142: =[3]!rho_(11,H140,H141) -> 99.5385923 | I142: =[3]!rho_(11,I140,I141) -> 66.47696107 | J142: =[3]!rho_(11,J140,J141) -> 122.3554603 | K142: =[3]!rho_(11,K140,K141) -> 122.3852561 | L142: =[3]!rho_(11,L140,L141) -> 122.4067517 | M142: =[3]!rho_(11,M140,M141) -> 122.4704488 | N142: =[3]!rho_(11,N140,N141) -> 122.4939023 | O142: =[3]!rho_(11,O140,O141) -> 122.4834465 | P142: =[3]!rho_(11,P140,P141) -> 122.4438034 | Q142: =[3]!rho_(11,Q140,Q141) -> 122.3051943 | R142: =[3]!rho_(11,R140,R141) -> 122.0589282 | S142: =[3]!rho_(11,S140,S141) -> 121.6802709 | T142: =[3]!rho_(11,T140,T141) -> 121.1370961 | U142: =[3]!rho_(11,U140,U141) -> 120.3877662 | V142: =[3]!rho_(11,V140,V141) -> 119.3792007 | W142: =[3]!rho_(11,W140,W141) -> 118.0465516 | X142: =[3]!rho_(11,X140,X141) -> 116.3172901 | Y142: =[3]!rho_(11,Y140,Y141) -> 114.12278 | Z142: =[3]!rho_(11,Z140,Z141) -> 111.4162419 | AA142: =[3]!rho_(11,AA140,AA141) -> 108.1899242 | AB142: =[3]!rho_(11,AB140,AB141) -> 104.4920853
B143: dP | D143: =(D140-D98)*1000 -> 8270 | F143: =(F140-F98)*1000 -> 8270 | G143: 8070 | H143: 8620 | I143: 7070 | J143: 8270 | K143: 8270 | L143: 8270 | M143: 8270 | N143: 8270 | O143: 8270 | P143: 8270 | Q143: 8270 | R143: 8270 | S143: 8270 | T143: 8270 | U143: 8270 | V143: 8270 | W143: 8270 | X143: 8270 | Y143: 8270 | Z143: 8270 | AA143: 8270 | AB143: 8270
B144: Cvs | D144: 5 | F144: =$D$144 -> 5 | G144: =$D$144 -> 5 | H144: 5 | I144: 5 | J144: 5 | K144: 5 | L144: 5 | M144: 5 | N144: 5 | O144: 5 | P144: 5 | Q144: 5 | R144: 5 | S144: 5 | T144: 5 | U144: 5 | V144: 5 | W144: 5 | X144: 5 | Y144: 5 | Z144: 5 | AA144: 5 | AB144: 5
B145: Range | D145: 250 | F145: =$D$145 -> 250 | G145: =$D$145 -> 250 | H145: 250 | I145: 250 | J145: 250 | K145: 250 | L145: 250 | M145: 250 | N145: 250 | O145: 250 | P145: 250 | Q145: 250 | R145: 250 | S145: 250 | T145: 250 | U145: 250 | V145: 250 | W145: 250 | X145: 250 | Y145: 250 | Z145: 250 | AA145: 250 | AB145: 250
B146: Flow | D146: =IF(D140/2>D98,"S","SS") -> S | F146: =IF(F140/2>F98,"S","SS") -> S | G146: S | H146: S | I146: S | J146: S | K146: S | L146: S | M146: S | N146: S | O146: S | P146: S | Q146: S | R146: S | S146: S | T146: S | U146: S | V146: S | W146: S | X146: S | Y146: S | Z146: S | AA146: S | AB146: S
B147: Cv | D147: =[3]!Cv_Simple(D141,D140,D143/1000,D142,D95,D146) -> 2.114326057 | F147: =[3]!Cv_Simple(F141,F140,F143/1000,F142,F95,F146) -> 2.133876575 | G147: =[3]!Cv_Simple(G141,G140,G143/1000,G142,G95,G146) -> 1.229821568 | H147: =[3]!Cv_Simple(H141,H140,H143/1000,H142,H95,H146) -> 2.066749655 | I147: =[3]!Cv_Simple(I141,I140,I143/1000,I142,I95,I146) -> 1.94732083 | J147: =[3]!Cv_Simple(J141,J140,J143/1000,J142,J95,J146) -> 2.087214455 | K147: =[3]!Cv_Simple(K141,K140,K143/1000,K142,K95,K146) -> 2.067084552 | L147: =[3]!Cv_Simple(L141,L140,L143/1000,L142,L95,L146) -> 2.051003791 | M147: =[3]!Cv_Simple(M141,M140,M143/1000,M142,M95,M146) -> 1.98688988 | N147: =[3]!Cv_Simple(N141,N140,N143/1000,N142,N95,N146) -> 1.907231673 | O147: =[3]!Cv_Simple(O141,O140,O143/1000,O142,O95,O146) -> 1.875524526 | P147: =[3]!Cv_Simple(P141,P140,P143/1000,P142,P95,P146) -> 1.82813757 | Q147: =[3]!Cv_Simple(Q141,Q140,Q143/1000,Q142,Q95,Q146) -> 1.749643926 | R147: =[3]!Cv_Simple(R141,R140,R143/1000,R142,R95,R146) -> 1.67179862 | S147: =[3]!Cv_Simple(S141,S140,S143/1000,S142,S95,S146) -> 1.594664607 | T147: =[3]!Cv_Simple(T141,T140,T143/1000,T142,T95,T146) -> 1.51832403 | U147: =[3]!Cv_Simple(U141,U140,U143/1000,U142,U95,U146) -> 1.442881851 | V147: =[3]!Cv_Simple(V141,V140,V143/1000,V142,V95,V146) -> 1.368466063 | W147: =[3]!Cv_Simple(W141,W140,W143/1000,W142,W95,W146) -> 1.29521771 | X147: =[3]!Cv_Simple(X141,X140,X143/1000,X142,X95,X146) -> 1.223259409 | Y147: =[3]!Cv_Simple(Y141,Y140,Y143/1000,Y142,Y95,Y146) -> 1.152633687 | Z147: =[3]!Cv_Simple(Z141,Z140,Z143/1000,Z142,Z95,Z146) -> 1.083224672 | AA147: =[3]!Cv_Simple(AA141,AA140,AA143/1000,AA142,AA95,AA146) -> 1.014699115 | AB147: =[3]!Cv_Simple(AB141,AB140,AB143/1000,AB142,AB95,AB146) -> 0.9464560042
B148: Trim | D148: =[3]!Trim_From_Cv(D147/D144,D145) -> 0.8441170167 | F148: =[3]!Trim_From_Cv(F147/F144,F145) -> 0.8457840033 | G148: =[3]!Trim_From_Cv(G147/G144,G145) -> 0.7459786746 | H148: =[3]!Trim_From_Cv(H147/H144,H145) -> 0.8399951086 | I148: =[3]!Trim_From_Cv(I147/I144,I145) -> 0.8292148705 | J148: =[3]!Trim_From_Cv(J147/J144,J145) -> 0.8417796404 | K148: =[3]!Trim_From_Cv(K147/K144,K145) -> 0.8400244536 | L148: =[3]!Trim_From_Cv(L147/L144,L145) -> 0.8386099987 | M148: =[3]!Trim_From_Cv(M147/M144,M145) -> 0.8328581177 | N148: =[3]!Trim_From_Cv(N147/N144,N145) -> 0.8254474455 | O148: =[3]!Trim_From_Cv(O147/O144,O145) -> 0.8224112133 | P148: =[3]!Trim_From_Cv(P147/P144,P145) -> 0.8177764545 | Q148: =[3]!Trim_From_Cv(Q147/Q144,Q145) -> 0.8098282988 | R148: =[3]!Trim_From_Cv(R147/R144,R145) -> 0.8015855108 | S148: =[3]!Trim_From_Cv(S147/S144,S145) -> 0.7930304148 | T148: =[3]!Trim_From_Cv(T147/T144,T145) -> 0.7841457513 | U148: =[3]!Trim_From_Cv(U147/U144,U145) -> 0.7749154559 | V148: =[3]!Trim_From_Cv(V147/V144,V145) -> 0.7653252498 | W148: =[3]!Trim_From_Cv(W147/W144,W145) -> 0.7553620073 | X148: =[3]!Trim_From_Cv(X147/X144,X145) -> 0.7450097012 | Y148: =[3]!Trim_From_Cv(Y147/Y144,Y145) -> 0.7342390995 | Z148: =[3]!Trim_From_Cv(Z147/Z144,Z145) -> 0.7229907927 | AA148: =[3]!Trim_From_Cv(AA147/AA144,AA145) -> 0.711155108 | AB148: =[3]!Trim_From_Cv(AB147/AB144,AB145) -> 0.698545597
B149: Tout | D149: =[3]!T_P_H_(11,D98,[3]!h_(11,D140,D141)) -> 7.372470051 | F149: =[3]!T_P_H_(11,F98,[3]!h_(11,F140,F141)) -> 7.630998962 | G149: =[3]!T_P_H_(11,G98,[3]!h_(11,G140,G141)) -> 7.321964339 | H149: =[3]!T_P_H_(11,H98,[3]!h_(11,H140,H141)) -> 7.351906498 | I149: =[3]!T_P_H_(11,I98,[3]!h_(11,I140,I141)) -> 9.403837193 | J149: =[3]!T_P_H_(11,J98,[3]!h_(11,J140,J141)) -> 6.507615187 | K149: =[3]!T_P_H_(11,K98,[3]!h_(11,K140,K141)) -> 6.506777398 | L149: =[3]!T_P_H_(11,L98,[3]!h_(11,L140,L141)) -> 6.506173116 | M149: =[3]!T_P_H_(11,M98,[3]!h_(11,M140,M141)) -> 6.504383087 | N149: =[3]!T_P_H_(11,N98,[3]!h_(11,N140,N141)) -> 6.503724223 | O149: =[3]!T_P_H_(11,O98,[3]!h_(11,O140,O141)) -> 6.504017937 | P149: =[3]!T_P_H_(11,P98,[3]!h_(11,P140,P141)) -> 6.505131768 | Q149: =[3]!T_P_H_(11,Q98,[3]!h_(11,Q140,Q141)) -> 6.509029015 | R149: =[3]!T_P_H_(11,R98,[3]!h_(11,R140,R141)) -> 6.515964314 | S149: =[3]!T_P_H_(11,S98,[3]!h_(11,S140,S141)) -> 6.526657011 | T149: =[3]!T_P_H_(11,T98,[3]!h_(11,T140,T141)) -> 6.542061119 | U149: =[3]!T_P_H_(11,U98,[3]!h_(11,U140,U141)) -> 6.563450243 | V149: =[3]!T_P_H_(11,V98,[3]!h_(11,V140,V141)) -> 6.592520765 | W149: =[3]!T_P_H_(11,W98,[3]!h_(11,W140,W141)) -> 6.631491716 | X149: =[3]!T_P_H_(11,X98,[3]!h_(11,X140,X141)) -> 6.683145961 | Y149: =[3]!T_P_H_(11,Y98,[3]!h_(11,Y140,Y141)) -> 6.750739301 | Z149: =[3]!T_P_H_(11,Z98,[3]!h_(11,Z140,Z141)) -> 6.837783017 | AA149: =[3]!T_P_H_(11,AA98,[3]!h_(11,AA140,AA141)) -> 6.947817721 | AB149: =[3]!T_P_H_(11,AB98,[3]!h_(11,AB140,AB141)) -> 7.083937254
B150: delta T | D150: =D149-D98 -> 2.492470051 | F150: =F149-F98 -> 2.750998962 | G150: 2.141964339 | H150: 2.471906498 | I150: 4.223837193 | J150: 1.627615187 | K150: 1.626777398 | L150: 1.626173116 | M150: 1.624383087 | N150: 1.623724223 | O150: 1.624017937 | P150: 1.625131768 | Q150: 1.629029015 | R150: 1.635964314 | S150: 1.646657011 | T150: 1.662061119 | U150: 1.683450243 | V150: 1.712520765 | W150: 1.751491716 | X150: 1.803145961 | Y150: 1.870739301 | Z150: 1.957783017 | AA150: 2.067817721 | AB150: 2.203937254
W152: Ratio Cv | X152: 0.5
X153: =[3]!Trim_From_Cv(X152,X145) -> 0.8744630831
M155: =M37 -> T1 | N155: =M160 -> T3 | O155: T1+T2
B156: Courbe de rendement TC3 | L156: =L161 -> MAX | M156: =M38 -> 100g/s @ 7,20590918031859 b ; 35K | N156: =M161 -> 351g/s @ 13,07 b ; 9,16K | O156: =F95+F49 -> 450.5103375
L157: =L162 -> MIN | M157: =M39 -> 159g/s @ 12,39 b ; 40,73K | N157: =M162 -> 213g/s @ 7,369 b ; 7,912K | O157: =G95+G49 -> 372.0261497
L158: =L163 -> STS | M158: =M40 -> 104g/s @ 10,3 b ; 66K | N158: =M163 -> 357g/s @ 13,07 b ; 8,828K | O158: =H95+H49 -> 437.5554691
L159: =L164 -> BAKING | M159: =M41 -> 125g/s @ 9,25 b ; 37,12K | N159: =M164 -> 262g/s @ 10,48 b ; 10,55K | O159: =I95+I49 -> 386.5307696
E160: d : mm | M160: T3
E161: N : Hz | L161: MAX | M161: =ROUND(F95,0)&"g/s @ "&F96&" b ; "&F97&"K" -> 351g/s @ 13,07 b ; 9,16K
E162: H : J/kG | L162: MIN | M162: =ROUND(G95,0)&"g/s @ "&G96&" b ; "&G97&"K" -> 213g/s @ 7,369 b ; 7,912K
L163: STS | M163: =ROUND(H95,0)&"g/s @ "&H96&" b ; "&H97&"K" -> 357g/s @ 13,07 b ; 8,828K
L164: BAKING | M164: =ROUND(I95,0)&"g/s @ "&I96&" b ; "&I97&"K" -> 262g/s @ 10,48 b ; 10,55K
B168: rendement=(0,321*rap^4 - 1,6098*rap^3 + 1,316*rap^2 + 0,9448*rap)*(ETAgar/0,97) | I168: U1/CO _nom | J168: 0.64
I169: Eta_gar | J169: 0.8
B170: U1/C0 | C170: =D19 -> 0.78 | D170: =D54 -> 0.76 | E170: =D100 -> 0.72
B171: 0 | C171: =(0.321*B171^4-1.6098*B171^3+1.316*B171^2+0.9448*B171)*$D$19/0.97215493 -> 0
B172: =B171+0.05 -> 0.05 | C172: =(0.321*$B172^4-1.6098*$B172^3+1.316*$B172^2+0.9448*$B172)*$C$170/0.97215493 -> 0.04038246185 | D172: =(0.321*$B172^4-1.6098*$B172^3+1.316*$B172^2+0.9448*$B172)*$D$170/0.97215493 -> 0.03934701411 | E172: =(0.321*$B172^4-1.6098*$B172^3+1.316*$B172^2+0.9448*$B172)*$E$170/0.97215493 -> 0.03727611863
B173: 0.1 | C173: =(0.321*$B173^4-1.6098*$B173^3+1.316*$B173^2+0.9448*$B173)*$C$170/0.97215493 -> 0.08509815817 | D173: =(0.321*$B173^4-1.6098*$B173^3+1.316*$B173^2+0.9448*$B173)*$D$170/0.97215493 -> 0.08291615412 | E173: =(0.321*$B173^4-1.6098*$B173^3+1.316*$B173^2+0.9448*$B173)*$E$170/0.97215493 -> 0.078552146
B174: 0.15 | C174: 0.1332363313 | D174: 0.1298200152 | E174: 0.1229873828
B175: 0.2 | C175: 0.1839248565 | D175: 0.1792088345 | E175: 0.1697767906
B176: 0.25 | C176: 0.2363302415 | D176: 0.2302704917 | E176: 0.2181509921
B177: 0.3 | C177: 0.2896576269 | D177: 0.2822305083 | E177: 0.267376271
B178: 0.35 | C178: 0.343150786 | D178: 0.3343520479 | E178: 0.3167545717
B179: 0.4 | C179: 0.3960921249 | D179: 0.3859359166 | E179: 0.3656234999
B180: 0.45 | C180: 0.4478026824 | D180: 0.4363205624 | E180: 0.4133563222
B181: 0.5 | C181: 0.4976421299 | D181: 0.4848820753 | E181: 0.4593619661
B182: 0.55 | C182: 0.5450087718 | D182: 0.5310341879 | E182: 0.5030850201
B183: 0.6 | C183: 0.5893395449 | D183: 0.5742282745 | E183: 0.5440057337
B184: 0.65 | C184: 0.630110019 | D184: 0.6139533518 | E184: 0.5816400175
B185: 0.7 | C185: 0.6668343964 | D185: 0.6497360786 | E185: 0.6155394429
B186: 0.75 | C186: 0.6990655125 | D186: 0.6811407558 | E186: 0.6452912423
B187: 0.8 | C187: 0.726394835 | D187: 0.7077693264 | E187: 0.6705183093
B188: 0.85 | C188: 0.7484524646 | D188: 0.7292613758 | E188: 0.6908791981
B189: 0.9 | C189: 0.7649071347 | D189: 0.7452941313 | E189: 0.7060681243
B190: 0.95 | C190: 0.7754662113 | D190: 0.7555824623 | E190: 0.7158149643
B191: 1 | C191: 0.7798756933 | D191: 0.7598788806 | E191: 0.7198852553
B192: 1.05 | C192: 0.7779202121 | D192: 0.75797354 | E192: 0.7180801958
B193: 1.1 | C193: 0.7694230322 | D193: 0.7496942365 | E193: 0.7102366451
B194: 1.15 | C194: 0.7542460504 | D194: 0.7349064081 | E194: 0.6962271235
B195: 1.2 | C195: 0.7322897966 | D195: 0.7135131352 | E195: 0.6759598123 | G195: F Let u be the peripheral speed of the wheel : u = p . Æ . N / 60 (in m/s)
B196: 1.25 | C196: 0.7034934333 | D196: 0.6854551401 | E196: 0.6493785538 | G196: F Let n, be the speed ratio of the turbine : n = u / [ 2 . (H1 - H2S ) ] 0.5 (dimensionless number)
B197: 1.3 | C197: 0.6678347555 | D197: 0.6507107874 | E197: 0.6164628512 | H197: N = speed of rotation of the turbine (in rpm)
B198: 1.35 | C198: 0.6253301913 | D198: 0.6092960839 | E198: 0.5772278689 | H198: Æ = diameter of the wheel of the turbine (in m)
B199: 1.4 | C199: 0.5760348014 | D199: 0.5612646783 | E199: 0.531724432
B200: 1.45 | C200: 0.520042279 | D200: 0.5067078616 | E200: 0.4800390268
B201: 1.5 | C201: 0.4574849505 | D201: 0.4457545671 | E201: 0.4222938004

Sheet JT60_after_test
A1: 1 | B1: 2 | C1: 3 | D1: 4 | E1: 5 | F1: 6 | G1: 7 | H1: 8 | I1: 9 | J1: 10 | K1: 11 | L1: 12 | M1: 13 | N1: 14 | O1: 15 | P1: 16 | Q1: 17 | R1: 18 | S1: 19 | T1: 20 | U1: 21 | V1: 22 | W1: 23 | X1: 24 | Y1: 25 | Z1: 26 | AA1: 27 | AB1: 28
AF2: =1-1/3 -> 0.6666666667
E5: Vitesse de la roue ajustée en fonction de la puissance du frein | L5: =D56*0.3 -> 438.3
B8: Relation entre la puissance et la vitesse de rotation | M8: ²
B10: TURBINE 1
F11: =IF(ISERROR(F14),"","X") -> X | G11: X | H11: =IF(ISERROR(H14),"","X") -> X | I11: =IF(ISERROR(I14),"","X") -> X
D12: DESIGN | F12: D3 | G12: STS | H12: start-up | I12: =L41 -> BAKING
B14: m | C14: g/s | D14: 179.52 | F14: 100 | G14: =G26*G15/G16^0.5 -> 163.1659665 | H14: =H26*H15/H16^0.5 -> 106.5566929 | I14: =I26*I15/I16^0.5 -> 127.6007495 | K14: =F14/D14 -> 0.5570409982
B15: Pin | C15: Bara | D15: 14.78 | F15: =F14*F16^0.5/F26 -> 7.039122866 | G15: 12.39 | H15: 10.3 | I15: 9.25
B16: Tin | C16: K | D16: 47.88 | F16: 35 | G16: 40.73 | H16: 66 | I16: 37.12
B17: Pout | C17: Bara | D17: 6.39 | F17: 6.36 | G17: 5.242 | H17: 4.97 | I17: 4.06
B18: Tout | C18: K | D18: =[3]!T2_turb(11,D15,D16,D17,D19) -> 37.45143929 | F18: =[3]!T2_turb(11,F15,F16,F17,F19) -> 33.9728201 | G18: =[3]!T2_turb(11,G15,G16,G17,G19) -> 31.66948075 | H18: =[3]!T2_turb(11,H15,H16,H17,H19) -> 53.57263296 | I18: =[3]!T2_turb(11,I15,I16,I17,I19) -> 29.27105026
B19: Efficacity | C19: % | D19: 0.767 | F19: =(0.321*F40^4-1.6098*F40^3+1.316*F40^2+0.9448*F40)*($D$19/0.97215493) -> 0.7367783322 | G19: =(0.321*G40^4-1.6098*G40^3+1.316*G40^2+0.9448*G40)*($D$19/0.97215493) -> 0.7640412841 | H19: =(0.321*H40^4-1.6098*H40^3+1.316*H40^2+0.9448*H40)*($D$19/0.97215493) -> 0.7483377524 | I19: =(0.321*I40^4-1.6098*I40^3+1.316*I40^2+0.9448*I40)*($D$19/0.97215493) -> 0.7517911046
B20: Power | C20: W | D20: =+D14*(D30-D31) -> 10019.0211 | F20: =+F14*(F30-F31) -> 541.8811629 | G20: =+G14*(G30-G31) -> 7847.586297 | H20: =+H14*(H30-H31) -> 7027.671217 | I20: =+I14*(I30-I31) -> 5272.985661
B21: Speed | C21: Hz | D21: 2214 | F21: 818.4929136 | G21: 2178.927718 | H21: 2159.952605 | I21: 2152.722374 | K21: =F21/D21 -> 0.3696896629
B22: Speed calculated from P=K.rho.N^3 | F22: =(F20/$D20*$D23/F23)^(1/3)*$D21 -> 838.9609422 | G22: =(G20/$D20*$D23/G23)^(1/3)*$D21 -> 2226.259547 | H22: =(H20/$D20*$D23/H23)^(1/3)*$D21 -> 2198.882336 | I22: =(I20/$D20*$D23/I23)^(1/3)*$D21 -> 2203.303363
B23: Brake Pressure | D23: 5 | F23: =($D23-$D17)+F17 -> 4.97 | G23: =($D23-$D17)+G17 -> 3.852 | H23: =($D23-$D17)+H17 -> 3.58 | I23: =($D23-$D17)+I17 -> 2.67
B24: Rho (brake) | D24: =[3]!rho_(11,D23,330) -> 0.7279198097 | F24: =[3]!rho_(11,F23,330) -> 0.7235611733 | G24: =[3]!rho_(11,G23,330) -> 0.5610529543 | H24: =[3]!rho_(11,H23,330) -> 0.5214935639 | I24: =[3]!rho_(11,I23,330) -> 0.3890800564
B25: Wheel | C25: mm | D25: 35.75 | F25: =$D$25 -> 35.75 | G25: =$D$25 -> 35.75 | H25: =$D$25 -> 35.75 | I25: =$D$25 -> 35.75
B26: a = mÖT/P | D26: =D14*D16^0.5/D15 -> 84.04569568 | F26: =+$D$26 -> 84.04569568 | G26: =+$D$26 -> 84.04569568 | H26: =+$D$26 -> 84.04569568 | I26: =+$D$26 -> 84.04569568
B27: Rho (in) | C27: kg/m3 | D27: =[3]!rho_(11,D15,D16) -> 14.32693261 | F27: =[3]!rho_(11,F15,F16) -> 9.506297448 | G27: =[3]!rho_(11,G15,G16) -> 14.1781416 | H27: =[3]!rho_(11,H15,H16) -> 7.3557574 | I27: =[3]!rho_(11,I15,I16) -> 11.70816291
B28: Sound Speed @inlet | D28: =[3]!Sound_speed(11,D15,D16) -> 424.9760991 | F28: =[3]!Sound_speed(11,F15,F16) -> 357.3310189 | G28: =[3]!Sound_speed(11,G15,G16) -> 391.2891989 | H28: =[3]!Sound_speed(11,H15,H16) -> 488.8557373 | I28: =[3]!Sound_speed(11,I15,I16) -> 370.5157737
B29: S=Q/(rho*V) = cte | D29: =D14/(D27*D28) -> 0.02948459155 | F29: =F14/(F27*F28) -> 0.02943864952 | G29: =G14/(G27*G28) -> 0.02941117725 | H29: =H14/(H27*H28) -> 0.0296327952 | I29: =I14/(I27*I28) -> 0.02941424916
B30: Hin | D30: =[3]!h_(11,D15,D16) -> 265.4779378 | F30: =[3]!h_(11,F15,F16) -> 196.6631844 | G30: =[3]!h_(11,G15,G16) -> 227.2127422 | H30: =[3]!h_(11,H15,H16) -> 360.1422039 | I30: =[3]!h_(11,I15,I16) -> 207.8908573
B31: Hout | D31: =[3]!h_(11,D17,D18) -> 209.6678826 | F31: =[3]!h_(11,F17,F18) -> 191.2443728 | G31: =[3]!h_(11,G17,G18) -> 179.1170121 | H31: =[3]!h_(11,H17,H18) -> 294.1897891 | I31: =[3]!h_(11,I17,I18) -> 166.566761
B32: Sin = Sout | D32: =[3]!S_(11,D15,D16) -> 16.44288668 | F32: =[3]!S_(11,F15,F16) -> 16.35245245 | G32: =[3]!S_(11,G15,G16) -> 15.95659187 | H32: =[3]!S_(11,H15,H16) -> 18.89203458 | I32: =[3]!S_(11,I15,I16) -> 16.08435866
B33: Tout(iso) | D33: =[1]!HeCalc(2,0,1,D17*10^5,8,D32*1000,1) -> 34.25004679 | F33: =[1]!HeCalc(2,0,1,F17*10^5,8,F32*1000,1) -> 33.60817905 | G33: =[1]!HeCalc(2,0,1,G17*10^5,8,G32*1000,1) -> 28.87508647 | H33: =[1]!HeCalc(2,0,1,H17*10^5,8,H32*1000,1) -> 49.33078138 | I33: =[1]!HeCalc(2,0,1,I17*10^5,8,I32*1000,1) -> 26.69973777
B34: Hout(iso) | D34: =[3]!h_(11,D17,D33) -> 192.7138502 | F34: =[3]!h_(11,F17,F33) -> 189.3084463 | G34: =[3]!h_(11,G17,G33) -> 164.2636174 | H34: =[3]!h_(11,H17,H33) -> 272.0103214 | I34: =[3]!h_(11,I17,I33) -> 152.9233323
B35: ΔHs | D35: =D30-D34 -> 72.76408753 | F35: 7.354738043 | G35: 62.94912484 | H35: 88.1318825 | I35: 54.96752496
B36: u1 | C36: m/s | D36: =(2*52.7%*D35*1000*D19)^0.5 -> 242.536179 | F36: =PI()*$D$37*F21 -> 89.66311825 | G36: =PI()*$D$37*G21 -> 238.6941296 | H36: =PI()*$D$37*H21 -> 236.6154705 | I36: =PI()*$D$37*I21 -> 235.8234232
B37: D1 | D37: =D36/PI()/D21 -> 0.03486976672 | M37: T1
B38: Co = (2*ΔHs)^0,5 | D38: =(2000*D35)^0.5 -> 381.4815527 | F38: 121.282629 | G38: 354.8214335 | H38: 419.8377841 | I38: 331.5645487 | L38: MAX | M38: =ROUND(F14,0)&"g/s @ "&F15&" b ; "&F16&"K" -> 100g/s @ 7,03912286644876 b ; 35K
B39: u1/Co | D39: =D36/D38 -> 0.635774331 | F39: 0.7392906884 | G39: 0.6727162089 | H39: 0.5635878414 | I39: 0.711244384 | L39: MIN | M39: =ROUND(G14,0)&"g/s @ "&G15&" b ; "&G16&"K" -> 163g/s @ 12,39 b ; 40,73K
B40: U1/C0 off de / U1/C0 nom | D40: =D39/$D$39 -> 1 | F40: =F39/$D39 -> 1.162819341 | G40: =G39/$D39 -> 1.058105331 | H40: =H39/$D39 -> 0.8864589428 | I40: =I39/$D39 -> 1.118705725 | L40: STS | M40: =ROUND(H14,0)&"g/s @ "&H15&" b ; "&H16&"K" -> 107g/s @ 10,3 b ; 66K
B41: Rdt | D41: =(0.321*D40^4-1.6098*D40^3+1.316*D40^2+0.9448*D40)*($D19/0.97215493) -> 0.766877765 | F41: =(0.321*F40^4-1.6098*F40^3+1.316*F40^2+0.9448*F40)*($D19/0.97215493) -> 0.7367783322 | G41: =(0.321*G40^4-1.6098*G40^3+1.316*G40^2+0.9448*G40)*($D19/0.97215493) -> 0.7640412841 | H41: =(0.321*H40^4-1.6098*H40^3+1.316*H40^2+0.9448*H40)*($D19/0.97) -> 0.7500002425 | I41: =(0.321*I40^4-1.6098*I40^3+1.316*I40^2+0.9448*I40)*($D19/0.97215493) -> 0.7517911046 | L41: BAKING | M41: =ROUND(I14,0)&"g/s @ "&I15&" b ; "&I16&"K" -> 128g/s @ 9,25 b ; 37,12K
A42: ligne_ToBeNull_T1 | B42: Converge brake Power | F42: =F21-F22 -> -20.4680286 | G42: =G21-G22 -> -47.3318291 | H42: =H21-H22 -> -38.92973052 | I42: =I21-I22 -> -50.58098909
A43: ligne_ToChange_T1 | B43: By changing turbine speed | F43: =CELL("address",F21) -> $F$21 | G43: =CELL("address",G21) -> $G$21 | H43: =CELL("address",H21) -> $H$21 | I43: =CELL("address",I21) -> $I$21
B45: TURBINE 2
F46: =IF(ISERROR(F49),"","X") -> X | G46: X | H46: =IF(ISERROR(H49),"","X") -> X | I46: =IF(ISERROR(I49),"","X") -> X
D47: DESIGN | F47: =F12 -> D3 | G47: =G12 -> STS | H47: =H12 -> start-up | I47: =I12 -> BAKING | S47: K.rho
H48: 18 | Q48: 838 | R48: 2075 | S48: =R48/Q48^(3) -> 3.526030342e-06
B49: m | C49: g/s | D49: 221.07 | F49: =F14 -> 100 | G49: =G14 -> 163.1659665 | H49: =H61/(H52*H51)^0.5*H50 -> 79.42521654 | I49: =I14 -> 127.6007495 | Q49: 650 | R49: =S48*Q49^3 -> 968.3360827
B50: Pin | C50: Bara | D50: 7.65 | F50: =F49*F51^0.5/F61 -> 3.777889825 | G50: =G49*G51^0.5/G61 -> 5.424637704 | H50: 4.87 | I50: =I49*I51^0.5/I61 -> 4.172346372 | Q50: =Q49/Q48 -> 0.7756563246 | R50: =R49/R48 -> 0.4666679917
B51: Tin | C51: K | D51: 19.23 | F51: 22.92 | G51: 17.75 | H51: 52.5 | I51: 17.17
B52: Pout | C52: Bara | D52: 2.63 | F52: 1.35 | G52: 1.29 | H52: 1.15 | I52: 1.35
B53: Tout | C53: K | D53: =[3]!T2_turb(11,D50,D51,D52,D54) -> 13.90307028 | F53: =[3]!T2_turb(11,F50,F51,F52,F54) -> 17.41132236 | G53: =[3]!T2_turb(11,G50,G51,G52,G54) -> 11.63116259 | H53: =[3]!T2_turb(11,H50,H51,H52,H54) -> 40.15568133 | I53: =[3]!T2_turb(11,I50,I51,I52,I54) -> 12.33546069
B54: Efficacity | C54: % | D54: 0.77 | F54: =(0.321*F75^4-1.6098*F75^3+1.316*F75^2+0.9448*F75)*($D$54/0.97215493) -> 0.7019433204 | G54: =(0.321*G75^4-1.6098*G75^3+1.316*G75^2+0.9448*G75)*($D$54/0.97215493) -> 0.763870892 | H54: =(0.321*H75^4-1.6098*H75^3+1.316*H75^2+0.9448*H75)*($D$54/0.97215493) -> 0.5376480374 | I54: =(0.321*I75^4-1.6098*I75^3+1.316*I75^2+0.9448*I75)*($D$54/0.97215493) -> 0.7522057872
B55: Power | C55: W | D55: =+D49*(D65-D66) -> 5783.097442 | F55: =+F49*(F65-F66) -> 2810.938119 | G55: =+G49*(G65-G66) -> 4886.430894 | H55: =+H49*(H65-H66) -> 5142.479906 | I55: =+I49*(I65-I66) -> 3040.226891
B56: Speed | C56: Hz | D56: 1461 | F56: 1222.655492 | G56: 1474.870879 | H56: 1511.735591 | I56: 1255.034362
B57: Speed calculated from P=K.rho.N^3 | F57: =(F55/$D55*$D58/F58)^(1/3)*$D56 -> 1222.655485 | G57: =(G55/$D55*$D58/G58)^(1/3)*$D56 -> 1474.871386 | H57: =(H55/$D55*$D58/H58)^(1/3)*$D56 -> 1511.735591 | I57: =(I55/$D55*$D58/I58)^(1/3)*$D56 -> 1255.034519
B58: Brake Pressure | D58: 7.5 | F58: =($D58-$D52)+F52 -> 6.22 | G58: =($D58-$D52)+G52 -> 6.16 | H58: =($D58-$D52)+H52 -> 6.02 | I58: =($D58-$D52)+I52 -> 6.22
B59: Rho (brake) | D59: =[3]!rho_(11,D58,345) -> 1.04349745 | F59: =[3]!rho_(11,F58,345) -> 0.8658380664 | G59: =[3]!rho_(11,G58,345) -> 0.8575059395 | H59: =[3]!rho_(11,H58,345) -> 0.8380627969 | I59: =[3]!rho_(11,I58,345) -> 0.8658380664
B60: Wheel | C60: mm | D60: 39.5 | F60: =$D$25 -> 35.75 | G60: =$D$25 -> 35.75 | H60: =$D$25 -> 35.75 | I60: =$D$25 -> 35.75
B61: a = mÖT/P | D61: =D49*D51^0.5/D50 -> 126.7237506 | F61: =$D$61 -> 126.7237506 | G61: =$D$61 -> 126.7237506 | H61: 126.7237506 | I61: 126.7237506
B62: Rho (in) | C62: kg/m3 | D62: =[3]!rho_(11,D50,D51) -> 19.21790338 | F62: =[3]!rho_(11,F50,F51) -> 7.902838796 | G62: =[3]!rho_(11,G50,G51) -> 14.86304278 | H62: =[3]!rho_(11,H50,H51) -> 4.414094183 | I62: =[3]!rho_(11,I50,I51) -> 11.82720728
B63: Sound Speed | D63: =[3]!Sound_speed(11,D50,D51) -> 267.5171896 | F63: =[3]!Sound_speed(11,F50,F51) -> 286.4701714 | G63: =[3]!Sound_speed(11,G50,G51) -> 253.8784205 | H63: =[3]!Sound_speed(11,H50,H51) -> 431.9913023 | I63: =[3]!Sound_speed(11,I50,I51) -> 248.0591033 | T63: T2
B64: S=Q/(rho*V) = cte | D64: =D49/(D62*D63) -> 0.04300036207 | F64: =F49/(F62*F63) -> 0.04417102415 | G64: =G49/(G62*G63) -> 0.04324103317 | H64: =H49/(H62*H63) -> 0.04165257062 | I64: =I49/(I62*I63) -> 0.04349264777 | S64: MAX | T64: =ROUND(F49,0)&"g/s @ "&F50&" b ; "&F51&"K" -> 100g/s @ 3,77788982539106 b ; 22,92K
B65: Hin | D65: =[3]!h_(11,D50,D51) -> 110.9123896 | F65: =[3]!h_(11,F50,F51) -> 132.8467323 | G65: =[3]!h_(11,G50,G51) -> 103.863988 | H65: =[3]!h_(11,H50,H51) -> 288.5702542 | I65: =[3]!h_(11,I50,I51) -> 101.4714628 | S65: MIN | T65: =ROUND(G49,0)&"g/s @ "&G50&" b ; "&G51&"K" -> 163g/s @ 5,42463770399022 b ; 17,75K
B66: Hout | D66: =[3]!h_(11,D52,D53) -> 84.75281376 | F66: =[3]!h_(11,F52,F53) -> 104.7373511 | G66: =[3]!h_(11,G52,G53) -> 73.91637696 | H66: =[3]!h_(11,H52,H53) -> 223.8240674 | I66: =[3]!h_(11,I52,I53) -> 77.64537322 | S66: STS | T66: =ROUND(H49,0)&"g/s @ "&H50&" b ; "&H51&"K" -> 79g/s @ 4,87 b ; 52,5K
B67: Sin = Sout | D67: =[3]!S_(11,D50,D51) -> 12.91071162 | F67: =[3]!S_(11,F50,F51) -> 15.42404981 | G67: =[3]!S_(11,G50,G51) -> 13.23832094 | H67: =[3]!S_(11,H50,H51) -> 19.26011356 | I67: =[3]!S_(11,I50,I51) -> 13.64071087 | S67: BAKING | T67: =ROUND(I49,0)&"g/s @ "&I50&" b ; "&I51&"K" -> 128g/s @ 4,17234637228129 b ; 17,17K
B68: Tout(iso) | D68: =[1]!HeCalc(2,0,1,D52*10^5,8,D67*1000,1) -> 12.49474528 | F68: =[1]!HeCalc(2,0,1,F52*10^5,8,F67*1000,1) -> 15.16358496 | G68: =[1]!HeCalc(2,0,1,G52*10^5,8,G67*1000,1) -> 9.933869603 | H68: =[1]!HeCalc(2,0,1,H52*10^5,8,H67*1000,1) -> 29.47686334 | I68: =[1]!HeCalc(2,0,1,I52*10^5,8,I67*1000,1) -> 10.8890996
B69: Hout(iso) | D69: =[3]!h_(11,D52,D68) -> 76.93891447 | F69: =[3]!h_(11,F52,F68) -> 92.80164552 | G69: =[3]!h_(11,G52,G68) -> 64.658919 | H69: =[3]!h_(11,H52,H68) -> 168.1453995 | I69: =[3]!h_(11,I52,I68) -> 69.79650099
B70: ΔHs | D70: =D65-D69 -> 33.97347518 | F70: 40.04508679 | G70: 39.20506897 | H70: 120.4248547 | I70: 31.67496184
B71: u1 | C71: m/s | D71: =(2*52.7%*D70*1000*D54)^0.5 -> 166.0487669 | F71: =PI()*$D$72*F56 -> 138.9599157 | G71: =PI()*$D$72*G56 -> 167.6252504 | H71: 171.8150792 | I71: 142.6399097
B72: D1 | D72: =D71/PI()/D56 -> 0.03617725126
B73: Co = (2*ΔHs)^0,5 | D73: =(2000*D70)^0.5 -> 260.6663583 | F73: 283.0020735 | G73: 280.0181029 | H73: 490.7644134 | I73: 251.6941074
B74: u1/Co | D74: =D71/D73 -> 0.6370164833 | F74: 0.4910208394 | G74: 0.5986229056 | H74: 0.3500968581 | I74: 0.5667193056
B75: U1/C0 off de / U1/C0 nom | D75: =D74/$D$39 -> 1.001953763 | F75: =F74/$D74 -> 0.770813397 | G75: =G74/$D74 -> 0.9397290671 | H75: =H74/$D74 -> 0.5495883816 | I75: =I74/$D74 -> 0.8896462187
B76: Rdt | D76: =(0.321*D75^4-1.6098*D75^3+1.316*D75^2+0.9448*D75)*($D54/0.97215493) -> 0.7699210767 | F76: =(0.321*F75^4-1.6098*F75^3+1.316*F75^2+0.9448*F75)*($D54/0.97215493) -> 0.7019433204 | G76: =(0.321*G75^4-1.6098*G75^3+1.316*G75^2+0.9448*G75)*($D54/0.97215493) -> 0.763870892 | H76: =(0.321*H75^4-1.6098*H75^3+1.316*H75^2+0.9448*H75)*($D54/0.97215493) -> 0.5376480374 | I76: =(0.321*I75^4-1.6098*I75^3+1.316*I75^2+0.9448*I75)*($D54/0.97215493) -> 0.7522057872
A77: ligne_ToBeNull_T2 | B77: Converge brake Power | F77: =F56-F57 -> 7.084008075e-06 | G77: =G56-G57 -> -0.0005073046066 | H77: =H56-H57 -> 1.018984221e-07 | I77: =I56-I57 -> -0.0001571069458
A78: ligne_ToChange_T2 | B78: By changing turbine speed | F78: =CELL("address",F56) -> $F$56 | G78: =CELL("address",G56) -> $G$56 | H78: =CELL("address",H56) -> $H$56 | I78: =CELL("address",I56) -> $I$56
B80: CV330
B81: Pin | C81: Bara | D81: 13.15 | F81: 13.15 | G81: 13.25 | H81: 13.5 | I81: 12.25 | J81: 13.15 | K81: 13.15 | L81: 13.15 | M81: 13.15 | N81: 13.15 | O81: 13.15 | P81: 13.15 | Q81: 13.15 | R81: 13.15 | S81: 13.15 | T81: 13.15 | U81: 13.15 | V81: 13.15 | W81: 13.15 | X81: 13.15 | Y81: 13.15 | Z81: 13.15 | AA81: 13.15 | AB81: 13.15
B82: Tin | C82: K | D82: =[3]!T_P_H_(11,D81,[3]!h_(11,D96,D97)) -> 8.835144154 | F82: =[3]!T_P_H_(11,F81,[3]!h_(11,F96,F97)) -> 9.166149668 | G82: =[3]!T_P_H_(11,G81,[3]!h_(11,G96,G97)) -> 8.622314625 | H82: =+H97 -> 8.828 | I82: =[3]!T_P_H_(11,I81,[3]!h_(11,I96,I97)) -> 10.79564053 | J82: =[3]!T_P_H_(11,J81,[3]!h_(11,J96,J97)) -> 7.289570189 | K82: =[3]!T_P_H_(11,K81,[3]!h_(11,K96,K97)) -> 7.287549476 | L82: =[3]!T_P_H_(11,L81,[3]!h_(11,L96,L97)) -> 7.286091223 | M82: =[3]!T_P_H_(11,M81,[3]!h_(11,M96,M97)) -> 7.281767836 | N82: =[3]!T_P_H_(11,N81,[3]!h_(11,N96,N97)) -> 7.280175123 | O82: =[3]!T_P_H_(11,O81,[3]!h_(11,O96,O97)) -> 7.280885227 | P82: =[3]!T_P_H_(11,P81,[3]!h_(11,P96,P97)) -> 7.283576767 | Q82: =[3]!T_P_H_(11,Q81,[3]!h_(11,Q96,Q97)) -> 7.292977542 | R82: =[3]!T_P_H_(11,R81,[3]!h_(11,R96,R97)) -> 7.309641747 | S82: =[3]!T_P_H_(11,S81,[3]!h_(11,S96,S97)) -> 7.335170768 | T82: =[3]!T_P_H_(11,T81,[3]!h_(11,T96,T97)) -> 7.371597533 | U82: =[3]!T_P_H_(11,U81,[3]!h_(11,U96,U97)) -> 7.421486544 | V82: =[3]!T_P_H_(11,V81,[3]!h_(11,V96,V97)) -> 7.488001 | W82: =[3]!T_P_H_(11,W81,[3]!h_(11,W96,W97)) -> 7.574845196 | X82: =[3]!T_P_H_(11,X81,[3]!h_(11,X96,X97)) -> 7.685926083 | Y82: =[3]!T_P_H_(11,Y81,[3]!h_(11,Y96,Y97)) -> 7.824616101 | Z82: =[3]!T_P_H_(11,Z81,[3]!h_(11,Z96,Z97)) -> 7.992825409 | AA82: =[3]!T_P_H_(11,AA81,[3]!h_(11,AA96,AA97)) -> 8.190438153 | AB82: =[3]!T_P_H_(11,AB81,[3]!h_(11,AB96,AB97)) -> 8.414996515
B83: Rho | D83: =[3]!rho_(11,D81,D82) -> 97.61868533 | F83: =[3]!rho_(11,F81,F82) -> 92.38543687 | G83: =[3]!rho_(11,G81,G82) -> 101.5881159 | H83: =[3]!rho_(11,H81,H82) -> 99.5385923 | I83: =[3]!rho_(11,I81,I82) -> 66.47696107 | J83: =[3]!rho_(11,J81,J82) -> 122.3554603 | K83: =[3]!rho_(11,K81,K82) -> 122.3852561 | L83: =[3]!rho_(11,L81,L82) -> 122.4067517 | M83: =[3]!rho_(11,M81,M82) -> 122.4704488 | N83: =[3]!rho_(11,N81,N82) -> 122.4939023 | O83: =[3]!rho_(11,O81,O82) -> 122.4834465 | P83: =[3]!rho_(11,P81,P82) -> 122.4438034 | Q83: =[3]!rho_(11,Q81,Q82) -> 122.3051943 | R83: =[3]!rho_(11,R81,R82) -> 122.0589282 | S83: =[3]!rho_(11,S81,S82) -> 121.6802709 | T83: =[3]!rho_(11,T81,T82) -> 121.1370961 | U83: =[3]!rho_(11,U81,U82) -> 120.3877662 | V83: =[3]!rho_(11,V81,V82) -> 119.3792007 | W83: =[3]!rho_(11,W81,W82) -> 118.0465516 | X83: =[3]!rho_(11,X81,X82) -> 116.3172901 | Y83: =[3]!rho_(11,Y81,Y82) -> 114.12278 | Z83: =[3]!rho_(11,Z81,Z82) -> 111.4162419 | AA83: =[3]!rho_(11,AA81,AA82) -> 108.1899242 | AB83: =[3]!rho_(11,AB81,AB82) -> 104.4920853
B84: dP | D84: =(D81-D96)*1000 -> 80 | F84: =(F81-F96)*1000 -> 80 | G84: 5881 | H84: 430 | I84: 1770 | J84: 25 | K84: 150 | L84: 250 | M84: 650 | N84: 1150 | O84: 1350 | P84: 1650 | Q84: 2150 | R84: 2650 | S84: 3150 | T84: 3650 | U84: 4150 | V84: 4650 | W84: 5150 | X84: 5650 | Y84: 6150 | Z84: 6650 | AA84: 7150 | AB84: 7650
B85: Cvs | D85: 30 | F85: 30 | G85: 30 | H85: 30 | I85: 30 | J85: 30 | K85: 30 | L85: 30 | M85: 30 | N85: 30 | O85: 30 | P85: 30 | Q85: 30 | R85: 30 | S85: 30 | T85: 30 | U85: 30 | V85: 30 | W85: 30 | X85: 30 | Y85: 30 | Z85: 30 | AA85: 30 | AB85: 30
B86: Range | D86: 250 | F86: 250 | G86: 250 | H86: 250 | I86: 250 | J86: 250 | K86: 250 | L86: 250 | M86: 250 | N86: 250 | O86: 250 | P86: 250 | Q86: 250 | R86: 250 | S86: 250 | T86: 250 | U86: 250 | V86: 250 | W86: 250 | X86: 250 | Y86: 250 | Z86: 250 | AA86: 250 | AB86: 250
B87: Flow | D87: =IF(D81/2>D96,"S","SS") -> SS | F87: =IF(F81/2>F96,"S","SS") -> SS | G87: SS | H87: SS | I87: SS | J87: SS | K87: SS | L87: SS | M87: SS | N87: SS | O87: SS | P87: SS | Q87: SS | R87: SS | S87: SS | T87: SS | U87: SS | V87: SS | W87: SS | X87: SS | Y87: SS | Z87: S | AA87: S | AB87: S
B88: Cv | D88: =[3]!Cv_Simple(D82,D81,D81-D96,D83,D95,D87) -> 16.86490567 | F88: =[3]!Cv_Simple(F82,F81,F81-F96,F83,F95,F87) -> 17.02085022 | G88: =[3]!Cv_Simple(G82,G81,G81-G96,G83,G95,G87) -> 1.535313626 | H88: =[3]!Cv_Simple(H82,H81,H81-H96,H83,H95,H87) -> 7.299928551 | I88: =[3]!Cv_Simple(I82,I81,I81-I96,I83,I95,I87) -> 3.435384188 | J88: =[3]!Cv_Simple(J82,J81,J81-J96,J83,J95,J87) -> 29.71954492 | K88: =[3]!Cv_Simple(K82,K81,K81-K96,K83,K95,K87) -> 12.07356924 | L88: =[3]!Cv_Simple(L82,L81,L81-L96,L83,L95,L87) -> 9.315289259 | M88: =[3]!Cv_Simple(M82,M81,M81-M96,M83,M95,M87) -> 5.685345401 | N88: =[3]!Cv_Simple(N82,N81,N81-N96,N83,N95,N87) -> 4.187536917 | O88: =[3]!Cv_Simple(O82,O81,O81-O96,O83,O95,O87) -> 3.832742136 | P88: =[3]!Cv_Simple(P82,P81,P81-P96,P83,P95,P87) -> 3.423045904 | Q88: =[3]!Cv_Simple(Q82,Q81,Q81-Q96,Q83,Q95,Q87) -> 2.934464382 | R88: =[3]!Cv_Simple(R82,R81,R81-R96,R83,R95,R87) -> 2.585003392 | S88: =[3]!Cv_Simple(S82,S81,S81-S96,S83,S95,S87) -> 2.317441714 | T88: =[3]!Cv_Simple(T82,T81,T81-T96,T83,T95,T87) -> 2.103056653 | U88: =[3]!Cv_Simple(U82,U81,U81-U96,U83,U95,U87) -> 1.92566266 | V88: =[3]!Cv_Simple(V82,V81,V81-V96,V83,V95,V87) -> 1.775386176 | W88: =[3]!Cv_Simple(W82,W81,W81-W96,W83,W95,W87) -> 1.645844905 | X88: =[3]!Cv_Simple(X82,X81,X81-X96,X83,X95,X87) -> 1.532704565 | Y88: =[3]!Cv_Simple(Y82,Y81,Y81-Y96,Y83,Y95,Y87) -> 1.432845856 | Z88: =[3]!Cv_Simple(Z82,Z81,Z81-Z96,Z83,Z95,Z87) -> 1.083224672 | AA88: =[3]!Cv_Simple(AA82,AA81,AA81-AA96,AA83,AA95,AA87) -> 1.014699115 | AB88: =[3]!Cv_Simple(AB82,AB81,AB81-AB96,AB83,AB95,AB87) -> 0.9464560042
B89: Cv | D89: =[3]!cv_gaz(11,D95,D81,D96,D82,0.87) -> 16.8465038 | F89: =[3]!cv_gaz(11,F95,F81,F96,F82,0.87) -> 17.00210509 | G89: =[3]!cv_gaz(11,G95,G81,G96,G82,0.87) -> 1.262712032 | H89: =[3]!cv_gaz(11,H95,H81,H96,H82,0.87) -> 7.235828175 | I89: =[3]!cv_gaz(11,I95,I81,I96,I82,0.87) -> 3.282301331 | J89: =[3]!cv_gaz(11,J95,J81,J96,J82,0.87) -> 29.72640181 | K89: =[3]!cv_gaz(11,K95,K81,K96,K82,0.87) -> 12.04718245 | L89: =[3]!cv_gaz(11,L95,L81,L96,L82,0.87) -> 9.276702787 | M89: =[3]!cv_gaz(11,M95,M81,M96,M82,0.87) -> 5.616038986 | N89: =[3]!cv_gaz(11,N95,N81,N96,N82,0.87) -> 4.09212531 | O89: =[3]!cv_gaz(11,O95,O81,O96,O82,0.87) -> 3.728482501 | P89: =[3]!cv_gaz(11,P95,P81,P96,P82,0.87) -> 3.306536964 | Q89: =[3]!cv_gaz(11,Q95,Q81,Q96,Q82,0.87) -> 2.799404492 | R89: =[3]!cv_gaz(11,R95,R81,R96,R82,0.87) -> 2.432893687 | S89: =[3]!cv_gaz(11,S95,S81,S96,S82,0.87) -> 2.149201215 | T89: =[3]!cv_gaz(11,T95,T81,T96,T82,0.87) -> 1.91921943 | U89: =[3]!cv_gaz(11,U95,U81,U96,U82,0.87) -> 1.726473135 | V89: =[3]!cv_gaz(11,V95,V81,V96,V82,0.87) -> 1.56085014 | W89: =[3]!cv_gaz(11,W95,W81,W96,W82,0.87) -> 1.41576645 | X89: =[3]!cv_gaz(11,X95,X81,X96,X82,0.87) -> 1.286735331 | Y89: =[3]!cv_gaz(11,Y95,Y81,Y96,Y82,0.87) -> 1.17057365 | Z89: =[3]!cv_gaz(11,Z95,Z81,Z96,Z82,0.87) -> 1.064924609 | AA89: =[3]!cv_gaz(11,AA95,AA81,AA96,AA82,0.87) -> 0.9679512005 | AB89: =[3]!cv_gaz(11,AB95,AB81,AB96,AB82,0.87) -> 0.8780927781
B90: Trim | D90: =[3]!Trim_From_Cv(D88/D85,D86) -> 0.8956865737 | F90: =[3]!Trim_From_Cv(F89/F85,F86) -> 0.8971539915 | G90: =[3]!Trim_From_Cv(G89/G85,G86) -> 0.426250477 | H90: =[3]!Trim_From_Cv(H89/H85,H86) -> 0.7424318344 | I90: =[3]!Trim_From_Cv(I89/I85,I86) -> 0.5992631999 | J90: =[3]!Trim_From_Cv(J89/J85,J86) -> 0.9983406962 | K90: =[3]!Trim_From_Cv(K89/K85,K86) -> 0.8347599333 | L90: =[3]!Trim_From_Cv(L89/L85,L86) -> 0.7874310407 | M90: =[3]!Trim_From_Cv(M89/M85,M86) -> 0.6965348849 | N90: =[3]!Trim_From_Cv(N89/N85,N86) -> 0.6392018452 | O90: =[3]!Trim_From_Cv(O89/O85,O86) -> 0.6223470386 | P90: =[3]!Trim_From_Cv(P89/P85,P86) -> 0.6005955657 | Q90: =[3]!Trim_From_Cv(Q89/Q85,Q86) -> 0.570441464 | R90: =[3]!Trim_From_Cv(R89/R85,R86) -> 0.5450269318 | S90: =[3]!Trim_From_Cv(S89/S85,S86) -> 0.522571802 | T90: =[3]!Trim_From_Cv(T89/T85,T86) -> 0.5020740224 | U90: =[3]!Trim_From_Cv(U89/U85,U86) -> 0.4829055667 | V90: =[3]!Trim_From_Cv(V89/V85,V86) -> 0.4646404654 | W90: =[3]!Trim_From_Cv(W89/W85,W86) -> 0.4469713031 | X90: =[3]!Trim_From_Cv(X89/X85,X86) -> 0.4296637848 | Y90: =[3]!Trim_From_Cv(Y89/Y85,Y86) -> 0.4125280425 | Z90: =[3]!Trim_From_Cv(Z89/Z85,Z86) -> 0.3953967211 | AA90: =[3]!Trim_From_Cv(AA89/AA85,AA86) -> 0.3781046288 | AB90: =[3]!Trim_From_Cv(AB89/AB85,AB86) -> 0.3604590424
B91: TURBINE 3
F92: =IF(ISERROR(F95),"","X") -> X | G92: X | H92: X | I92: =IF(ISERROR(I95),"","X") -> X | J92: X | K92: X | L92: X | M92: X | N92: X | O92: X | P92: X | Q92: X | R92: X | S92: X | T92: X | U92: X | V92: X | W92: X | X92: X | Y92: X | Z92: X | AA92: X | AB92: X
D93: DESIGN | F93: =F47 -> D3 | G93: =G47 -> STS | H93: D | I93: =I47 -> BAKING | J93: Lamin 1 | K93: Lamin 2 | L93: Lamin 3 | M93: Lamin 4 | N93: Lamin 5 | O93: Lamin 6 | P93: Lamin 7 | Q93: Lamin 8 | R93: Lamin 9 | S93: Lamin 10 | T93: Lamin 11 | U93: Lamin 12 | V93: Lamin 13 | W93: Lamin 14 | X93: Lamin 15 | Y93: Lamin 16 | Z93: Lamin 17 | AA93: Lamin 18 | AB93: Lamin 19
B95: m | C95: g/s | D95: 357 | F95: =F107*F96/F97^0.5 -> 350.5103375 | G95: 212.6367851 | H95: 357.0404372 | I95: 261.8834377 | J95: 394.5558875 | K95: 390.7982124 | L95: 387.7920723 | M95: 375.7675119 | N95: 360.7368114 | O95: 354.7245312 | P95: 345.706111 | Q95: 330.6754105 | R95: 315.64471 | S95: 300.6140095 | T95: 285.583309 | U95: 270.5526086 | V95: 255.5219081 | W95: 240.4912076 | X95: 225.4605071 | Y95: 210.4298067 | Z95: 195.3991062 | AA95: 180.3684057 | AB95: 165.3377052
B96: Pin | C96: Bara | D96: 13.07 | F96: 13.07 | G96: 7.369 | H96: 13.07 | I96: 10.48 | J96: 13.125 | K96: 13 | L96: 12.9 | M96: 12.5 | N96: 12 | O96: 11.8 | P96: 11.5 | Q96: 11 | R96: 10.5 | S96: 10 | T96: =S96-0.5 -> 9.5 | U96: =T96-0.5 -> 9 | V96: 8.5 | W96: 8 | X96: 7.5 | Y96: 7 | Z96: 6.5 | AA96: 6 | AB96: 5.5
B97: Tin | C97: K | D97: 8.83 | F97: 9.16 | G97: 7.912 | H97: 8.828 | I97: 10.55 | J97: 7.29 | K97: 7.29 | L97: 7.29 | M97: 7.29 | N97: 7.29 | O97: 7.29 | P97: 7.29 | Q97: 7.29 | R97: 7.29 | S97: 7.29 | T97: 7.29 | U97: 7.29 | V97: 7.29 | W97: 7.29 | X97: 7.29 | Y97: 7.29 | Z97: 7.29 | AA97: 7.29 | AB97: 7.29
B98: Pout | C98: Bara | D98: 4.88 | F98: 4.88 | G98: 5.18 | H98: 4.88 | I98: 5.18 | J98: 4.88 | K98: 4.88 | L98: 4.88 | M98: 4.88 | N98: 4.88 | O98: 4.88 | P98: 4.88 | Q98: 4.88 | R98: 4.88 | S98: 4.88 | T98: 4.88 | U98: 4.88 | V98: 4.88 | W98: 4.88 | X98: 4.88 | Y98: 4.88 | Z98: 4.88 | AA98: 4.88 | AB98: 4.88
B99: Tout | C99: K | D99: =[3]!T2_turb(11,D96,D97,D98,D100) -> 6.764910138 | F99: =[3]!T2_turb(11,F96,F97,F98,F100) -> 6.932519254 | G99: =[3]!T2_turb(11,G96,G97,G98,G100) -> 7.105446542 | H99: =[3]!T2_turb(11,H96,H97,H98,H100) -> 6.765834444 | I99: =[3]!T2_turb(11,I96,I97,I98,I100) -> 8.448159366 | J99: =[3]!T2_turb(11,J96,J97,J98,J100) -> 6.118169926 | K99: =[3]!T2_turb(11,K96,K97,K98,K100) -> 6.122260207 | L99: =[3]!T2_turb(11,L96,L97,L98,L100) -> 6.125605949 | M99: =[3]!T2_turb(11,M96,M97,M98,M100) -> 6.139678112 | N99: =[3]!T2_turb(11,N96,N97,N98,N100) -> 6.158965386 | O99: =[3]!T2_turb(11,O96,O97,O98,O100) -> 6.167265907 | P99: =[3]!T2_turb(11,P96,P97,P98,P100) -> 6.180410565 | Q99: =[3]!T2_turb(11,Q96,Q97,Q98,Q100) -> 6.204383559 | R99: =[3]!T2_turb(11,R96,R97,R98,R100) -> 6.2313673 | S99: =[3]!T2_turb(11,S96,S97,S98,S100) -> 6.262003722 | T99: =[3]!T2_turb(11,T96,T97,T98,T100) -> 6.297160697 | U99: =[3]!T2_turb(11,U96,U97,U98,U100) -> 6.338027464 | V99: =[3]!T2_turb(11,V96,V97,V98,V100) -> 6.386244262 | W99: =[3]!T2_turb(11,W96,W97,W98,W100) -> 6.444060882 | X99: =[3]!T2_turb(11,X96,X97,X98,X100) -> 6.514495175 | Y99: =[3]!T2_turb(11,Y96,Y97,Y98,Y100) -> 6.601450712 | Z99: =[3]!T2_turb(11,Z96,Z97,Z98,Z100) -> 6.709830759 | AA99: =[3]!T2_turb(11,AA96,AA97,AA98,AA100) -> 6.845836916 | AB99: =[3]!T2_turb(11,AB96,AB97,AB98,AB100) -> 7.018725769
B100: Efficacity | C100: % | D100: 0.72 | F100: =(0.321*F121^4-1.6098*F121^3+1.316*F121^2+0.9448*F121)*($D$100/0.97215493) -> 0.7151458528 | G100: 0.7167791895 | H100: 0.7174910501 | I100: 0.6834971758 | J100: 0.7183796021 | K100: 0.7184905123 | L100: 0.7185765998 | M100: 0.7188970387 | N100: 0.7192421859 | O100: 0.7193625175 | P100: 0.7195236266 | Q100: 0.7197397225 | R100: 0.7198899274 | S100: 0.7199753881 | T100: 0.7199998968 | U100: 0.7199714429 | V100: 0.7199048518 | W100: 0.7198262205 | X100: 0.7197790497 | Y100: 0.7198237879 | Z100: 0.7199732934 | AA100: 0.7197069272 | AB100: 0.7
B101: Power | C101: W | D101: =+D95*(D111-D112) -> 2444.694425 | F101: =+F95*(F111-F112) -> 2547.423955 | G101: 502.0718355 | H101: 2435.474434 | I101: 1859.424914 | J101: 2053.761819 | K101: 2010.502766 | L101: 1976.178372 | M101: 1841.410621 | N101: 1678.698121 | O101: 1615.419966 | P101: 1522.45693 | Q101: 1372.77691 | R101: 1229.742286 | S101: 1093.425192 | T101: 963.8728168 | U101: 841.0840516 | V101: 724.9655867 | W101: 615.2542859 | X101: 511.3930763 | Y101: 412.3683727 | Z101: 316.5589778 | AA101: 221.629107 | AB101: 121.8947268
B102: Speed | C102: Hz | D102: 920 | F102: 899.0323655 | G102: 518.3649656 | H102: 886.3167585 | I102: 798.4158766 | J102: 840.546807 | K102: 834.5493001 | L102: 829.7298134 | M102: 810.255188 | N102: 785.4481545 | O102: 775.3731054 | P102: 760.0888102 | Q102: 734.1309445 | R102: 707.518922 | S102: 680.1836862 | T102: 652.0353987 | U102: 622.9499241 | V102: 592.7421933 | W102: 561.1124841 | X102: 527.5373582 | Y102: 491.0493013 | Z102: 449.7744273 | AA102: 399.7611854 | AB102: 327.6431633
B103: Speed calculated from P=K.rho.N^3 | F103: =(F101/$D101*$D104/F104)^(1/3)*$D102 -> 932.710164 | G103: 537.4720008 | H103: 918.8419715 | I103: 831.5597122 | J103: 868.086479 | K103: 861.9482486 | L103: 857.01485 | M103: 837.0727058 | N103: 811.6531929 | O103: 801.3239356 | P103: 785.6479321 | Q103: 759.0078865 | R103: 731.6740779 | S103: 703.5732597 | T103: 674.6101597 | U103: 644.6531354 | V103: 613.5059285 | W103: 580.8506984 | X103: 546.132365 | Y103: 508.3249379 | Z103: 465.4408656 | AA103: 413.2903188 | AB103: 338.616362
B104: Brake Pressure | D104: 10 | F104: =($D104-$D98)+F98 -> 10 | G104: 10.3 | H104: 10 | I104: 10.3 | J104: 10 | K104: 10 | L104: 10 | M104: 10 | N104: 10 | O104: 10 | P104: 10 | Q104: 10 | R104: 10 | S104: 10 | T104: 10 | U104: 10 | V104: 10 | W104: 10 | X104: 10 | Y104: 10 | Z104: 10 | AA104: 10 | AB104: 10
B105: Rho (brake) | D105: =[3]!rho_(11,D104,330) -> 1.452865531 | F105: =[3]!rho_(11,F104,330) -> 1.452865531 | G105: =[3]!rho_(11,G104,330) -> 1.496268 | H105: =[3]!rho_(11,H104,330) -> 1.452865531 | I105: =[3]!rho_(11,I104,330) -> 1.496268 | J105: =[3]!rho_(11,J104,330) -> 1.452865531 | K105: =[3]!rho_(11,K104,330) -> 1.452865531 | L105: =[3]!rho_(11,L104,330) -> 1.452865531 | M105: =[3]!rho_(11,M104,330) -> 1.452865531 | N105: =[3]!rho_(11,N104,330) -> 1.452865531 | O105: =[3]!rho_(11,O104,330) -> 1.452865531 | P105: =[3]!rho_(11,P104,330) -> 1.452865531 | Q105: =[3]!rho_(11,Q104,330) -> 1.452865531 | R105: =[3]!rho_(11,R104,330) -> 1.452865531 | S105: =[3]!rho_(11,S104,330) -> 1.452865531 | T105: =[3]!rho_(11,T104,330) -> 1.452865531 | U105: =[3]!rho_(11,U104,330) -> 1.452865531 | V105: =[3]!rho_(11,V104,330) -> 1.452865531 | W105: =[3]!rho_(11,W104,330) -> 1.452865531 | X105: =[3]!rho_(11,X104,330) -> 1.452865531 | Y105: =[3]!rho_(11,Y104,330) -> 1.452865531 | Z105: =[3]!rho_(11,Z104,330) -> 1.452865531 | AA105: =[3]!rho_(11,AA104,330) -> 1.452865531 | AB105: =[3]!rho_(11,AB104,330) -> 1.452865531
B106: Wheel | C106: mm | D106: 29.5 | F106: =$D$106 -> 29.5 | G106: 29.5 | H106: 29.5 | I106: 29.5 | J106: 29.5 | K106: 29.5 | L106: 29.5 | M106: 29.5 | N106: 29.5 | O106: 29.5 | P106: 29.5 | Q106: 29.5 | R106: 29.5 | S106: 29.5 | T106: 29.5 | U106: 29.5 | V106: 29.5 | W106: 29.5 | X106: 29.5 | Y106: 29.5 | Z106: 29.5 | AA106: 29.5 | AB106: 29.5
B107: a = mÖT/P | D107: =D95*D97^0.5/D96 -> 81.16578257 | F107: =$D$107 -> 81.16578257 | G107: =$D$107 -> 81.16578257 | H107: 81.16578257 | I107: 81.16578257 | J107: =$D$107 -> 81.16578257 | K107: =$D$107 -> 81.16578257 | L107: =$D$107 -> 81.16578257 | M107: 81.16578257 | N107: 81.16578257 | O107: 81.16578257 | P107: 81.16578257 | Q107: 81.16578257 | R107: 81.16578257 | S107: 81.16578257 | T107: 81.16578257 | U107: 81.16578257 | V107: 81.16578257 | W107: 81.16578257 | X107: 81.16578257 | Y107: 81.16578257 | Z107: 81.16578257 | AA107: 81.16578257 | AB107: 81.16578257
B108: Rho (in) | C108: kg/m3 | D108: =[3]!rho_(11,D96,D97) -> 97.27777073 | F108: =[3]!rho_(11,F96,F97) -> 92.04202254 | G108: =[3]!rho_(11,G96,G97) -> 70.6496495 | H108: =[3]!rho_(11,H96,H97) -> 97.31015975 | I108: =[3]!rho_(11,I96,I97) -> 58.78998557 | J108: =[3]!rho_(11,J96,J97) -> 122.2625446 | K108: =[3]!rho_(11,K96,K97) -> 121.8254128 | L108: =[3]!rho_(11,L96,L97) -> 121.4704899 | M108: =[3]!rho_(11,M96,M97) -> 120.0015845 | N108: =[3]!rho_(11,N96,N97) -> 118.043234 | O108: =[3]!rho_(11,O96,O97) -> 117.2174039 | P108: =[3]!rho_(11,P96,P97) -> 115.9280725 | Q108: =[3]!rho_(11,Q96,Q97) -> 113.6283127 | R108: =[3]!rho_(11,R96,R97) -> 111.1090057 | S108: =[3]!rho_(11,S96,S97) -> 108.3259257 | T108: =[3]!rho_(11,T96,T97) -> 105.2230497 | U108: =[3]!rho_(11,U96,U97) -> 101.7300643 | V108: =[3]!rho_(11,V96,V97) -> 97.76122979 | W108: =[3]!rho_(11,W96,W97) -> 93.21874636 | X108: =[3]!rho_(11,X96,X97) -> 88.00609082 | Y108: =[3]!rho_(11,Y96,Y97) -> 82.05609149 | Z108: =[3]!rho_(11,Z96,Z97) -> 75.36830641 | AA108: =[3]!rho_(11,AA96,AA97) -> 68.03621188 | AB108: =[3]!rho_(11,AB96,AB97) -> 60.25606767
B109: Sound Speed | D109: =[3]!Sound_speed(11,D96,D97) -> 221.844273 | F109: =[3]!Sound_speed(11,F96,F97) -> 219.0353462 | G109: =[3]!Sound_speed(11,G96,G97) -> 170.7864441 | H109: =[3]!Sound_speed(11,H96,H97) -> 221.8649954 | I109: =[3]!Sound_speed(11,I96,I97) -> 204.2669237 | J109: =[3]!Sound_speed(11,J96,J97) -> 249.6648035 | K109: =[3]!Sound_speed(11,K96,K97) -> 248.379925 | L109: =[3]!Sound_speed(11,L96,L97) -> 247.3421552 | M109: =[3]!Sound_speed(11,M96,M97) -> 243.1002378 | N109: =[3]!Sound_speed(11,N96,N97) -> 237.581766 | O109: =[3]!Sound_speed(11,O96,O97) -> 235.3030379 | P109: =[3]!Sound_speed(11,P96,P97) -> 231.8044394 | Q109: =[3]!Sound_speed(11,Q96,Q97) -> 225.7481479 | R109: =[3]!Sound_speed(11,R96,R97) -> 219.3945943 | S109: =[3]!Sound_speed(11,S96,S97) -> 212.7308077 | T109: =[3]!Sound_speed(11,T96,T97) -> 205.7554615 | U109: =[3]!Sound_speed(11,U96,U97) -> 198.4897055 | V109: =[3]!Sound_speed(11,V96,V97) -> 190.994269 | W109: =[3]!Sound_speed(11,W96,W97) -> 183.3923611 | X109: =[3]!Sound_speed(11,X96,X97) -> 175.889713 | Y109: =[3]!Sound_speed(11,Y96,Y97) -> 168.7679982 | Z109: =[3]!Sound_speed(11,Z96,Z97) -> 162.3265086 | AA109: =[3]!Sound_speed(11,AA96,AA97) -> 156.8004965 | AB109: =[3]!Sound_speed(11,AB96,AB97) -> 152.3494648
B110: S=Q/(rho*V) = cte | D110: =D95/(D108*D109) -> 0.01654269965 | F110: =F95/(F108*F109) -> 0.01738603198 | G110: 0.01762280313 | H110: 0.01653752192 | I110: 0.02180753766 | J110: 0.01292581024 | K110: 0.01291511226 | L110: 0.01290713947 | M110: 0.01288091947 | N110: 0.01286282191 | O110: 0.01286090679 | P110: 0.012864612 | Q110: 0.01289113473 | R110: 0.01294861539 | S110: 0.01304507013 | T110: 0.01319078266 | U110: 0.01339875418 | V110: 0.01368488492 | W110: 0.01406742807 | X110: 0.01456522873 | Y110: 0.01519519684 | Z110: 0.01597145082 | AA110: 0.01690724742 | AB110: 0.01801068318
B111: Hin | D111: =[3]!h_(11,D96,D97) -> 38.4105443 | F111: =[3]!h_(11,F96,F97) -> 40.89014045 | G111: =[3]!h_(11,G96,G97) -> 36.81164396 | H111: =[3]!h_(11,H96,H97) -> 38.39568816 | I111: =[3]!h_(11,I96,I97) -> 54.05983231 | J111: =[3]!h_(11,J96,J97) -> 28.14464519 | K111: =[3]!h_(11,K96,K97) -> 28.13311798 | L111: =[3]!h_(11,L96,L97) -> 28.12480257 | M111: =[3]!h_(11,M96,M97) -> 28.10016525 | N111: =[3]!h_(11,N96,N97) -> 28.091095 | O111: =[3]!h_(11,O96,O97) -> 28.09513853 | P111: =[3]!h_(11,P96,P97) -> 28.11047075 | Q111: =[3]!h_(11,Q96,Q97) -> 28.16409435 | R111: =[3]!h_(11,R96,R97) -> 28.25942746 | S111: =[3]!h_(11,S96,S97) -> 28.40616451 | T111: =[3]!h_(11,T96,T97) -> 28.61698913 | U111: =[3]!h_(11,U96,U97) -> 28.90850144 | V111: =[3]!h_(11,V96,V97) -> 29.30216214 | W111: =[3]!h_(11,W96,W97) -> 29.82476846 | X111: =[3]!h_(11,X96,X97) -> 30.50745846 | Y111: =[3]!h_(11,Y96,Y97) -> 31.38210065 | Z111: =[3]!h_(11,Z96,Z97) -> 32.47542568 | AA111: =[3]!h_(11,AA96,AA97) -> 33.80343278 | AB111: =[3]!h_(11,AB96,AB97) -> 35.36504856
B112: Hout | D112: =[3]!h_(11,D98,D99) -> 31.56266076 | F112: =[3]!h_(11,F98,F99) -> 33.62238347 | G112: =[3]!h_(11,G98,G99) -> 34.45047284 | H112: =[3]!h_(11,H98,H99) -> 31.57440356 | I112: =[3]!h_(11,I98,I99) -> 46.95963181 | J112: =[3]!h_(11,J98,J99) -> 22.93939574 | K112: =[3]!h_(11,K98,K99) -> 22.98851213 | L112: =[3]!h_(11,L98,L99) -> 23.02882843 | M112: =[3]!h_(11,M98,M99) -> 23.19976656 | N112: =[3]!h_(11,N98,N99) -> 23.43756903 | O112: =[3]!h_(11,O98,O99) -> 23.54112599 | P112: =[3]!h_(11,P98,P99) -> 23.70656557 | Q112: =[3]!h_(11,Q98,Q99) -> 24.01266106 | R112: =[3]!h_(11,R98,R99) -> 24.36345757 | S112: =[3]!h_(11,S98,S99) -> 24.76885834 | T112: =[3]!h_(11,T98,T99) -> 25.24188706 | U112: =[3]!h_(11,U98,U99) -> 25.79973802 | V112: =[3]!h_(11,V98,V99) -> 26.46496673 | W112: =[3]!h_(11,W98,W99) -> 27.26644505 | X112: =[3]!h_(11,X98,X99) -> 28.2392427 | Y112: =[3]!h_(11,Y98,Y99) -> 29.42245254 | Z112: =[3]!h_(11,Z98,Z99) -> 30.85536208 | AA112: =[3]!h_(11,AA98,AA99) -> 32.57467486 | AB112: =[3]!h_(11,AB98,AB99) -> 34.62780156
B113: Sin = Sout | D113: =[3]!S_(11,D96,D97) -> 6.33129547 | F113: =[3]!S_(11,F96,F97) -> 6.606972814 | G113: =[3]!S_(11,G96,G97) -> 6.945830207 | H113: =[3]!S_(11,H96,H97) -> 6.329612817 | I113: =[3]!S_(11,I96,I97) -> 8.300020451 | J113: =[3]!S_(11,J96,J97) -> 5.052973367 | K113: =[3]!S_(11,K96,K97) -> 5.065441747 | L113: =[3]!S_(11,L96,L97) -> 5.075577387 | M113: =[3]!S_(11,M96,M97) -> 5.117641788 | N113: =[3]!S_(11,N96,N97) -> 5.174018415 | O113: =[3]!S_(11,O96,O97) -> 5.197895686 | P113: =[3]!S_(11,P96,P97) -> 5.235299437 | Q113: =[3]!S_(11,Q96,Q97) -> 5.302404719 | R113: =[3]!S_(11,R96,R97) -> 5.376511244 | S113: =[3]!S_(11,S96,S97) -> 5.459141872 | T113: =[3]!S_(11,T96,T97) -> 5.552283922 | U113: =[3]!S_(11,U96,U97) -> 5.658537972 | V113: =[3]!S_(11,V96,V97) -> 5.781279079 | W113: =[3]!S_(11,W96,W97) -> 5.924768117 | X113: =[3]!S_(11,X96,X97) -> 6.094079702 | Y113: =[3]!S_(11,Y96,Y97) -> 6.294692674 | Z113: =[3]!S_(11,Z96,Z97) -> 6.531792269 | AA113: =[3]!S_(11,AA96,AA97) -> 6.809636678 | AB113: =[3]!S_(11,AB96,AB97) -> 7.130860838
B114: Tout(iso) | D114: =[1]!HeCalc(2,0,1,D98*10^5,8,D113*1000,1) -> 6.562795094 | F114: =[1]!HeCalc(2,0,1,F98*10^5,8,F113*1000,1) -> 6.699995029 | G114: =[1]!HeCalc(2,0,1,G98*10^5,8,G113*1000,1) -> 7.024181985 | H114: =[1]!HeCalc(2,0,1,H98*10^5,8,H113*1000,1) -> 6.561982995 | I114: =[1]!HeCalc(2,0,1,I98*10^5,8,I113*1000,1) -> 8.048894673 | J114: =[1]!HeCalc(2,0,1,J98*10^5,8,J113*1000,1) -> 5.930905392 | K114: =[1]!HeCalc(2,0,1,K98*10^5,8,K113*1000,1) -> 5.938401007 | L114: =[1]!HeCalc(2,0,1,L98*10^5,8,L113*1000,1) -> 5.944456168 | M114: =[1]!HeCalc(2,0,1,M98*10^5,8,M113*1000,1) -> 5.969228596 | N114: =[1]!HeCalc(2,0,1,N98*10^5,8,N113*1000,1) -> 6.001560455 | O114: =[1]!HeCalc(2,0,1,O98*10^5,8,O113*1000,1) -> 6.014967851 | P114: =[1]!HeCalc(2,0,1,P98*10^5,8,P113*1000,1) -> 6.035645285 | Q114: =[1]!HeCalc(2,0,1,Q98*10^5,8,Q113*1000,1) -> 6.071807126 | R114: =[1]!HeCalc(2,0,1,R98*10^5,8,R113*1000,1) -> 6.11047678 | S114: =[1]!HeCalc(2,0,1,S98*10^5,8,S113*1000,1) -> 6.152238618 | T114: =[1]!HeCalc(2,0,1,T98*10^5,8,T113*1000,1) -> 6.197900655 | U114: =[1]!HeCalc(2,0,1,U98*10^5,8,U113*1000,1) -> 6.248597973 | V114: =[1]!HeCalc(2,0,1,V98*10^5,8,V113*1000,1) -> 6.305939581 | W114: =[1]!HeCalc(2,0,1,W98*10^5,8,W113*1000,1) -> 6.372200427 | X114: =[1]!HeCalc(2,0,1,X98*10^5,8,X113*1000,1) -> 6.450537159 | Y114: =[1]!HeCalc(2,0,1,Y98*10^5,8,Y113*1000,1) -> 6.545188261 | Z114: =[1]!HeCalc(2,0,1,Z98*10^5,8,Z113*1000,1) -> 6.661684082 | AA114: =[1]!HeCalc(2,0,1,AA98*10^5,8,AA113*1000,1) -> 6.807243307 | AB114: =[1]!HeCalc(2,0,1,AB98*10^5,8,AB113*1000,1) -> 6.991302408
B115: Hout(iso) | D115: =[3]!h_(11,D98,D114) -> 28.89959493 | F115: =[3]!h_(11,F98,F114) -> 30.72751844 | G115: =[3]!h_(11,G98,G114) -> 33.5175038 | H115: =[3]!h_(11,H98,H114) -> 28.88855271 | I115: =[3]!h_(11,I98,I114) -> 43.67178554 | J115: =[3]!h_(11,J98,J114) -> 20.89882496 | K115: =[3]!h_(11,K98,K114) -> 20.97282045 | L115: =[3]!h_(11,L98,L114) -> 21.03304069 | M115: =[3]!h_(11,M98,M114) -> 21.28361375 | N115: =[3]!h_(11,N98,N114) -> 21.62105464 | O115: =[3]!h_(11,O98,O114) -> 21.76451602 | P115: =[3]!h_(11,P98,P114) -> 21.98988623 | Q115: =[3]!h_(11,Q98,Q114) -> 22.39612968 | R115: =[3]!h_(11,R98,R114) -> 22.84753074 | S115: =[3]!h_(11,S98,S114) -> 23.35417769 | T115: =[3]!h_(11,T98,T114) -> 23.9293467 | U115: =[3]!h_(11,U98,U114) -> 24.59060321 | V115: =[3]!h_(11,V98,V114) -> 25.36109214 | W115: =[3]!h_(11,W98,W114) -> 26.27068369 | X115: =[3]!h_(11,X98,X114) -> 27.35619174 | Y115: =[3]!h_(11,Y98,Y114) -> 28.65970088 | Z115: =[3]!h_(11,Z98,Z114) -> 30.22525389 | AA115: =[3]!h_(11,AA98,AA114) -> 32.09612961 | AB115: =[3]!h_(11,AB98,AB114) -> 34.31183852
B116: ΔHs | D116: =D111-D115 -> 9.510949367 | F116: 10.16262202 | G116: 3.294140164 | H116: 9.507135448 | I116: 10.38804677 | J116: 7.245820234 | K116: 7.160297529 | L116: 7.091761882 | M116: 6.816551497 | N116: 6.47004036 | O116: 6.330622509 | P116: 6.12058452 | Q116: 5.76796467 | R116: 5.411896722 | S116: 5.051986818 | T116: 4.687642432 | U116: 4.317898226 | V116: 3.941070005 | W116: 3.554084773 | X116: 3.15126672 | Y116: 2.722399764 | Z116: 2.250171787 | AA116: 1.707303172 | AB116: 1.053210045
B117: u1 | C117: m/s | D117: =(2*52.7%*D116*1000*D100)^0.5 -> 84.95686703 | F117: =PI()*$D$118*F102 -> 83.02062297 | G117: =PI()*$D$118*G102 -> 47.86811245 | H117: 81.84640761 | I117: 73.72925159 | J117: =PI()*$D$118*J102 -> 77.61980795 | K117: =PI()*$D$118*K102 -> 77.06597165 | L117: =PI()*$D$118*L102 -> 76.62091894 | M117: 74.82254595 | N117: 72.53175481 | O117: 71.60138023 | P117: 70.18996084 | Q117: 67.79289678 | R117: 65.33542498 | S117: 62.81116847 | T117: 60.21183116 | U117: 57.52594986 | V117: 54.73643445 | W117: 51.81560729 | X117: 48.71513174 | Y117: 45.34566326 | Z117: 41.53415893 | AA117: 36.91571508 | AB117: 30.2560181
B118: D1 | D118: =D117/PI()/D102 -> 0.02939414204
B119: Co = (2*ΔHs)^0,5 | D119: =(2000*D116)^0.5 -> 137.9198997 | F119: 142.5666302 | G119: 81.1682224 | H119: 137.8922438 | I119: 144.1391464 | J119: 120.3812297 | K119: 119.6686887 | L119: 119.0946001 | M119: 116.7608796 | N119: 113.7544756 | O119: 112.5221979 | P119: 110.6398167 | Q119: 107.4054437 | R119: 104.0374617 | S119: 100.5185238 | T119: 96.82605468 | U119: 92.92898607 | V119: 88.78141703 | W119: 84.30996113 | X119: 79.3884969 | Y119: 73.78888485 | Z119: 67.08460013 | AA119: 58.43463309 | AB119: 45.89575242
B120: u1/Co | D120: =D117/D119 -> 0.6159870129 | F120: 0.5823285777 | G120: 0.5897395684 | H120: 0.5935533817 | I120: 0.511514418 | J120: 0.6447833116 | K120: 0.6439944523 | L120: 0.6433618225 | M120: 0.6408186221 | N120: 0.6376167129 | O120: 0.6363311558 | P120: 0.6344005525 | Q120: 0.6311867856 | R120: 0.6279990293 | S120: 0.6248715765 | T120: 0.6218556705 | U120: 0.6190312871 | V120: 0.6165303088 | W120: 0.6145846421 | X120: 0.6136296018 | Y120: 0.6145324374 | Z120: 0.6191310502 | AA120: 0.6317437644 | AB120: 0.6592335132
B121: U1/C0 off de / U1/C0 nom | D121: =D120/$D$39 -> 0.9688768212 | F121: =F120/$D120 -> 0.9453585312 | G121: 0.957389614 | H121: 0.9635809998 | I121: 0.830398056 | J121: 1.046748224 | K121: 1.045467581 | L121: 1.044440563 | M121: 1.040311904 | N121: 1.03511389 | O121: 1.033026902 | P121: 1.02989274 | Q121: 1.024675476 | R121: 1.019500438 | S121: 1.014423297 | T121: 1.009527243 | U121: 1.004942108 | V121: 1.000881992 | W121: 0.9977233761 | X121: 0.9961729533 | Y121: 0.9976386264 | Z121: 1.005104064 | AA121: 1.025579681 | AB121: 1.070206838
B122: Rdt | D122: =(0.321*D121^4-1.6098*D121^3+1.316*D121^2+0.9448*D121)*($D100/0.97215493) -> 0.7180301561 | F122: =(0.321*F121^4-1.6098*F121^3+1.316*F121^2+0.9448*F121)*($D100/0.97215493) -> 0.7151458528 | G122: 0.7167791895 | H122: 0.7174910501 | I122: 0.6834971758 | J122: 0.7183796021 | K122: 0.7184905123 | L122: 0.7185765998 | M122: 0.7188970387 | N122: 0.7192421859 | O122: 0.7193625175 | P122: 0.7195236266 | Q122: 0.7197397225 | R122: 0.7198899274 | S122: 0.7199753881 | T122: 0.7199998968 | U122: 0.7199714429 | V122: 0.7199048518 | W122: 0.7198262205 | X122: 0.7197790497 | Y122: 0.7198237879 | Z122: 0.7199732934 | AA122: 0.7197069272 | AB122: 0.7156453798
A123: ligne_ToBeNull_T3 | B123: Converge brake Power | F123: =F102-F103 -> -33.67779859 | G123: -19.10703521 | H123: -32.52521301 | I123: -33.14383564 | J123: -27.53967198 | K123: -27.39894857 | L123: -27.28503658 | M123: -26.81751777 | N123: -26.20503833 | O123: -25.9508302 | P123: -25.5591219 | Q123: -24.87694205 | R123: -24.15515592 | S123: -23.38957347 | T123: -22.57476105 | U123: -21.70321131 | V123: -20.76373525 | W123: -19.73821426 | X123: -18.5950068 | Y123: -17.27563655 | Z123: -15.66643834 | AA123: -13.52913332 | AB123: -10.97319869
A124: ligne_ToChange_T3 | B124: By changing turbine speed
B126: CV220A
B127: flow | D127: =$D$95-D95 -> 0 | F127: =$D$95-F95 -> 6.489662456 | G127: 144.3632149 | H127: -0.0404372205 | I127: 95.11656233 | J127: -37.5558875 | K127: -33.79821238 | L127: -30.79207229 | M127: -18.7675119 | N127: -3.736811429 | O127: 2.275468762 | P127: 11.29388905 | Q127: 26.32458952 | R127: 41.35529 | S127: 56.38599048 | T127: 71.41669095 | U127: 86.44739143 | V127: 101.4780919 | W127: 116.5087924 | X127: 131.5394929 | Y127: 146.5701933 | Z127: 161.6008938 | AA127: 176.6315943 | AB127: 191.6622948
B128: Pin | C128: Bara | D128: 13.5 | F128: 13.5 | G128: 13.5 | H128: 13.5 | I128: 13.5 | J128: 13.5 | K128: 13.5 | L128: 13.5 | M128: 13.5 | N128: 13.5 | O128: 13.5 | P128: 13.5 | Q128: 13.5 | R128: 13.5 | S128: 13.5 | T128: 13.5 | U128: 13.5 | V128: 13.5 | W128: 13.5 | X128: 13.5 | Y128: 13.5 | Z128: 13.5 | AA128: 13.5 | AB128: 13.5
B129: Tin | C129: K | D129: 100 | F129: 100 | G129: 100 | H129: 100 | I129: 100 | J129: 100 | K129: 100 | L129: 100 | M129: 100 | N129: 100 | O129: 100 | P129: 100 | Q129: 100 | R129: 100 | S129: 100 | T129: 100 | U129: 100 | V129: 100 | W129: 100 | X129: 100 | Y129: 100 | Z129: 100 | AA129: 100 | AB129: 100
B130: Rho | D130: =[3]!rho_(11,D128,D129) -> 6.373331124 | F130: =[3]!rho_(11,F128,F129) -> 6.373331124 | G130: =[3]!rho_(11,G128,G129) -> 6.373331124 | H130: =[3]!rho_(11,H128,H129) -> 6.373331124 | I130: =[3]!rho_(11,I128,I129) -> 6.373331124 | J130: =[3]!rho_(11,J128,J129) -> 6.373331124 | K130: =[3]!rho_(11,K128,K129) -> 6.373331124 | L130: =[3]!rho_(11,L128,L129) -> 6.373331124 | M130: =[3]!rho_(11,M128,M129) -> 6.373331124 | N130: =[3]!rho_(11,N128,N129) -> 6.373331124 | O130: =[3]!rho_(11,O128,O129) -> 6.373331124 | P130: =[3]!rho_(11,P128,P129) -> 6.373331124 | Q130: =[3]!rho_(11,Q128,Q129) -> 6.373331124 | R130: =[3]!rho_(11,R128,R129) -> 6.373331124 | S130: =[3]!rho_(11,S128,S129) -> 6.373331124 | T130: =[3]!rho_(11,T128,T129) -> 6.373331124 | U130: =[3]!rho_(11,U128,U129) -> 6.373331124 | V130: =[3]!rho_(11,V128,V129) -> 6.373331124 | W130: =[3]!rho_(11,W128,W129) -> 6.373331124 | X130: =[3]!rho_(11,X128,X129) -> 6.373331124 | Y130: =[3]!rho_(11,Y128,Y129) -> 6.373331124 | Z130: =[3]!rho_(11,Z128,Z129) -> 6.373331124 | AA130: =[3]!rho_(11,AA128,AA129) -> 6.373331124 | AB130: =[3]!rho_(11,AB128,AB129) -> 6.373331124
B131: Pout | D131: =1.15 -> 1.15 | F131: =1.15 -> 1.15 | G131: 1.15 | H131: 1.15 | I131: 1.15 | J131: 1.15 | K131: 1.15 | L131: 1.15 | M131: 1.15 | N131: 1.15 | O131: 1.15 | P131: 1.15 | Q131: 1.15 | R131: 1.15 | S131: 1.15 | T131: 1.15 | U131: 1.15 | V131: 1.15 | W131: 1.15 | X131: 1.15 | Y131: 1.15 | Z131: 1.15 | AA131: 1.15 | AB131: 1.15
B132: Cvs | D132: 35 | F132: 35 | G132: 35 | H132: 35 | I132: 35 | J132: 35 | K132: 35 | L132: 35 | M132: 35 | N132: 35 | O132: 35 | P132: 35 | Q132: 35 | R132: 35 | S132: 35 | T132: 35 | U132: 35 | V132: 35 | W132: 35 | X132: 35 | Y132: 35 | Z132: 35 | AA132: 35 | AB132: 35
B133: Range | D133: 100 | F133: 100 | G133: 100 | H133: 100 | I133: 100 | J133: 100 | K133: 100 | L133: 100 | M133: 100 | N133: 100 | O133: 100 | P133: 100 | Q133: 100 | R133: 100 | S133: 100 | T133: 100 | U133: 100 | V133: 100 | W133: 100 | X133: 100 | Y133: 100 | Z133: 100 | AA133: 100 | AB133: 100
B134: Flow | D134: =IF(D128/2>D131,"S","SS") -> S | F134: =IF(F128/2>F131,"S","SS") -> S | G134: S | H134: S | I134: S | J134: S | K134: S | L134: S | M134: S | N134: S | O134: S | P134: S | Q134: S | R134: S | S134: S | T134: S | U134: S | V134: S | W134: S | X134: S | Y134: S | Z134: S | AA134: S | AB134: S
B135: Cv | D135: =[3]!Cv_Simple(D129,D128,D131/1000,D130,D127,D134) -> 0 | E135: =[3]!Cv_Simple(E129,E128,E131/1000,E130,E127,E134) -> 0 | F135: =[3]!Cv_Simple(F129,F128,F131/1000,F130,F127,F134) -> 0.148458505 | G135: =[3]!Cv_Simple(G129,G128,G131/1000,G130,G127,G134) -> 3.30247485 | H135: =[3]!Cv_Simple(H129,H128,H131/1000,H130,H127,H134) -> -0.0009250480036 | I135: =[3]!Cv_Simple(I129,I128,I131/1000,I130,I127,I134) -> 2.17590094 | J135: =[3]!Cv_Simple(J129,J128,J131/1000,J130,J127,J134) -> -0.8591341919 | K135: =[3]!Cv_Simple(K129,K128,K131/1000,K130,K127,K134) -> -0.7731730447 | L135: =[3]!Cv_Simple(L129,L128,L131/1000,L130,L127,L134) -> -0.7044041268 | M135: =[3]!Cv_Simple(M129,M128,M131/1000,M130,M127,M134) -> -0.4293284555 | N135: =[3]!Cv_Simple(N129,N128,N131/1000,N130,N127,N134) -> -0.08548386633 | O135: =[3]!Cv_Simple(O129,O128,O131/1000,O130,O127,O134) -> 0.05205396933 | P135: =[3]!Cv_Simple(P129,P128,P131/1000,P130,P127,P134) -> 0.2583607228 | Q135: =[3]!Cv_Simple(Q129,Q128,Q131/1000,Q130,Q127,Q134) -> 0.602205312 | R135: =[3]!Cv_Simple(R129,R128,R131/1000,R130,R127,R134) -> 0.9460499011 | S135: =[3]!Cv_Simple(S129,S128,S131/1000,S130,S127,S134) -> 1.28989449 | T135: =[3]!Cv_Simple(T129,T128,T131/1000,T130,T127,T134) -> 1.633739079 | U135: =[3]!Cv_Simple(U129,U128,U131/1000,U130,U127,U134) -> 1.977583669 | V135: =[3]!Cv_Simple(V129,V128,V131/1000,V130,V127,V134) -> 2.321428258 | W135: =[3]!Cv_Simple(W129,W128,W131/1000,W130,W127,W134) -> 2.665272847 | X135: =[3]!Cv_Simple(X129,X128,X131/1000,X130,X127,X134) -> 3.009117436 | Y135: =[3]!Cv_Simple(Y129,Y128,Y131/1000,Y130,Y127,Y134) -> 3.352962025 | Z135: =[3]!Cv_Simple(Z129,Z128,Z131/1000,Z130,Z127,Z134) -> 3.696806614 | AA135: =[3]!Cv_Simple(AA129,AA128,AA131/1000,AA130,AA127,AA134) -> 4.040651204 | AB135: =[3]!Cv_Simple(AB129,AB128,AB131/1000,AB130,AB127,AB134) -> 4.384495793
B136: Trim | D136: =IF(D135=0,0,[3]!Trim_From_Cv(D135/D132,D133)) -> 0 | F136: =IF(F135=0,0,[3]!Trim_From_Cv(F135/F132,F133)) -> 0.0267631383 | G136: =IF(G135=0,0,[3]!Trim_From_Cv(G135/G132,G133)) -> 0.4873857373 | H136: =IF(H135=0,0,[3]!Trim_From_Cv(H135/H132,H133)) -> -0.0001667616662 | I136: =IF(I135=0,0,[3]!Trim_From_Cv(I135/I132,I133)) -> 0.3967855377 | J136: =IF(J135<0.00001,0,[3]!Trim_From_Cv(J135/J132,J133)) -> 0 | K136: =IF(K135=0,0,[3]!Trim_From_Cv(K135/K132,K133)) -> -0.1393826317 | L136: =IF(L135=0,0,[3]!Trim_From_Cv(L135/L132,L133)) -> -0.1269854164 | M136: =IF(M135=0,0,[3]!Trim_From_Cv(M135/M132,M133)) -> -0.07739655491 | N136: =IF(N135=0,0,[3]!Trim_From_Cv(N135/N132,N133)) -> -0.01541047809 | O136: =IF(O135=0,0,[3]!Trim_From_Cv(O135/O132,O133)) -> 0.009383952645 | P136: =IF(P135=0,0,[3]!Trim_From_Cv(P135/P132,P133)) -> 0.04657559874 | Q136: =IF(Q135=0,0,[3]!Trim_From_Cv(Q135/Q132,Q133)) -> 0.1178382689 | R136: =IF(R135=0,0,[3]!Trim_From_Cv(R135/R132,R133)) -> 0.2159230002 | S136: =IF(S135=0,0,[3]!Trim_From_Cv(S135/S132,S133)) -> 0.2832430717 | T136: =IF(T135=0,0,[3]!Trim_From_Cv(T135/T132,T133)) -> 0.3345573266 | U136: =IF(U135=0,0,[3]!Trim_From_Cv(U135/U132,U133)) -> 0.3760334113 | V136: =IF(V135=0,0,[3]!Trim_From_Cv(V135/V132,V133)) -> 0.4108436111 | W136: =IF(W135=0,0,[3]!Trim_From_Cv(W135/W132,W133)) -> 0.4408368152 | X136: =IF(X135=0,0,[3]!Trim_From_Cv(X135/X132,X133)) -> 0.4671855464 | Y136: =IF(Y135=0,0,[3]!Trim_From_Cv(Y135/Y132,Y133)) -> 0.4906802952 | Z136: =IF(Z135=0,0,[3]!Trim_From_Cv(Z135/Z132,Z133)) -> 0.5118793441 | AA136: =IF(AA135=0,0,[3]!Trim_From_Cv(AA135/AA132,AA133)) -> 0.5311916593 | AB136: =IF(AB135=0,0,[3]!Trim_From_Cv(AB135/AB132,AB133)) -> 0.5489258067
B137: Tout | D137: =[3]!T_P_H_(11,D85,[3]!h_(11,D128,D129)) -> 99.10840613 | F137: =[3]!T_P_H_(11,F85,[3]!h_(11,F128,F129)) -> 99.10840613 | G137: =[3]!T_P_H_(11,G85,[3]!h_(11,G128,G129)) -> 99.10840613 | H137: =[3]!T_P_H_(11,H85,[3]!h_(11,H128,H129)) -> 99.10840613 | I137: =[3]!T_P_H_(11,I85,[3]!h_(11,I128,I129)) -> 99.10840613 | J137: =[3]!T_P_H_(11,J85,[3]!h_(11,J128,J129)) -> 99.10840613 | K137: =[3]!T_P_H_(11,K85,[3]!h_(11,K128,K129)) -> 99.10840613 | L137: =[3]!T_P_H_(11,L85,[3]!h_(11,L128,L129)) -> 99.10840613 | M137: =[3]!T_P_H_(11,M85,[3]!h_(11,M128,M129)) -> 99.10840613 | N137: =[3]!T_P_H_(11,N85,[3]!h_(11,N128,N129)) -> 99.10840613 | O137: =[3]!T_P_H_(11,O85,[3]!h_(11,O128,O129)) -> 99.10840613 | P137: =[3]!T_P_H_(11,P85,[3]!h_(11,P128,P129)) -> 99.10840613 | Q137: =[3]!T_P_H_(11,Q85,[3]!h_(11,Q128,Q129)) -> 99.10840613 | R137: =[3]!T_P_H_(11,R85,[3]!h_(11,R128,R129)) -> 99.10840613 | S137: =[3]!T_P_H_(11,S85,[3]!h_(11,S128,S129)) -> 99.10840613 | T137: =[3]!T_P_H_(11,T85,[3]!h_(11,T128,T129)) -> 99.10840613 | U137: =[3]!T_P_H_(11,U85,[3]!h_(11,U128,U129)) -> 99.10840613 | V137: =[3]!T_P_H_(11,V85,[3]!h_(11,V128,V129)) -> 99.10840613 | W137: =[3]!T_P_H_(11,W85,[3]!h_(11,W128,W129)) -> 99.10840613 | X137: =[3]!T_P_H_(11,X85,[3]!h_(11,X128,X129)) -> 99.10840613 | Y137: =[3]!T_P_H_(11,Y85,[3]!h_(11,Y128,Y129)) -> 99.10840613 | Z137: =[3]!T_P_H_(11,Z85,[3]!h_(11,Z128,Z129)) -> 99.10840613 | AA137: =[3]!T_P_H_(11,AA85,[3]!h_(11,AA128,AA129)) -> 99.10840613 | AB137: =[3]!T_P_H_(11,AB85,[3]!h_(11,AB128,AB129)) -> 99.10840613
B138: delta T | D138: =D137-D85 -> 69.10840613 | F138: =F137-F85 -> 69.10840613 | G138: 69.10840613 | H138: 69.10840613 | I138: 69.10840613 | J138: 69.10840613 | K138: 69.10840613 | L138: 69.10840613 | M138: 69.10840613 | N138: 69.10840613 | O138: 69.10840613 | P138: 69.10840613 | Q138: 69.10840613 | R138: 69.10840613 | S138: 69.10840613 | T138: 69.10840613 | U138: 69.10840613 | V138: 69.10840613 | W138: 69.10840613 | X138: 69.10840613 | Y138: 69.10840613 | Z138: 69.10840613 | AA138: 69.10840613 | AB138: 69.10840613
B139: CV335
B140: Pin | C140: Bara | D140: =D81 -> 13.15 | F140: =F81 -> 13.15 | G140: 13.25 | H140: 13.5 | I140: 12.25 | J140: 13.15 | K140: 13.15 | L140: 13.15 | M140: 13.15 | N140: 13.15 | O140: 13.15 | P140: 13.15 | Q140: 13.15 | R140: 13.15 | S140: 13.15 | T140: 13.15 | U140: 13.15 | V140: 13.15 | W140: 13.15 | X140: 13.15 | Y140: 13.15 | Z140: 13.15 | AA140: 13.15 | AB140: 13.15
B141: Tin | C141: K | D141: =D82 -> 8.835144154 | F141: 9.166149668 | G141: 8.622314625 | H141: 8.828 | I141: 10.79564053 | J141: 7.289570189 | K141: 7.287549476 | L141: 7.286091223 | M141: 7.281767836 | N141: 7.280175123 | O141: 7.280885227 | P141: 7.283576767 | Q141: 7.292977542 | R141: 7.309641747 | S141: 7.335170768 | T141: 7.371597533 | U141: 7.421486544 | V141: 7.488001 | W141: 7.574845196 | X141: 7.685926083 | Y141: 7.824616101 | Z141: 7.992825409 | AA141: 8.190438153 | AB141: 8.414996515
B142: Rho | D142: =[3]!rho_(11,D140,D141) -> 97.61868533 | F142: =[3]!rho_(11,F140,F141) -> 92.38543687 | G142: =[3]!rho_(11,G140,G141) -> 101.5881159 | H142: =[3]!rho_(11,H140,H141) -> 99.5385923 | I142: =[3]!rho_(11,I140,I141) -> 66.47696107 | J142: =[3]!rho_(11,J140,J141) -> 122.3554603 | K142: =[3]!rho_(11,K140,K141) -> 122.3852561 | L142: =[3]!rho_(11,L140,L141) -> 122.4067517 | M142: =[3]!rho_(11,M140,M141) -> 122.4704488 | N142: =[3]!rho_(11,N140,N141) -> 122.4939023 | O142: =[3]!rho_(11,O140,O141) -> 122.4834465 | P142: =[3]!rho_(11,P140,P141) -> 122.4438034 | Q142: =[3]!rho_(11,Q140,Q141) -> 122.3051943 | R142: =[3]!rho_(11,R140,R141) -> 122.0589282 | S142: =[3]!rho_(11,S140,S141) -> 121.6802709 | T142: =[3]!rho_(11,T140,T141) -> 121.1370961 | U142: =[3]!rho_(11,U140,U141) -> 120.3877662 | V142: =[3]!rho_(11,V140,V141) -> 119.3792007 | W142: =[3]!rho_(11,W140,W141) -> 118.0465516 | X142: =[3]!rho_(11,X140,X141) -> 116.3172901 | Y142: =[3]!rho_(11,Y140,Y141) -> 114.12278 | Z142: =[3]!rho_(11,Z140,Z141) -> 111.4162419 | AA142: =[3]!rho_(11,AA140,AA141) -> 108.1899242 | AB142: =[3]!rho_(11,AB140,AB141) -> 104.4920853
B143: dP | D143: =(D140-D98)*1000 -> 8270 | F143: =(F140-F98)*1000 -> 8270 | G143: 8070 | H143: 8620 | I143: 7070 | J143: 8270 | K143: 8270 | L143: 8270 | M143: 8270 | N143: 8270 | O143: 8270 | P143: 8270 | Q143: 8270 | R143: 8270 | S143: 8270 | T143: 8270 | U143: 8270 | V143: 8270 | W143: 8270 | X143: 8270 | Y143: 8270 | Z143: 8270 | AA143: 8270 | AB143: 8270
B144: Cvs | D144: 5 | F144: =$D$144 -> 5 | G144: =$D$144 -> 5 | H144: 5 | I144: 5 | J144: 5 | K144: 5 | L144: 5 | M144: 5 | N144: 5 | O144: 5 | P144: 5 | Q144: 5 | R144: 5 | S144: 5 | T144: 5 | U144: 5 | V144: 5 | W144: 5 | X144: 5 | Y144: 5 | Z144: 5 | AA144: 5 | AB144: 5
B145: Range | D145: 250 | F145: =$D$145 -> 250 | G145: =$D$145 -> 250 | H145: 250 | I145: 250 | J145: 250 | K145: 250 | L145: 250 | M145: 250 | N145: 250 | O145: 250 | P145: 250 | Q145: 250 | R145: 250 | S145: 250 | T145: 250 | U145: 250 | V145: 250 | W145: 250 | X145: 250 | Y145: 250 | Z145: 250 | AA145: 250 | AB145: 250
B146: Flow | D146: =IF(D140/2>D98,"S","SS") -> S | F146: =IF(F140/2>F98,"S","SS") -> S | G146: S | H146: S | I146: S | J146: S | K146: S | L146: S | M146: S | N146: S | O146: S | P146: S | Q146: S | R146: S | S146: S | T146: S | U146: S | V146: S | W146: S | X146: S | Y146: S | Z146: S | AA146: S | AB146: S
B147: Cv | D147: =[3]!Cv_Simple(D141,D140,D143/1000,D142,D95,D146) -> 2.114326057 | F147: =[3]!Cv_Simple(F141,F140,F143/1000,F142,F95,F146) -> 2.133876575 | G147: =[3]!Cv_Simple(G141,G140,G143/1000,G142,G95,G146) -> 1.229821568 | H147: =[3]!Cv_Simple(H141,H140,H143/1000,H142,H95,H146) -> 2.066749655 | I147: =[3]!Cv_Simple(I141,I140,I143/1000,I142,I95,I146) -> 1.94732083 | J147: =[3]!Cv_Simple(J141,J140,J143/1000,J142,J95,J146) -> 2.087214455 | K147: =[3]!Cv_Simple(K141,K140,K143/1000,K142,K95,K146) -> 2.067084552 | L147: =[3]!Cv_Simple(L141,L140,L143/1000,L142,L95,L146) -> 2.051003791 | M147: =[3]!Cv_Simple(M141,M140,M143/1000,M142,M95,M146) -> 1.98688988 | N147: =[3]!Cv_Simple(N141,N140,N143/1000,N142,N95,N146) -> 1.907231673 | O147: =[3]!Cv_Simple(O141,O140,O143/1000,O142,O95,O146) -> 1.875524526 | P147: =[3]!Cv_Simple(P141,P140,P143/1000,P142,P95,P146) -> 1.82813757 | Q147: =[3]!Cv_Simple(Q141,Q140,Q143/1000,Q142,Q95,Q146) -> 1.749643926 | R147: =[3]!Cv_Simple(R141,R140,R143/1000,R142,R95,R146) -> 1.67179862 | S147: =[3]!Cv_Simple(S141,S140,S143/1000,S142,S95,S146) -> 1.594664607 | T147: =[3]!Cv_Simple(T141,T140,T143/1000,T142,T95,T146) -> 1.51832403 | U147: =[3]!Cv_Simple(U141,U140,U143/1000,U142,U95,U146) -> 1.442881851 | V147: =[3]!Cv_Simple(V141,V140,V143/1000,V142,V95,V146) -> 1.368466063 | W147: =[3]!Cv_Simple(W141,W140,W143/1000,W142,W95,W146) -> 1.29521771 | X147: =[3]!Cv_Simple(X141,X140,X143/1000,X142,X95,X146) -> 1.223259409 | Y147: =[3]!Cv_Simple(Y141,Y140,Y143/1000,Y142,Y95,Y146) -> 1.152633687 | Z147: =[3]!Cv_Simple(Z141,Z140,Z143/1000,Z142,Z95,Z146) -> 1.083224672 | AA147: =[3]!Cv_Simple(AA141,AA140,AA143/1000,AA142,AA95,AA146) -> 1.014699115 | AB147: =[3]!Cv_Simple(AB141,AB140,AB143/1000,AB142,AB95,AB146) -> 0.9464560042
B148: Trim | D148: =[3]!Trim_From_Cv(D147/D144,D145) -> 0.8441170167 | F148: =[3]!Trim_From_Cv(F147/F144,F145) -> 0.8457840033 | G148: =[3]!Trim_From_Cv(G147/G144,G145) -> 0.7459786746 | H148: =[3]!Trim_From_Cv(H147/H144,H145) -> 0.8399951086 | I148: =[3]!Trim_From_Cv(I147/I144,I145) -> 0.8292148705 | J148: =[3]!Trim_From_Cv(J147/J144,J145) -> 0.8417796404 | K148: =[3]!Trim_From_Cv(K147/K144,K145) -> 0.8400244536 | L148: =[3]!Trim_From_Cv(L147/L144,L145) -> 0.8386099987 | M148: =[3]!Trim_From_Cv(M147/M144,M145) -> 0.8328581177 | N148: =[3]!Trim_From_Cv(N147/N144,N145) -> 0.8254474455 | O148: =[3]!Trim_From_Cv(O147/O144,O145) -> 0.8224112133 | P148: =[3]!Trim_From_Cv(P147/P144,P145) -> 0.8177764545 | Q148: =[3]!Trim_From_Cv(Q147/Q144,Q145) -> 0.8098282988 | R148: =[3]!Trim_From_Cv(R147/R144,R145) -> 0.8015855108 | S148: =[3]!Trim_From_Cv(S147/S144,S145) -> 0.7930304148 | T148: =[3]!Trim_From_Cv(T147/T144,T145) -> 0.7841457513 | U148: =[3]!Trim_From_Cv(U147/U144,U145) -> 0.7749154559 | V148: =[3]!Trim_From_Cv(V147/V144,V145) -> 0.7653252498 | W148: =[3]!Trim_From_Cv(W147/W144,W145) -> 0.7553620073 | X148: =[3]!Trim_From_Cv(X147/X144,X145) -> 0.7450097012 | Y148: =[3]!Trim_From_Cv(Y147/Y144,Y145) -> 0.7342390995 | Z148: =[3]!Trim_From_Cv(Z147/Z144,Z145) -> 0.7229907927 | AA148: =[3]!Trim_From_Cv(AA147/AA144,AA145) -> 0.711155108 | AB148: =[3]!Trim_From_Cv(AB147/AB144,AB145) -> 0.698545597
B149: Tout | D149: =[3]!T_P_H_(11,D98,[3]!h_(11,D140,D141)) -> 7.372470051 | F149: =[3]!T_P_H_(11,F98,[3]!h_(11,F140,F141)) -> 7.630998962 | G149: =[3]!T_P_H_(11,G98,[3]!h_(11,G140,G141)) -> 7.321964339 | H149: =[3]!T_P_H_(11,H98,[3]!h_(11,H140,H141)) -> 7.351906498 | I149: =[3]!T_P_H_(11,I98,[3]!h_(11,I140,I141)) -> 9.403837193 | J149: =[3]!T_P_H_(11,J98,[3]!h_(11,J140,J141)) -> 6.507615187 | K149: =[3]!T_P_H_(11,K98,[3]!h_(11,K140,K141)) -> 6.506777398 | L149: =[3]!T_P_H_(11,L98,[3]!h_(11,L140,L141)) -> 6.506173116 | M149: =[3]!T_P_H_(11,M98,[3]!h_(11,M140,M141)) -> 6.504383087 | N149: =[3]!T_P_H_(11,N98,[3]!h_(11,N140,N141)) -> 6.503724223 | O149: =[3]!T_P_H_(11,O98,[3]!h_(11,O140,O141)) -> 6.504017937 | P149: =[3]!T_P_H_(11,P98,[3]!h_(11,P140,P141)) -> 6.505131768 | Q149: =[3]!T_P_H_(11,Q98,[3]!h_(11,Q140,Q141)) -> 6.509029015 | R149: =[3]!T_P_H_(11,R98,[3]!h_(11,R140,R141)) -> 6.515964314 | S149: =[3]!T_P_H_(11,S98,[3]!h_(11,S140,S141)) -> 6.526657011 | T149: =[3]!T_P_H_(11,T98,[3]!h_(11,T140,T141)) -> 6.542061119 | U149: =[3]!T_P_H_(11,U98,[3]!h_(11,U140,U141)) -> 6.563450243 | V149: =[3]!T_P_H_(11,V98,[3]!h_(11,V140,V141)) -> 6.592520765 | W149: =[3]!T_P_H_(11,W98,[3]!h_(11,W140,W141)) -> 6.631491716 | X149: =[3]!T_P_H_(11,X98,[3]!h_(11,X140,X141)) -> 6.683145961 | Y149: =[3]!T_P_H_(11,Y98,[3]!h_(11,Y140,Y141)) -> 6.750739301 | Z149: =[3]!T_P_H_(11,Z98,[3]!h_(11,Z140,Z141)) -> 6.837783017 | AA149: =[3]!T_P_H_(11,AA98,[3]!h_(11,AA140,AA141)) -> 6.947817721 | AB149: =[3]!T_P_H_(11,AB98,[3]!h_(11,AB140,AB141)) -> 7.083937254
B150: delta T | D150: =D149-D98 -> 2.492470051 | F150: =F149-F98 -> 2.750998962 | G150: 2.141964339 | H150: 2.471906498 | I150: 4.223837193 | J150: 1.627615187 | K150: 1.626777398 | L150: 1.626173116 | M150: 1.624383087 | N150: 1.623724223 | O150: 1.624017937 | P150: 1.625131768 | Q150: 1.629029015 | R150: 1.635964314 | S150: 1.646657011 | T150: 1.662061119 | U150: 1.683450243 | V150: 1.712520765 | W150: 1.751491716 | X150: 1.803145961 | Y150: 1.870739301 | Z150: 1.957783017 | AA150: 2.067817721 | AB150: 2.203937254
W152: Ratio Cv | X152: 0.5
X153: =[3]!Trim_From_Cv(X152,X145) -> 0.8744630831
M155: =M37 -> T1 | N155: =M160 -> T3 | O155: T1+T2
B156: Courbe de rendement TC3 | L156: =L161 -> MAX | M156: =M38 -> 100g/s @ 7,03912286644876 b ; 35K | N156: =M161 -> 351g/s @ 13,07 b ; 9,16K | O156: =F95+F49 -> 450.5103375
L157: =L162 -> MIN | M157: =M39 -> 163g/s @ 12,39 b ; 40,73K | N157: =M162 -> 213g/s @ 7,369 b ; 7,912K | O157: =G95+G49 -> 375.8027516
L158: =L163 -> STS | M158: =M40 -> 107g/s @ 10,3 b ; 66K | N158: =M163 -> 357g/s @ 13,07 b ; 8,828K | O158: =H95+H49 -> 436.4656538
L159: =L164 -> BAKING | M159: =M41 -> 128g/s @ 9,25 b ; 37,12K | N159: =M164 -> 262g/s @ 10,48 b ; 10,55K | O159: =I95+I49 -> 389.4841872
E160: d : mm | M160: T3
E161: N : Hz | L161: MAX | M161: =ROUND(F95,0)&"g/s @ "&F96&" b ; "&F97&"K" -> 351g/s @ 13,07 b ; 9,16K
E162: H : J/kG | L162: MIN | M162: =ROUND(G95,0)&"g/s @ "&G96&" b ; "&G97&"K" -> 213g/s @ 7,369 b ; 7,912K
L163: STS | M163: =ROUND(H95,0)&"g/s @ "&H96&" b ; "&H97&"K" -> 357g/s @ 13,07 b ; 8,828K
L164: BAKING | M164: =ROUND(I95,0)&"g/s @ "&I96&" b ; "&I97&"K" -> 262g/s @ 10,48 b ; 10,55K
B168: rendement=(0,321*rap^4 - 1,6098*rap^3 + 1,316*rap^2 + 0,9448*rap)*(ETAgar/0,97) | I168: U1/CO _nom | J168: 0.64
I169: Eta_gar | J169: 0.8
B170: U1/C0 | C170: =D19 -> 0.767 | D170: =D54 -> 0.77 | E170: =D100 -> 0.72
B171: 0 | C171: =(0.321*B171^4-1.6098*B171^3+1.316*B171^2+0.9448*B171)*$D$19/0.97215493 -> 0
B172: =B171+0.05 -> 0.05 | C172: =(0.321*$B172^4-1.6098*$B172^3+1.316*$B172^2+0.9448*$B172)*$C$170/0.97215493 -> 0.03970942082 | D172: =(0.321*$B172^4-1.6098*$B172^3+1.316*$B172^2+0.9448*$B172)*$D$170/0.97215493 -> 0.03986473798 | E172: =(0.321*$B172^4-1.6098*$B172^3+1.316*$B172^2+0.9448*$B172)*$E$170/0.97215493 -> 0.03727611863
B173: 0.1 | C173: =(0.321*$B173^4-1.6098*$B173^3+1.316*$B173^2+0.9448*$B173)*$C$170/0.97215493 -> 0.08367985553 | D173: =(0.321*$B173^4-1.6098*$B173^3+1.316*$B173^2+0.9448*$B173)*$D$170/0.97215493 -> 0.08400715614 | E173: =(0.321*$B173^4-1.6098*$B173^3+1.316*$B173^2+0.9448*$B173)*$E$170/0.97215493 -> 0.078552146
B174: 0.15 | C174: 0.1310157258 | D174: 0.1315281733 | E174: 0.1229873828
B175: 0.2 | C175: 0.1808594422 | D175: 0.1815668455 | E175: 0.1697767906
B176: 0.25 | C176: 0.2323914041 | D176: 0.2333003666 | E176: 0.2181509921
B177: 0.3 | C177: 0.2848299998 | D177: 0.2859440676 | E177: 0.267376271
B178: 0.35 | C178: 0.3374316063 | D178: 0.338751417 | E178: 0.3167545717
B179: 0.4 | C179: 0.3894905895 | D179: 0.3910140208 | E179: 0.3656234999
B180: 0.45 | C180: 0.4403393044 | D180: 0.4420616224 | E180: 0.4133563222
B181: 0.5 | C181: 0.4893480944 | D181: 0.4912621026 | E181: 0.4593619661
B182: 0.55 | C182: 0.5359252922 | D182: 0.5380214798 | E182: 0.5030850201
B183: 0.6 | C183: 0.5795172191 | D183: 0.5817839097 | E183: 0.5440057337
B184: 0.65 | C184: 0.6196081853 | D184: 0.6220316854 | E184: 0.5816400175
B185: 0.7 | C185: 0.6557204898 | D185: 0.6582852375 | E185: 0.6155394429
B186: 0.75 | C186: 0.6874144206 | D186: 0.6901031341 | E186: 0.6452912423
B187: 0.8 | C187: 0.7142882544 | D187: 0.7170820807 | E187: 0.6705183093
B188: 0.85 | C188: 0.7359782569 | D188: 0.7388569202 | E188: 0.6908791981
B189: 0.9 | C189: 0.7521586825 | D189: 0.755100633 | E189: 0.7060681243
B190: 0.95 | C190: 0.7625417745 | D190: 0.7655243368 | E190: 0.7158149643
B191: 1 | C191: 0.766877765 | D191: 0.7698772869 | E191: 0.7198852553
B192: 1.05 | C192: 0.7649548753 | D192: 0.7679468761 | E192: 0.7180801958
B193: 1.1 | C193: 0.756599315 | D193: 0.7595586343 | E193: 0.7102366451
B194: 1.15 | C194: 0.7416752829 | D194: 0.7445762293 | E194: 0.6962271235
B195: 1.2 | C195: 0.7200849667 | D195: 0.7229014659 | E195: 0.6759598123 | G195: F Let u be the peripheral speed of the wheel : u = p . Æ . N / 60 (in m/s)
B196: 1.25 | C196: 0.6917685427 | D196: 0.6944742867 | E196: 0.6493785538 | G196: F Let n, be the speed ratio of the turbine : n = u / [ 2 . (H1 - H2S ) ] 0.5 (dimensionless number)
B197: 1.3 | C197: 0.6567041763 | D197: 0.6592727715 | E197: 0.6164628512 | H197: N = speed of rotation of the turbine (in rpm)
B198: 1.35 | C198: 0.6149080215 | D198: 0.6173131376 | E198: 0.5772278689 | H198: Æ = diameter of the wheel of the turbine (in m)
B199: 1.4 | C199: 0.5664342213 | D199: 0.5686497398 | E199: 0.531724432
B200: 1.45 | C200: 0.5113749077 | D200: 0.5133750703 | E200: 0.4800390268
B201: 1.5 | C201: 0.4498602013 | D201: 0.4516197588 | E201: 0.4222938004

Sheet rhea
A1: 1 | B1: 2 | C1: 3 | D1: 4 | E1: 5 | F1: 6 | G1: 7 | H1: 8 | I1: 9 | J1: 10 | K1: 11 | L1: 12 | M1: 13 | N1: 14 | O1: 15 | P1: 16 | Q1: 17 | R1: 18 | S1: 19 | T1: 20 | U1: 21 | V1: 22 | W1: 23 | X1: 24 | Y1: 25 | Z1: 26 | AA1: 27 | AB1: 28
AF2: =1-1/3 -> 0.6666666667
E5: Vitesse de la roue ajustée en fonction de la puissance du frein | L5: =D54*0.3 -> 321.85
B8: Relation entre la puissance et la vitesse de rotation | M8: ²
D10: DESIGN | L10: dp=k.m²/rho | N10: dp1*rho1/m1² = dp2*rho2/m2²
B11: TURBINE 1 | F11: 1 | G11: 2 | H11: 3 | I11: 4 | L11: m2 = (dp2/dp1 x rho2/ rho1)^0,5 x m1
B12: m | C12: g/s | D12: 1166 | F12: =F26*F13/F14^0.5 -> 1166 | G12: =G26*G13/G14^0.5 -> 1768.216277 | H12: =H26*H13/H14^0.5 -> 1154.746194 | I12: =I26*I13/I14^0.5 -> 1382.79892
B13: Pin | C13: Bara | D13: 19.6 | F13: 19.6 | G13: 12.39 | H13: 10.3 | I13: 9.25
B14: Tin | C14: K | D14: 234.4 | F14: 234.4 | G14: 40.73 | H14: 66 | I14: 37.12
B15: Pout | C15: Bara | D15: 12.41 | F15: 12.41 | G15: 5.242 | H15: 4.97 | I15: 4.06
B16: Tout | C16: K | D16: =[3]!T2_turb(11,D13,D14,D15,D17) -> 205.0906144 | F16: =[3]!T2_turb(11,F13,F14,F15,F17) -> 205.0954088 | G16: =[3]!T2_turb(11,G13,G14,G15,G17) -> 0.8000000031 | H16: =[3]!T2_turb(11,H13,H14,H15,H17) -> 55.25743907 | I16: =[3]!T2_turb(11,I13,I14,I15,I17) -> 0.7999999904
B17: Efficacity | C17: % | D17: 0.752 | F17: =(0.321*F40^4-1.6098*F40^3+1.316*F40^2+0.9448*F40)*($D$17/0.97215493) -> 0.7518788476 | G17: =(0.321*G40^4-1.6098*G40^3+1.316*G40^2+0.9448*G40)*($D$17/0.97215493) -> 3.553678555 | H17: =(0.321*H40^4-1.6098*H40^3+1.316*H40^2+0.9448*H40)*($D$17/0.97215493) -> 0.6484663156 | I17: =(0.321*I40^4-1.6098*I40^3+1.316*I40^2+0.9448*I40)*($D$17/0.97215493) -> 3.732296518
B18: Power | C18: W | D18: =+D12*(D30-D31) -> 180208.9628 | F18: =+F12*(F30-F31) -> 180179.9298 | G18: =+G12*(G30-G31) -> 395551.6699 | H18: =+H12*(H30-H31) -> 65994.38836 | I18: =+I12*(I30-I31) -> 
B19: Speed | C19: Hz | D19: =64420/60 -> 1073.666667 | F19: 1073.609005 | G19: 2398.325876 | H19: 909.6637145 | I19: 2248.455349
B20: Speed calculated from P=K.rho.N^3 | F20: =(F18/$D18*$D21/F21)^(1/3)*$D19 -> 1073.609005 | G20: =(G18/$D18*$D21/G21)^(1/3)*$D19 -> 1639.296102 | H20: =(H18/$D18*$D21/H21)^(1/3)*$D19 -> 909.6634582 | I20: =(I18/$D18*$D21/I21)^(1/3)*$D19 -> 
B21: Brake Pressure inlet | D21: 18.7 | F21: =($D21-$D15)+F15 -> 18.7 | G21: =($D21-$D15)+G15 -> 11.532 | H21: =($D21-$D15)+H15 -> 11.26 | I21: =($D21-$D15)+I15 -> 10.35
B22: Brake Pressure outlet | D22: 1 | F22: =$D22 -> 1 | G22: =$D22 -> 1 | H22: 1 | I22: 1
B23: Brake Flow | D23: 42.5 | F23: =((F21-F22)/($D21-$D22)*F24/$D24)^0.5*$D23 -> 42.5 | G23: =((G21-G22)/($D21-$D22)*G24/$D24)^0.5*$D23 -> 25.78248641 | H23: 25.1468776 | I23: 23.01960857
B24: Rho (brake) | D24: =[3]!rho_(11,D21,330) -> 2.707222636 | F24: =[3]!rho_(11,F21,330) -> 2.707222636 | G24: =[3]!rho_(11,G21,330) -> 1.674395791 | H24: =[3]!rho_(11,H21,330) -> 1.635084321 | I24: =[3]!rho_(11,I21,330) -> 1.503500709
B25: Wheel | C25: mm | D25: 94 | F25: =$D$25 -> 94 | G25: =$D$25 -> 94 | H25: =$D$25 -> 94 | I25: =$D$25 -> 94
B26: a = mÖT/P | D26: =D12*D14^0.5/D13 -> 910.7963526 | F26: =+$D$26 -> 910.7963526 | G26: =+$D$26 -> 910.7963526 | H26: =+$D$26 -> 910.7963526 | I26: =+$D$26 -> 910.7963526
B27: Rho (in) | C27: kg/m3 | D27: =[3]!rho_(11,D13,D14) -> 3.978406838 | F27: =[3]!rho_(11,F13,F14) -> 3.978406838 | G27: =[3]!rho_(11,G13,G14) -> 14.1781416 | H27: =[3]!rho_(11,H13,H14) -> 7.3557574 | I27: =[3]!rho_(11,I13,I14) -> 11.70816291
B28: Sound Speed @inlet | D28: =[3]!Sound_speed(11,D13,D14) -> 910.7282153 | F28: =[3]!Sound_speed(11,F13,F14) -> 910.7282153 | G28: =[3]!Sound_speed(11,G13,G14) -> 391.2891989 | H28: =[3]!Sound_speed(11,H13,H14) -> 488.8557373 | I28: =[3]!Sound_speed(11,I13,I14) -> 370.5157737
B29: S=Q/(rho*V) = cte | D29: =D12/(D27*D28) -> 0.3218107637 | F29: =F12/(F27*F28) -> 0.3218107637 | G29: =G12/(G27*G28) -> 0.3187265302 | H29: =H12/(H27*H28) -> 0.3211281859 | I29: =I12/(I27*I28) -> 0.3187598203
B30: Hin | D30: =[3]!h_(11,D13,D14) -> 1238.924208 | F30: =[3]!h_(11,F13,F14) -> 1238.924208 | G30: =[3]!h_(11,G13,G14) -> 227.2127422 | H30: =[3]!h_(11,H13,H14) -> 360.1422039 | I30: =[3]!h_(11,I13,I14) -> 207.8908573
B31: Hout | D31: =[3]!h_(11,D15,D16) -> 1084.371066 | F31: =[3]!h_(11,F15,F16) -> 1084.395966 | G31: =[3]!h_(11,G15,G16) -> 3.511787207 | H31: =[3]!h_(11,H15,H16) -> 302.9916468 | I31: =[3]!h_(11,I15,I16) -> 
B32: Sin = Sout | D32: =[3]!S_(11,D13,D14) -> 24.15205451 | F32: =[3]!S_(11,F13,F14) -> 24.15205451 | G32: =[3]!S_(11,G13,G14) -> 15.95659187 | H32: =[3]!S_(11,H13,H14) -> 18.89203458 | I32: =[3]!S_(11,I13,I14) -> 16.08435866
B33: Tout(iso) | D33: =[1]!HeCalc(2,0,1,D15*10^5,8,D32*1000,1) -> 195.2768684 | F33: =[1]!HeCalc(2,0,1,F15*10^5,8,F32*1000,1) -> 195.2768684 | G33: =[1]!HeCalc(2,0,1,G15*10^5,8,G32*1000,1) -> 28.87508647 | H33: =[1]!HeCalc(2,0,1,H15*10^5,8,H32*1000,1) -> 49.33078138 | I33: =[1]!HeCalc(2,0,1,I15*10^5,8,I32*1000,1) -> 26.69973777
B34: Hout(iso) | D34: =[3]!h_(11,D15,D33) -> 1033.401413 | F34: =[3]!h_(11,F15,F33) -> 1033.401413 | G34: =[3]!h_(11,G15,G33) -> 164.2636174 | H34: =[3]!h_(11,H15,H33) -> 272.0103214 | I34: =[3]!h_(11,I15,I33) -> 152.9233323
B35: ΔHs | D35: =D30-D34 -> 205.5227943 | F35: 205.5227943 | G35: 62.94912484 | H35: 88.1318825 | I35: 54.96752496
B36: u1 | C36: m/s | D36: =(2*52.7%*D35*1000*D17)^0.5 -> 403.6074961 | F36: =PI()*$D$37*F19 -> 403.5858204 | G36: =PI()*$D$37*G19 -> 901.5668751 | H36: =PI()*$D$37*H19 -> 341.9563125 | I36: =PI()*$D$37*I19 -> 845.2282833
B37: D1 | D37: =D36/PI()/D19 -> 0.1196574879 | M37: T1
B38: Co = (2*ΔHs)^0,5 | D38: =(2000*D35)^0.5 -> 641.1283714 | F38: 641.1283714 | G38: 354.8214335 | H38: 419.8377841 | I38: 331.5645487
B39: u1/Co | D39: =D36/D38 -> 0.6295268064 | F39: 0.6294929977 | G39: 2.540903085 | H39: 0.8144962778 | I39: 2.549211871
B40: U1/C0 off de / U1/C0 nom | D40: =D39/$D$39 -> 1 | F40: =F39/$D39 -> 0.9999462951 | G40: =G39/$D39 -> 4.036211102 | H40: =H39/$D39 -> 1.293823026 | I40: =I39/$D39 -> 4.049409564
B41: Rdt | D41: =(0.321*D40^4-1.6098*D40^3+1.316*D40^2+0.9448*D40)*($D17/0.97215493) -> 0.7518801556 | F41: =(0.321*F40^4-1.6098*F40^3+1.316*F40^2+0.9448*F40)*($D17/0.97215493) -> 0.7518788476 | G41: =(0.321*G40^4-1.6098*G40^3+1.316*G40^2+0.9448*G40)*($D17/0.97215493) -> 3.553678555 | H41: =(0.321*H40^4-1.6098*H40^3+1.316*H40^2+0.9448*H40)*($D17/0.97) -> 0.6499069337 | I41: =(0.321*I40^4-1.6098*I40^3+1.316*I40^2+0.9448*I40)*($D17/0.97215493) -> 3.732296518
A42: ligne_ToBeNull_T1 | B42: Converge brake Power | F42: =F19-F20 -> 2.751025932e-07 | G42: =G19-G20 -> 759.0297738 | H42: =H19-H20 -> 0.0002562961423 | I42: =I19-I20 -> 
A43: ligne_ToChange_T1 | B43: By changing turbine speed | F43: =CELL("address",F19) -> $F$19 | G43: =CELL("address",G19) -> $G$19 | H43: =CELL("address",H19) -> $H$19 | I43: =CELL("address",I19) -> $I$19
B46: TURBINE 2 | F46: 1 | G46: 2 | H46: 3 | I46: 4
B47: m | C47: g/s | D47: 1166 | F47: =F12 -> 1166 | G47: =G12 -> 1768.216277 | H47: =H59/(H50*H49)^0.5*H48 -> 680.4706178 | I47: =I12 -> 1382.79892 | Q47: 650 | R47: =#REF!*Q47^3 -> 
B48: Pin | C48: Bara | D48: 12.16 | F48: =F47*F49^0.5/F59 -> 5.141583213 | G48: =G47*G49^0.5/G59 -> 6.861602806 | H48: 4.87 | I48: =I47*I49^0.5/I59 -> 5.277584447 | Q48: =Q47/#REF! ->  | R48: =R47/#REF! -> 
B49: Tin | C49: K | D49: 128.2 | F49: 22.92 | G49: 17.75 | H49: 52.5 | I49: 17.17
B50: Pout | C50: Bara | D50: 4.87 | F50: 1.35 | G50: 1.29 | H50: 1.15 | I50: 1.35
B51: Tout | C51: K | D51: =[3]!T2_turb(11,D48,D49,D50,D52) -> 99.25608185 | F51: =[3]!T2_turb(11,F48,F49,F50,F52) -> NUM | G51: =[3]!T2_turb(11,G48,G49,G50,G52) -> NUM | H51: =[3]!T2_turb(11,H48,H49,H50,H52) -> 51.82550389 | I51: =[3]!T2_turb(11,I48,I49,I50,I52) -> NUM
B52: Efficacity | C52: % | D52: 0.74 | F52: =(0.321*F73^4-1.6098*F73^3+1.316*F73^2+0.9448*F73)*($D$52/0.97215493) -> 79.74210146 | G52: =(0.321*G73^4-1.6098*G73^3+1.316*G73^2+0.9448*G73)*($D$52/0.97215493) -> 157.2340993 | H52: =(0.321*H73^4-1.6098*H73^3+1.316*H73^2+0.9448*H73)*($D$52/0.97215493) -> 0.03333815049 | I52: =(0.321*I73^4-1.6098*I73^3+1.316*I73^2+0.9448*I73)*($D$52/0.97215493) -> 90.83164806
B53: Power | C53: W | D53: =+D47*(D63-D64) -> 178025.6225 | F53: =+F47*(F63-F64) ->  | G53: =+G47*(G63-G64) ->  | H53: =+H47*(H63-H64) -> 2731.913921 | I53: =+I47*(I63-I64) -> 
B54: Speed | C54: Hz | D54: =64370/60 -> 1072.833333 | F54: 3061.977241 | G54: 3236.830372 | H54: 1442.281681 | I54: 2695.512248
B55: Speed calculated from P=K.rho.N^3 | F55: =(F53/$D53*$D56/F56)^(1/3)*$D54 ->  | G55: =(G53/$D53*$D56/G56)^(1/3)*$D54 ->  | H55: =(H53/$D53*$D56/H56)^(1/3)*$D54 -> 288.8560546 | I55: =(I53/$D53*$D56/I56)^(1/3)*$D54 -> 
B56: Brake Pressure | D56: 17.4 | F56: =($D56-$D50)+F50 -> 13.88 | G56: =($D56-$D50)+G50 -> 13.82 | H56: =($D56-$D50)+H50 -> 13.68 | I56: =($D56-$D50)+I50 -> 13.88
B57: Rho (brake) | D57: =[3]!rho_(11,D56,330) -> 2.52035663 | F57: =[3]!rho_(11,F56,330) -> 2.013382824 | G57: =[3]!rho_(11,G56,330) -> 2.004728568 | H57: =[3]!rho_(11,H56,330) -> 1.984533652 | I57: =[3]!rho_(11,I56,330) -> 2.013382824
B58: Wheel | C58: mm | D58: 36.4 | F58: =$D$25 -> 94 | G58: =$D$25 -> 94 | H58: =$D$25 -> 94 | I58: =$D$25 -> 94
B59: a = mÖT/P | D59: =D47*D49^0.5/D48 -> 1085.697876 | F59: =$D$59 -> 1085.697876 | G59: =$D$59 -> 1085.697876 | H59: 1085.697876 | I59: 1085.697876
B60: Rho (in) | C60: kg/m3 | D60: =[3]!rho_(11,D48,D49) -> 4.503418332 | F60: =[3]!rho_(11,F48,F49) -> 10.73640895 | G60: =[3]!rho_(11,G48,G49) -> 18.8301522 | H60: =[3]!rho_(11,H48,H49) -> 4.414094183 | I60: =[3]!rho_(11,I48,I49) -> 14.99360264
B61: Sound Speed | D61: =[3]!Sound_speed(11,D48,D49) -> 675.1480641 | F61: =[3]!Sound_speed(11,F48,F49) -> 288.2926311 | G61: =[3]!Sound_speed(11,G48,G49) -> 255.8109042 | H61: =[3]!Sound_speed(11,H48,H49) -> 431.9913023 | I61: =[3]!Sound_speed(11,I48,I49) -> 249.4008327 | T61: T2
B62: S=Q/(rho*V) = cte | D62: =D47/(D60*D61) -> 0.3834928157 | F62: =F47/(F60*F61) -> 0.3767089714 | G62: =G47/(G60*G61) -> 0.3670815027 | H62: =H47/(H60*H61) -> 0.356855816 | I62: =I47/(I60*I61) -> 0.3697899769 | S62: MAX | T62: =ROUND(F47,0)&"g/s @ "&F48&" b ; "&F49&"K" -> 1166g/s @ 5,14158321343899 b ; 22,92K
B63: Hin | D63: =[3]!h_(11,D48,D49) -> 684.7769929 | F63: =[3]!h_(11,F48,F49) -> 132.3483339 | G63: =[3]!h_(11,G48,G49) -> 102.9706837 | H63: =[3]!h_(11,H48,H49) -> 288.5702542 | I63: =[3]!h_(11,I48,I49) -> 100.7176404 | S63: MIN | T63: =ROUND(G47,0)&"g/s @ "&G48&" b ; "&G49&"K" -> 1768g/s @ 6,86160280630729 b ; 17,75K
B64: Hout | D64: =[3]!h_(11,D50,D51) -> 532.096356 | F64: =[3]!h_(11,F50,F51) ->  | G64: =[3]!h_(11,G50,G51) ->  | H64: =[3]!h_(11,H50,H51) -> 284.5555123 | I64: =[3]!h_(11,I50,I51) ->  | S64: STS | T64: =ROUND(H47,0)&"g/s @ "&H48&" b ; "&H49&"K" -> 680g/s @ 4,87 b ; 52,5K
B65: Sin = Sout | D65: =[3]!S_(11,D48,D49) -> 22.00751537 | F65: =[3]!S_(11,F48,F49) -> 14.75896898 | G65: =[3]!S_(11,G48,G49) -> 12.70519899 | H65: =[3]!S_(11,H48,H49) -> 19.26011356 | I65: =[3]!S_(11,I48,I49) -> 13.11452626 | S65: BAKING | T65: =ROUND(I47,0)&"g/s @ "&I48&" b ; "&I49&"K" -> 1383g/s @ 5,27758444695258 b ; 17,17K
B66: Tout(iso) | D66: =[1]!HeCalc(2,0,1,D50*10^5,8,D65*1000,1) -> 88.94086119 | F66: =[1]!HeCalc(2,0,1,F50*10^5,8,F65*1000,1) -> 13.38980876 | G66: =[1]!HeCalc(2,0,1,G50*10^5,8,G65*1000,1) -> 9.022138103 | H66: =[1]!HeCalc(2,0,1,H50*10^5,8,H65*1000,1) -> 29.47686334 | I66: =[1]!HeCalc(2,0,1,I50*10^5,8,I65*1000,1) -> 9.893687298
B67: Hout(iso) | D67: =[3]!h_(11,D50,D66) -> 478.451808 | F67: =[3]!h_(11,F50,F66) -> 83.31942509 | G67: =[3]!h_(11,G50,G66) -> 59.61042793 | H67: =[3]!h_(11,H50,H66) -> 168.1453995 | I67: =[3]!h_(11,I50,I66) -> 64.33338038
B68: ΔHs | D68: =D63-D67 -> 206.3251849 | F68: 49.02890879 | G68: 43.36025581 | H68: 120.4248547 | I68: 36.38425998
B69: u1 | C69: m/s | D69: =(2*52.7%*D68*1000*D52)^0.5 -> 401.1550713 | F69: =PI()*$D$70*F54 -> 1144.938044 | G69: =PI()*$D$70*G54 -> 1210.319328 | H69: 539.2996215 | I69: 1007.909033
B70: D1 | D70: =D69/PI()/D54 -> 0.119022798
B71: Co = (2*ΔHs)^0,5 | D71: =(2000*D68)^0.5 -> 642.378681 | F71: 313.141849 | G71: 294.4834658 | H71: 490.7644134 | I71: 269.7564086
B72: u1/Co | D72: =D69/D71 -> 0.6244837868 | F72: 3.656292022 | G72: 4.109973796 | H72: 1.098897163 | I72: 3.736367335
B73: U1/C0 off de / U1/C0 nom | D73: =D72/$D$39 -> 0.9919891901 | F73: =F72/$D72 -> 5.85490304 | G73: =G72/$D72 -> 6.581393917 | H73: =H72/$D72 -> 1.75968886 | I73: =I72/$D72 -> 5.983129449
B74: Rdt | D74: =(0.321*D73^4-1.6098*D73^3+1.316*D73^2+0.9448*D73)*($D52/0.97215493) -> 0.739613184 | F74: =(0.321*F73^4-1.6098*F73^3+1.316*F73^2+0.9448*F73)*($D52/0.97215493) -> 79.74210146 | G74: =(0.321*G73^4-1.6098*G73^3+1.316*G73^2+0.9448*G73)*($D52/0.97215493) -> 157.2340993 | H74: =(0.321*H73^4-1.6098*H73^3+1.316*H73^2+0.9448*H73)*($D52/0.97215493) -> 0.03333815049 | I74: =(0.321*I73^4-1.6098*I73^3+1.316*I73^2+0.9448*I73)*($D52/0.97215493) -> 90.83164806
A75: ligne_ToBeNull_T2 | B75: Converge brake Power | F75: =F54-F55 ->  | G75: =G54-G55 ->  | H75: =H54-H55 -> 1153.425626 | I75: =I54-I55 -> 
A76: ligne_ToChange_T2 | B76: By changing turbine speed | F76: =CELL("address",F54) -> $F$54 | G76: =CELL("address",G54) -> $G$54 | H76: =CELL("address",H54) -> $H$54 | I76: =CELL("address",I54) -> $I$54
B78: INLET VALVE
B79: Pin | C79: Bara | D79: 13.15 | F79: 13.15 | G79: 13.25 | H79: 13.5 | I79: 12.25
B80: Tin | C80: K | D80: =[3]!T_P_H_(11,D79,[3]!h_(11,D92,D93)) -> 7.290663568 | F80: =[3]!T_P_H_(11,F79,[3]!h_(11,F92,F93)) -> 9.166149668 | G80: =[3]!T_P_H_(11,G79,[3]!h_(11,G92,G93)) -> 8.622314625 | H80: =+H93 -> 8.828 | I80: =[3]!T_P_H_(11,I79,[3]!h_(11,I92,I93)) -> 10.79564053
B81: Rho | D81: =[3]!rho_(11,D79,D80) -> 122.3393338 | F81: =[3]!rho_(11,F79,F80) -> 92.38543687 | G81: =[3]!rho_(11,G79,G80) -> 101.5881159 | H81: =[3]!rho_(11,H79,H80) -> 99.5385923 | I81: =[3]!rho_(11,I79,I80) -> 66.47696107
B82: dP | D82: =(D79-D92)*1000 -> 80 | F82: =(F79-F92)*1000 -> 80 | G82: =(G79-G92)*1000 -> 5881 | H82: =(H79-H92)*1000 -> 430 | I82: =(I79-I92)*1000 -> 1770
B83: Cvs | D83: 30 | F83: 30 | G83: 30 | H83: 30 | I83: 30
B84: Range | D84: 250 | F84: 250 | G84: 250 | H84: 250 | I84: 250
B85: Flow | D85: =IF(D79/2>D92,"S","SS") -> SS | F85: =IF(F79/2>F92,"S","SS") -> SS | G85: =IF(G79/2>G92,"S","SS") -> SS | H85: =IF(H79/2>H92,"S","SS") -> SS | I85: =IF(I79/2>I92,"S","SS") -> SS
B86: Cv | D86: =[3]!Cv_Simple(D80,D79,D79-D92,D81,D91,D85) -> 16.8710422 | F86: =[3]!Cv_Simple(F80,F79,F79-F92,F81,F91,F85) -> 17.32203062 | G86: =[3]!Cv_Simple(G80,G79,G79-G92,G81,G91,G85) -> 1.56248068 | H86: =[3]!Cv_Simple(H80,H79,H79-H92,H81,H91,H85) -> 7.429099265 | I86: =[3]!Cv_Simple(I80,I79,I79-I92,I81,I91,I85) -> 3.496172595
B87: Cv | D87: =[3]!cv_gaz(11,D91,D79,D92,D80,0.87) -> 16.8570573 | F87: =[3]!cv_gaz(11,F91,F79,F92,F80,0.7) -> 17.3081667 | G87: =[3]!cv_gaz(11,G91,G79,G92,G80,0.7) -> 1.317714188 | H87: =[3]!cv_gaz(11,H91,H79,H92,H80,0.7) -> 7.375826267 | I87: =[3]!cv_gaz(11,I91,I79,I92,I80,0.7) -> 3.366744706
B88: Trim | D88: =[3]!Trim_From_Cv(D86/D83,D84) -> 0.8957524616 | F88: =[3]!Trim_From_Cv(F87/F83,F84) -> 0.9003852538 | G88: =[3]!Trim_From_Cv(G87/G83,G84) -> 0.4339724815 | H88: =[3]!Trim_From_Cv(H87/H83,H84) -> 0.7459024939 | I88: =[3]!Trim_From_Cv(I87/I83,I84) -> 0.6038637057
B90: TURBINE 3 | F90: =F46 -> 1 | G90: =G46 -> 2 | H90: =H46 -> 3 | I90: =I46 -> 4
B91: m | C91: g/s | D91: 399.8 | F91: =F103*F92/F93^0.5 -> 356.7125449 | G91: =G103*G92/G93^0.5 -> 216.3993487 | H91: =H103*H92/H93^0.5 -> 363.3581933 | I91: =I103*I92/I93^0.5 -> 266.5174105
B92: Pin | C92: Bara | D92: 13.07 | F92: 13.07 | G92: 7.369 | H92: 13.07 | I92: 10.48
B93: Tin | C93: K | D93: 7.292 | F93: 9.16 | G93: 7.912 | H93: 8.828 | I93: 10.55
B94: Pout | C94: Bara | D94: 4.88 | F94: 4.88 | G94: 5.18 | H94: 4.88 | I94: 5.18
B95: Tout | C95: K | D95: =[3]!T2_turb(11,D92,D93,D94,D96) -> 6.11984088 | F95: =[3]!T2_turb(11,F92,F93,F94,F96) -> 6.93952816 | G95: =[3]!T2_turb(11,G92,G93,G94,G96) -> 7.107533505 | H95: =[3]!T2_turb(11,H92,H93,H94,H96) -> 6.770805661 | I95: =[3]!T2_turb(11,I92,I93,I94,I96) -> 8.468961872
B96: Efficacity | C96: % | D96: 0.72 | F96: =(0.321*F117^4-1.6098*F117^3+1.316*F117^2+0.9448*F117)*($D$96/0.97215493) -> 0.7069699109 | G96: 0.7096103841 | H96: 0.7108555918 | I96: 0.6676350281
B97: Power | C97: W | D97: =+D91*(D107-D108) -> 2075.54042 | F97: =+F91*(F107-F108) -> 2562.8612 | G97: =+G91*(G107-G108) -> 505.8456106 | H97: =+H91*(H107-H108) -> 2455.647486 | I97: =+I91*(I107-I108) -> 1848.411208
B98: Speed | C98: Hz | D98: 838 | F98: 899.0323655 | G98: 518.3649656 | H98: 886.3167585 | I98: 798.4158766
B99: Speed calculated from P=K.rho.N^3 | F99: =(F97/$D97*$D100/F100)^(1/3)*$D98 -> 899.0323422 | G99: =(G97/$D97*$D100/G100)^(1/3)*$D98 -> 518.3649482 | H99: =(H97/$D97*$D100/H100)^(1/3)*$D98 -> 886.3167586 | I99: =(I97/$D97*$D100/I100)^(1/3)*$D98 -> 798.4158736
B100: Brake Pressure | D100: 10.1 | F100: =($D100-$D94)+F94 -> 10.1 | G100: =($D100-$D94)+G94 -> 10.4 | H100: =($D100-$D94)+H94 -> 10.1 | I100: =($D100-$D94)+I94 -> 10.4
B101: Rho (brake) | D101: =[3]!rho_(11,D100,330) -> 1.467334205 | F101: =[3]!rho_(11,F100,330) -> 1.467334205 | G101: =[3]!rho_(11,G100,330) -> 1.510733122 | H101: =[3]!rho_(11,H100,330) -> 1.467334205 | I101: =[3]!rho_(11,I100,330) -> 1.510733122
B102: Wheel | C102: mm | D102: 29.5 | F102: =$D$102 -> 29.5 | G102: 29.5 | H102: 29.5 | I102: 29.5
B103: a = mÖT/P | D103: =D91*D93^0.5/D92 -> 82.60199418 | F103: =$D$103 -> 82.60199418 | G103: =$D$103 -> 82.60199418 | H103: 82.60199418 | I103: 82.60199418
B104: Rho (in) | C104: kg/m3 | D104: =[3]!rho_(11,D92,D93) -> 122.041385 | F104: =[3]!rho_(11,F92,F93) -> 92.04202254 | G104: =[3]!rho_(11,G92,G93) -> 70.6496495 | H104: =[3]!rho_(11,H92,H93) -> 97.31015975 | I104: =[3]!rho_(11,I92,I93) -> 58.78998557
B105: Sound Speed | D105: =[3]!Sound_speed(11,D92,D93) -> 249.0567129 | F105: =[3]!Sound_speed(11,F92,F93) -> 219.0353462 | G105: =[3]!Sound_speed(11,G92,G93) -> 170.7864441 | H105: =[3]!Sound_speed(11,H92,H93) -> 221.8649954 | I105: =[3]!Sound_speed(11,I92,I93) -> 204.2669237
B106: S=Q/(rho*V) = cte | D106: =D91/(D104*D105) -> 0.01315338131 | F106: =F91/(F104*F105) -> 0.0176936742 | G106: =G91/(G104*G105) -> 0.01793463496 | H106: =H91/(H104*H105) -> 0.01683014993 | I106: =I91/(I104*I105) -> 0.02219341749
B107: Hin | D107: =[3]!h_(11,D92,D93) -> 28.15088458 | F107: =[3]!h_(11,F92,F93) -> 40.89014045 | G107: =[3]!h_(11,G92,G93) -> 36.81164396 | H107: =[3]!h_(11,H92,H93) -> 38.39568816 | I107: =[3]!h_(11,I92,I93) -> 54.05983231
B108: Hout | D108: =[3]!h_(11,D94,D95) -> 22.9594378 | F108: =[3]!h_(11,F94,F95) -> 33.70547247 | G108: =[3]!h_(11,G94,G95) -> 34.47408789 | H108: =[3]!h_(11,H94,H95) -> 31.63748776 | I108: =[3]!h_(11,I94,I95) -> 47.12440845
B109: Sin = Sout | D109: =[3]!S_(11,D92,D93) -> 5.060004669 | F109: =[3]!S_(11,F92,F93) -> 6.606972814 | G109: =[3]!S_(11,G92,G93) -> 6.945830207 | H109: =[3]!S_(11,H92,H93) -> 6.329612817 | I109: =[3]!S_(11,I92,I93) -> 8.300020451
B110: Tout(iso) | D110: =[1]!HeCalc(2,0,1,D94*10^5,8,D109*1000,1) -> 5.935138784 | F110: =[1]!HeCalc(2,0,1,F94*10^5,8,F109*1000,1) -> 6.699995029 | G110: =[1]!HeCalc(2,0,1,G94*10^5,8,G109*1000,1) -> 7.024181985 | H110: =[1]!HeCalc(2,0,1,H94*10^5,8,H109*1000,1) -> 6.561982995 | I110: =[1]!HeCalc(2,0,1,I94*10^5,8,I109*1000,1) -> 8.048894673
B111: Hout(iso) | D111: =[3]!h_(11,D94,D110) -> 20.94054184 | F111: =[3]!h_(11,F94,F110) -> 30.72751844 | G111: =[3]!h_(11,G94,G110) -> 33.5175038 | H111: =[3]!h_(11,H94,H110) -> 28.88855271 | I111: =[3]!h_(11,I94,I110) -> 43.67178554
B112: ΔHs | D112: =D107-D111 -> 7.210342742 | F112: 10.16262202 | G112: 3.294140164 | H112: 9.507135448 | I112: 10.38804677
B113: u1 | C113: m/s | D113: =(2*52.7%*D112*1000*D96)^0.5 -> 73.97151411 | F113: =PI()*$D$114*F98 -> 79.35893235 | G113: =PI()*$D$114*G98 -> 45.75685127 | H113: 78.23650669 | I113: 70.4773643
B114: D1 | D114: =D113/PI()/D98 -> 0.02809769002
B115: Co = (2*ΔHs)^0,5 | D115: =(2000*D112)^0.5 -> 120.0861586 | F115: 142.5666302 | G115: 81.1682224 | H115: 137.8922438 | I115: 144.1391464
B116: u1/Co | D116: =D113/D115 -> 0.6159870129 | F116: 0.5566445125 | G116: 0.5637286356 | H116: 0.5673742376 | I116: 0.4889536677
B117: U1/C0 off de / U1/C0 nom | D117: =D116/$D$39 -> 0.9784921096 | F117: =F116/$D116 -> 0.9036627412 | G117: 0.9151631834 | H117: 0.9210814932 | I117: 0.7937726892
B118: Rdt | D118: =(0.321*D117^4-1.6098*D117^3+1.316*D117^2+0.9448*D117)*($D96/0.97215493) -> 0.7188436792 | F118: =(0.321*F117^4-1.6098*F117^3+1.316*F117^2+0.9448*F117)*($D96/0.97215493) -> 0.7069699109 | G118: =(0.321*G117^4-1.6098*G117^3+1.316*G117^2+0.9448*G117)*($D96/0.97215493) -> 0.7096103841 | H118: =(0.321*H117^4-1.6098*H117^3+1.316*H117^2+0.9448*H117)*($D96/0.97215493) -> 0.7108555918 | I118: =(0.321*I117^4-1.6098*I117^3+1.316*I117^2+0.9448*I117)*($D96/0.97215493) -> 0.6676350281
A119: ligne_ToBeNull_T3 | B119: Converge brake Power | F119: =F98-F99 -> 2.322195508e-05 | G119: =G98-G99 -> 1.737744071e-05 | H119: =H98-H99 -> -1.424451739e-07 | I119: =I98-I99 -> 2.98160785e-06
A120: ligne_ToChange_T3 | B120: By changing turbine speed
B122: TURBINE 4 | F122: =F78 -> 0 | G122: =G78 -> 0 | H122: =H78 -> 0 | I122: =I78 -> 0
B123: m | C123: g/s | D123: 399.8 | F123: =F135*F124/F125^0.5 -> 356.7125449 | G123: =G135*G124/G125^0.5 -> 216.3993487 | H123: =H135*H124/H125^0.5 -> 363.3581933 | I123: =I135*I124/I125^0.5 -> 266.5174105
B124: Pin | C124: Bara | D124: 13.07 | F124: 13.07 | G124: 7.369 | H124: 13.07 | I124: 10.48
B125: Tin | C125: K | D125: 7.292 | F125: 9.16 | G125: 7.912 | H125: 8.828 | I125: 10.55
B126: Pout | C126: Bara | D126: 4.88 | F126: 4.88 | G126: 5.18 | H126: 4.88 | I126: 5.18
B127: Tout | C127: K | D127: =[3]!T2_turb(11,D124,D125,D126,D128) -> 6.11984088 | F127: =[3]!T2_turb(11,F124,F125,F126,F128) -> 6.93952816 | G127: =[3]!T2_turb(11,G124,G125,G126,G128) -> 7.107533505 | H127: =[3]!T2_turb(11,H124,H125,H126,H128) -> 6.770805661 | I127: =[3]!T2_turb(11,I124,I125,I126,I128) -> 8.468961872
B128: Efficacity | C128: % | D128: 0.72 | F128: =(0.321*F149^4-1.6098*F149^3+1.316*F149^2+0.9448*F149)*($D$96/0.97215493) -> 0.7069699109 | G128: 0.7096103841 | H128: 0.7108555918 | I128: 0.6676350281
B129: Power | C129: W | D129: =+D123*(D139-D140) -> 2075.54042 | F129: =+F123*(F139-F140) -> 2562.8612 | G129: =+G123*(G139-G140) -> 505.8456106 | H129: =+H123*(H139-H140) -> 2455.647486 | I129: =+I123*(I139-I140) -> 1848.411208
B130: Speed | C130: Hz | D130: 838 | F130: 899.0323655 | G130: 518.3649656 | H130: 886.3167585 | I130: 798.4158766
B131: Speed calculated from P=K.rho.N^3 | F131: =(F129/$D129*$D132/F132)^(1/3)*$D130 -> 899.0323422 | G131: =(G129/$D129*$D132/G132)^(1/3)*$D130 -> 518.3649482 | H131: =(H129/$D129*$D132/H132)^(1/3)*$D130 -> 886.3167586 | I131: =(I129/$D129*$D132/I132)^(1/3)*$D130 -> 798.4158736
B132: Brake Pressure | D132: 10.1 | F132: =($D132-$D126)+F126 -> 10.1 | G132: =($D132-$D126)+G126 -> 10.4 | H132: =($D132-$D126)+H126 -> 10.1 | I132: =($D132-$D126)+I126 -> 10.4
B133: Rho (brake) | D133: =[3]!rho_(11,D132,330) -> 1.467334205 | F133: =[3]!rho_(11,F132,330) -> 1.467334205 | G133: =[3]!rho_(11,G132,330) -> 1.510733122 | H133: =[3]!rho_(11,H132,330) -> 1.467334205 | I133: =[3]!rho_(11,I132,330) -> 1.510733122
B134: Wheel | C134: mm | D134: 29.5 | F134: =$D$102 -> 29.5 | G134: 29.5 | H134: 29.5 | I134: 29.5
B135: a = mÖT/P | D135: =D123*D125^0.5/D124 -> 82.60199418 | F135: =$D$103 -> 82.60199418 | G135: =$D$103 -> 82.60199418 | H135: 82.60199418 | I135: 82.60199418
B136: Rho (in) | C136: kg/m3 | D136: =[3]!rho_(11,D124,D125) -> 122.041385 | F136: =[3]!rho_(11,F124,F125) -> 92.04202254 | G136: =[3]!rho_(11,G124,G125) -> 70.6496495 | H136: =[3]!rho_(11,H124,H125) -> 97.31015975 | I136: =[3]!rho_(11,I124,I125) -> 58.78998557
B137: Sound Speed | D137: =[3]!Sound_speed(11,D124,D125) -> 249.0567129 | F137: =[3]!Sound_speed(11,F124,F125) -> 219.0353462 | G137: =[3]!Sound_speed(11,G124,G125) -> 170.7864441 | H137: =[3]!Sound_speed(11,H124,H125) -> 221.8649954 | I137: =[3]!Sound_speed(11,I124,I125) -> 204.2669237
B138: S=Q/(rho*V) = cte | D138: =D123/(D136*D137) -> 0.01315338131 | F138: =F123/(F136*F137) -> 0.0176936742 | G138: =G123/(G136*G137) -> 0.01793463496 | H138: =H123/(H136*H137) -> 0.01683014993 | I138: =I123/(I136*I137) -> 0.02219341749
B139: Hin | D139: =[3]!h_(11,D124,D125) -> 28.15088458 | F139: =[3]!h_(11,F124,F125) -> 40.89014045 | G139: =[3]!h_(11,G124,G125) -> 36.81164396 | H139: =[3]!h_(11,H124,H125) -> 38.39568816 | I139: =[3]!h_(11,I124,I125) -> 54.05983231
B140: Hout | D140: =[3]!h_(11,D126,D127) -> 22.9594378 | F140: =[3]!h_(11,F126,F127) -> 33.70547247 | G140: =[3]!h_(11,G126,G127) -> 34.47408789 | H140: =[3]!h_(11,H126,H127) -> 31.63748776 | I140: =[3]!h_(11,I126,I127) -> 47.12440845
B141: Sin = Sout | D141: =[3]!S_(11,D124,D125) -> 5.060004669 | F141: =[3]!S_(11,F124,F125) -> 6.606972814 | G141: =[3]!S_(11,G124,G125) -> 6.945830207 | H141: =[3]!S_(11,H124,H125) -> 6.329612817 | I141: =[3]!S_(11,I124,I125) -> 8.300020451
B142: Tout(iso) | D142: =[1]!HeCalc(2,0,1,D126*10^5,8,D141*1000,1) -> 5.935138784 | F142: =[1]!HeCalc(2,0,1,F126*10^5,8,F141*1000,1) -> 6.699995029 | G142: =[1]!HeCalc(2,0,1,G126*10^5,8,G141*1000,1) -> 7.024181985 | H142: =[1]!HeCalc(2,0,1,H126*10^5,8,H141*1000,1) -> 6.561982995 | I142: =[1]!HeCalc(2,0,1,I126*10^5,8,I141*1000,1) -> 8.048894673
B143: Hout(iso) | D143: =[3]!h_(11,D126,D142) -> 20.94054184 | F143: =[3]!h_(11,F126,F142) -> 30.72751844 | G143: =[3]!h_(11,G126,G142) -> 33.5175038 | H143: =[3]!h_(11,H126,H142) -> 28.88855271 | I143: =[3]!h_(11,I126,I142) -> 43.67178554
B144: ΔHs | D144: =D139-D143 -> 7.210342742 | F144: =F139-F143 -> 10.16262202 | G144: 3.294140164 | H144: 9.507135448 | I144: 10.38804677
B145: u1 | C145: m/s | D145: =(2*52.7%*D144*1000*D128)^0.5 -> 73.97151411 | F145: =PI()*$D$114*F130 -> 79.35893235 | G145: =PI()*$D$114*G130 -> 45.75685127 | H145: 78.23650669 | I145: 70.4773643
B146: D1 | D146: =D145/PI()/D130 -> 0.02809769002
B147: Co = (2*ΔHs)^0,5 | D147: =(2000*D144)^0.5 -> 120.0861586 | F147: =(2000*F144)^0.5 -> 142.5666302 | G147: 81.1682224 | H147: 137.8922438 | I147: 144.1391464
B148: u1/Co | D148: =D145/D147 -> 0.6159870129 | F148: =F145/F147 -> 0.5566445125 | G148: 0.5637286356 | H148: 0.5673742376 | I148: 0.4889536677
B149: U1/C0 off de / U1/C0 nom | D149: =D148/$D$39 -> 0.9784921096 | F149: =F148/$D148 -> 0.9036627412 | G149: 0.9151631834 | H149: 0.9210814932 | I149: 0.7937726892
B150: Rdt | D150: =(0.321*D149^4-1.6098*D149^3+1.316*D149^2+0.9448*D149)*($D128/0.97215493) -> 0.7188436792 | F150: =(0.321*F149^4-1.6098*F149^3+1.316*F149^2+0.9448*F149)*($D128/0.97215493) -> 0.7069699109 | G150: =(0.321*G149^4-1.6098*G149^3+1.316*G149^2+0.9448*G149)*($D128/0.97215493) -> 0.7096103841 | H150: =(0.321*H149^4-1.6098*H149^3+1.316*H149^2+0.9448*H149)*($D128/0.97215493) -> 0.7108555918 | I150: =(0.321*I149^4-1.6098*I149^3+1.316*I149^2+0.9448*I149)*($D128/0.97215493) -> 0.6676350281
A151: ligne_ToBeNull_T3 | B151: Converge brake Power | F151: =F130-F131 -> 2.322195508e-05 | G151: =G130-G131 -> 1.737744071e-05 | H151: =H130-H131 -> -1.424451739e-07 | I151: =I130-I131 -> 2.98160785e-06
A152: ligne_ToChange_T3 | B152: By changing turbine speed
B154: CV220A
B155: flow | D155: =$D$91-D91 -> 0 | F155: =$D$91-F91 -> 43.08745508 | G155: 183.4006513 | H155: 36.44180665 | I155: 133.2825895
B156: Pin | C156: Bara | D156: 13.5 | F156: 13.5 | G156: 13.5 | H156: 13.5 | I156: 13.5
B157: Tin | C157: K | D157: 100 | F157: 100 | G157: 100 | H157: 100 | I157: 100
B158: Rho | D158: =[3]!rho_(11,D156,D157) -> 6.373331124 | F158: =[3]!rho_(11,F156,F157) -> 6.373331124 | G158: =[3]!rho_(11,G156,G157) -> 6.373331124 | H158: =[3]!rho_(11,H156,H157) -> 6.373331124 | I158: =[3]!rho_(11,I156,I157) -> 6.373331124
B159: Pout | D159: =1.15 -> 1.15 | F159: =1.15 -> 1.15 | G159: 1.15 | H159: 1.15 | I159: 1.15
B160: Cvs | D160: 35 | F160: 35 | G160: 35 | H160: 35 | I160: 35
B161: Range | D161: 100 | F161: 100 | G161: 100 | H161: 100 | I161: 100
B162: Flow | D162: =IF(D156/2>D159,"S","SS") -> S | F162: =IF(F156/2>F159,"S","SS") -> S | G162: S | H162: S | I162: S
B163: Cv | D163: =[3]!Cv_Simple(D157,D156,D159/1000,D158,D155,D162) -> 0 | E163: =[3]!Cv_Simple(E157,E156,E159/1000,E158,E155,E162) -> 0 | F163: =[3]!Cv_Simple(F157,F156,F159/1000,F158,F155,F162) -> 0.9856751729 | G163: =[3]!Cv_Simple(G157,G156,G159/1000,G158,G155,G162) -> 4.19550118 | H163: =[3]!Cv_Simple(H157,H156,H159/1000,H158,H155,H162) -> 0.8336483091 | I163: =[3]!Cv_Simple(I157,I156,I159/1000,I158,I155,I162) -> 3.048992779
B164: Trim | D164: =IF(D163=0,0,[3]!Trim_From_Cv(D163/D160,D161)) -> 0 | F164: =IF(F163=0,0,[3]!Trim_From_Cv(F163/F160,F161)) -> 0.2248328867 | G164: =IF(G163=0,0,[3]!Trim_From_Cv(G163/G160,G161)) -> 0.5393579016 | H164: =IF(H163=0,0,[3]!Trim_From_Cv(H163/H160,H161)) -> 0.1884574146 | I164: =IF(I163=0,0,[3]!Trim_From_Cv(I163/I160,I161)) -> 0.4700441758
B165: Tout | D165: =[3]!T_P_H_(11,D83,[3]!h_(11,D156,D157)) -> 99.10840613 | F165: =[3]!T_P_H_(11,F83,[3]!h_(11,F156,F157)) -> 99.10840613 | G165: =[3]!T_P_H_(11,G83,[3]!h_(11,G156,G157)) -> 99.10840613 | H165: =[3]!T_P_H_(11,H83,[3]!h_(11,H156,H157)) -> 99.10840613 | I165: =[3]!T_P_H_(11,I83,[3]!h_(11,I156,I157)) -> 99.10840613
B166: delta T | D166: =D165-D83 -> 69.10840613 | F166: =F165-F83 -> 69.10840613 | G166: =G165-G83 -> 69.10840613 | H166: =H165-H83 -> 69.10840613 | I166: =I165-I83 -> 69.10840613
B167: CV335
B168: Pin | C168: Bara | D168: =D79 -> 13.15 | F168: =F79 -> 13.15 | G168: 13.25 | H168: 13.5 | I168: 12.25
B169: Tin | C169: K | D169: =D80 -> 7.290663568 | F169: 9.166149668 | G169: 8.622314625 | H169: 8.828 | I169: 10.79564053
B170: Rho | D170: =[3]!rho_(11,D168,D169) -> 122.3393338 | F170: =[3]!rho_(11,F168,F169) -> 92.38543687 | G170: =[3]!rho_(11,G168,G169) -> 101.5881159 | H170: =[3]!rho_(11,H168,H169) -> 99.5385923 | I170: =[3]!rho_(11,I168,I169) -> 66.47696107
B171: dP | D171: =(D168-D94)*1000 -> 8270 | F171: =(F168-F94)*1000 -> 8270 | G171: =(G168-G94)*1000 -> 8070 | H171: =(H168-H94)*1000 -> 8620 | I171: =(I168-I94)*1000 -> 7070
B172: Cvs | D172: 5 | F172: =$D$172 -> 5 | G172: =$D$172 -> 5 | H172: 5 | I172: 5
B173: Range | D173: 250 | F173: =$D$173 -> 250 | G173: =$D$173 -> 250 | H173: 250 | I173: 250
B174: Flow | D174: =IF(D168/2>D94,"S","SS") -> S | F174: =IF(F168/2>F94,"S","SS") -> S | G174: =IF(G168/2>G94,"S","SS") -> S | H174: =IF(H168/2>H94,"S","SS") -> S | I174: =IF(I168/2>I94,"S","SS") -> S
B175: Cv | D175: =[3]!Cv_Simple(D169,D168,D171/1000,D170,D91,D174) -> 2.115095383 | F175: =[3]!Cv_Simple(F169,F168,F171/1000,F170,F91,F174) -> 2.171635076 | G175: =[3]!Cv_Simple(G169,G168,G171/1000,G170,G91,G174) -> 1.251583004 | H175: =[3]!Cv_Simple(H169,H168,H171/1000,H170,H91,H174) -> 2.103320359 | I175: =[3]!Cv_Simple(I169,I168,I171/1000,I170,I91,I174) -> 1.981778267
B176: Trim | D176: =[3]!Trim_From_Cv(D175/D172,D173) -> 0.8441829046 | F176: =[3]!Trim_From_Cv(F175/F172,F173) -> 0.8489607099 | G176: =[3]!Trim_From_Cv(G175/G172,G173) -> 0.7491553812 | H176: =[3]!Trim_From_Cv(H175/H172,H173) -> 0.8431718152 | I176: =[3]!Trim_From_Cv(I175/I172,I173) -> 0.8323915771
B177: Tout | D177: =[3]!T_P_H_(11,D94,[3]!h_(11,D168,D169)) -> 6.508068711 | F177: =[3]!T_P_H_(11,F94,[3]!h_(11,F168,F169)) -> 7.630998962 | G177: =[3]!T_P_H_(11,G94,[3]!h_(11,G168,G169)) -> 7.321964339 | H177: =[3]!T_P_H_(11,H94,[3]!h_(11,H168,H169)) -> 7.351906498 | I177: =[3]!T_P_H_(11,I94,[3]!h_(11,I168,I169)) -> 9.403837193
B178: delta T | D178: =D177-D94 -> 1.628068711 | F178: =F177-F94 -> 2.750998962 | G178: =G177-G94 -> 2.141964339 | H178: =H177-H94 -> 2.471906498 | I178: =I177-I94 -> 4.223837193
B184: Courbe de rendement TC3
E188: d : mm
E189: N : Hz
E190: H : J/kG
B196: rendement=(0,321*rap^4 - 1,6098*rap^3 + 1,316*rap^2 + 0,9448*rap)*(ETAgar/0,97) | I196: U1/CO _nom | J196: 0.64
I197: Eta_gar | J197: 0.8
C198: T1 | D198: T2 | E198: T3
B199: U1/C0 | C199: =D17 -> 0.752 | D199: =D52 -> 0.74 | E199: =D96 -> 0.72
B200: 0 | C200: =(0.321*B200^4-1.6098*B200^3+1.316*B200^2+0.9448*B200)*$D$17/0.97215493 -> 0
B201: =B200+0.05 -> 0.05 | C201: =(0.321*$B201^4-1.6098*$B201^3+1.316*$B201^2+0.9448*$B201)*$C$199/0.97215493 -> 0.03893283502 | D201: =(0.321*$B201^4-1.6098*$B201^3+1.316*$B201^2+0.9448*$B201)*$D$199/0.97215493 -> 0.03831156637 | E201: =(0.321*$B201^4-1.6098*$B201^3+1.316*$B201^2+0.9448*$B201)*$E$199/0.97215493 -> 0.03727611863
B202: 0.1 | C202: =(0.321*$B202^4-1.6098*$B202^3+1.316*$B202^2+0.9448*$B202)*$C$199/0.97215493 -> 0.08204335249 | D202: =(0.321*$B202^4-1.6098*$B202^3+1.316*$B202^2+0.9448*$B202)*$D$199/0.97215493 -> 0.08073415006 | E202: =(0.321*$B202^4-1.6098*$B202^3+1.316*$B202^2+0.9448*$B202)*$E$199/0.97215493 -> 0.078552146
B203: 0.15 | C203: 0.1284534887 | D203: 0.126403699 | E203: 0.1229873828
B204: 0.2 | C204: 0.1773224258 | D204: 0.1744928126 | E204: 0.1697767906
B205: 0.25 | C205: 0.2278465918 | D205: 0.2242107419 | E205: 0.2181509921
B206: 0.3 | C206: 0.2792596608 | D206: 0.2748033896 | E206: 0.267376271
B207: 0.35 | C207: 0.3308325527 | D207: 0.3255533098 | E207: 0.3167545717
B208: 0.4 | C208: 0.3818734333 | D208: 0.3757797083 | E208: 0.3656234999
B209: 0.45 | C209: 0.4317277143 | D209: 0.4248384423 | E209: 0.4133563222
B210: 0.5 | C210: 0.4797780535 | D210: 0.4721220207 | E210: 0.4593619661
B211: 0.55 | C211: 0.5254443543 | D211: 0.517059604 | E211: 0.5030850201
B212: 0.6 | C212: 0.5681837663 | D212: 0.5591170041 | E212: 0.5440057337
B213: 0.65 | C213: 0.6074906849 | D213: 0.5977966847 | E213: 0.5816400175
B214: 0.7 | C214: 0.6428967514 | D214: 0.6326377607 | E214: 0.6155394429
B215: 0.75 | C215: 0.6739708531 | D215: 0.663215999 | E215: 0.6452912423
B216: 0.8 | C216: 0.700319123 | D216: 0.6891438178 | E216: 0.6705183093
B217: 0.85 | C217: 0.7215849403 | D217: 0.710070287 | E217: 0.6908791981
B218: 0.9 | C218: 0.7374489299 | D218: 0.7256811278 | E218: 0.7060681243
B219: 0.95 | C219: 0.7476289627 | D219: 0.7356987133 | E219: 0.7158149643
B220: 1 | C220: 0.7518801556 | D220: 0.739882068 | E220: 0.7198852553
B221: 1.05 | C221: 0.7499948712 | D221: 0.7380268679 | E221: 0.7180801958
B222: 1.1 | C222: 0.7418027182 | D222: 0.7299654408 | E222: 0.7102366451
B223: 1.15 | C223: 0.7271705512 | D223: 0.7155667658 | E223: 0.6962271235
B224: 1.2 | C224: 0.7060024706 | D224: 0.6947364737 | E224: 0.6759598123
... 10 more rows

Sheet Turbines_JT60SA_serial_indep
E5: Vitesse de la roue ajustée en fonction de la puissance du frein | L5: =D65*0.3 -> 448.8
A7: 1 | B7: 2 | C7: 3 | D7: 4 | E7: 5 | F7: 6 | G7: 7 | H7: 8 | I7: 9 | J7: 10 | K7: 11 | L7: 12 | M7: 13 | N7: 14 | O7: 15 | P7: 16 | Q7: 17 | R7: 18 | S7: 19 | T7: 20 | U7: 21 | V7: 22 | W7: 23 | X7: 24 | Y7: 25 | Z7: 26 | AA7: 27 | AB7: 28 | AC7: 29 | AD7: 30 | AE7: 31 | AF7: 32 | AG7: 33
B8: Relation entre la puissance et la vitesse de rotation | M8: ²
B10: Cvs | D10: 30 | H10: 30
B11: Range | D11: 100 | H11: 100
B12: Trim | D12: 0.85 | H12: 0.85
B13: Cv | D13: =[3]!Cv_From_Trim(D12,D11)*D10 -> 15.03561701 | H13: =[3]!Cv_From_Trim(H12,H11)*H10 -> 15.03561701
B14: Pin | C14: Bara | D14: 15 | H14: 15
B15: Tin | C15: K | D15: 40.03 | H15: =H25 -> 80
B16: Rho | D16: =[3]!rho_(11,D14,D15) -> 17.343207 | H16: =[3]!rho_(11,H14,H15) -> 8.791512513
B17: Flow | D17: =IF(D14/2>D24,"S","SS") -> SS | H17: =IF(H14/2>H24,"S","SS") -> SS
B18: m | C18: g/s | D18: =[3]!q_gs(D15,D14,(D14-D24),D16,D13,D17) -> 226.4083326 | H18: =[3]!q_gs(H15,H14,(H14-H24),H16,H13,H17) -> 425.3617266
B19: TURBINE 1
J20: 14D | L20: 16D
D21: DESIGN | H21: start-up | I21: start-up | J21: start-up | K21: start-up | L21: start-up | M21: start-up | N21: start-up | O21: start-up | P21: start-up | Q21: start-up
B23: m | C23: g/s | D23: 191.5 | H23: =H36*H24/H25^0.5 -> 121.1477458 | I23: =I36*I24/I25^0.5 -> 124.9328896 | J23: 129.1084311 | K23: 133.7444771 | L23: 138.9297401 | M23: 144.7783268 | N23: 151.439801 | O23: 159.1145629 | P23: 168.0782154 | Q23: 178.7218671 | R23: 180.1964547 | S23: 181.707309 | T23: 183.2558967 | U23: 184.8437678 | V23: 186.4725622 | W23: 188.1440161 | X23: 189.8599699 | Y23: 191.6223754
B24: Pin | C24: Bara | D24: 14.77 | H24: 13.20928325 | I24: 13.27707789 | J24: 13.35487336 | K24: 13.44464178 | L24: 13.54890296 | M24: 13.67093128 | N24: 13.81506605 | O24: 13.98719159 | P24: 14.19550898 | Q24: 14.45183362 | R24: 14.48804521 | S24: 14.52531457 | T24: 14.56368728 | U24: 14.60321165 | V24: 14.64393891 | W24: 14.68592346 | X24: 14.72922313 | Y24: 14.77389939
B25: Tin | C25: K | D25: 40.03 | H25: 80 | I25: =H25-4 -> 76 | J25: =I25-4 -> 72 | K25: 68 | L25: 64 | M25: 60 | N25: 56 | O25: 52 | P25: 48 | Q25: 44 | R25: =Q25-0.5 -> 43.5 | S25: =R25-0.5 -> 43 | T25: 42.5 | U25: 42 | V25: 41.5 | W25: 41 | X25: 40.5 | Y25: 40
B26: Pout | C26: Bara | D26: 6.36 | H26: 6.36 | I26: 6.36 | J26: 6.36 | K26: 6.36 | L26: 6.36 | M26: 6.36 | N26: 6.36 | O26: 6.36 | P26: 6.36 | Q26: 6.36 | R26: 6.36 | S26: 6.36 | T26: 6.36 | U26: 6.36 | V26: 6.36 | W26: 6.36 | X26: 6.36 | Y26: 6.36
B27: Tout | C27: K | D27: =[3]!T2_turb(11,D24,D25,D26,D28) -> 31.09458691 | H27: =[3]!T2_turb(11,H24,H25,H26,H28) -> 65.88134842 | I27: =[3]!T2_turb(11,I24,I25,I26,I28) -> 62.31655452 | J27: =[3]!T2_turb(11,J24,J25,J26,J28) -> 58.76629612 | K27: =[3]!T2_turb(11,K24,K25,K26,K28) -> 55.23178912 | L27: =[3]!T2_turb(11,L24,L25,L26,L28) -> 51.7144008 | M27: =[3]!T2_turb(11,M24,M25,M26,M28) -> 48.21567116 | N27: =[3]!T2_turb(11,N24,N25,N26,N28) -> 44.7373347 | O27: =[3]!T2_turb(11,O24,O25,O26,O28) -> 41.2813401 | P27: =[3]!T2_turb(11,P24,P25,P26,P28) -> 37.84986044 | Q27: =[3]!T2_turb(11,Q24,Q25,Q26,Q28) -> 34.44527837 | R27: =[3]!T2_turb(11,R24,R25,R26,R28) -> 34.02172177 | S27: =[3]!T2_turb(11,S24,S25,S26,S28) -> 33.59862982 | T27: =[3]!T2_turb(11,T24,T25,T26,T28) -> 33.17600748 | U27: =[3]!T2_turb(11,U24,U25,U26,U28) -> 32.75385972 | V27: =[3]!T2_turb(11,V24,V25,V26,V28) -> 32.33219142 | W27: =[3]!T2_turb(11,W24,W25,W26,W28) -> 31.91100744 | X27: =[3]!T2_turb(11,X24,X25,X26,X28) -> 31.49031254 | Y27: =[3]!T2_turb(11,Y24,Y25,Y26,Y28) -> 31.07011142
B28: Efficacity | C28: % | D28: 0.78 | H28: =(0.321*H50^4-1.6098*H50^3+1.316*H50^2+0.9448*H50)*($D$28/0.97215493) -> 0.7016603404 | I28: =(0.321*I50^4-1.6098*I50^3+1.316*I50^2+0.9448*I50)*($D$28/0.97215493) -> 0.7113559179 | J28: 0.7210622264 | K28: 0.7306998526 | L28: 0.7401614802 | M28: 0.7493017824 | N28: 0.7579229527 | O28: 0.7657535489 | P28: 0.772416747 | Q28: 0.7773811805 | R28: 0.7778474806 | S28: 0.7782739233 | T28: 0.7786586033 | U28: 0.7789995185 | V28: 0.7792945642 | W28: 0.7795415264 | X28: 0.7797380749 | Y28: 0.7798817559
B29: Power | C29: W | D29: =+D23*(D40-D41) -> 9122.443616 | H29: =+H23*(H40-H41) -> 9122.443613 | I29: 9122.443627 | J29: 9122.443621 | K29: 9122.443606 | L29: 9122.443614 | M29: 9122.443612 | N29: 9122.443614 | O29: 9122.443624 | P29: 9122.443609 | Q29: 9122.443614 | R29: 9122.443615 | S29: 9122.443615 | T29: 9122.443625 | U29: 9122.44362 | V29: 9122.443617 | W29: 9122.443605 | X29: 9122.443615 | Y29: 9122.443616
B30: Speed | C30: Hz | D30: 1995 | H30: 1995 | I30: 1995 | J30: 1995 | K30: 1995 | L30: 1995 | M30: 1995 | N30: 1995 | O30: 1995 | P30: 1995 | Q30: 1995 | R30: 1995 | S30: 1995 | T30: 1995 | U30: 1995 | V30: 1995 | W30: 1995 | X30: 1995 | Y30: 1995
B31: Speed calculated from P=K.rho.N^3 | H31: =(H29/$D29*$D33/H33)^(1/3)*$D30 -> 1995 | I31: =(I29/$D29*$D33/I33)^(1/3)*$D30 -> 1995.000001 | J31: 1995 | K31: 1994.999999 | L31: 1995 | M31: 1995 | N31: 1995 | O31: 1995.000001 | P31: 1994.999999 | Q31: 1995 | R31: 1995 | S31: 1995 | T31: 1995.000001 | U31: 1995 | V31: 1995 | W31: 1994.999999 | X31: 1995 | Y31: 1995
B32: Delta Speed Frein & Turbine | D32: =D26-D33 -> 1.16 | H32: =H30-H31 -> 2.221886461e-07 | I32: =I30-I31 -> -7.984235708e-07 | J32: -3.944408036e-07 | K32: 7.035826002e-07 | L32: 1.705052455e-07 | M32: 2.71107865e-07 | N32: 1.702110239e-07 | O32: -5.41625468e-07 | P32: 5.149977369e-07 | Q32: 1.687535587e-07 | R32: 1.010844244e-07 | S32: 5.122114999e-08 | T32: -6.56435077e-07 | U32: -2.561225756e-07 | V32: -7.007179192e-08 | W32: 7.791645658e-07 | X32: 4.669777809e-08 | Y32: -2.098886398e-09
B33: Brake Pressure | D33: 5.2 | H33: =($D33-$D26)+H26 -> 5.2 | I33: =($D33-$D26)+I26 -> 5.2 | J33: 5.2 | K33: 5.2 | L33: 5.2 | M33: 5.2 | N33: 5.2 | O33: 5.2 | P33: 5.2 | Q33: 5.2 | R33: 5.2 | S33: 5.2 | T33: 5.2 | U33: 5.2 | V33: 5.2 | W33: 5.2 | X33: 5.2 | Y33: 5.2
B34: Rho (brake) | D34: =[3]!rho_(11,D33,330) -> 0.7569746494 | H34: =[3]!rho_(11,H33,330) -> 0.7569746494 | I34: =[3]!rho_(11,I33,330) -> 0.7569746494 | J34: =[3]!rho_(11,J33,330) -> 0.7569746494 | K34: =[3]!rho_(11,K33,330) -> 0.7569746494 | L34: =[3]!rho_(11,L33,330) -> 0.7569746494 | M34: =[3]!rho_(11,M33,330) -> 0.7569746494 | N34: =[3]!rho_(11,N33,330) -> 0.7569746494 | O34: =[3]!rho_(11,O33,330) -> 0.7569746494 | P34: =[3]!rho_(11,P33,330) -> 0.7569746494 | Q34: =[3]!rho_(11,Q33,330) -> 0.7569746494 | R34: =[3]!rho_(11,R33,330) -> 0.7569746494 | S34: =[3]!rho_(11,S33,330) -> 0.7569746494 | T34: =[3]!rho_(11,T33,330) -> 0.7569746494 | U34: =[3]!rho_(11,U33,330) -> 0.7569746494 | V34: =[3]!rho_(11,V33,330) -> 0.7569746494 | W34: =[3]!rho_(11,W33,330) -> 0.7569746494 | X34: =[3]!rho_(11,X33,330) -> 0.7569746494 | Y34: =[3]!rho_(11,Y33,330) -> 0.7569746494
B35: Wheel | C35: mm | D35: 35.8 | H35: =$D$35 -> 35.8 | I35: =$D$35 -> 35.8 | J35: 35.8 | K35: 35.8 | L35: 35.8 | M35: 35.8 | N35: 35.8 | O35: 35.8 | P35: 35.8 | Q35: 35.8 | R35: 35.8 | S35: 35.8 | T35: 35.8 | U35: 35.8 | V35: 35.8 | W35: 35.8 | X35: 35.8 | Y35: 35.8
B36: a = mÖT/P | D36: =D23*D25^0.5/D24 -> 82.03158029 | H36: =+$D$36 -> 82.03158029 | I36: =+$D$36 -> 82.03158029 | J36: 82.03158029 | K36: 82.03158029 | L36: 82.03158029 | M36: 82.03158029 | N36: 82.03158029 | O36: 82.03158029 | P36: 82.03158029 | Q36: 82.03158029 | R36: 82.03158029 | S36: 82.03158029 | T36: 82.03158029 | U36: 82.03158029 | V36: 82.03158029 | W36: 82.03158029 | X36: 82.03158029 | Y36: 82.03158029 | AK36: T1 out | AL36: 63 | AM36: 31 | AN36: x
B37: Rho (in) | C37: kg/m3 | D37: =[3]!rho_(11,D24,D25) -> 17.08767254 | H37: =[3]!rho_(11,H24,H25) -> 7.766060551 | I37: =[3]!rho_(11,I24,I25) -> 8.207557682 | J37: =[3]!rho_(11,J24,J25) -> 8.703741691 | K37: =[3]!rho_(11,K24,K25) -> 9.265512052 | L37: =[3]!rho_(11,L24,L25) -> 9.906885661 | M37: =[3]!rho_(11,M24,M25) -> 10.64620465 | N37: =[3]!rho_(11,N24,N25) -> 11.50795776 | O37: =[3]!rho_(11,O24,O25) -> 12.52561569 | P37: =[3]!rho_(11,P24,P25) -> 13.7462135 | Q37: =[3]!rho_(11,Q24,Q25) -> 15.23809529 | R37: =[3]!rho_(11,R24,R25) -> 15.44828606 | S37: =[3]!rho_(11,S24,S25) -> 15.66451001 | T37: =[3]!rho_(11,T24,T25) -> 15.88703449 | U37: =[3]!rho_(11,U24,U25) -> 16.11614302 | V37: =[3]!rho_(11,V24,V25) -> 16.3521367 | W37: =[3]!rho_(11,W24,W25) -> 16.59533549 | X37: =[3]!rho_(11,X24,X25) -> 16.8460798 | Y37: =[3]!rho_(11,Y24,Y25) -> 17.10473212 | AK37: T2 in | AL37: 62 | AM37: 18 | AN37: y
B38: Sound Speed @inlet | D38: =[3]!Sound_speed(11,D24,D25) -> 391.2334217 | H38: =[3]!Sound_speed(11,H24,H25) -> 538.9147617 | I38: =[3]!Sound_speed(11,I24,I25) -> 525.9913549 | J38: =[3]!Sound_speed(11,J24,J25) -> 512.7453384 | K38: =[3]!Sound_speed(11,K24,K25) -> 499.1510863 | L38: =[3]!Sound_speed(11,L24,L25) -> 485.1793657 | M38: =[3]!Sound_speed(11,M24,M25) -> 470.7965985 | N38: =[3]!Sound_speed(11,N24,N25) -> 455.9639364 | O38: =[3]!Sound_speed(11,O24,O25) -> 440.6361149 | P38: =[3]!Sound_speed(11,P24,P25) -> 424.7600747 | Q38: =[3]!Sound_speed(11,Q24,Q25) -> 408.2734552 | R38: =[3]!Sound_speed(11,R24,R25) -> 406.166186 | S38: =[3]!Sound_speed(11,S24,S25) -> 404.048098 | T38: =[3]!Sound_speed(11,T24,T25) -> 401.9190346 | U38: =[3]!Sound_speed(11,U24,U25) -> 399.7788367 | V38: =[3]!Sound_speed(11,V24,V25) -> 397.6273432 | W38: =[3]!Sound_speed(11,W24,W25) -> 395.4643906 | X38: =[3]!Sound_speed(11,X24,X25) -> 393.2898137 | Y38: =[3]!Sound_speed(11,Y24,Y25) -> 391.1034458 | AK38: slope | AL38: =SLOPE(AL37:AM37,AL36:AM36) -> 1.375
B39: S=Q/(rho*V) = cte | D39: =D23/(D37*D38) -> 0.02864507195 | H39: =H23/(H37*H38) -> 0.0289463951 | I39: =I23/(I37*I38) -> 0.02893904766 | J39: 0.02892989714 | K39: 0.02891841002 | L39: 0.02890385369 | M39: 0.02888520317 | N39: 0.02886099348 | O39: 0.02882907832 | P39: 0.02878622096 | Q39: 0.0287273697 | R39: 0.02871852791 | S39: 0.02870929417 | T39: 0.02869964635 | U39: 0.02868956079 | V39: 0.02867901213 | W39: 0.02866797321 | X39: 0.02865641485 | Y39: 0.02864430571 | AK39: intercept | AL39: =INTERCEPT(AL37:AM37,AL36:AM36) -> -24.625
B40: Hin | D40: =[3]!h_(11,D24,D25) -> 223.5710661 | H40: =[3]!h_(11,H24,H25) -> 434.0074384 | I40: =[3]!h_(11,I24,I25) -> 413.118502 | J40: =[3]!h_(11,J24,J25) -> 392.211036 | K40: =[3]!h_(11,K24,K25) -> 371.2811154 | L40: =[3]!h_(11,L24,L25) -> 350.3236939 | M40: =[3]!h_(11,M24,M25) -> 329.332185 | N40: =[3]!h_(11,N24,N25) -> 308.2978417 | O40: =[3]!h_(11,O24,O25) -> 287.2088131 | P40: =[3]!h_(11,P24,P25) -> 266.0486638 | Q40: =[3]!h_(11,Q24,Q25) -> 244.793959 | R40: =[3]!h_(11,R24,R25) -> 242.128913 | S40: =[3]!h_(11,S24,S25) -> 239.4617892 | T40: =[3]!h_(11,T24,T25) -> 236.7925001 | U40: =[3]!h_(11,U24,U25) -> 234.120953 | V40: =[3]!h_(11,V24,V25) -> 231.4470502 | W40: =[3]!h_(11,W24,W25) -> 228.7706881 | X40: =[3]!h_(11,X24,X25) -> 226.0917575 | Y40: =[3]!h_(11,Y24,Y25) -> 223.4101423 | AK40: x | AL40: y
B41: Hout | D41: =[3]!h_(11,D26,D27) -> 175.9342849 | H41: =[3]!h_(11,H26,H27) -> 358.7072869 | I41: =[3]!h_(11,I26,I27) -> 340.0997504 | J41: =[3]!h_(11,J26,J27) -> 321.5538098 | K41: =[3]!h_(11,K26,K27) -> 303.0731131 | L41: =[3]!h_(11,L26,L27) -> 284.6614131 | M41: =[3]!h_(11,M26,M27) -> 266.3224527 | N41: =[3]!h_(11,N26,N27) -> 248.0597566 | O41: =[3]!h_(11,O26,O27) -> 229.8762631 | P41: =[3]!h_(11,P26,P27) -> 211.773673 | Q41: =[3]!h_(11,Q26,Q27) -> 193.7512759 | R41: =[3]!h_(11,R26,R27) -> 191.5039235 | S41: =[3]!h_(11,S26,S27) -> 189.2577349 | T41: =[3]!h_(11,T26,T27) -> 187.0126906 | U41: =[3]!h_(11,U26,U27) -> 184.7687691 | V41: =[3]!h_(11,V26,V27) -> 182.5259461 | W41: =[3]!h_(11,W26,W27) -> 180.2841947 | X41: =[3]!h_(11,X26,X27) -> 178.0434847 | Y41: =[3]!h_(11,Y26,Y27) -> 175.8037831 | AK41: 277 | AL41: =m*AK41+p -> 356.25
B42: Sin = Sout | D42: =[3]!S_(11,D24,D25) -> 15.48824406 | H42: =[3]!S_(11,H24,H25) -> 19.37861866 | I42: =[3]!S_(11,I24,I25) -> 19.09986189 | J42: =[3]!S_(11,J24,J25) -> 18.80481557 | K42: =[3]!S_(11,K24,K25) -> 18.4914474 | L42: =[3]!S_(11,L24,L25) -> 18.15731518 | M42: =[3]!S_(11,M24,M25) -> 17.79944679 | N42: =[3]!S_(11,N24,N25) -> 17.4141721 | O42: =[3]!S_(11,O24,O25) -> 16.99688094 | P42: =[3]!S_(11,P24,P25) -> 16.5416638 | Q42: =[3]!S_(11,Q24,Q25) -> 16.04075779 | R42: =[3]!S_(11,R24,R25) -> 15.97444699 | S42: =[3]!S_(11,S24,S25) -> 15.90723911 | T42: =[3]!S_(11,T24,T25) -> 15.83910881 | U42: =[3]!S_(11,U24,U25) -> 15.77002966 | V42: =[3]!S_(11,V24,V25) -> 15.69997403 | W42: =[3]!S_(11,W24,W25) -> 15.62891302 | X42: =[3]!S_(11,X24,X25) -> 15.55681639 | Y42: =[3]!S_(11,Y24,Y25) -> 15.48365247 | AK42: 31 | AL42: =m*AK42+p -> 18
B43: Tout(iso) | D43: =[1]!HeCalc(2,0,1,D26*10^5,8,D42*1000,1) -> 28.58076886 | H43: =[1]!HeCalc(2,0,1,H26*10^5,8,H42*1000,1) -> 59.74928202 | I43: =[1]!HeCalc(2,0,1,I26*10^5,8,I42*1000,1) -> 56.64627533 | J43: =[1]!HeCalc(2,0,1,J26*10^5,8,J42*1000,1) -> 53.54005283 | K43: =[1]!HeCalc(2,0,1,K26*10^5,8,K42*1000,1) -> 50.43051964 | L43: =[1]!HeCalc(2,0,1,L26*10^5,8,L42*1000,1) -> 47.31756698 | M43: =[1]!HeCalc(2,0,1,M26*10^5,8,M42*1000,1) -> 44.20106403 | N43: =[1]!HeCalc(2,0,1,N26*10^5,8,N42*1000,1) -> 41.08084407 | O43: =[1]!HeCalc(2,0,1,O26*10^5,8,O42*1000,1) -> 37.95668112 | P43: =[1]!HeCalc(2,0,1,P26*10^5,8,P42*1000,1) -> 34.82824953 | Q43: =[1]!HeCalc(2,0,1,Q26*10^5,8,Q42*1000,1) -> 31.69505243 | R43: =[1]!HeCalc(2,0,1,R26*10^5,8,R42*1000,1) -> 31.30303258 | S43: =[1]!HeCalc(2,0,1,S26*10^5,8,S42*1000,1) -> 30.91092448 | T43: =[1]!HeCalc(2,0,1,T26*10^5,8,T42*1000,1) -> 30.51872597 | U43: =[1]!HeCalc(2,0,1,U26*10^5,8,U42*1000,1) -> 30.12643482 | V43: =[1]!HeCalc(2,0,1,V26*10^5,8,V42*1000,1) -> 29.73404857 | W43: =[1]!HeCalc(2,0,1,W26*10^5,8,W42*1000,1) -> 29.34156463 | X43: =[1]!HeCalc(2,0,1,X26*10^5,8,X42*1000,1) -> 28.94898021 | Y43: =[1]!HeCalc(2,0,1,Y26*10^5,8,Y42*1000,1) -> 28.55629235 | AK43: 31 | AL43: =m*AK43+p -> 18
B44: Hout(iso) | D44: =[3]!h_(11,D26,D43) -> 162.4982696 | H44: =[3]!h_(11,H26,H43) -> 326.6903404 | I44: =[3]!h_(11,I26,I43) -> 310.4712199 | J44: =[3]!h_(11,J26,J43) -> 294.2205664 | K44: =[3]!h_(11,K26,K43) -> 277.9349869 | L44: =[3]!h_(11,L26,L43) -> 261.6102407 | M44: =[3]!h_(11,M26,M43) -> 245.2409233 | N44: =[3]!h_(11,N26,N43) -> 228.8199939 | O44: =[3]!h_(11,O26,O43) -> 212.3380534 | P44: =[3]!h_(11,P26,P43) -> 195.7822033 | Q44: =[3]!h_(11,Q26,Q43) -> 179.1341716 | R44: =[3]!h_(11,R26,R43) -> 177.0454735 | S44: =[3]!h_(11,S26,S43) -> 174.9548684 | T44: =[3]!h_(11,T26,T43) -> 172.8622882 | U44: =[3]!h_(11,U26,U43) -> 170.7676611 | V44: =[3]!h_(11,V26,V43) -> 168.670911 | W44: =[3]!h_(11,W26,W43) -> 166.5719574 | X44: =[3]!h_(11,X26,X43) -> 164.4707154 | Y44: =[3]!h_(11,Y26,Y43) -> 162.3670947
B45: ΔHs | D45: =D40-D44 -> 61.07279652 | H45: 107.317098 | I45: 102.6472821 | J45: 97.99046961 | K45: 93.34612853 | L45: 88.71345324 | M45: 84.09126172 | N45: 79.47784778 | O45: 74.8707597 | P45: 70.26646057 | Q45: 65.65978739 | R45: 65.08343949 | S45: 64.50692082 | T45: 63.93021187 | U45: 63.35329191 | V45: 62.77613921 | W45: 62.19873069 | X45: 61.6210421 | Y45: 61.04304755
B46: u1 | C46: m/s | D46: =(2*52.7%*D45*1000*D28)^0.5 -> 224.0740223 | H46: =PI()*$D$47*H30 -> 224.0740223 | I46: =PI()*$D$47*I30 -> 224.0740223 | J46: 224.0740223 | K46: 224.0740223 | L46: 224.0740223 | M46: 224.0740223 | N46: 224.0740223 | O46: 224.0740223 | P46: 224.0740223 | Q46: 224.0740223 | R46: 224.0740223 | S46: 224.0740223 | T46: 224.0740223 | U46: 224.0740223 | V46: 224.0740223 | W46: 224.0740223 | X46: 224.0740223 | Y46: 224.0740223
B47: D1 | D47: =D46/PI()/D30 -> 0.03575186794
B48: Co = (2*ΔHs)^0,5 | D48: =(2000*D45)^0.5 -> 349.4933376 | H48: 463.2863002 | I48: 453.0944319 | J48: 442.6973449 | K48: 432.078994 | L48: 421.2207337 | M48: 410.100626 | N48: 398.6924825 | O48: 386.9644937 | P48: 374.8772081 | Q48: 362.3804283 | R48: 360.7864728 | S48: 359.1849686 | T48: 357.5757594 | U48: 355.9586827 | V48: 354.3335694 | W48: 352.7002429 | X48: 351.0585196 | Y48: 349.408207
B49: u1/Co | D49: =D46/D48 -> 0.6411396104 | H49: 0.4836620945 | I49: 0.4945415493 | J49: 0.5061562371 | K49: 0.518595038 | L49: 0.5319634206 | M49: 0.5463879061 | N49: 0.5620221905 | O49: 0.5790557685 | P49: 0.5977264488 | Q49: 0.618339195 | R49: 0.621071019 | S49: 0.6238401991 | T49: 0.6266476862 | U49: 0.6294944699 | V49: 0.6323815795 | W49: 0.6353100878 | X49: 0.6382811121 | Y49: 0.6412958191
B50: U1/C0 off de / U1/C0 nom | D50: =D49/$D$49 -> 1 | H50: =H49/$D49 -> 0.7543787448 | I50: =I49/$D49 -> 0.7713476773 | J50: 0.7894633695 | K50: 0.8088644495 | L50: 0.8297154192 | M50: 0.8522136165 | N50: 0.8765987647 | O50: 0.903166423 | P50: 0.9322875067 | Q50: 0.9644376748 | R50: 0.9686985625 | S50: 0.9730177157 | T50: 0.977396617 | U50: 0.9818368102 | V50: 0.9863399005 | W50: 0.9909075613 | X50: 0.9955415354 | Y50: 1.000243642
B51: Rdt | D51: =(0.321*D50^4-1.6098*D50^3+1.316*D50^2+0.9448*D50)*($D28/0.97215493) -> 0.7798756933 | H51: =(0.321*H50^4-1.6098*H50^3+1.316*H50^2+0.9448*H50)*($D28/0.97) -> 0.7032191331 | I51: 0.7129362501 | J51: 0.7226641219 | K51: 0.7323231589 | L51: 0.7418058062 | M51: 0.7509664142 | N51: 0.7596067371 | O51: 0.7674547296 | P51: 0.7741327305 | Q51: 0.7791081929 | R51: 0.7795755289 | S51: 0.780002919 | T51: 0.7803884536 | U51: 0.7807301262 | V51: 0.7810258273 | W51: 0.7812733382 | X51: 0.7814703233 | Y51: 0.7816143235
B54: TURBINE 2
H55: 5
D56: DESIGN | H56: =H21 -> start-up | I56: =I21 -> start-up | J56: start-up | K56: start-up | L56: start-up | M56: start-up | N56: start-up | O56: start-up | P56: start-up | Q56: start-up | R56: 0 | S56: 0 | T56: 0 | U56: 0 | V56: 0 | W56: 0 | X56: 0 | Y56: 0
B57: Delta Debit | H57: =H58-H23 -> -43.70561896 | I57: =I58-I23 -> -44.30079477 | J57: -44.81943038 | K57: -45.20499415 | L57: -45.36608242 | M57: -45.15045909 | N57: -44.294141 | O57: -42.31347226 | P57: -38.25104375 | Q57: -29.97970045 | R57: -28.44137062 | S57: -26.74408896 | T57: -24.86734748 | U57: -22.78704887 | V57: -20.47466718 | W57: -17.89615163 | X57: -15.01047527 | Y57: -11.76768006
B58: m | C58: g/s | D58: 191.2 | H58: =H71*H59/H60^0.5 -> 77.44212685 | I58: 80.63209479 | J58: 84.28900077 | K58: 88.5394829 | L58: 93.56365766 | M58: 99.6278677 | N58: 107.14566 | O58: 116.8010906 | P58: 129.8271716 | Q58: 148.7421666 | R58: 151.7550841 | S58: 154.96322 | T58: 158.3885492 | U58: 162.0567189 | V58: 165.997895 | W58: 170.2478645 | X58: 174.8494946 | Y58: 179.8546953
B59: Pin | C59: Bara | D59: 6.307 | H59: 4.861873661 | I59: 4.870429332 | J59: 4.883560278 | K59: 4.902920113 | L59: 4.930954228 | M59: 4.971421905 | N59: 5.030394273 | O59: 5.118332215 | P59: 5.254941335 | Q59: 5.482556501 | R59: 5.521509168 | S59: 5.563717131 | T59: 5.609585429 | U59: 5.659591429 | V59: 5.714302344 | W59: 5.774398267 | X59: 5.840702945 | Y59: 5.914225539
B60: Tin | C60: K | D60: 18.21 | H60: =m*H27+p -> 65.96185408 | I60: =m*I27+p -> 61.06026247 | J60: 56.17865717 | K60: 51.31871004 | L60: 46.4823011 | M60: 41.67154784 | N60: 36.88883521 | O60: 32.13684264 | P60: 27.4185581 | Q60: =m*Q27+p -> 22.73725775 | R60: 22.15486743 | S60: 21.573116 | T60: 20.99201029 | U60: 20.41155712 | V60: 19.83176321 | W60: 19.25263523 | X60: 18.67417974 | Y60: 18.0964032
B61: Pout | C61: Bara | D61: 1.35 | H61: 1.15 | I61: 1.15 | J61: 1.15 | K61: 1.15 | L61: 1.15 | M61: 1.15 | N61: 1.15 | O61: 1.15 | P61: 1.15 | Q61: 1.15 | R61: 1.15 | S61: 1.15 | T61: 1.15 | U61: 1.15 | V61: 1.15 | W61: 1.15 | X61: 1.15 | Y61: 1.15
B62: Tout | C62: K | D62: =[3]!T2_turb(11,D59,D60,D61,D63) -> 11.61835748 | H62: =[3]!T2_turb(11,H59,H60,H61,H63) -> 51.22974239 | I62: =[3]!T2_turb(11,I59,I60,I61,I63) -> 46.90577154 | J62: =[3]!T2_turb(11,J59,J60,J61,J63) -> 42.63076813 | K62: =[3]!T2_turb(11,K59,K60,K61,K63) -> 38.41058605 | L62: =[3]!T2_turb(11,L59,L60,L61,L63) -> 34.25229646 | M62: =[3]!T2_turb(11,M59,M60,M61,M63) -> 30.16456112 | N62: =[3]!T2_turb(11,N59,N60,N61,N63) -> 26.15815236 | O62: =[3]!T2_turb(11,O59,O60,O61,O63) -> 22.24667164 | P62: =[3]!T2_turb(11,P59,P60,P61,P63) -> 18.4474735 | Q62: =[3]!T2_turb(11,Q59,Q60,Q61,Q63) -> 14.78242633 | R62: =[3]!T2_turb(11,R59,R60,R61,R63) -> 14.33496556 | S62: =[3]!T2_turb(11,S59,S60,S61,S63) -> 13.89003703 | T62: =[3]!T2_turb(11,T59,T60,T61,T63) -> 13.44768291 | U62: =[3]!T2_turb(11,U59,U60,U61,U63) -> 13.00794005 | V62: =[3]!T2_turb(11,V59,V60,V61,V63) -> 12.57083756 | W62: =[3]!T2_turb(11,W59,W60,W61,W63) -> 12.13639374 | X62: =[3]!T2_turb(11,X59,X60,X61,X63) -> 11.70461172 | Y62: =[3]!T2_turb(11,Y59,Y60,Y61,Y63) -> 11.27547342
B63: Efficacity | C63: % | D63: 0.76 | H63: =(0.321*H85^4-1.6098*H85^3+1.316*H85^2+0.9448*H85)*($D$63/0.97215493) -> 0.511993324 | I63: =(0.321*I85^4-1.6098*I85^3+1.316*I85^2+0.9448*I85)*($D$63/0.97215493) -> 0.5306103036 | J63: 0.5508296372 | K63: 0.5728203529 | L63: 0.5967443772 | M63: 0.6227232253 | N63: 0.6507637727 | O63: 0.6805896555 | P63: 0.71123727 | Q63: 0.7399887068 | R63: 0.7431635626 | S63: 0.7461804199 | T63: 0.7490111969 | U63: 0.7516232101 | V63: 0.7539782304 | W63: 0.7560312835 | X63: 0.7577291056 | Y63: 0.7590081229
B64: Power | C64: W | D64: =+D58*(D75-D76) -> 6144.650346 | H64: 5991.034087 | I64: 5991.034087 | J64: 5991.034087 | K64: 5991.034087 | L64: 5991.034087 | M64: 5991.034087 | N64: 5991.034087 | O64: 5991.034087 | P64: 5991.034087 | Q64: 5991.034087 | R64: 5991.034087 | S64: 5991.034087 | T64: 5991.034087 | U64: 5991.034087 | V64: 5991.034087 | W64: 5991.034087 | X64: 5991.034087 | Y64: 5991.034087
B65: Speed | C65: Hz | D65: 1496 | H65: 1496 | I65: 1496 | J65: 1496 | K65: 1496 | L65: 1496 | M65: 1496 | N65: 1496 | O65: 1496 | P65: 1496 | Q65: 1496 | R65: 1496 | S65: 1496 | T65: 1496 | U65: 1496 | V65: 1496 | W65: 1496 | X65: 1496 | Y65: 1496
H66: =(H64/$D64*$D68/H68)^(1/3)*$D65 -> 1496 | I66: =(I64/$D64*$D68/I68)^(1/3)*$D65 -> 1496 | J66: 1496 | K66: 1496 | L66: 1496 | M66: 1496 | N66: 1496 | O66: 1496 | P66: 1496 | Q66: 1496 | R66: 1496 | S66: 1496 | T66: 1496 | U66: 1496 | V66: 1496 | W66: 1496 | X66: 1496 | Y66: 1496
B67: Delta Speed Frein & Turbine | H67: =H65-H66 -> -3.985860531e-10 | I67: =I65-I66 -> 2.65390554e-09 | J67: 2.07114681e-09 | K67: -5.408764991e-09 | L67: -1.841272024e-09 | M67: -4.012463251e-09 | N67: -3.393097359e-09 | O67: 1.429680196e-08 | P67: -1.732610144e-08 | Q67: =Q65-Q66 -> -6.184109225e-09 | R67: =R65-R66 -> -3.611830834e-09 | S67: -1.751914169e-09 | T67: 2.092087925e-08 | U67: 7.294602256e-09 | V67: 1.658690962e-09 | W67: -1.317516762e-08 | X67: -3.503828339e-10 | Y67: -1.159605745e-11
B68: Brake Pressure | D68: 8 | H68: =($D68-$D61)+H61 -> 7.8 | I68: =($D68-$D61)+I61 -> 7.8 | J68: 7.8 | K68: 7.8 | L68: 7.8 | M68: 7.8 | N68: 7.8 | O68: 7.8 | P68: 7.8 | Q68: 7.8 | R68: 7.8 | S68: 7.8 | T68: 7.8 | U68: 7.8 | V68: 7.8 | W68: 7.8 | X68: 7.8 | Y68: 7.8
B69: Rho (brake) | D69: =[3]!rho_(11,D68,330) -> 1.16324325 | H69: =[3]!rho_(11,H68,330) -> 1.134254938 | I69: =[3]!rho_(11,I68,330) -> 1.134254938 | J69: =[3]!rho_(11,J68,330) -> 1.134254938 | K69: =[3]!rho_(11,K68,330) -> 1.134254938 | L69: =[3]!rho_(11,L68,330) -> 1.134254938 | M69: =[3]!rho_(11,M68,330) -> 1.134254938 | N69: =[3]!rho_(11,N68,330) -> 1.134254938 | O69: =[3]!rho_(11,O68,330) -> 1.134254938 | P69: =[3]!rho_(11,P68,330) -> 1.134254938 | Q69: =[3]!rho_(11,Q68,330) -> 1.134254938 | R69: =[3]!rho_(11,R68,330) -> 1.134254938 | S69: =[3]!rho_(11,S68,330) -> 1.134254938 | T69: =[3]!rho_(11,T68,330) -> 1.134254938 | U69: =[3]!rho_(11,U68,330) -> 1.134254938 | V69: =[3]!rho_(11,V68,330) -> 1.134254938 | W69: =[3]!rho_(11,W68,330) -> 1.134254938 | X69: =[3]!rho_(11,X68,330) -> 1.134254938 | Y69: =[3]!rho_(11,Y68,330) -> 1.134254938
B70: Wheel | C70: mm | D70: 39.5 | H70: =$D$35 -> 35.8 | I70: =$D$35 -> 35.8 | J70: 35.8 | K70: 35.8 | L70: 35.8 | M70: 35.8 | N70: 35.8 | O70: 35.8 | P70: 35.8 | Q70: 35.8 | R70: 35.8 | S70: 35.8 | T70: 35.8 | U70: 35.8 | V70: 35.8 | W70: 35.8 | X70: 35.8 | Y70: 35.8
B71: a = mÖT/P | D71: =D58*D60^0.5/D59 -> 129.3659642 | H71: =$D$71 -> 129.3659642 | I71: 129.3659642 | J71: 129.3659642 | K71: 129.3659642 | L71: 129.3659642 | M71: 129.3659642 | N71: 129.3659642 | O71: 129.3659642 | P71: 129.3659642 | Q71: 129.3659642 | R71: 129.3659642 | S71: 129.3659642 | T71: 129.3659642 | U71: 129.3659642 | V71: 129.3659642 | W71: 129.3659642 | X71: 129.3659642 | Y71: 129.3659642
B72: Rho (in) | C72: kg/m3 | D72: =[3]!rho_(11,D59,D60) -> 16.81725024 | H72: =[3]!rho_(11,H59,H60) -> 3.512891091 | I72: =[3]!rho_(11,I59,I60) -> 3.799396071 | J72: =[3]!rho_(11,J59,J60) -> 4.138190323 | K72: =[3]!rho_(11,K59,K60) -> 4.545251093 | L72: =[3]!rho_(11,L59,L60) -> 5.043886521 | M72: =[3]!rho_(11,M59,M60) -> 5.669539629 | N72: =[3]!rho_(11,N59,N60) -> 6.478995422 | O72: =[3]!rho_(11,O59,O60) -> 7.569632696 | P72: =[3]!rho_(11,P59,P60) -> 9.124668089 | Q72: =[3]!rho_(11,Q59,Q60) -> 11.5388189 | R72: =[3]!rho_(11,R59,R60) -> 11.93939519 | S72: =[3]!rho_(11,S59,S60) -> 12.37059109 | T72: =[3]!rho_(11,T59,T60) -> 12.83622346 | U72: =[3]!rho_(11,U59,U60) -> 13.34079633 | V72: =[3]!rho_(11,V59,V60) -> 13.88966812 | W72: =[3]!rho_(11,W59,W60) -> 14.4892716 | X72: =[3]!rho_(11,X59,X60) -> 15.14740768 | Y72: =[3]!rho_(11,Y59,Y60) -> 15.87364417
B73: Sound Speed | D73: =[3]!Sound_speed(11,D59,D60) -> 258.3914638 | H73: =[3]!Sound_speed(11,H59,H60) -> 482.9973613 | I73: =[3]!Sound_speed(11,I59,I60) -> 465.0919693 | J73: =[3]!Sound_speed(11,J59,J60) -> 446.5384457 | K73: =[3]!Sound_speed(11,K59,K60) -> 427.2558616 | L73: =[3]!Sound_speed(11,L59,L60) -> 407.1435595 | M73: =[3]!Sound_speed(11,M59,M60) -> 386.0732238 | N73: =[3]!Sound_speed(11,N59,N60) -> 363.8761048 | O73: =[3]!Sound_speed(11,O59,O60) -> 340.3211055 | P73: =[3]!Sound_speed(11,P59,P60) -> 315.074057 | Q73: =[3]!Sound_speed(11,Q59,Q60) -> 287.613973 | R73: =[3]!Sound_speed(11,R59,R60) -> 283.9874195 | S73: =[3]!Sound_speed(11,S59,S60) -> 280.3108538 | T73: =[3]!Sound_speed(11,T59,T60) -> 276.5817193 | U73: =[3]!Sound_speed(11,U59,U60) -> 272.7972358 | V73: =[3]!Sound_speed(11,V59,V60) -> 268.954378 | W73: =[3]!Sound_speed(11,W59,W60) -> 265.0498549 | X73: =[3]!Sound_speed(11,X59,X60) -> 261.0800931 | Y73: =[3]!Sound_speed(11,Y59,Y60) -> 257.0412303
B74: S=Q/(rho*V) = cte | D74: =D58/(D72*D73) -> 0.04400020898 | H74: 0.04564233224 | I74: 0.045630427 | J74: 0.04561436025 | K74: 0.04559225487 | L74: 0.04556111196 | M74: 0.04551592342 | N74: 0.04544785327 | O74: 0.04534017666 | P74: 0.04515812223 | Q74: 0.04481906216 | R74: 0.0447570878 | S74: 0.0446887561 | T74: 0.04461316555 | U74: 0.04452924404 | V74: 0.04443570696 | W74: 0.04433100214 | X74: 0.04421323658 | Y74: 0.04408007738
B75: Hin | D75: =[3]!h_(11,D59,D60) -> 105.9022075 | H75: =[3]!h_(11,H59,H60) -> 358.8181564 | I75: =[3]!h_(11,I59,I60) -> 333.2624076 | J75: =[3]!h_(11,J59,J60) -> 307.7889039 | K75: =[3]!h_(11,K59,K60) -> 282.3996268 | L75: =[3]!h_(11,L59,L60) -> 257.0946363 | M75: =[3]!h_(11,M59,M60) -> 231.8703374 | N75: =[3]!h_(11,N59,N60) -> 206.7161146 | O75: =[3]!h_(11,O59,O60) -> 181.6073385 | P75: =[3]!h_(11,P59,P60) -> 156.4893313 | Q75: =[3]!h_(11,Q59,Q60) -> 131.2347363 | R75: =[3]!h_(11,R59,R60) -> 128.05572 | S75: =[3]!h_(11,S59,S60) -> 124.8689512 | T75: =[3]!h_(11,T59,T60) -> 121.6732012 | U75: =[3]!h_(11,U59,U60) -> 118.4670308 | V75: =[3]!h_(11,V59,V60) -> 115.2487413 | W75: =[3]!h_(11,W59,W60) -> 112.0163119 | X75: =[3]!h_(11,X59,X60) -> 108.7673175 | Y75: =[3]!h_(11,Y59,Y60) -> 105.4988175
B76: Hout | D76: =[3]!h_(11,D61,D62) -> 73.76491485 | H76: =[3]!h_(11,H61,H62) -> 281.4567211 | I76: =[3]!h_(11,I61,I62) -> 258.9615464 | J76: =[3]!h_(11,J61,J62) -> 236.7116099 | K76: =[3]!h_(11,K61,K62) -> 214.7345141 | L76: =[3]!h_(11,L61,L62) -> 193.0630001 | M76: =[3]!h_(11,M61,M62) -> 171.736218 | N76: =[3]!h_(11,N61,N62) -> 150.8012591 | O76: =[3]!h_(11,O61,O62) -> 130.3147173 | P76: =[3]!h_(11,P61,P62) -> 110.3431047 | Q76: =[3]!h_(11,Q61,Q62) -> 90.9567558 | R76: =[3]!h_(11,R61,R62) -> 88.57741113 | S76: =[3]!h_(11,S61,S62) -> 86.20794449 | T76: =[3]!h_(11,T61,T62) -> 83.84828198 | U76: =[3]!h_(11,U61,U62) -> 81.49828232 | V76: =[3]!h_(11,V61,V62) -> 79.15771682 | W76: =[3]!h_(11,W61,W62) -> 76.826243 | X76: =[3]!h_(11,X61,X62) -> 74.50336896 | Y76: =[3]!h_(11,Y61,Y62) -> 72.18840502
B77: Sin = Sout | D77: =[3]!S_(11,D59,D60) -> 13.04156759 | H77: =[3]!S_(11,H59,H60) -> 20.45482723 | I77: =[3]!S_(11,I59,I60) -> 20.04855254 | J77: =[3]!S_(11,J59,J60) -> 19.60808679 | K77: =[3]!S_(11,K59,K60) -> 19.12707585 | L77: =[3]!S_(11,L59,L60) -> 18.59717852 | M77: =[3]!S_(11,M59,M60) -> 18.00712239 | N77: =[3]!S_(11,N59,N60) -> 17.34110798 | O77: =[3]!S_(11,O59,O60) -> 16.57591561 | P77: =[3]!S_(11,P59,P60) -> 15.67514042 | Q77: =[3]!S_(11,Q59,Q60) -> 14.57601635 | R77: =[3]!S_(11,R59,R60) -> 14.41959182 | S77: =[3]!S_(11,S59,S60) -> 14.25794166 | T77: =[3]!S_(11,T59,T60) -> 14.09066802 | U77: =[3]!S_(11,U59,U60) -> 13.91732132 | V77: =[3]!S_(11,V59,V60) -> 13.73739014 | W77: =[3]!S_(11,W59,W60) -> 13.55028832 | X77: =[3]!S_(11,X59,X60) -> 13.35533828 | Y77: =[3]!S_(11,Y59,Y60) -> 13.15174923
B78: Tout(iso) | D78: =[1]!HeCalc(2,0,1,D61*10^5,8,D77*1000,1) -> 9.763910711 | H78: =[1]!HeCalc(2,0,1,H61*10^5,8,H77*1000,1) -> 37.06418163 | I78: =[1]!HeCalc(2,0,1,I61*10^5,8,I77*1000,1) -> 34.28496722 | J78: =[1]!HeCalc(2,0,1,J61*10^5,8,J77*1000,1) -> 31.5087182 | K78: =[1]!HeCalc(2,0,1,K61*10^5,8,K77*1000,1) -> 28.73552808 | L78: =[1]!HeCalc(2,0,1,L61*10^5,8,L77*1000,1) -> 25.96540591 | M78: =[1]!HeCalc(2,0,1,M61*10^5,8,M77*1000,1) -> 23.1981943 | N78: =[1]!HeCalc(2,0,1,N61*10^5,8,N77*1000,1) -> 20.43340639 | O78: =[1]!HeCalc(2,0,1,O61*10^5,8,O77*1000,1) -> 17.66987855 | P78: =[1]!HeCalc(2,0,1,P61*10^5,8,P77*1000,1) -> 14.90495571 | Q78: =[1]!HeCalc(2,0,1,Q61*10^5,8,Q77*1000,1) -> 12.1322916 | R78: =[1]!HeCalc(2,0,1,R61*10^5,8,R77*1000,1) -> 11.78452786 | S78: =[1]!HeCalc(2,0,1,S61*10^5,8,S77*1000,1) -> 11.43635823 | T78: =[1]!HeCalc(2,0,1,T61*10^5,8,T77*1000,1) -> 11.08772017 | U78: =[1]!HeCalc(2,0,1,U61*10^5,8,U77*1000,1) -> 10.7385405 | V78: =[1]!HeCalc(2,0,1,V61*10^5,8,V77*1000,1) -> 10.388733 | W78: =[1]!HeCalc(2,0,1,W61*10^5,8,W77*1000,1) -> 10.03819541 | X78: =[1]!HeCalc(2,0,1,X61*10^5,8,X77*1000,1) -> 9.686805475 | Y78: =[1]!HeCalc(2,0,1,Y61*10^5,8,Y77*1000,1) -> 9.334415781
B79: Hout(iso) | D79: =[3]!h_(11,D61,D78) -> 63.61629614 | H79: =[3]!h_(11,H61,H78) -> 207.7196329 | I79: =[3]!h_(11,I61,I78) -> 193.2333491 | J79: =[3]!h_(11,J61,J78) -> 178.7521034 | K79: =[3]!h_(11,K61,K78) -> 164.27339 | L79: =[3]!h_(11,L61,L78) -> 149.79302 | M79: =[3]!h_(11,M61,M78) -> 135.3039706 | N79: =[3]!h_(11,N61,N78) -> 120.7942213 | O79: =[3]!h_(11,O61,O78) -> 106.2423653 | P79: =[3]!h_(11,P61,P78) -> 91.60771081 | Q79: =[3]!h_(11,Q61,Q78) -> 76.80420225 | R79: =[3]!h_(11,R61,R78) -> 74.93375484 | S79: =[3]!h_(11,S61,S78) -> 73.05707612 | T79: =[3]!h_(11,T61,T78) -> 71.1733964 | U79: =[3]!h_(11,U61,U78) -> 69.28181673 | V79: =[3]!h_(11,V61,V78) -> 67.38127906 | W79: =[3]!h_(11,W61,W78) -> 65.47052778 | X79: =[3]!h_(11,X61,X78) -> 63.54805868 | Y79: =[3]!h_(11,Y61,Y78) -> 61.61205071
B80: ΔHs | D80: =D75-D79 -> 42.28591132 | H80: 151.0985235 | I80: 140.0290585 | J80: 129.0368005 | K80: 118.1262368 | L80: 107.3016163 | M80: 96.56636675 | N80: 85.92189328 | O80: 75.36497316 | P80: 64.88162051 | Q80: 54.43053404 | R80: 53.1219652 | S80: 51.81187507 | T80: 50.49980483 | U80: 49.18521411 | V80: 47.86746221 | W80: 46.54578416 | X80: 45.21925883 | Y80: 43.88676678
B81: u1 | C81: m/s | D81: =(2*52.7%*D80*1000*D63)^0.5 -> 184.0453922 | H81: =PI()*$D$82*H65 -> 184.0453922 | I81: 184.0453922 | J81: 184.0453922 | K81: 184.0453922 | L81: 184.0453922 | M81: 184.0453922 | N81: 184.0453922 | O81: 184.0453922 | P81: 184.0453922 | Q81: =PI()*$D$82*Q65 -> 184.0453922 | R81: =PI()*$D$82*R65 -> 184.0453922 | S81: 184.0453922 | T81: 184.0453922 | U81: 184.0453922 | V81: 184.0453922 | W81: 184.0453922 | X81: 184.0453922 | Y81: 184.0453922
B82: D1 | D82: =D81/PI()/D65 -> 0.0391600721
B83: Co = (2*ΔHs)^0,5 | D83: =(2000*D80)^0.5 -> 290.8123495 | H83: 549.7245192 | I83: 529.2051748 | J83: 508.0094496 | K83: 486.058097 | L83: 463.2528819 | M83: 439.4686946 | N83: 414.5404523 | O83: 388.2395476 | P83: 360.2266523 | Q83: 329.941007 | R83: 325.9508098 | S83: 321.9064307 | T83: 317.8043575 | U83: 313.6406036 | V83: 309.4106081 | W83: 305.1091089 | X83: 300.7299746 | Y83: 296.2659845
B84: u1/Co | D84: =D81/D83 -> 0.6328664946 | H84: 0.3347956764 | I84: 0.3477770079 | J84: 0.3622873401 | K84: 0.3786489586 | L84: 0.3972892548 | M84: 0.4187906773 | N84: 0.4439745054 | O84: 0.4740511197 | P84: 0.5109155335 | Q84: 0.5578130282 | R84: 0.5646416168 | S84: 0.5717356805 | T84: 0.579115383 | U84: 0.5868034627 | V84: 0.5948257345 | W84: 0.6032117262 | X84: 0.6119955035 | Y84: 0.6212167507
B85: U1/C0 off de / U1/C0 nom | D85: =D84/$D$49 -> 0.9870962336 | H85: =H84/$D84 -> 0.5290146962 | I85: =I84/$D84 -> 0.5495266551 | J85: 0.5724546064 | K85: 0.5983077976 | L85: 0.6277615551 | M85: 0.6617362127 | N85: 0.7015294839 | O85: 0.7490539059 | P85: 0.8073038119 | Q85: 0.8814071103 | R85: 0.8921970457 | S85: 0.9034064616 | T85: 0.9150672187 | U85: 0.9272152464 | V85: 0.939891335 | W85: 0.9531421418 | X85: 0.9670214945 | Y85: 0.9815920988
B86: Rdt | D86: =(0.321*D85^4-1.6098*D85^3+1.316*D85^2+0.9448*D85)*($D63/0.97215493) -> 0.7593560473 | H86: =(0.321*H85^4-1.6098*H85^3+1.316*H85^2+0.9448*H85)*($D63/0.97215493) -> 0.511993324 | I86: =(0.321*I85^4-1.6098*I85^3+1.316*I85^2+0.9448*I85)*($D63/0.97215493) -> 0.5306103036 | J86: 0.5508296372 | K86: 0.5728203529 | L86: 0.5967443772 | M86: 0.6227232253 | N86: 0.6507637727 | O86: 0.6805896555 | P86: 0.71123727 | Q86: 0.7399887068 | R86: 0.7431635626 | S86: 0.7461804199 | T86: 0.7490111969 | U86: 0.7516232101 | V86: 0.7539782304 | W86: 0.7560312835 | X86: 0.7577291056 | Y86: 0.7590081229
B88: TURBINE 3
D90: DESIGN | F90: =F56 -> 0 | G90: =G56 -> 0 | H90: =H56 -> start-up | I90: =I56 -> start-up
B92: m | C92: g/s | D92: 399.8 | F92: =F105/(F95*F94)^0.5*F93 -> 161.4761819 | G92: =G105/(G95*G94)^0.5*G93 -> 95.0804152 | I92: 117.1010273
B93: Pin | C93: Bara | D93: 13.07 | F93: 13.07 | G93: 7.369 | I93: 10.48
B94: Tin | C94: K | D94: 7.292 | F94: 9.16 | G94: 7.912 | I94: 10.55
B95: Pout | C95: Bara | D95: 4.88 | F95: 4.88 | G95: 5.18 | I95: 5.18
B96: Tout | C96: K | D96: =[3]!T2_turb(11,D93,D94,D95,D97) -> 6.11984088 | F96: =[3]!T2_turb(11,F93,F94,F95,F97) -> 7.049446306 | G96: =[3]!T2_turb(11,G93,G94,G95,G97) -> 7.14472539 | H96: =[3]!T2_turb(11,H93,H94,H95,H97) ->  | I96: =[3]!T2_turb(11,I93,I94,I95,I97) -> 8.690381514
B97: Efficacity | C97: % | D97: 0.72 | F97: =(0.321*F119^4-1.6098*F119^3+1.316*F119^2+0.9448*F119)*($D$97/0.97215493) -> 0.5817973136 | G97: =(0.321*G119^4-1.6098*G119^3+1.316*G119^2+0.9448*G119)*($D$97/0.97215493) -> 0.5827244835 | H97: =(0.321*H119^4-1.6098*H119^3+1.316*H119^2+0.9448*H119)*($D$97/0.97215493) ->  | I97: =(0.321*I119^4-1.6098*I119^3+1.316*I119^2+0.9448*I119)*($D$97/0.97215493) -> 0.5020164146
B98: Power | C98: W | D98: =+D92*(D109-D110) -> 2075.54042 | F98: 954.7418418 | G98: 182.514095 | I98: 610.6783435
B99: Speed | C99: Hz | D99: 2076 | F99: 1602.55252 | G99: 914.2081865 | H99: 862.6625785 | I99: 1367.362934
F100: =(F98/$D98*$D102/F102)^(1/3)*$D99 -> 1602.552512 | G100: =(G98/$D98*$D102/G102)^(1/3)*$D99 -> 914.2081711 | H100: =(H98/$D98*$D102/H102)^(1/3)*$D99 ->  | I100: =(I98/$D98*$D102/I102)^(1/3)*$D99 -> 1367.36293
F101: =F99-F100 -> 7.275503322e-06 | G101: =G99-G100 -> 1.541953168e-05 | H101: =H99-H100 ->  | I101: =I99-I100 -> 4.300091632e-06
B102: Brake Pressure | D102: 10.1 | F102: =($D102-$D95)+F95 -> 10.1 | G102: =($D102-$D95)+G95 -> 10.4 | H102: =($D102-$D95)+H95 -> 5.22 | I102: =($D102-$D95)+I95 -> 10.4
B103: Rho (brake) | D103: =[3]!rho_(11,D102,330) -> 1.467334205 | F103: =[3]!rho_(11,F102,330) -> 1.467334205 | G103: =[3]!rho_(11,G102,330) -> 1.510733122 | H103: =[3]!rho_(11,H102,330) -> 0.7598798717 | I103: =[3]!rho_(11,I102,330) -> 1.510733122
B104: Wheel | C104: mm | D104: 29.5 | F104: =$D$104 -> 29.5 | G104: =$D$104 -> 29.5 | H104: =$D$104 -> 29.5 | I104: =$D$104 -> 29.5
B105: a = mÖT/P | D105: =D92*D94^0.5/D93 -> 82.60199418 | F105: =$D$105 -> 82.60199418 | G105: =$D$105 -> 82.60199418 | H105: 82.60199418 | I105: 82.60199418
B106: Rho (in) | C106: kg/m3 | D106: =[3]!rho_(11,D93,D94) -> 122.041385 | F106: =[3]!rho_(11,F93,F94) -> 92.04202254 | G106: =[3]!rho_(11,G93,G94) -> 70.6496495 | H106: =[3]!rho_(11,H93,H94) -> NUM | I106: =[3]!rho_(11,I93,I94) -> 58.78998557
B107: Sound Speed | D107: =[3]!Sound_speed(11,D93,D94) -> 249.0567129 | F107: =[3]!Sound_speed(11,F93,F94) -> 219.0353462 | G107: =[3]!Sound_speed(11,G93,G94) -> 170.7864441 | H107: =[3]!Sound_speed(11,H93,H94) -> NUM | I107: =[3]!Sound_speed(11,I93,I94) -> 204.2669237
B108: S=Q/(rho*V) = cte | D108: =D92/(D106*D107) -> 0.01315338131 | F108: 0.008009549968 | G108: 0.007880026204 | I108: 0.009751227821
B109: Hin | D109: =[3]!h_(11,D93,D94) -> 28.15088458 | F109: =[3]!h_(11,F93,F94) -> 40.89014045 | G109: =[3]!h_(11,G93,G94) -> 36.81164396 | H109: =[3]!h_(11,H93,H94) ->  | I109: =[3]!h_(11,I93,I94) -> 54.05983231
B110: Hout | D110: =[3]!h_(11,D95,D96) -> 22.9594378 | F110: =[3]!h_(11,F95,F96) -> 34.97755427 | G110: =[3]!h_(11,G95,G96) -> 34.89206784 | H110: =[3]!h_(11,H95,H96) ->  | I110: =[3]!h_(11,I95,I96) -> 48.84486232
B111: Sin = Sout | D111: =[3]!S_(11,D93,D94) -> 5.060004669 | F111: =[3]!S_(11,F93,F94) -> 6.606972814 | G111: =[3]!S_(11,G93,G94) -> 6.945830207 | H111: =[3]!S_(11,H93,H94) ->  | I111: =[3]!S_(11,I93,I94) -> 8.300020451
B112: Tout(iso) | D112: =[1]!HeCalc(2,0,1,D95*10^5,8,D111*1000,1) -> 5.935138784 | F112: =[1]!HeCalc(2,0,1,F95*10^5,8,F111*1000,1) -> 6.699995029 | G112: =[1]!HeCalc(2,0,1,G95*10^5,8,G111*1000,1) -> 7.024181985 | H112: =[1]!HeCalc(2,0,1,H95*10^5,8,H111*1000,1) ->  | I112: =[1]!HeCalc(2,0,1,I95*10^5,8,I111*1000,1) -> 8.048894673
B113: Hout(iso) | D113: =[3]!h_(11,D95,D112) -> 20.94054184 | F113: =[3]!h_(11,F95,F112) -> 30.72751844 | G113: =[3]!h_(11,G95,G112) -> 33.5175038 | H113: =[3]!h_(11,H95,H112) ->  | I113: =[3]!h_(11,I95,I112) -> 43.67178554
B114: ΔHs | D114: =D109-D113 -> 7.210342742 | F114: 10.16262202 | G114: 3.294140164 | I114: 10.38804677
B115: u1 | C115: m/s | D115: =(2*52.7%*D114*1000*D97)^0.5 -> 73.97151411 | F115: =PI()*$D$116*F99 -> 57.1017516 | G115: =PI()*$D$116*G99 -> 32.57483804 | H115: 30.73817779 | I115: 48.72153497
B116: D1 | D116: =D115/PI()/D99 -> 0.01134193846 | M116: T3
B117: Co = (2*ΔHs)^0,5 | D117: =(2000*D114)^0.5 -> 120.0861586 | F117: 142.5666302 | G117: 81.1682224 | I117: 144.1391464 | L117: MAX | M117: =ROUND(F92,0)&"g/s @ "&F93&" b ; "&F94&"K" -> 161g/s @ 13,07 b ; 9,16K
B118: u1/Co | D118: =D115/D117 -> 0.6159870129 | F118: 0.400526768 | G118: 0.4013250146 | I118: 0.3380173685 | L118: MIN | M118: =ROUND(G92,0)&"g/s @ "&G93&" b ; "&G94&"K" -> 95g/s @ 7,369 b ; 7,912K
B119: U1/C0 off de / U1/C0 nom | D119: =D118/$D$49 -> 0.9607689228 | F119: =F118/$D118 -> 0.6502195008 | G119: =G118/$D118 -> 0.6515153829 | H119: =H118/$D118 ->  | I119: =I118/$D118 -> 0.5487410634 | L119: STS | M119: =ROUND(H92,0)&"g/s @ "&H93&" b ; "&H94&"K" -> 
B120: Rdt | D120: =(0.321*D119^4-1.6098*D119^3+1.316*D119^2+0.9448*D119)*($D97/0.97215493) -> 0.7171786088 | F120: =(0.321*F119^4-1.6098*F119^3+1.316*F119^2+0.9448*F119)*($D97/0.97215493) -> 0.5817973136 | G120: =(0.321*G119^4-1.6098*G119^3+1.316*G119^2+0.9448*G119)*($D97/0.97215493) -> 0.5827244835 | H120: =(0.321*H119^4-1.6098*H119^3+1.316*H119^2+0.9448*H119)*($D97/0.97215493) ->  | I120: =(0.321*I119^4-1.6098*I119^3+1.316*I119^2+0.9448*I119)*($D97/0.97215493) -> 0.5020164146 | L120: BAKING | M120: =ROUND(I92,0)&"g/s @ "&I93&" b ; "&I94&"K" -> 117g/s @ 10,48 b ; 10,55K
M122: =M47 -> 0 | N122: =M116 -> T3 | O122: T1+T2
B123: Courbe de rendement TC3 | L123: =L117 -> MAX | M123: =M48 -> 410.100626 | N123: =M117 -> 161g/s @ 13,07 b ; 9,16K | O123: =F92+F58 -> 161.4761819
L124: =L118 -> MIN | M124: =M49 -> 0.5463879061 | N124: =M118 -> 95g/s @ 7,369 b ; 7,912K | O124: =G92+G58 -> 95.0804152
L125: =L119 -> STS | M125: =M50 -> 0.8522136165 | N125: =M119 ->  | O125: =H92+H58 -> 
L126: =L120 -> BAKING | M126: =M51 -> 0.7509664142 | N126: =M120 -> 117g/s @ 10,48 b ; 10,55K | O126: =I92+I58 -> 197.7331221
E127: d : mm
E128: N : Hz
E129: H : J/kG
B135: rendement=(0,321*rap^4 - 1,6098*rap^3 + 1,316*rap^2 + 0,9448*rap)*(ETAgar/0,97) | I135: U1/CO _nom | J135: 0.64
I136: Eta_gar | J136: 0.8
B137: U1/C0 | C137: =D28 -> 0.78 | D137: =D63 -> 0.76 | E137: =D97 -> 0.72
B138: 0 | C138: =(0.321*B138^4-1.6098*B138^3+1.316*B138^2+0.9448*B138)*$D$28/0.97215493 -> 0
B139: =B138+0.05 -> 0.05 | C139: =(0.321*$B139^4-1.6098*$B139^3+1.316*$B139^2+0.9448*$B139)*$C$137/0.97215493 -> 0.04038246185 | D139: =(0.321*$B139^4-1.6098*$B139^3+1.316*$B139^2+0.9448*$B139)*$D$137/0.97215493 -> 0.03934701411 | E139: =(0.321*$B139^4-1.6098*$B139^3+1.316*$B139^2+0.9448*$B139)*$E$137/0.97215493 -> 0.03727611863
B140: 0.1 | C140: =(0.321*$B140^4-1.6098*$B140^3+1.316*$B140^2+0.9448*$B140)*$C$137/0.97215493 -> 0.08509815817 | D140: =(0.321*$B140^4-1.6098*$B140^3+1.316*$B140^2+0.9448*$B140)*$D$137/0.97215493 -> 0.08291615412 | E140: =(0.321*$B140^4-1.6098*$B140^3+1.316*$B140^2+0.9448*$B140)*$E$137/0.97215493 -> 0.078552146
B141: 0.15 | C141: 0.1332363313 | D141: 0.1298200152 | E141: 0.1229873828
B142: 0.2 | C142: 0.1839248565 | D142: 0.1792088345 | E142: 0.1697767906
B143: 0.25 | C143: 0.2363302415 | D143: 0.2302704917 | E143: 0.2181509921
B144: 0.3 | C144: 0.2896576269 | D144: 0.2822305083 | E144: 0.267376271
B145: 0.35 | C145: 0.343150786 | D145: 0.3343520479 | E145: 0.3167545717
B146: 0.4 | C146: 0.3960921249 | D146: 0.3859359166 | E146: 0.3656234999
B147: 0.45 | C147: 0.4478026824 | D147: 0.4363205624 | E147: 0.4133563222
B148: 0.5 | C148: 0.4976421299 | D148: 0.4848820753 | E148: 0.4593619661
B149: 0.55 | C149: 0.5450087718 | D149: 0.5310341879 | E149: 0.5030850201
B150: 0.6 | C150: 0.5893395449 | D150: 0.5742282745 | E150: 0.5440057337
B151: 0.65 | C151: 0.630110019 | D151: 0.6139533518 | E151: 0.5816400175
B152: 0.7 | C152: 0.6668343964 | D152: 0.6497360786 | E152: 0.6155394429
B153: 0.75 | C153: 0.6990655125 | D153: 0.6811407558 | E153: 0.6452912423
B154: 0.8 | C154: 0.726394835 | D154: 0.7077693264 | E154: 0.6705183093
B155: 0.85 | C155: 0.7484524646 | D155: 0.7292613758 | E155: 0.6908791981
B156: 0.9 | C156: 0.7649071347 | D156: 0.7452941313 | E156: 0.7060681243
B157: 0.95 | C157: 0.7754662113 | D157: 0.7555824623 | E157: 0.7158149643
B158: 1 | C158: 0.7798756933 | D158: 0.7598788806 | E158: 0.7198852553
B159: 1.05 | C159: 0.7779202121 | D159: 0.75797354 | E159: 0.7180801958
B160: 1.1 | C160: 0.7694230322 | D160: 0.7496942365 | E160: 0.7102366451
B161: 1.15 | C161: 0.7542460504 | D161: 0.7349064081 | E161: 0.6962271235
B162: 1.2 | C162: 0.7322897966 | D162: 0.7135131352 | E162: 0.6759598123 | G162: F Let u be the peripheral speed of the wheel : u = p . Æ . N / 60 (in m/s)
B163: 1.25 | C163: 0.7034934333 | D163: 0.6854551401 | E163: 0.6493785538 | G163: F Let n, be the speed ratio of the turbine : n = u / [ 2 . (H1 - H2S ) ] 0.5 (dimensionless number)
B164: 1.3 | C164: 0.6678347555 | D164: 0.6507107874 | E164: 0.6164628512 | H164: N = speed of rotation of the turbine (in rpm)
B165: 1.35 | C165: 0.6253301913 | D165: 0.6092960839 | E165: 0.5772278689 | H165: Æ = diameter of the wheel of the turbine (in m)
B166: 1.4 | C166: 0.5760348014 | D166: 0.5612646783 | E166: 0.531724432
B167: 1.45 | C167: 0.520042279 | D167: 0.5067078616 | E167: 0.4800390268
B168: 1.5 | C168: 0.4574849505 | D168: 0.4457545671 | E168: 0.4222938004

Sheet Turbines_JT60SA_serial
E5: Vitesse de la roue ajustée en fonction de la puissance du frein | L5: =D70*0.3 -> 448.8
A7: 1 | B7: 2 | C7: 3 | D7: 4 | E7: 5 | F7: 6 | G7: 7 | H7: 8 | I7: 9 | J7: 10 | K7: 11 | L7: 12 | M7: 13 | N7: 14 | O7: 15 | P7: 16 | Q7: 17 | R7: 18 | S7: 19 | T7: 20 | U7: 21 | V7: 22 | W7: 23 | X7: 24 | Y7: 25 | Z7: 26 | AA7: 27 | AB7: 28 | AC7: 29 | AD7: 30 | AE7: 31 | AF7: 32 | AG7: 33
B8: Relation entre la puissance et la vitesse de rotation | M8: ²
B10: CV330
B11: Pin | C11: Bara | D11: 15 | H11: 15 | I11: 15 | J11: 15 | K11: 15 | L11: 15 | M11: 15 | N11: 15 | O11: 15 | P11: 15 | Q11: 15 | R11: 15 | S11: 15 | T11: 15 | U11: 15 | V11: 15 | W11: 15 | X11: 15 | Y11: 15
B12: Tin | C12: K | D12: =[3]!T_P_H_(11,D11,[3]!h_(11,D29,D30)) -> 40.02813956 | H12: =[3]!T_P_H_(11,H11,[3]!h_(11,H29,H30)) -> 79.74905181 | I12: =[3]!T_P_H_(11,I11,[3]!h_(11,I29,I30)) -> 75.76249621 | J12: =[3]!T_P_H_(11,J11,[3]!h_(11,J29,J30)) -> 71.77783088 | K12: =[3]!T_P_H_(11,K11,[3]!h_(11,K29,K30)) -> 65.80497253 | L12: =[3]!T_P_H_(11,L11,[3]!h_(11,L29,L30)) -> 61.82626359 | M12: =[3]!T_P_H_(11,M11,[3]!h_(11,M29,M30)) -> 57.8504643 | N12: =[3]!T_P_H_(11,N11,[3]!h_(11,N29,N30)) -> 53.87780999 | O12: =[3]!T_P_H_(11,O11,[3]!h_(11,O29,O30)) -> 49.90831492 | P12: =[3]!T_P_H_(11,P11,[3]!h_(11,P29,P30)) -> 45.94137046 | Q12: =[3]!T_P_H_(11,Q11,[3]!h_(11,Q29,Q30)) -> 41.97457379 | R12: =[3]!T_P_H_(11,R11,[3]!h_(11,R29,R30)) -> 41.47844546 | S12: =[3]!T_P_H_(11,S11,[3]!h_(11,S29,S30)) -> 40.98218345 | T12: =[3]!T_P_H_(11,T11,[3]!h_(11,T29,T30)) -> 40.48575467 | U12: =[3]!T_P_H_(11,U11,[3]!h_(11,U29,U30)) -> 39.98911945 | V12: =[3]!T_P_H_(11,V11,[3]!h_(11,V29,V30)) -> 39.49222979 | W12: =[3]!T_P_H_(11,W11,[3]!h_(11,W29,W30)) -> 38.99502717 | X12: =[3]!T_P_H_(11,X11,[3]!h_(11,X29,X30)) -> 38.49743947 | Y12: =[3]!T_P_H_(11,Y11,[3]!h_(11,Y29,Y30)) -> 37.99937675
B13: Rho | D13: =[3]!rho_(11,D11,D12) -> 17.34400697 | H13: =[3]!rho_(11,H11,H12) -> 8.818570096 | I13: =[3]!rho_(11,I11,I12) -> 9.272113716 | J13: =[3]!rho_(11,J11,J12) -> 9.775110994 | K13: =[3]!rho_(11,K11,K12) -> 10.64179204 | L13: =[3]!rho_(11,L11,L12) -> 11.31112194 | M13: =[3]!rho_(11,M11,M12) -> 12.07128902 | N13: =[3]!rho_(11,N11,N12) -> 12.9425111 | O13: =[3]!rho_(11,O11,O12) -> 13.95170321 | P13: =[3]!rho_(11,P11,P12) -> 15.13570118 | Q13: =[3]!rho_(11,Q11,Q12) -> 16.54687326 | R13: =[3]!rho_(11,R11,R12) -> 16.74276623 | S13: =[3]!rho_(11,S11,S12) -> 16.94357786 | T13: =[3]!rho_(11,T11,T12) -> 17.1495159 | U13: =[3]!rho_(11,U11,U12) -> 17.36080297 | V13: =[3]!rho_(11,V11,V12) -> 17.57767863 | W13: =[3]!rho_(11,W11,W12) -> 17.8004018 | X13: =[3]!rho_(11,X11,X12) -> 18.02925409 | Y13: =[3]!rho_(11,Y11,Y12) -> 18.26454393
B14: dP | D14: =(D11-D29)*1000 -> 230 | H14: =(H11-H29)*1000 -> 5269.659651 | I14: =(I11-I29)*1000 -> 5197.115883 | J14: 5106.250638 | K14: 4922.868474 | L14: 4756.288108 | M14: 4537.695058 | N14: 4242.938204 | O14: 3829.597732 | P14: 3214.388887 | Q14: 2202.600579 | R14: 2027.476241 | S14: 1836.397418 | T14: 1626.905 | U14: 1395.964878 | V14: 1139.778804 | W14: 853.5119539 | X14: 530.8886802 | Y14: 163.5731128
B15: Cvs | D15: 30 | H15: 30 | I15: 30 | J15: 30 | K15: 30 | L15: 30 | M15: 30 | N15: 30 | O15: 30 | P15: 30 | Q15: 30 | R15: 30 | S15: 30 | T15: 30 | U15: 30 | V15: 30 | W15: 30 | X15: 30 | Y15: 30
B16: Range | D16: 250 | H16: 250 | I16: 250 | J16: 250 | K16: 250 | L16: 250 | M16: 250 | N16: 250 | O16: 250 | P16: 250 | Q16: 250 | R16: 250 | S16: 250 | T16: 250 | U16: 250 | V16: 250 | W16: 250 | X16: 250 | Y16: 250
B17: Flow | D17: =IF(D11/2>D29,"S","SS") -> SS | H17: =IF(H11/2>H29,"S","SS") -> SS | I17: =IF(I11/2>I29,"S","SS") -> SS | J17: SS | K17: SS | L17: SS | M17: SS | N17: SS | O17: SS | P17: SS | Q17: SS | R17: SS | S17: SS | T17: SS | U17: SS | V17: SS | W17: SS | X17: SS | Y17: SS
B18: Cv | D18: =[3]!Cv_Simple(D12,D11,D11-D29,D13,D28,D17) -> 12.71708607 | H18: =[3]!Cv_Simple(H12,H11,H11-H29,H13,H28,H17) -> 2.139229846 | I18: =[3]!Cv_Simple(I12,I11,I11-I29,I13,I28,I17) -> 2.163357827 | J18: =[3]!Cv_Simple(J12,J11,J11-J29,J13,J28,J17) -> 2.193972032 | K18: =[3]!Cv_Simple(K12,K11,K11-K29,K13,K28,K17) -> 2.257401407 | L18: =[3]!Cv_Simple(L12,L11,L11-L29,L13,L28,L17) -> 2.317259705 | M18: =[3]!Cv_Simple(M12,M11,M11-M29,M13,M28,M17) -> 2.399573232 | N18: =[3]!Cv_Simple(N12,N11,N11-N29,N13,N28,N17) -> 2.518466169 | O18: =[3]!Cv_Simple(O12,O11,O11-O29,O13,O28,O17) -> 2.703883697 | P18: =[3]!Cv_Simple(P12,P11,P11-P29,P13,P28,P17) -> 3.034418321 | Q18: =[3]!Cv_Simple(Q12,Q11,Q11-Q29,Q13,Q28,Q17) -> 3.823306969 | R18: =[3]!Cv_Simple(R12,R11,R11-R29,R13,R28,R17) -> 4.012596513 | S18: =[3]!Cv_Simple(S12,S11,S11-S29,S13,S28,S17) -> 4.24754854 | T18: =[3]!Cv_Simple(T12,T11,T11-T29,T13,T28,T17) -> 4.548940116 | U18: =[3]!Cv_Simple(U12,U11,U11-U29,U13,U28,U17) -> 4.953481238 | V18: =[3]!Cv_Simple(V12,V11,V11-V29,V13,V28,V17) -> 5.533810469 | W18: =[3]!Cv_Simple(W12,W11,W11-W29,W13,W28,W17) -> 6.461020278 | X18: =[3]!Cv_Simple(X12,X11,X11-X29,X13,X28,X17) -> 8.285691282 | Y18: =[3]!Cv_Simple(Y12,Y11,Y11-Y29,Y13,Y28,Y17) -> 15.11615312
B19: Cv | D19: =[3]!cv_gaz(11,D28,D11,D29,D12,0.87) -> 12.689489 | H19: =[3]!cv_gaz(11,H28,H11,H29,H12,0.87) -> 1.943699211 | I19: =[3]!cv_gaz(11,I28,I11,I29,I12,0.87) -> 1.969344013 | J19: =[3]!cv_gaz(11,J28,J11,J29,J12,0.87) -> 2.001892477 | K19: =[3]!cv_gaz(11,K28,K11,K29,K12,0.87) -> 2.069318534 | L19: =[3]!cv_gaz(11,L28,L11,L29,L12,0.87) -> 2.132898488 | M19: =[3]!cv_gaz(11,M28,M11,M29,M12,0.87) -> 2.220212872 | N19: =[3]!cv_gaz(11,N28,N11,N29,N12,0.87) -> 2.346047073 | O19: =[3]!cv_gaz(11,O28,O11,O29,O12,0.87) -> 2.541575046 | P19: =[3]!cv_gaz(11,P28,P11,P29,P12,0.87) -> 2.888020499 | Q19: =[3]!cv_gaz(11,Q28,Q11,Q29,Q12,0.87) -> 3.705914942 | R19: =[3]!cv_gaz(11,R28,R11,R29,R12,0.87) -> 3.900712521 | S19: =[3]!cv_gaz(11,S28,S11,S29,S12,0.87) -> 4.141897248 | T19: =[3]!cv_gaz(11,T28,T11,T29,T12,0.87) -> 4.450437728 | U19: =[3]!cv_gaz(11,U28,U11,U29,U12,0.87) -> 4.863330111 | V19: =[3]!cv_gaz(11,V28,V11,V29,V12,0.87) -> 5.453676967 | W19: =[3]!cv_gaz(11,W28,W11,W29,W12,0.87) -> 6.393426357 | X19: =[3]!cv_gaz(11,X28,X11,X29,X12,0.87) -> 8.235152395 | Y19: =[3]!cv_gaz(11,Y28,Y11,Y29,Y12,0.87) -> 15.09589047
B20: Trim | D20: =[3]!Trim_From_Cv(D18/D15,D16) -> 0.844560897 | H20: =[3]!Trim_From_Cv(H18/H15,H16) -> 0.5217295673 | I20: =[3]!Trim_From_Cv(I18/I15,I16) -> 0.5237608566 | J20: =[3]!Trim_From_Cv(J18/J15,J16) -> 0.5263058444 | K20: =[3]!Trim_From_Cv(K18/K15,K16) -> 0.5314676517 | L20: =[3]!Trim_From_Cv(L18/L15,L16) -> 0.5362075194 | M20: =[3]!Trim_From_Cv(M18/M15,M16) -> 0.5425293201 | N20: =[3]!Trim_From_Cv(N18/N15,N16) -> 0.551287718 | O20: =[3]!Trim_From_Cv(O18/O15,O16) -> 0.5641537137 | P20: =[3]!Trim_From_Cv(P18/P15,P16) -> 0.5850414109 | Q20: =[3]!Trim_From_Cv(Q18/Q15,Q16) -> 0.6268955507 | R20: =[3]!Trim_From_Cv(R18/R15,R16) -> 0.6356473639 | S20: =[3]!Trim_From_Cv(S18/S15,S16) -> 0.6459532344 | T20: =[3]!Trim_From_Cv(T18/T15,T16) -> 0.6583688365 | U20: =[3]!Trim_From_Cv(U18/U15,U16) -> 0.6737988734 | V20: =[3]!Trim_From_Cv(V18/V15,V16) -> 0.6938634947 | W20: =[3]!Trim_From_Cv(W18/W15,W16) -> 0.7219195859 | X20: =[3]!Trim_From_Cv(X18/X15,X16) -> 0.766969772 | Y20: =[3]!Trim_From_Cv(Y18/Y15,Y16) -> 0.8758601253
B24: TURBINE 1
D26: DESIGN | H26: start-up | I26: start-up | J26: start-up | K26: start-up | L26: start-up | M26: start-up | N26: start-up | O26: start-up | P26: start-up | Q26: start-up
B28: m | C28: g/s | D28: 191.5 | H28: =H41*H29/H30^0.5 -> 89.24093583 | I28: 92.24188102 | J28: 95.64796491 | K28: 101.7527223 | L28: 106.7192068 | M28: 112.6923552 | N28: 120.0819859 | O28: 129.5880304 | P28: 142.5457485 | Q28: 161.9862523 | R28: 165.1891447 | S28: 168.6412885 | T28: 172.3794522 | U28: 176.4488478 | V28: 180.9058835 | W28: 185.8221204 | X28: 191.2901339 | Y28: 197.4324798
B29: Pin | C29: Bara | D29: 14.77 | H29: 9.730340349 | I29: 9.802884117 | J29: 9.893749362 | K29: 10.07713153 | L29: 10.24371189 | M29: 10.46230494 | N29: 10.7570618 | O29: 11.17040227 | P29: 11.78561111 | Q29: 12.79739942 | R29: 12.97252376 | S29: 13.16360258 | T29: 13.373095 | U29: 13.60403512 | V29: 13.8602212 | W29: 14.14648805 | X29: 14.46911132 | Y29: 14.83642689
B30: Tin | C30: K | D30: 40.03 | H30: 80 | I30: =H30-4 -> 76 | J30: =I30-4 -> 72 | K30: 66 | L30: 62 | M30: 58 | N30: 54 | O30: 50 | P30: 46 | Q30: 42 | R30: =Q30-0.5 -> 41.5 | S30: =R30-0.5 -> 41 | T30: 40.5 | U30: 40 | V30: 39.5 | W30: 39 | X30: 38.5 | Y30: 38
B31: Pout | C31: Bara | D31: 6.36 | H31: =H64 -> 4.861180379 | I31: 4.869351439 | J31: 4.881990177 | K31: 4.913063769 | L31: 4.945777711 | M31: 4.993264153 | N31: 5.063300166 | O31: 5.169919005 | P31: 5.341419273 | Q31: 5.645749135 | R31: =R64 -> 5.700504758 | S31: 5.760822461 | T31: 5.827592161 | U31: 5.901915348 | V31: =V64 -> 5.985175368 | W31: 6.07913884 | X31: 6.186106459 | Y31: 6.309144592
B32: Tout | C32: K | D32: =[3]!T2_turb(11,D29,D30,D31,D33) -> 31.09458691 | H32: =[3]!T2_turb(11,H29,H30,H31,H33) -> 66.26207257 | I32: =[3]!T2_turb(11,I29,I30,I31,I33) -> 62.68594953 | J32: =[3]!T2_turb(11,J29,J30,J31,J33) -> 59.12271242 | K32: =[3]!T2_turb(11,K29,K30,K31,K33) -> 53.8038199 | L32: =[3]!T2_turb(11,L29,L30,L31,L33) -> 50.27639744 | M32: =[3]!T2_turb(11,M29,M30,M31,M33) -> 46.76463275 | N32: =[3]!T2_turb(11,N29,N30,N31,N33) -> 43.26897711 | O32: =[3]!T2_turb(11,O29,O30,O31,O33) -> 39.78924802 | P32: =[3]!T2_turb(11,P29,P30,P31,P33) -> 36.32376395 | Q32: =[3]!T2_turb(11,Q29,Q30,Q31,Q33) -> 32.86698589 | R32: =[3]!T2_turb(11,R29,R30,R31,R33) -> 32.43488052 | S32: =[3]!T2_turb(11,S29,S30,S31,S33) -> 32.00262518 | T32: =[3]!T2_turb(11,T29,T30,T31,T33) -> 31.57015285 | U32: =[3]!T2_turb(11,U29,U30,U31,U33) -> 31.13738356 | V32: =[3]!T2_turb(11,V29,V30,V31,V33) -> 30.70422115 | W32: =[3]!T2_turb(11,W29,W30,W31,W33) -> 30.2705487 | X32: =[3]!T2_turb(11,X29,X30,X31,X33) -> 29.83622237 | Y32: =[3]!T2_turb(11,Y29,Y30,Y31,Y33) -> 29.40106257
B33: Efficacity | C33: % | D33: 0.78 | H33: =(0.321*H55^4-1.6098*H55^3+1.316*H55^2+0.9448*H55)*($D$33/0.97215493) -> 0.7124430631 | I33: =(0.321*I55^4-1.6098*I55^3+1.316*I55^2+0.9448*I55)*($D$33/0.97215493) -> 0.7215065237 | J33: 0.7304755833 | K33: 0.7435461569 | L33: 0.7518206569 | M33: 0.7595473828 | N33: 0.7665023925 | O33: 0.7723981782 | P33: 0.7768721658 | Q33: 0.7794923007 | R33: =(0.321*R55^4-1.6098*R55^3+1.316*R55^2+0.9448*R55)*($D$33/0.97215493) -> 0.7796672451 | S33: 0.7798058049 | T33: 0.7799074789 | U33: 0.7799719334 | V33: =(0.321*V55^4-1.6098*V55^3+1.316*V55^2+0.9448*V55)*($D$33/0.97215493) -> 0.7799990591 | W33: 0.7799890492 | X33: 0.7799425084 | Y33: 0.779860608
B34: Power | C34: W | D34: =+D28*(D45-D46) -> 9122.443616 | H34: =+H28*(H45-H46) -> 6493.040253 | I34: 6507.374875 | J34: 6529.547217 | K34: 6584.06012 | L34: 6641.450714 | M34: 6724.756943 | N34: 6847.622249 | O34: 7034.665391 | P34: 7335.53107 | Q34: 7869.421841 | R34: 7965.480506 | S34: 8071.29682 | T34: 8188.431976 | U34: 8318.818346 | V34: 8464.882749 | W34: 8629.724379 | X34: 8817.379386 | Y34: 9033.22716
B35: Speed | C35: Hz | D35: 1995 | H35: 1995 | I35: 1995 | J35: 1995 | K35: 1995 | L35: 1995 | M35: 1995 | N35: 1995 | O35: 1995 | P35: 1995 | Q35: 1995 | R35: 1995 | S35: 1995 | T35: 1995 | U35: 1995 | V35: 1995 | W35: 1995 | X35: 1995 | Y35: 1995
B36: Speed calculated from P=K.rho.N^3 | H36: =(H34/$D34*$D38/H38)^(1/3)*$D35 -> 1995 | I36: 1995 | J36: 1995 | K36: 1995 | L36: 1995 | M36: 1995 | N36: 1995 | O36: 1995 | P36: 1995 | Q36: 1995 | R36: 1995 | S36: 1995 | T36: 1994.999999 | U36: 1995 | V36: 1995.000001 | W36: 1995.000001 | X36: 1995 | Y36: 1995
B37: Delta Speed Frein & Turbine | D37: =D31-D38 -> 1.16 | H37: =H35-H36 -> 1.898729352e-08 | I37: =I35-I36 -> 2.031652002e-08 | J37: 2.503929863e-08 | K37: -1.439248081e-07 | L37: -2.415617928e-09 | M37: -8.525921658e-08 | N37: -2.411759397e-07 | O37: -1.649325441e-07 | P37: -2.748547558e-07 | Q37: -2.073709311e-07 | R37: =R35-R36 -> 2.205358669e-07 | S37: 4.207415714e-07 | T37: 5.993122159e-07 | U37: -1.128817075e-07 | V37: =V35-V36 -> -9.525615496e-07 | W37: -8.872718809e-07 | X37: -4.157534477e-07 | Y37: -3.200302672e-07
B38: Brake Pressure | D38: 5.2 | H38: =($D38-$D31)+H31 -> 3.701180379 | I38: 3.709351439 | J38: 3.721990177 | K38: 3.753063769 | L38: 3.785777711 | M38: 3.833264153 | N38: 3.903300166 | O38: 4.009919005 | P38: 4.181419273 | Q38: 4.485749135 | R38: 4.540504758 | S38: 4.600822461 | T38: 4.667592161 | U38: 4.741915348 | V38: 4.825175368 | W38: 4.91913884 | X38: 5.026106459 | Y38: 5.149144592
B39: Rho (brake) | D39: =[3]!rho_(11,D38,330) -> 0.7569746494 | H39: =[3]!rho_(11,H38,330) -> 0.5391189976 | I39: =[3]!rho_(11,I38,330) -> 0.5403073982 | J39: =[3]!rho_(11,J38,330) -> 0.5421455634 | K39: =[3]!rho_(11,K38,330) -> 0.5466647938 | L39: =[3]!rho_(11,L38,330) -> 0.5514224666 | M39: =[3]!rho_(11,M38,330) -> 0.5583283151 | N39: =[3]!rho_(11,N38,330) -> 0.5685130082 | O39: =[3]!rho_(11,O38,330) -> 0.5840164833 | P39: =[3]!rho_(11,P38,330) -> 0.6089515456 | Q39: =[3]!rho_(11,Q38,330) -> 0.6531905773 | R39: =[3]!rho_(11,R38,330) -> 0.6611489801 | S39: =[3]!rho_(11,S38,330) -> 0.669915385 | T39: =[3]!rho_(11,T38,330) -> 0.679619 | U39: =[3]!rho_(11,U38,330) -> 0.6904197363 | V39: =[3]!rho_(11,V38,330) -> 0.7025184037 | W39: =[3]!rho_(11,W38,330) -> 0.7161714187 | X39: =[3]!rho_(11,X38,330) -> 0.7317126746 | Y39: =[3]!rho_(11,Y38,330) -> 0.7495871219
B40: Wheel | C40: mm | D40: 35.8 | H40: =$D$40 -> 35.8 | I40: =$D$40 -> 35.8 | J40: 35.8 | K40: 35.8 | L40: 35.8 | M40: 35.8 | N40: 35.8 | O40: 35.8 | P40: 35.8 | Q40: 35.8 | R40: 35.8 | S40: 35.8 | T40: 35.8 | U40: 35.8 | V40: 35.8 | W40: 35.8 | X40: 35.8 | Y40: 35.8
B41: a = mÖT/P | D41: =D28*D30^0.5/D29 -> 82.03158029 | H41: =+$D$41 -> 82.03158029 | I41: =+$D$41 -> 82.03158029 | J41: 82.03158029 | K41: 82.03158029 | L41: 82.03158029 | M41: 82.03158029 | N41: 82.03158029 | O41: 82.03158029 | P41: 82.03158029 | Q41: 82.03158029 | R41: 82.03158029 | S41: 82.03158029 | T41: 82.03158029 | U41: 82.03158029 | V41: 82.03158029 | W41: 82.03158029 | X41: 82.03158029 | Y41: 82.03158029 | AK41: T1 out | AL41: 63 | AM41: 31 | AN41: x
B42: Rho (in) | C42: kg/m3 | D42: =[3]!rho_(11,D29,D30) -> 17.08767254 | H42: =[3]!rho_(11,H29,H30) -> 5.755516862 | I42: =[3]!rho_(11,I29,I30) -> 6.098291753 | J42: =[3]!rho_(11,J29,J30) -> 6.490497572 | K42: =[3]!rho_(11,K29,K30) -> 7.199852596 | L42: =[3]!rho_(11,L29,L30) -> 7.781096677 | M42: =[3]!rho_(11,M29,M30) -> 8.482822907 | N42: =[3]!rho_(11,N29,N30) -> 9.351990589 | O42: =[3]!rho_(11,O29,O30) -> 10.46701104 | P42: =[3]!rho_(11,P29,P30) -> 11.97332592 | Q42: =[3]!rho_(11,Q29,Q30) -> 14.18969178 | R42: =[3]!rho_(11,R29,R30) -> 14.54909589 | S42: =[3]!rho_(11,S29,S30) -> 14.9345716 | T42: =[3]!rho_(11,T29,T30) -> 15.34975389 | U42: =[3]!rho_(11,U29,U30) -> 15.79908441 | V42: =[3]!rho_(11,V29,V30) -> 16.28806868 | W42: =[3]!rho_(11,W29,W30) -> 16.82364416 | X42: =[3]!rho_(11,X29,X30) -> 17.41472278 | Y42: =[3]!rho_(11,Y29,Y30) -> 18.07301637 | AK42: T2 in | AL42: 62 | AM42: 18 | AN42: y
B43: Sound Speed @inlet | D43: =[3]!Sound_speed(11,D29,D30) -> 391.2334217 | H43: =[3]!Sound_speed(11,H29,H30) -> 535.5902869 | I43: =[3]!Sound_speed(11,I29,I30) -> 522.5833137 | J43: =[3]!Sound_speed(11,J29,J30) -> 509.2570795 | K43: =[3]!Sound_speed(11,K29,K30) -> 488.6213772 | L43: =[3]!Sound_speed(11,L29,L30) -> 474.3999516 | M43: =[3]!Sound_speed(11,M29,M30) -> 459.781172 | N43: =[3]!Sound_speed(11,N29,N30) -> 444.7480792 | O43: =[3]!Sound_speed(11,O29,O30) -> 429.2992598 | P43: =[3]!Sound_speed(11,P29,P30) -> 413.4778312 | Q43: =[3]!Sound_speed(11,Q29,Q30) -> 397.4682085 | R43: =[3]!Sound_speed(11,R29,R30) -> 395.4779978 | S43: =[3]!Sound_speed(11,S29,S30) -> 393.496812 | T43: =[3]!Sound_speed(11,T29,T30) -> 391.5279383 | U43: =[3]!Sound_speed(11,U29,U30) -> 389.5754954 | V43: =[3]!Sound_speed(11,V29,V30) -> 387.6447127 | W43: =[3]!Sound_speed(11,W29,W30) -> 385.7423325 | X43: =[3]!Sound_speed(11,X29,X30) -> 383.877208 | Y43: =[3]!Sound_speed(11,Y29,Y30) -> 382.0612231 | AK43: slope | AL43: =SLOPE(AL42:AM42,AL41:AM41) -> 1.375
B44: S=Q/(rho*V) = cte | D44: =D28/(D42*D43) -> 0.02864507195 | H44: =H28/(H42*H43) -> 0.02894990167 | I44: 0.02894439087 | J44: 0.02893747726 | K44: 0.02892344162 | L44: 0.02891060242 | M44: 0.02889368089 | N44: 0.02887085991 | O44: 0.02883912417 | P44: 0.02879302106 | Q44: 0.02872121436 | R44: 0.02870933754 | S44: 0.02869656564 | T44: 0.0286827853 | U44: 0.02866786006 | V44: 0.02865162345 | W44: 0.0286338691 | X44: 0.02861433639 | Y44: 0.02859268875 | AK44: intercept | AL44: =INTERCEPT(AL42:AM42,AL41:AM41) -> -24.625
B45: Hin | D45: =[3]!h_(11,D29,D30) -> 223.5710661 | H45: =[3]!h_(11,H29,H30) -> 433.1413081 | I45: =[3]!h_(11,I29,I30) -> 412.2878084 | J45: =[3]!h_(11,J29,J30) -> 391.4224022 | K45: =[3]!h_(11,K29,K30) -> 360.0959716 | L45: =[3]!h_(11,L29,L30) -> 339.1872758 | M45: =[3]!h_(11,M29,M30) -> 318.2527442 | N45: =[3]!h_(11,N29,N30) -> 297.2843484 | O45: =[3]!h_(11,O29,O30) -> 276.2700155 | P45: =[3]!h_(11,P29,P30) -> 255.1902674 | Q45: =[3]!h_(11,Q29,Q30) -> 234.0099926 | R45: =[3]!h_(11,R29,R30) -> 231.3523989 | S45: =[3]!h_(11,S29,S30) -> 228.6919538 | T45: =[3]!h_(11,T29,T30) -> 226.0284002 | U45: =[3]!h_(11,U29,U30) -> 223.3614408 | V45: =[3]!h_(11,V29,V30) -> 220.6907289 | W45: =[3]!h_(11,W29,W30) -> 218.0158557 | X45: =[3]!h_(11,X29,X30) -> 215.3363329 | Y45: =[3]!h_(11,Y29,Y30) -> 212.6515693 | AK45: x | AL45: y
B46: Hout | D46: =[3]!h_(11,D31,D32) -> 175.9342849 | H46: =[3]!h_(11,H31,H32) -> 360.3827675 | I46: =[3]!h_(11,I31,I32) -> 341.7409504 | J46: =[3]!h_(11,J31,J32) -> 323.1559501 | K46: =[3]!h_(11,K31,K32) -> 295.3894953 | L46: =[3]!h_(11,L31,L32) -> 276.954329 | M46: =[3]!h_(11,M31,M32) -> 258.5791582 | N46: =[3]!h_(11,N31,N32) -> 240.2597897 | O46: =[3]!h_(11,O31,O32) -> 221.9851763 | P46: =[3]!h_(11,P31,P32) -> 203.7293775 | Q46: =[3]!h_(11,Q31,Q32) -> 185.4291919 | R46: =[3]!h_(11,R31,R32) -> 183.132036 | S46: =[3]!h_(11,S31,S32) -> 180.8312141 | T46: =[3]!h_(11,T31,T32) -> 178.5260333 | U46: =[3]!h_(11,U31,U32) -> 176.215662 | V46: =[3]!h_(11,V31,V32) -> 173.8990902 | W46: =[3]!h_(11,W31,W32) -> 171.5750748 | X46: =[3]!h_(11,X31,X32) -> 169.2420613 | Y46: =[3]!h_(11,Y31,Y32) -> 166.8980683 | AK46: 277 | AL46: =m*AK46+p -> 356.25
B47: Sin = Sout | D47: =[3]!S_(11,D29,D30) -> 15.48824406 | H47: =[3]!S_(11,H29,H30) -> 20.01562118 | I47: =[3]!S_(11,I29,I30) -> 19.73250562 | J47: =[3]!S_(11,J29,J30) -> 19.43094649 | K47: =[3]!S_(11,K29,K30) -> 18.93773433 | L47: =[3]!S_(11,L29,L30) -> 18.5761361 | M47: =[3]!S_(11,M29,M30) -> 18.18222746 | N47: =[3]!S_(11,N29,N30) -> 17.74849607 | O47: =[3]!S_(11,O29,O30) -> 17.26376998 | P47: =[3]!S_(11,P29,P30) -> 16.70976526 | Q47: =[3]!S_(11,Q29,Q30) -> 16.05148614 | R47: =[3]!S_(11,R29,R30) -> 15.95863661 | S47: =[3]!S_(11,S29,S30) -> 15.86271488 | T47: =[3]!S_(11,T29,T30) -> 15.7633962 | U47: =[3]!S_(11,U29,U30) -> 15.66029113 | V47: =[3]!S_(11,V29,V30) -> 15.55292612 | W47: =[3]!S_(11,W29,W30) -> 15.44071614 | X47: =[3]!S_(11,X29,X30) -> 15.32292477 | Y47: =[3]!S_(11,Y29,Y30) -> 15.1986045 | AK47: 31 | AL47: =m*AK47+p -> 18
B48: Tout(iso) | D48: =[1]!HeCalc(2,0,1,D31*10^5,8,D47*1000,1) -> 28.58076886 | H48: =[1]!HeCalc(2,0,1,H31*10^5,8,H47*1000,1) -> 60.62992636 | I48: =[1]!HeCalc(2,0,1,I31*10^5,8,I47*1000,1) -> 57.46662848 | J48: =[1]!HeCalc(2,0,1,J31*10^5,8,J47*1000,1) -> 54.29818007 | K48: =[1]!HeCalc(2,0,1,K31*10^5,8,K47*1000,1) -> 49.53492524 | L48: =[1]!HeCalc(2,0,1,L31*10^5,8,L47*1000,1) -> 46.35152104 | M48: =[1]!HeCalc(2,0,1,M31*10^5,8,M47*1000,1) -> 43.16081152 | N48: =[1]!HeCalc(2,0,1,N31*10^5,8,N47*1000,1) -> 39.96148381 | O48: =[1]!HeCalc(2,0,1,O31*10^5,8,O47*1000,1) -> 36.75142528 | P48: =[1]!HeCalc(2,0,1,P31*10^5,8,P47*1000,1) -> 33.52690394 | Q48: =[1]!HeCalc(2,0,1,Q31*10^5,8,Q47*1000,1) -> 30.28038921 | R48: =[1]!HeCalc(2,0,1,R31*10^5,8,R47*1000,1) -> 29.87232743 | S48: =[1]!HeCalc(2,0,1,S31*10^5,8,S47*1000,1) -> 29.46361214 | T48: =[1]!HeCalc(2,0,1,T31*10^5,8,T47*1000,1) -> 29.05417622 | U48: =[1]!HeCalc(2,0,1,U31*10^5,8,U47*1000,1) -> 28.64394065 | V48: =[1]!HeCalc(2,0,1,V31*10^5,8,V47*1000,1) -> 28.23281142 | W48: =[1]!HeCalc(2,0,1,W31*10^5,8,W47*1000,1) -> 27.82067544 | X48: =[1]!HeCalc(2,0,1,X31*10^5,8,X47*1000,1) -> 27.40739479 | Y48: =[1]!HeCalc(2,0,1,Y31*10^5,8,Y47*1000,1) -> 26.99279865 | AK48: 31 | AL48: =m*AK48+p -> 18
B49: Hout(iso) | D49: =[3]!h_(11,D31,D48) -> 162.4982696 | H49: =[3]!h_(11,H31,H48) -> 331.0158971 | I49: =[3]!h_(11,I31,I48) -> 314.5106496 | J49: =[3]!h_(11,J31,J48) -> 297.9675987 | K49: =[3]!h_(11,K31,K48) -> 273.0718162 | L49: =[3]!h_(11,L31,L48) -> 256.4109565 | M49: =[3]!h_(11,M31,M48) -> 239.6880788 | N49: =[3]!h_(11,N31,N48) -> 222.8885484 | O49: =[3]!h_(11,O31,O48) -> 205.9891154 | P49: =[3]!h_(11,P31,P48) -> 188.9491377 | Q49: =[3]!h_(11,Q31,Q48) -> 171.6863486 | R49: =[3]!h_(11,R31,R48) -> 169.5050362 | S49: =[3]!h_(11,S31,S48) -> 167.3167506 | T49: =[3]!h_(11,T31,T48) -> 165.1207052 | U49: =[3]!h_(11,U31,U48) -> 162.9159596 | V49: =[3]!h_(11,V31,V48) -> 160.7013761 | W49: =[3]!h_(11,W31,W48) -> 158.4755571 | X49: =[3]!h_(11,X31,X48) -> 156.2367569 | Y49: =[3]!h_(11,Y31,Y48) -> 153.9827501
B50: ΔHs | D50: =D45-D49 -> 61.07279652 | H50: 102.125411 | I50: =I45-I49 -> 97.77715877 | J50: 93.45480353 | K50: 87.02415546 | L50: 82.77631931 | M50: 78.56466535 | N50: 74.39579995 | O50: 70.28090009 | P50: 66.2411297 | Q50: 62.32364407 | R50: =R45-R49 -> 61.84736272 | S50: 61.37520321 | T50: 60.907695 | U50: 60.44548113 | V50: =V45-V49 -> 59.98935281 | W50: 59.5402986 | X50: 59.09957605 | Y50: 58.66881916
B51: u1 | C51: m/s | D51: =(2*52.7%*D50*1000*D33)^0.5 -> 224.0740223 | H51: =PI()*$D$52*H35 -> 224.0740223 | I51: =PI()*$D$52*I35 -> 224.0740223 | J51: 224.0740223 | K51: 224.0740223 | L51: 224.0740223 | M51: 224.0740223 | N51: 224.0740223 | O51: 224.0740223 | P51: 224.0740223 | Q51: 224.0740223 | R51: =PI()*$D$52*R35 -> 224.0740223 | S51: 224.0740223 | T51: 224.0740223 | U51: 224.0740223 | V51: =PI()*$D$52*V35 -> 224.0740223 | W51: 224.0740223 | X51: 224.0740223 | Y51: 224.0740223
B52: D1 | D52: =D51/PI()/D35 -> 0.03575186794
B53: Co = (2*ΔHs)^0,5 | D53: =(2000*D50)^0.5 -> 349.4933376 | H53: 451.9411709 | I53: =(2000*I50)^0.5 -> 442.2152389 | J53: 432.3304373 | K53: 417.1909766 | L53: 406.8816027 | M53: 396.3954221 | N53: 385.7351422 | O53: 374.9157241 | P53: 363.9811251 | Q53: 353.0542283 | R53: =(2000*R50)^0.5 -> 351.7026094 | S53: 350.3575408 | T53: 349.0206154 | U53: 347.6937766 | V53: =(2000*V50)^0.5 -> 346.3794244 | W53: 345.0805662 | X53: 343.8010356 | Y53: 342.5458193
B54: u1/Co | D54: =D51/D53 -> 0.6411396104 | H54: 0.4958035177 | I54: =I51/I53 -> 0.5067080521 | J54: 0.5182934232 | K54: 0.5371017949 | L54: 0.5507106264 | M54: 0.5652790365 | N54: 0.5809012398 | O54: 0.5976650428 | P54: 0.6156198959 | Q54: 0.6346731021 | R54: =R51/R53 -> 0.6371121974 | S54: 0.6395581547 | T54: 0.6420079858 | U54: 0.644457961 | V54: =V51/V53 -> 0.6469033856 | W54: 0.6493382828 | X54: 0.651754937 | Y54: 0.6541432114
B55: U1/C0 off de / U1/C0 nom | D55: =D54/$D$54 -> 1 | H55: =H54/$D54 -> 0.7733159981 | I55: =I54/$D54 -> 0.7903240478 | J55: 0.808394014 | K55: 0.8377298582 | L55: 0.8589558616 | M55: 0.8816785414 | N55: 0.9060448463 | O55: 0.9321917304 | P55: 0.9601963221 | Q55: 0.9899140404 | R55: =R54/$D54 -> 0.9937183526 | S55: 0.9975333677 | T55: 1.001354425 | U55: 1.005175707 | V55: =V54/$D54 -> 1.008989891 | W55: 1.012787655 | X55: 1.016556966 | Y55: 1.020282012
B56: Rdt | D56: =(0.321*D55^4-1.6098*D55^3+1.316*D55^2+0.9448*D55)*($D33/0.97215493) -> 0.7798756933 | H56: =(0.321*H55^4-1.6098*H55^3+1.316*H55^2+0.9448*H55)*($D33/0.97) -> 0.7140258105 | I56: 0.7231094062 | J56: 0.7320983913 | K56: 0.7451980022 | L56: 0.7534908846 | M56: 0.7612347761 | N56: 0.7682052369 | O56: 0.7741141205 | P56: 0.7785980474 | Q56: 0.7812240031 | R56: 0.7813993362 | S56: 0.7815382038 | T56: 0.7816401037 | U56: 0.7817047013 | V56: 0.7817318873 | W56: 0.7817218552 | X56: 0.781675211 | Y56: 0.7815931286
B59: TURBINE 2
H60: 5
D61: DESIGN | H61: =H26 -> start-up | I61: =I26 -> start-up | J61: start-up | K61: start-up | L61: start-up | M61: start-up | N61: start-up | O61: start-up | P61: start-up | Q61: start-up | R61: =R26 -> 0 | S61: 0 | T61: 0 | U61: 0 | V61: =V26 -> 0 | W61: 0 | X61: 0 | Y61: 0
B62: Delta Debit | H62: =H63-H28 -> -12.11529472 | I62: -11.96084098 | J62: -11.7512042 | K62: -11.2824823 | L62: -10.81227589 | M62: -10.14166078 | N62: -9.157172999 | O62: -7.653361887 | P62: -5.222729205 | Q62: -0.9383703812 | R62: -0.1784401663 | S62: 0.6533537313 | T62: 1.567010308 | U62: 2.574535124 | V62: 3.690507161 | W62: 4.932865336 | X62: 6.324029149 | Y62: 7.892546964
B63: m | C63: g/s | D63: 191.2 | H63: =H76*H64/H65^0.5 -> 77.12564111 | I63: =I76*I64/I65^0.5 -> 80.28104004 | J63: 83.89676071 | K63: 90.47024001 | L63: 95.90693089 | M63: 102.5506944 | N63: 110.9248129 | O63: 121.9346685 | P63: 137.3230193 | Q63: 161.0478819 | R63: =R76*R64/R65^0.5 -> 165.0107045 | S63: =S76*S64/S65^0.5 -> 169.2946423 | T63: =T76*T64/T65^0.5 -> 173.9464625 | U63: =U76*U64/U65^0.5 -> 179.023383 | V63: =V76*V64/V65^0.5 -> 184.5963907 | W63: =W76*W64/W65^0.5 -> 190.7549857 | X63: =X76*X64/X65^0.5 -> 197.6141631 | Y63: =Y76*Y64/Y65^0.5 -> 205.3250268
B64: Pin | C64: Bara | D64: 6.307 | H64: 4.861180379 | I64: 4.869351439 | J64: 4.881990177 | K64: 4.913063769 | L64: 4.945777711 | M64: 4.993264153 | N64: 5.063300166 | O64: 5.169919005 | P64: 5.341419273 | Q64: 5.645749135 | R64: 5.700504758 | S64: 5.760822461 | T64: 5.827592161 | U64: 5.901915348 | V64: 5.985175368 | W64: 6.07913884 | X64: 6.186106459 | Y64: 6.309144592
B65: Tin | C65: K | D65: 18.21 | H65: =m*H32+p -> 66.48534979 | I65: =m*I32+p -> 61.5681806 | J65: 56.66872957 | K65: 49.35525236 | L65: 44.50504648 | M65: 39.67637004 | N65: 34.86984352 | O65: 30.08521602 | P65: 25.32017544 | Q65: =m*Q32+p -> 20.5671056 | R65: 19.97296071 | S65: 19.37860962 | T65: 18.78396016 | U65: 18.1889024 | V65: 17.59330408 | W65: 16.99700446 | X65: 16.39980576 | Y65: 15.80146103
B66: Pout | C66: Bara | D66: 1.35 | H66: 1.15 | I66: 1.15 | J66: 1.15 | K66: 1.15 | L66: 1.15 | M66: 1.15 | N66: 1.15 | O66: 1.15 | P66: 1.15 | Q66: 1.15 | R66: 1.15 | S66: 1.15 | T66: 1.15 | U66: 1.15 | V66: 1.15 | W66: 1.15 | X66: 1.15 | Y66: 1.15
B67: Tout | C67: K | D67: =[3]!T2_turb(11,D64,D65,D66,D68) -> 11.61835748 | H67: =[3]!T2_turb(11,H64,H65,H66,H68) -> 51.6932404 | I67: =[3]!T2_turb(11,I64,I65,I66,I68) -> 47.35244435 | J67: =[3]!T2_turb(11,J64,J65,J66,J68) -> 43.05840097 | K67: =[3]!T2_turb(11,K64,K65,K66,K68) -> 36.7170566 | L67: =[3]!T2_turb(11,L64,L65,L66,L68) -> 32.56586081 | M67: =[3]!T2_turb(11,M64,M65,M66,M68) -> 28.48561828 | N67: =[3]!T2_turb(11,N64,N65,N66,N68) -> 24.48699447 | O67: =[3]!T2_turb(11,O64,O65,O66,O68) -> 20.58320294 | P67: =[3]!T2_turb(11,P64,P65,P66,P68) -> 16.79031803 | Q67: =[3]!T2_turb(11,Q64,Q65,Q66,Q68) -> 13.1255721 | R67: =[3]!T2_turb(11,R64,R65,R66,R68) -> 12.67708693 | S67: =[3]!T2_turb(11,S64,S65,S66,S68) -> 12.23071182 | T67: =[3]!T2_turb(11,T64,T65,T66,T68) -> 11.78639076 | U67: =[3]!T2_turb(11,U64,U65,U66,U68) -> 11.3440342 | V67: =[3]!T2_turb(11,V64,V65,V66,V68) -> 10.90350647 | W67: =[3]!T2_turb(11,W64,W65,W66,W68) -> 10.46460759 | X67: =[3]!T2_turb(11,X64,X65,X66,X68) -> 10.02704633 | Y67: =[3]!T2_turb(11,Y64,Y65,Y66,Y68) -> 9.590399304
B68: Efficacity | C68: % | D68: 0.76 | H68: =(0.321*H90^4-1.6098*H90^3+1.316*H90^2+0.9448*H90)*($D$68/0.97215493) -> 0.510096929 | I68: =(0.321*I90^4-1.6098*I90^3+1.316*I90^2+0.9448*I90)*($D$68/0.97215493) -> 0.5286060459 | J68: 0.5487185388 | K68: 0.5822769819 | L68: 0.6071516323 | M68: 0.6341560141 | N68: 0.6632265374 | O68: 0.6938865659 | P68: 0.7246105275 | Q68: 0.7509464767 | R68: =(0.321*R90^4-1.6098*R90^3+1.316*R90^2+0.9448*R90)*($D$68/0.97215493) -> 0.7534304419 | S68: 0.7556127502 | T68: 0.757436847 | U68: 0.7588344064 | V68: =(0.321*V90^4-1.6098*V90^3+1.316*V90^2+0.9448*V90)*($D$68/0.97215493) -> 0.7597219955 | W68: 0.7599964341 | X68: 0.7595281568 | Y68: 0.7581514117
B69: Power | C69: W | D69: =+D63*(D80-D81) -> 6144.650346 | H69: 5991.034088 | I69: =+I63*(I80-I81) -> 5991.034088 | J69: 5991.034088 | K69: 5991.034082 | L69: 5991.034087 | M69: 5991.034087 | N69: 5991.034087 | O69: 5991.034087 | P69: 5991.034087 | Q69: 5991.034087 | R69: =+R63*(R80-R81) -> 5991.034091 | S69: 5991.034094 | T69: 5991.034097 | U69: 5991.034087 | V69: =+V63*(V80-V81) -> 5991.034087 | W69: 5991.034087 | X69: 5991.034087 | Y69: 5991.034087
B70: Speed | C70: Hz | D70: 1496 | H70: 1496 | I70: 1496 | J70: 1496 | K70: 1496 | L70: 1496 | M70: 1496 | N70: 1496 | O70: 1496 | P70: 1496 | Q70: 1496 | R70: 1496 | S70: 1496 | T70: 1496 | U70: 1496 | V70: 1496 | W70: 1496 | X70: 1496 | Y70: 1496
H71: =(H69/$D69*$D73/H73)^(1/3)*$D70 -> 1496 | I71: =(I69/$D69*$D73/I73)^(1/3)*$D70 -> 1496 | J71: 1496 | K71: 1496 | L71: 1496 | M71: 1496 | N71: 1496 | O71: 1496 | P71: 1496 | Q71: 1496 | R71: =(R69/$D69*$D73/R73)^(1/3)*$D70 -> 1496 | S71: 1496.000001 | T71: 1496.000001 | U71: 1496 | V71: =(V69/$D69*$D73/V73)^(1/3)*$D70 -> 1496 | W71: 1496 | X71: 1496 | Y71: 1496
B72: Delta Speed Frein & Turbine | H72: =H70-H71 -> -4.541857379e-08 | I72: =I70-I71 -> -4.301477929e-08 | J72: -4.988123692e-08 | K72: 4.631315278e-07 | L72: 7.368271326e-09 | M72: 1.242597136e-09 | N72: 4.629782779e-09 | O72: 4.057483238e-09 | P72: 9.178847904e-09 | Q72: =Q70-Q71 -> 8.123379303e-09 | R72: =R70-R71 -> -3.093118721e-07 | S72: -5.945703379e-07 | T72: -8.516590242e-07 | U72: 3.995637599e-09 | V72: =V70-V71 -> 3.075388122e-08 | W72: =W70-W71 -> 2.471688276e-08 | X72: =X70-X71 -> 9.252062227e-09 | Y72: =Y70-Y71 -> 3.983814167e-09
B73: Brake Pressure | D73: 8 | H73: =($D73-$D66)+H66 -> 7.8 | I73: =($D73-$D66)+I66 -> 7.8 | J73: 7.8 | K73: 7.8 | L73: 7.8 | M73: 7.8 | N73: 7.8 | O73: 7.8 | P73: 7.8 | Q73: 7.8 | R73: =($D73-$D66)+R66 -> 7.8 | S73: 7.8 | T73: 7.8 | U73: 7.8 | V73: =($D73-$D66)+V66 -> 7.8 | W73: 7.8 | X73: 7.8 | Y73: 7.8
B74: Rho (brake) | D74: =[3]!rho_(11,D73,330) -> 1.16324325 | H74: =[3]!rho_(11,H73,330) -> 1.134254938 | I74: =[3]!rho_(11,I73,330) -> 1.134254938 | J74: =[3]!rho_(11,J73,330) -> 1.134254938 | K74: =[3]!rho_(11,K73,330) -> 1.134254938 | L74: =[3]!rho_(11,L73,330) -> 1.134254938 | M74: =[3]!rho_(11,M73,330) -> 1.134254938 | N74: =[3]!rho_(11,N73,330) -> 1.134254938 | O74: =[3]!rho_(11,O73,330) -> 1.134254938 | P74: =[3]!rho_(11,P73,330) -> 1.134254938 | Q74: =[3]!rho_(11,Q73,330) -> 1.134254938 | R74: =[3]!rho_(11,R73,330) -> 1.134254938 | S74: =[3]!rho_(11,S73,330) -> 1.134254938 | T74: =[3]!rho_(11,T73,330) -> 1.134254938 | U74: =[3]!rho_(11,U73,330) -> 1.134254938 | V74: =[3]!rho_(11,V73,330) -> 1.134254938 | W74: =[3]!rho_(11,W73,330) -> 1.134254938 | X74: =[3]!rho_(11,X73,330) -> 1.134254938 | Y74: =[3]!rho_(11,Y73,330) -> 1.134254938
B75: Wheel | C75: mm | D75: 39.5 | H75: =$D$40 -> 35.8 | I75: =$D$40 -> 35.8 | J75: 35.8 | K75: 35.8 | L75: 35.8 | M75: 35.8 | N75: 35.8 | O75: 35.8 | P75: 35.8 | Q75: 35.8 | R75: 35.8 | S75: 35.8 | T75: 35.8 | U75: 35.8 | V75: 35.8 | W75: 35.8 | X75: 35.8 | Y75: 35.8
B76: a = mÖT/P | D76: =D63*D65^0.5/D64 -> 129.3659642 | H76: =$D$76 -> 129.3659642 | I76: 129.3659642 | J76: 129.3659642 | K76: 129.3659642 | L76: 129.3659642 | M76: 129.3659642 | N76: 129.3659642 | O76: 129.3659642 | P76: 129.3659642 | Q76: 129.3659642 | R76: 129.3659642 | S76: 129.3659642 | T76: 129.3659642 | U76: 129.3659642 | V76: 129.3659642 | W76: 129.3659642 | X76: 129.3659642 | Y76: 129.3659642
B77: Rho (in) | C77: kg/m3 | D77: =[3]!rho_(11,D64,D65) -> 16.81725024 | H77: =[3]!rho_(11,H64,H65) -> 3.484938868 | I77: =[3]!rho_(11,I64,I65) -> 3.767447369 | J77: =[3]!rho_(11,J64,J65) -> 4.101335879 | K77: =[3]!rho_(11,K64,K65) -> 4.734686666 | L77: =[3]!rho_(11,L64,L65) -> 5.282642684 | M77: =[3]!rho_(11,M64,M65) -> 5.979930032 | N77: =[3]!rho_(11,N64,N65) -> 6.899268718 | O77: =[3]!rho_(11,O64,O65) -> 8.171418215 | P77: =[3]!rho_(11,P64,P65) -> 10.06011686 | Q77: =[3]!rho_(11,Q64,Q65) -> 13.20141947 | R77: =[3]!rho_(11,R64,R65) -> 13.75153504 | S77: =[3]!rho_(11,S64,S65) -> 14.35409491 | T77: =[3]!rho_(11,T64,T65) -> 15.01752853 | U77: =[3]!rho_(11,U64,U65) -> 15.75228119 | V77: =[3]!rho_(11,V64,V65) -> 16.5714842 | W77: =[3]!rho_(11,W64,W65) -> 17.49192176 | X77: =[3]!rho_(11,X64,X65) -> 18.53546598 | Y77: =[3]!rho_(11,Y64,Y65) -> 19.73127592
B78: Sound Speed | D78: =[3]!Sound_speed(11,D64,D65) -> 258.3914638 | H78: =[3]!Sound_speed(11,H64,H65) -> 484.870247 | I78: =[3]!Sound_speed(11,I64,I65) -> 466.9795878 | J78: =[3]!Sound_speed(11,J64,J65) -> 448.4361774 | K78: =[3]!Sound_speed(11,K64,K65) -> 419.2095671 | L78: =[3]!Sound_speed(11,L64,L65) -> 398.6220635 | M78: =[3]!Sound_speed(11,M64,M65) -> 376.9782978 | N78: =[3]!Sound_speed(11,N64,N65) -> 354.0698486 | O78: =[3]!Sound_speed(11,O64,O65) -> 329.5989265 | P78: =[3]!Sound_speed(11,P64,P65) -> 303.1082176 | Q78: =[3]!Sound_speed(11,Q64,Q65) -> 273.8174097 | R78: =[3]!Sound_speed(11,R64,R65) -> 269.8961875 | S78: =[3]!Sound_speed(11,S64,S65) -> 265.9049938 | T78: =[3]!Sound_speed(11,T64,T65) -> 261.8390322 | U78: =[3]!Sound_speed(11,U64,U65) -> 257.6929689 | V78: =[3]!Sound_speed(11,V64,V65) -> 253.4608828 | W78: =[3]!Sound_speed(11,W64,W65) -> 249.1362376 | X78: =[3]!Sound_speed(11,X64,X65) -> 244.7119106 | Y78: =[3]!Sound_speed(11,Y64,Y65) -> 240.180357
B79: S=Q/(rho*V) = cte | D79: =D63/(D77*D78) -> 0.04400020898 | H79: 0.04564341048 | I79: =I63/(I77*I78) -> 0.04563183134 | J79: 0.04561621151 | K79: 0.04558094382 | L79: 0.0455446558 | M79: 0.04549107019 | N79: 0.04540845223 | O79: 0.04527349008 | P79: 0.04503421611 | Q79: 0.04455262824 | R79: =R63/(R77*R78) -> 0.04445946056 | S79: 0.04435482877 | T79: 0.04423670271 | U79: 0.04410255344 | V79: =V63/(V77*V78) -> 0.04394918795 | W79: 0.04377251198 | X79: 0.04356718011 | Y79: 0.04332606354
B80: Hin | D80: =[3]!h_(11,D64,D65) -> 105.9022075 | H80: =[3]!h_(11,H64,H65) -> 361.5464579 | I80: =[3]!h_(11,I64,I65) -> 335.9114999 | J80: =[3]!h_(11,J64,J65) -> 310.3474022 | K80: =[3]!h_(11,K64,K65) -> 272.1318265 | L80: =[3]!h_(11,L64,L65) -> 246.7348488 | M80: =[3]!h_(11,M64,M65) -> 221.3880475 | N80: =[3]!h_(11,N64,N65) -> 196.0654403 | O80: =[3]!h_(11,O64,O65) -> 170.7145841 | P80: =[3]!h_(11,P64,P65) -> 145.2241361 | Q80: =[3]!h_(11,Q64,Q65) -> 119.327682 | R80: =[3]!h_(11,R64,R65) -> 116.0340517 | S80: =[3]!h_(11,S64,S65) -> 112.7210814 | T80: =[3]!h_(11,T64,T65) -> 109.3856126 | U80: =[3]!h_(11,U64,U65) -> 106.0237997 | V80: =[3]!h_(11,V64,V65) -> 102.6308998 | W80: =[3]!h_(11,W64,W65) -> 99.20097658 | X80: =[3]!h_(11,X64,X65) -> 95.72646944 | Y80: =[3]!h_(11,Y64,Y65) -> 92.19755119
B81: Hout | D81: =[3]!h_(11,D66,D67) -> 73.76491485 | H81: =[3]!h_(11,H66,H67) -> 283.8675692 | I81: =[3]!h_(11,I66,I67) -> 261.2857342 | J81: =[3]!h_(11,J66,J67) -> 238.9378026 | K81: =[3]!h_(11,K66,K67) -> 205.9107788 | L81: =[3]!h_(11,L66,L67) -> 184.2676837 | M81: =[3]!h_(11,M66,M67) -> 162.9678279 | N81: =[3]!h_(11,N66,N67) -> 142.055576 | O81: =[3]!h_(11,O66,O67) -> 121.5814363 | P81: =[3]!h_(11,P66,P67) -> 101.596825 | Q81: =[3]!h_(11,Q66,Q67) -> 82.12735362 | R81: =[3]!h_(11,R66,R67) -> 79.7271096 | S81: =[3]!h_(11,S66,S67) -> 77.33287293 | T81: =[3]!h_(11,T66,T67) -> 74.94378487 | U81: =[3]!h_(11,U66,U67) -> 72.55870706 | V81: =[3]!h_(11,V66,V67) -> 70.1761261 | W81: =[3]!h_(11,W66,W67) -> 67.79401721 | X81: =[3]!h_(11,X66,X67) -> 65.409644 | Y81: =[3]!h_(11,Y66,Y67) -> 63.01925676
B82: Sin = Sout | D82: =[3]!S_(11,D64,D65) -> 13.04156759 | H82: =[3]!S_(11,H64,H65) -> 20.49632498 | I82: =[3]!S_(11,I64,I65) -> 20.09222264 | J82: =[3]!S_(11,J64,J65) -> 19.65410694 | K82: =[3]!S_(11,K64,K65) -> 18.91872353 | L82: =[3]!S_(11,L64,L65) -> 18.36310873 | M82: =[3]!S_(11,M64,M65) -> 17.7401287 | N82: =[3]!S_(11,N64,N65) -> 17.03045666 | O82: =[3]!S_(11,O64,O65) -> 16.20456166 | P82: =[3]!S_(11,P64,P65) -> 15.21343142 | Q82: =[3]!S_(11,Q64,Q65) -> 13.96441716 | R82: =[3]!S_(11,R64,R65) -> 13.78186475 | S82: =[3]!S_(11,S64,S65) -> 13.59164907 | T82: =[3]!S_(11,T64,T65) -> 13.39299235 | U82: =[3]!S_(11,U64,U65) -> 13.18497663 | V82: =[3]!S_(11,V64,V65) -> 12.96650484 | W82: =[3]!S_(11,W64,W65) -> 12.73624656 | X82: =[3]!S_(11,X64,X65) -> 12.49256045 | Y82: =[3]!S_(11,Y64,Y65) -> 12.23337962
B83: Tout(iso) | D83: =[1]!HeCalc(2,0,1,D66*10^5,8,D82*1000,1) -> 9.763910711 | H83: =[1]!HeCalc(2,0,1,H66*10^5,8,H82*1000,1) -> 37.36054211 | I83: =[1]!HeCalc(2,0,1,I66*10^5,8,I82*1000,1) -> 34.57333406 | J83: =[1]!HeCalc(2,0,1,J66*10^5,8,J82*1000,1) -> 31.78783363 | K83: =[1]!HeCalc(2,0,1,K66*10^5,8,K82*1000,1) -> 27.61225394 | L83: =[1]!HeCalc(2,0,1,L66*10^5,8,L82*1000,1) -> 24.82958707 | M83: =[1]!HeCalc(2,0,1,M66*10^5,8,M82*1000,1) -> 22.04662866 | N83: =[1]!HeCalc(2,0,1,N66*10^5,8,N82*1000,1) -> 19.26148912 | O83: =[1]!HeCalc(2,0,1,O66*10^5,8,O82*1000,1) -> 16.47057484 | P83: =[1]!HeCalc(2,0,1,P66*10^5,8,P82*1000,1) -> 13.66652906 | Q83: =[1]!HeCalc(2,0,1,Q66*10^5,8,Q82*1000,1) -> 10.83220936 | R83: =[1]!HeCalc(2,0,1,R66*10^5,8,R82*1000,1) -> 10.47402173 | S83: =[1]!HeCalc(2,0,1,S66*10^5,8,S82*1000,1) -> 10.11454835 | T83: =[1]!HeCalc(2,0,1,T66*10^5,8,T82*1000,1) -> 9.753596549 | U83: =[1]!HeCalc(2,0,1,U66*10^5,8,U82*1000,1) -> 9.390933866 | V83: =[1]!HeCalc(2,0,1,V66*10^5,8,V82*1000,1) -> 9.026276653 | W83: =[1]!HeCalc(2,0,1,W66*10^5,8,W82*1000,1) -> 8.659274299 | X83: =[1]!HeCalc(2,0,1,X66*10^5,8,X82*1000,1) -> 8.289486832 | Y83: =[1]!HeCalc(2,0,1,Y66*10^5,8,Y82*1000,1) -> 7.916352396
B84: Hout(iso) | D84: =[3]!h_(11,D66,D83) -> 63.61629614 | H84: =[3]!h_(11,H66,H83) -> 209.2638539 | I84: =[3]!h_(11,I66,I83) -> 194.7368646 | J84: =[3]!h_(11,J66,J83) -> 180.2085522 | K84: =[3]!h_(11,K66,K83) -> 158.4040821 | L84: =[3]!h_(11,L66,L83) -> 143.8492403 | M84: =[3]!h_(11,M66,M83) -> 129.2652602 | N84: =[3]!h_(11,N66,N83) -> 114.6304234 | O84: =[3]!h_(11,O66,O83) -> 99.90596756 | P84: =[3]!h_(11,P66,P83) -> 85.01619063 | Q84: =[3]!h_(11,Q66,Q83) -> 69.78975949 | R84: =[3]!h_(11,R66,R83) -> 67.84520762 | S84: =[3]!h_(11,S66,S83) -> 65.88729192 | T84: =[3]!h_(11,T66,T83) -> 63.91406225 | U84: =[3]!h_(11,U66,U83) -> 61.92314698 | V84: =[3]!h_(11,V66,V83) -> 59.91162367 | W84: =[3]!h_(11,W66,W83) -> 57.87583612 | X84: =[3]!h_(11,X66,X83) -> 55.81112835 | Y84: =[3]!h_(11,Y66,Y83) -> 53.71144672
B85: ΔHs | D85: =D80-D84 -> 42.28591132 | H85: 152.282604 | I85: =I80-I84 -> 141.1746353 | J85: 130.1388499 | K85: 113.7277443 | L85: 102.8856085 | M85: 92.12278729 | N85: 81.43501685 | O85: 70.80861656 | P85: 60.20794545 | Q85: 49.53792247 | R85: =R80-R84 -> 48.18884406 | S85: 46.83378948 | T85: 45.47155037 | U85: 44.10065268 | V85: =V80-V84 -> 42.71927613 | W85: 41.32514046 | X85: 39.91534109 | Y85: 38.48610447
B86: u1 | C86: m/s | D86: =(2*52.7%*D85*1000*D68)^0.5 -> 184.0453922 | H86: =PI()*$D$87*H70 -> 184.0453922 | I86: =PI()*$D$87*I70 -> 184.0453922 | J86: 184.0453922 | K86: 184.0453922 | L86: 184.0453922 | M86: 184.0453922 | N86: 184.0453922 | O86: 184.0453922 | P86: 184.0453922 | Q86: =PI()*$D$87*Q70 -> 184.0453922 | R86: =PI()*$D$87*R70 -> 184.0453922 | S86: 184.0453922 | T86: 184.0453922 | U86: 184.0453922 | V86: =PI()*$D$87*V70 -> 184.0453922 | W86: 184.0453922 | X86: 184.0453922 | Y86: 184.0453922
B87: D1 | D87: =D86/PI()/D70 -> 0.0391600721
B88: Co = (2*ΔHs)^0,5 | D88: =(2000*D85)^0.5 -> 290.8123495 | H88: 551.8742683 | I88: =(2000*I85)^0.5 -> 531.3654774 | J88: 510.1741858 | K88: 476.9229379 | L88: 453.620124 | M88: 429.2383657 | N88: 403.5715968 | O88: 376.320652 | P88: 347.0099291 | Q88: 314.7631569 | R88: =(2000*R85)^0.5 -> 310.447561 | S88: 306.0515953 | T88: 301.5677382 | U88: 296.9870458 | V88: =(2000*V85)^0.5 -> 292.298738 | W88: 287.4896188 | X88: 282.5432395 | Y88: 277.438658
B89: u1/Co | D89: =D86/D88 -> 0.6328664946 | H89: 0.3334915266 | I89: =I86/I88 -> 0.3463630967 | J89: 0.3607501072 | K89: 0.3859017414 | L89: 0.40572581 | M89: 0.4287719993 | N89: 0.4560414898 | O89: 0.4890653523 | P89: 0.5303750031 | Q89: 0.5847107204 | R89: =R86/R88 -> 0.5928389054 | S89: 0.6013541347 | T89: 0.6102953629 | U89: 0.6197084851 | V89: =V86/V88 -> 0.6296482615 | W89: 0.640181002 | X89: 0.6513884125 | Y89: 0.6633732789
B90: U1/C0 off de / U1/C0 nom | D90: =D89/$D$54 -> 0.9870962336 | H90: =H89/$D89 -> 0.5269539934 | I90: =I89/$D89 -> 0.5472925169 | J90: 0.5700256062 | K90: 0.6097680075 | L90: 0.6410922579 | M90: 0.6775078203 | N90: 0.720596672 | O90: 0.7727780763 | P90: 0.8380519551 | Q90: 0.923908479 | R90: =R89/$D89 -> 0.9367519223 | S90: 0.950206939 | T90: 0.9643350819 | U90: 0.9792088702 | V90: =V89/$D89 -> 0.9949148309 | W90: 1.011557742 | X90: 1.029266706 | Y90: 1.048204139
B91: Rdt | D91: =(0.321*D90^4-1.6098*D90^3+1.316*D90^2+0.9448*D90)*($D68/0.97215493) -> 0.7593560473 | H91: =(0.321*H90^4-1.6098*H90^3+1.316*H90^2+0.9448*H90)*($D68/0.97215493) -> 0.510096929 | I91: =(0.321*I90^4-1.6098*I90^3+1.316*I90^2+0.9448*I90)*($D68/0.97215493) -> 0.5286060459 | J91: 0.5487185388 | K91: 0.5822769819 | L91: 0.6071516323 | M91: 0.6341560141 | N91: 0.6632265374 | O91: 0.6938865659 | P91: 0.7246105275 | Q91: 0.7509464767 | R91: =(0.321*R90^4-1.6098*R90^3+1.316*R90^2+0.9448*R90)*($D68/0.97215493) -> 0.7534304419 | S91: 0.7556127502 | T91: 0.757436847 | U91: 0.7588344064 | V91: =(0.321*V90^4-1.6098*V90^3+1.316*V90^2+0.9448*V90)*($D68/0.97215493) -> 0.7597219955 | W91: 0.7599964341 | X91: 0.7595281568 | Y91: 0.7581514117
B93: TURBINE 3
D95: DESIGN | F95: =F61 -> 0 | G95: =G61 -> 0 | H95: =H61 -> start-up | I95: =I61 -> start-up
B97: m | C97: g/s | D97: 399.8 | F97: =F110/(F100*F99)^0.5*F98 -> 161.4761819 | G97: =G110/(G100*G99)^0.5*G98 -> 95.0804152 | I97: 117.1010273
B98: Pin | C98: Bara | D98: 13.07 | F98: 13.07 | G98: 7.369 | I98: 10.48
B99: Tin | C99: K | D99: 7.292 | F99: 9.16 | G99: 7.912 | I99: 10.55
B100: Pout | C100: Bara | D100: 4.88 | F100: 4.88 | G100: 5.18 | I100: 5.18
B101: Tout | C101: K | D101: =[3]!T2_turb(11,D98,D99,D100,D102) -> 6.11984088 | F101: =[3]!T2_turb(11,F98,F99,F100,F102) -> 7.049446306 | G101: =[3]!T2_turb(11,G98,G99,G100,G102) -> 7.14472539 | H101: =[3]!T2_turb(11,H98,H99,H100,H102) ->  | I101: =[3]!T2_turb(11,I98,I99,I100,I102) -> 8.690381514
B102: Efficacity | C102: % | D102: 0.72 | F102: =(0.321*F124^4-1.6098*F124^3+1.316*F124^2+0.9448*F124)*($D$102/0.97215493) -> 0.5817973136 | G102: =(0.321*G124^4-1.6098*G124^3+1.316*G124^2+0.9448*G124)*($D$102/0.97215493) -> 0.5827244835 | H102: =(0.321*H124^4-1.6098*H124^3+1.316*H124^2+0.9448*H124)*($D$102/0.97215493) ->  | I102: =(0.321*I124^4-1.6098*I124^3+1.316*I124^2+0.9448*I124)*($D$102/0.97215493) -> 0.5020164146
B103: Power | C103: W | D103: =+D97*(D114-D115) -> 2075.54042 | F103: 954.7418418 | G103: 182.514095 | I103: 610.6783435
B104: Speed | C104: Hz | D104: 2076 | F104: 1602.55252 | G104: 914.2081865 | H104: 862.6625785 | I104: 1367.362934
F105: =(F103/$D103*$D107/F107)^(1/3)*$D104 -> 1602.552512 | G105: =(G103/$D103*$D107/G107)^(1/3)*$D104 -> 914.2081711 | H105: =(H103/$D103*$D107/H107)^(1/3)*$D104 ->  | I105: =(I103/$D103*$D107/I107)^(1/3)*$D104 -> 1367.36293
F106: =F104-F105 -> 7.275503322e-06 | G106: =G104-G105 -> 1.541953168e-05 | H106: =H104-H105 ->  | I106: =I104-I105 -> 4.300091632e-06
B107: Brake Pressure | D107: 10.1 | F107: =($D107-$D100)+F100 -> 10.1 | G107: =($D107-$D100)+G100 -> 10.4 | H107: =($D107-$D100)+H100 -> 5.22 | I107: =($D107-$D100)+I100 -> 10.4
B108: Rho (brake) | D108: =[3]!rho_(11,D107,330) -> 1.467334205 | F108: =[3]!rho_(11,F107,330) -> 1.467334205 | G108: =[3]!rho_(11,G107,330) -> 1.510733122 | H108: =[3]!rho_(11,H107,330) -> 0.7598798717 | I108: =[3]!rho_(11,I107,330) -> 1.510733122
B109: Wheel | C109: mm | D109: 29.5 | F109: =$D$109 -> 29.5 | G109: =$D$109 -> 29.5 | H109: =$D$109 -> 29.5 | I109: =$D$109 -> 29.5
B110: a = mÖT/P | D110: =D97*D99^0.5/D98 -> 82.60199418 | F110: =$D$110 -> 82.60199418 | G110: =$D$110 -> 82.60199418 | H110: 82.60199418 | I110: 82.60199418
B111: Rho (in) | C111: kg/m3 | D111: =[3]!rho_(11,D98,D99) -> 122.041385 | F111: =[3]!rho_(11,F98,F99) -> 92.04202254 | G111: =[3]!rho_(11,G98,G99) -> 70.6496495 | H111: =[3]!rho_(11,H98,H99) -> NUM | I111: =[3]!rho_(11,I98,I99) -> 58.78998557
B112: Sound Speed | D112: =[3]!Sound_speed(11,D98,D99) -> 249.0567129 | F112: =[3]!Sound_speed(11,F98,F99) -> 219.0353462 | G112: =[3]!Sound_speed(11,G98,G99) -> 170.7864441 | H112: =[3]!Sound_speed(11,H98,H99) -> NUM | I112: =[3]!Sound_speed(11,I98,I99) -> 204.2669237
B113: S=Q/(rho*V) = cte | D113: =D97/(D111*D112) -> 0.01315338131 | F113: 0.008009549968 | G113: 0.007880026204 | I113: 0.009751227821
B114: Hin | D114: =[3]!h_(11,D98,D99) -> 28.15088458 | F114: =[3]!h_(11,F98,F99) -> 40.89014045 | G114: =[3]!h_(11,G98,G99) -> 36.81164396 | H114: =[3]!h_(11,H98,H99) ->  | I114: =[3]!h_(11,I98,I99) -> 54.05983231
B115: Hout | D115: =[3]!h_(11,D100,D101) -> 22.9594378 | F115: =[3]!h_(11,F100,F101) -> 34.97755427 | G115: =[3]!h_(11,G100,G101) -> 34.89206784 | H115: =[3]!h_(11,H100,H101) ->  | I115: =[3]!h_(11,I100,I101) -> 48.84486232
B116: Sin = Sout | D116: =[3]!S_(11,D98,D99) -> 5.060004669 | F116: =[3]!S_(11,F98,F99) -> 6.606972814 | G116: =[3]!S_(11,G98,G99) -> 6.945830207 | H116: =[3]!S_(11,H98,H99) ->  | I116: =[3]!S_(11,I98,I99) -> 8.300020451
B117: Tout(iso) | D117: =[1]!HeCalc(2,0,1,D100*10^5,8,D116*1000,1) -> 5.935138784 | F117: =[1]!HeCalc(2,0,1,F100*10^5,8,F116*1000,1) -> 6.699995029 | G117: =[1]!HeCalc(2,0,1,G100*10^5,8,G116*1000,1) -> 7.024181985 | H117: =[1]!HeCalc(2,0,1,H100*10^5,8,H116*1000,1) ->  | I117: =[1]!HeCalc(2,0,1,I100*10^5,8,I116*1000,1) -> 8.048894673
B118: Hout(iso) | D118: =[3]!h_(11,D100,D117) -> 20.94054184 | F118: =[3]!h_(11,F100,F117) -> 30.72751844 | G118: =[3]!h_(11,G100,G117) -> 33.5175038 | H118: =[3]!h_(11,H100,H117) ->  | I118: =[3]!h_(11,I100,I117) -> 43.67178554
B119: ΔHs | D119: =D114-D118 -> 7.210342742 | F119: 10.16262202 | G119: 3.294140164 | I119: 10.38804677
B120: u1 | C120: m/s | D120: =(2*52.7%*D119*1000*D102)^0.5 -> 73.97151411 | F120: =PI()*$D$121*F104 -> 57.1017516 | G120: =PI()*$D$121*G104 -> 32.57483804 | H120: 30.73817779 | I120: 48.72153497
B121: D1 | D121: =D120/PI()/D104 -> 0.01134193846 | M121: T3
B122: Co = (2*ΔHs)^0,5 | D122: =(2000*D119)^0.5 -> 120.0861586 | F122: 142.5666302 | G122: 81.1682224 | I122: 144.1391464 | L122: MAX | M122: =ROUND(F97,0)&"g/s @ "&F98&" b ; "&F99&"K" -> 161g/s @ 13,07 b ; 9,16K
B123: u1/Co | D123: =D120/D122 -> 0.6159870129 | F123: 0.400526768 | G123: 0.4013250146 | I123: 0.3380173685 | L123: MIN | M123: =ROUND(G97,0)&"g/s @ "&G98&" b ; "&G99&"K" -> 95g/s @ 7,369 b ; 7,912K
B124: U1/C0 off de / U1/C0 nom | D124: =D123/$D$54 -> 0.9607689228 | F124: =F123/$D123 -> 0.6502195008 | G124: =G123/$D123 -> 0.6515153829 | H124: =H123/$D123 ->  | I124: =I123/$D123 -> 0.5487410634 | L124: STS | M124: =ROUND(H97,0)&"g/s @ "&H98&" b ; "&H99&"K" -> 
B125: Rdt | D125: =(0.321*D124^4-1.6098*D124^3+1.316*D124^2+0.9448*D124)*($D102/0.97215493) -> 0.7171786088 | F125: =(0.321*F124^4-1.6098*F124^3+1.316*F124^2+0.9448*F124)*($D102/0.97215493) -> 0.5817973136 | G125: =(0.321*G124^4-1.6098*G124^3+1.316*G124^2+0.9448*G124)*($D102/0.97215493) -> 0.5827244835 | H125: =(0.321*H124^4-1.6098*H124^3+1.316*H124^2+0.9448*H124)*($D102/0.97215493) ->  | I125: =(0.321*I124^4-1.6098*I124^3+1.316*I124^2+0.9448*I124)*($D102/0.97215493) -> 0.5020164146 | L125: BAKING | M125: =ROUND(I97,0)&"g/s @ "&I98&" b ; "&I99&"K" -> 117g/s @ 10,48 b ; 10,55K
M127: =M52 -> 0 | N127: =M121 -> T3 | O127: T1+T2
B128: Courbe de rendement TC3 | L128: =L122 -> MAX | M128: =M53 -> 396.3954221 | N128: =M122 -> 161g/s @ 13,07 b ; 9,16K | O128: =F97+F63 -> 161.4761819
L129: =L123 -> MIN | M129: =M54 -> 0.5652790365 | N129: =M123 -> 95g/s @ 7,369 b ; 7,912K | O129: =G97+G63 -> 95.0804152
L130: =L124 -> STS | M130: =M55 -> 0.8816785414 | N130: =M124 ->  | O130: =H97+H63 -> 
L131: =L125 -> BAKING | M131: =M56 -> 0.7612347761 | N131: =M125 -> 117g/s @ 10,48 b ; 10,55K | O131: =I97+I63 -> 197.3820674
E132: d : mm
E133: N : Hz
E134: H : J/kG
B140: rendement=(0,321*rap^4 - 1,6098*rap^3 + 1,316*rap^2 + 0,9448*rap)*(ETAgar/0,97) | I140: U1/CO _nom | J140: 0.64
I141: Eta_gar | J141: 0.8
B142: U1/C0 | C142: =D33 -> 0.78 | D142: =D68 -> 0.76 | E142: =D102 -> 0.72
B143: 0 | C143: =(0.321*B143^4-1.6098*B143^3+1.316*B143^2+0.9448*B143)*$D$33/0.97215493 -> 0
B144: =B143+0.05 -> 0.05 | C144: =(0.321*$B144^4-1.6098*$B144^3+1.316*$B144^2+0.9448*$B144)*$C$142/0.97215493 -> 0.04038246185 | D144: =(0.321*$B144^4-1.6098*$B144^3+1.316*$B144^2+0.9448*$B144)*$D$142/0.97215493 -> 0.03934701411 | E144: =(0.321*$B144^4-1.6098*$B144^3+1.316*$B144^2+0.9448*$B144)*$E$142/0.97215493 -> 0.03727611863
B145: 0.1 | C145: =(0.321*$B145^4-1.6098*$B145^3+1.316*$B145^2+0.9448*$B145)*$C$142/0.97215493 -> 0.08509815817 | D145: =(0.321*$B145^4-1.6098*$B145^3+1.316*$B145^2+0.9448*$B145)*$D$142/0.97215493 -> 0.08291615412 | E145: =(0.321*$B145^4-1.6098*$B145^3+1.316*$B145^2+0.9448*$B145)*$E$142/0.97215493 -> 0.078552146
B146: 0.15 | C146: 0.1332363313 | D146: 0.1298200152 | E146: 0.1229873828
B147: 0.2 | C147: 0.1839248565 | D147: 0.1792088345 | E147: 0.1697767906
B148: 0.25 | C148: 0.2363302415 | D148: 0.2302704917 | E148: 0.2181509921
B149: 0.3 | C149: 0.2896576269 | D149: 0.2822305083 | E149: 0.267376271
B150: 0.35 | C150: 0.343150786 | D150: 0.3343520479 | E150: 0.3167545717
B151: 0.4 | C151: 0.3960921249 | D151: 0.3859359166 | E151: 0.3656234999
B152: 0.45 | C152: 0.4478026824 | D152: 0.4363205624 | E152: 0.4133563222
B153: 0.5 | C153: 0.4976421299 | D153: 0.4848820753 | E153: 0.4593619661
B154: 0.55 | C154: 0.5450087718 | D154: 0.5310341879 | E154: 0.5030850201
B155: 0.6 | C155: 0.5893395449 | D155: 0.5742282745 | E155: 0.5440057337
B156: 0.65 | C156: 0.630110019 | D156: 0.6139533518 | E156: 0.5816400175
B157: 0.7 | C157: 0.6668343964 | D157: 0.6497360786 | E157: 0.6155394429
B158: 0.75 | C158: 0.6990655125 | D158: 0.6811407558 | E158: 0.6452912423
B159: 0.8 | C159: 0.726394835 | D159: 0.7077693264 | E159: 0.6705183093
B160: 0.85 | C160: 0.7484524646 | D160: 0.7292613758 | E160: 0.6908791981
B161: 0.9 | C161: 0.7649071347 | D161: 0.7452941313 | E161: 0.7060681243
B162: 0.95 | C162: 0.7754662113 | D162: 0.7555824623 | E162: 0.7158149643
B163: 1 | C163: 0.7798756933 | D163: 0.7598788806 | E163: 0.7198852553
B164: 1.05 | C164: 0.7779202121 | D164: 0.75797354 | E164: 0.7180801958
B165: 1.1 | C165: 0.7694230322 | D165: 0.7496942365 | E165: 0.7102366451
B166: 1.15 | C166: 0.7542460504 | D166: 0.7349064081 | E166: 0.6962271235
B167: 1.2 | C167: 0.7322897966 | D167: 0.7135131352 | E167: 0.6759598123 | G167: F Let u be the peripheral speed of the wheel : u = p . Æ . N / 60 (in m/s)
B168: 1.25 | C168: 0.7034934333 | D168: 0.6854551401 | E168: 0.6493785538 | G168: F Let n, be the speed ratio of the turbine : n = u / [ 2 . (H1 - H2S ) ] 0.5 (dimensionless number)
B169: 1.3 | C169: 0.6678347555 | D169: 0.6507107874 | E169: 0.6164628512 | H169: N = speed of rotation of the turbine (in rpm)
B170: 1.35 | C170: 0.6253301913 | D170: 0.6092960839 | E170: 0.5772278689 | H170: Æ = diameter of the wheel of the turbine (in m)
B171: 1.4 | C171: 0.5760348014 | D171: 0.5612646783 | E171: 0.531724432
B172: 1.45 | C172: 0.520042279 | D172: 0.5067078616 | E172: 0.4800390268
B173: 1.5 | C173: 0.4574849505 | D173: 0.4457545671 | E173: 0.4222938004

Sheet Turbines_JT60SA_serial_Frein T1
E5: Vitesse de la roue ajustée en fonction de la puissance du frein | L5: =D65*0.3 -> 448.8
A7: 1 | B7: 2 | C7: 3 | D7: 4 | E7: 5 | F7: 6 | G7: 7 | H7: 8 | I7: 9 | J7: 10 | K7: 11 | L7: 12 | M7: 13 | N7: 14 | O7: 15 | P7: 16 | Q7: 17 | R7: 18 | S7: 19 | T7: 20 | U7: 21 | V7: 22 | W7: 23 | X7: 24 | Y7: 25 | Z7: 26 | AA7: 27 | AB7: 28 | AC7: 29 | AD7: 30 | AE7: 31 | AF7: 32 | AG7: 33
B8: Relation entre la puissance et la vitesse de rotation | M8: ²
B10: Cvs | D10: 30 | H10: 30
B11: Range | D11: 100 | H11: 100
B12: Trim | D12: 0.85 | H12: 0.85
B13: Cv | D13: =[3]!Cv_From_Trim(D12,D11)*D10 -> 15.03561701 | H13: =[3]!Cv_From_Trim(H12,H11)*H10 -> 15.03561701
B14: Pin | C14: Bara | D14: 15 | H14: 15
B15: Tin | C15: K | D15: 40.03 | H15: =H25 -> 80
B16: Rho | D16: =[3]!rho_(11,D14,D15) -> 17.343207 | H16: =[3]!rho_(11,H14,H15) -> 8.791512513
B17: Flow | D17: =IF(D14/2>D24,"S","SS") -> SS | H17: =IF(H14/2>H24,"S","SS") -> SS
B18: m | C18: g/s | D18: =[3]!q_gs(D15,D14,(D14-D24),D16,D13,D17) -> 226.4083326 | H18: =[3]!q_gs(H15,H14,(H14-H24),H16,H13,H17) -> 551.0587669
B19: TURBINE 1
D21: DESIGN | H21: start-up | I21: start-up | J21: start-up | K21: start-up | L21: start-up | M21: start-up | N21: start-up | O21: start-up | P21: start-up | Q21: start-up
B23: m | C23: g/s | D23: 191.5 | H23: =H36*H24/H25^0.5 -> 106.096967 | I23: =I36*I24/I25^0.5 -> 109.4163208 | J23: 113.1192307 | K23: 119.5833746 | L23: 124.6789551 | M23: 130.6149189 | N23: 137.672006 | O23: 146.2948707 | P23: 157.249799 | Q23: 172.0273388 | R23: 174.2767347 | S23: 176.6436142 | T23: 179.1397323 | U23: 181.7786111 | V23: 184.5758929 | W23: 187.5497849 | X23: 190.7216171 | Y23: 194.1165551
B24: Pin | C24: Bara | D24: 14.77 | H24: 11.56822919 | I24: 11.62807503 | J24: 11.70096319 | K24: 11.84299906 | L24: 11.96762358 | M24: 12.12622728 | N24: 12.33279301 | O24: 12.61052082 | P24: 13.00133464 | Q24: 13.59067535 | R24: 13.68618432 | S24: 13.78823867 | T24: 13.8975535 | U24: 14.01495471 | V24: 14.14140134 | W24: 14.27801375 | X24: 14.42610893 | Y24: 14.58724562
B25: Tin | C25: K | D25: 40.03 | H25: 80 | I25: =H25-4 -> 76 | J25: =I25-4 -> 72 | K25: 66 | L25: 62 | M25: 58 | N25: 54 | O25: 50 | P25: 46 | Q25: 42 | R25: =Q25-0.5 -> 41.5 | S25: =R25-0.5 -> 41 | T25: 40.5 | U25: 40 | V25: 39.5 | W25: 39 | X25: 38.5 | Y25: 38
B26: Pout | C26: Bara | D26: 6.36 | H26: =H59 -> 4.864844283 | I26: 4.874947037 | J26: 4.890058268 | K26: 4.926261723 | L26: 4.963731 | M26: 5.017471047 | N26: 5.095708833 | O26: 5.212754147 | P26: 5.395680865 | Q26: 5.702092133 | R26: 5.754534186 | S26: 5.811309113 | T26: 5.872924698 | U26: 5.939969364 | V26: 6.013128605 | W26: 6.093205584 | X26: 6.181147091 | Y26: 6.278076616
B27: Tout | C27: K | D27: =[3]!T2_turb(11,D24,D25,D26,D28) -> 31.09458691 | H27: =[3]!T2_turb(11,H24,H25,H26,H28) -> 64.44728626 | I27: =[3]!T2_turb(11,I24,I25,I26,I28) -> 60.92489198 | J27: =[3]!T2_turb(11,J24,J25,J26,J28) -> 57.42392949 | K27: =[3]!T2_turb(11,K24,K25,K26,K28) -> 52.2194231 | L27: =[3]!T2_turb(11,L24,L25,L26,L28) -> 48.78701879 | M27: =[3]!T2_turb(11,M24,M25,M26,M28) -> 45.39103317 | N27: =[3]!T2_turb(11,N24,N25,N26,N28) -> 42.03970437 | O27: =[3]!T2_turb(11,O24,O25,O26,O28) -> 38.74533794 | P27: =[3]!T2_turb(11,P24,P25,P26,P28) -> 35.52782818 | Q27: =[3]!T2_turb(11,Q24,Q25,Q26,Q28) -> 32.42294556 | R27: =[3]!T2_turb(11,R24,R25,R26,R28) -> 32.0457374 | S27: =[3]!T2_turb(11,S24,S25,S26,S28) -> 31.67154231 | T27: =[3]!T2_turb(11,T24,T25,T26,T28) -> 31.30059555 | U27: =[3]!T2_turb(11,U24,U25,U26,U28) -> 30.93316148 | V27: =[3]!T2_turb(11,V24,V25,V26,V28) -> 30.56953834 | W27: =[3]!T2_turb(11,W24,W25,W26,W28) -> 30.21006382 | X27: =[3]!T2_turb(11,X24,X25,X26,X28) -> 29.85512186 | Y27: =[3]!T2_turb(11,Y24,Y25,Y26,Y28) -> 29.50515074
B28: Efficacity | C28: % | D28: 0.78 | H28: =(0.321*H50^4-1.6098*H50^3+1.316*H50^2+0.9448*H50)*($D$28/0.97215493) -> 0.6688324145 | I28: =(0.321*I50^4-1.6098*I50^3+1.316*I50^2+0.9448*I50)*($D$28/0.97215493) -> 0.6801910388 | J28: 0.6918808821 | K28: 0.7099612053 | L28: 0.7222834076 | M28: 0.7346841244 | N28: 0.746955043 | O28: 0.7587342006 | P28: 0.7693535327 | Q28: 0.777442959 | R28: 0.7781496381 | S28: 0.7787614208 | T28: 0.7792667712 | U28: 0.7796523502 | V28: 0.7799026479 | W28: 0.779999522 | X28: 0.7799216174 | Y28: 0.7796436276
B29: Power | C29: W | D29: =+D23*(D40-D41) -> 9122.443616 | H29: =+H23*(H40-H41) -> 8771.580403 | I29: 8771.580403 | J29: 8771.580404 | K29: 8771.580404 | L29: 8771.580403 | M29: 8771.580403 | N29: 8771.580409 | O29: 8771.580403 | P29: 8771.580407 | Q29: 8771.580408 | R29: 8771.580402 | S29: 8771.580411 | T29: 8771.580401 | U29: 8771.58041 | V29: 8771.580402 | W29: 8771.580405 | X29: 8771.5804 | Y29: 8771.580401
B30: Speed | C30: Hz | D30: 1995 | H30: 1995 | I30: 1995 | J30: 1995 | K30: 1995 | L30: 1995 | M30: 1995 | N30: 1995 | O30: 1995 | P30: 1995 | Q30: 1995 | R30: 1995 | S30: 1995 | T30: 1995 | U30: 1995 | V30: 1995 | W30: 1995 | X30: 1995 | Y30: 1995
B31: Speed calculated from P=K.rho.N^3 | H31: =(H29/$D29*$D33/H33)^(1/3)*$D30 -> 1995 | I31: =(I29/$D29*$D33/I33)^(1/3)*$D30 -> 1995 | J31: 1995 | K31: 1995 | L31: 1995 | M31: 1995 | N31: 1995.000001 | O31: 1995 | P31: 1995.000001 | Q31: 1995.000001 | R31: 1995 | S31: 1995.000001 | T31: 1995 | U31: 1995.000001 | V31: 1995 | W31: 1995 | X31: 1995 | Y31: 1995
B32: Delta Speed Frein & Turbine | D32: =D61-D33 -> -3.85 | H32: =H30-H31 -> -2.064848559e-07 | I32: =I30-I31 -> -2.363931344e-07 | J32: -2.615220183e-07 | K32: -2.726353614e-07 | L32: -2.483604931e-07 | M32: -1.917346708e-07 | N32: -6.760449196e-07 | O32: -2.401397978e-07 | P32: -5.132053502e-07 | Q32: -6.363552529e-07 | R32: -1.773701115e-07 | S32: -8.536537734e-07 | T32: -6.730169844e-08 | U32: -7.253431704e-07 | V32: -1.522682851e-07 | W32: -3.816512617e-07 | X32: 4.784396879e-09 | Y32: -7.224980436e-08
B33: Brake Pressure | D33: 5.2 | H33: =($D33-$D61)+H61 -> 5 | I33: =($D33-$D61)+I61 -> 5 | J33: =($D33-$D61)+J61 -> 5 | K33: 5 | L33: 5 | M33: 5 | N33: 5 | O33: 5 | P33: 5 | Q33: 5 | R33: 5 | S33: 5 | T33: 5 | U33: 5 | V33: 5 | W33: 5 | X33: 5 | Y33: 5
B34: Rho (brake) | D34: =[3]!rho_(11,D33,330) -> 0.7569746494 | H34: =[3]!rho_(11,H33,330) -> 0.7279198097 | I34: =[3]!rho_(11,I33,330) -> 0.7279198097 | J34: =[3]!rho_(11,J33,330) -> 0.7279198097 | K34: =[3]!rho_(11,K33,330) -> 0.7279198097 | L34: =[3]!rho_(11,L33,330) -> 0.7279198097 | M34: =[3]!rho_(11,M33,330) -> 0.7279198097 | N34: =[3]!rho_(11,N33,330) -> 0.7279198097 | O34: =[3]!rho_(11,O33,330) -> 0.7279198097 | P34: =[3]!rho_(11,P33,330) -> 0.7279198097 | Q34: =[3]!rho_(11,Q33,330) -> 0.7279198097 | R34: =[3]!rho_(11,R33,330) -> 0.7279198097 | S34: =[3]!rho_(11,S33,330) -> 0.7279198097 | T34: =[3]!rho_(11,T33,330) -> 0.7279198097 | U34: =[3]!rho_(11,U33,330) -> 0.7279198097 | V34: =[3]!rho_(11,V33,330) -> 0.7279198097 | W34: =[3]!rho_(11,W33,330) -> 0.7279198097 | X34: =[3]!rho_(11,X33,330) -> 0.7279198097 | Y34: =[3]!rho_(11,Y33,330) -> 0.7279198097
B35: Wheel | C35: mm | D35: 35.8 | H35: =$D$35 -> 35.8 | I35: =$D$35 -> 35.8 | J35: 35.8 | K35: 35.8 | L35: 35.8 | M35: 35.8 | N35: 35.8 | O35: 35.8 | P35: 35.8 | Q35: 35.8 | R35: 35.8 | S35: 35.8 | T35: 35.8 | U35: 35.8 | V35: 35.8 | W35: 35.8 | X35: 35.8 | Y35: 35.8
B36: a = mÖT/P | D36: =D23*D25^0.5/D24 -> 82.03158029 | H36: =+$D$36 -> 82.03158029 | I36: =+$D$36 -> 82.03158029 | J36: 82.03158029 | K36: 82.03158029 | L36: 82.03158029 | M36: 82.03158029 | N36: 82.03158029 | O36: 82.03158029 | P36: 82.03158029 | Q36: 82.03158029 | R36: 82.03158029 | S36: 82.03158029 | T36: 82.03158029 | U36: 82.03158029 | V36: 82.03158029 | W36: 82.03158029 | X36: 82.03158029 | Y36: 82.03158029 | AK36: T1 out | AL36: 63 | AM36: 31 | AN36: x
B37: Rho (in) | C37: kg/m3 | D37: =[3]!rho_(11,D24,D25) -> 17.08767254 | H37: =[3]!rho_(11,H24,H25) -> 6.820700609 | I37: =[3]!rho_(11,I24,I25) -> 7.209725894 | J37: =[3]!rho_(11,J24,J25) -> 7.649756505 | K37: =[3]!rho_(11,K24,K25) -> 8.431286672 | L37: =[3]!rho_(11,L24,L25) -> 9.057451381 | M37: =[3]!rho_(11,M24,M25) -> 9.795805932 | N37: =[3]!rho_(11,N24,N25) -> 10.68294963 | O37: =[3]!rho_(11,O24,O25) -> 11.77552806 | P37: =[3]!rho_(11,P24,P25) -> 13.16823114 | Q37: =[3]!rho_(11,Q24,Q25) -> 15.03824289 | R37: =[3]!rho_(11,R24,R25) -> 15.32093117 | S37: =[3]!rho_(11,S24,S25) -> 15.61766023 | T37: =[3]!rho_(11,T24,T25) -> 15.9297349 | U37: =[3]!rho_(11,U24,U25) -> 16.25864701 | V37: =[3]!rho_(11,V24,V25) -> 16.60611181 | W37: =[3]!rho_(11,W24,W25) -> 16.97411355 | X37: =[3]!rho_(11,X24,X25) -> 17.36496269 | Y37: =[3]!rho_(11,Y24,Y25) -> 17.78136853 | AK37: T2 in | AL37: 62 | AM37: 18 | AN37: y
B38: Sound Speed @inlet | D38: =[3]!Sound_speed(11,D24,D25) -> 391.2334217 | H38: =[3]!Sound_speed(11,H24,H25) -> 537.3469672 | I38: =[3]!Sound_speed(11,I24,I25) -> 524.374137 | J38: =[3]!Sound_speed(11,J24,J25) -> 511.0788105 | K38: =[3]!Sound_speed(11,K24,K25) -> 490.4780707 | L38: =[3]!Sound_speed(11,L24,L25) -> 476.266359 | M38: =[3]!Sound_speed(11,M24,M25) -> 461.6379898 | N38: =[3]!Sound_speed(11,N24,N25) -> 446.5625213 | O38: =[3]!Sound_speed(11,O24,O25) -> 431.0126175 | P38: =[3]!Sound_speed(11,P24,P25) -> 414.974839 | Q38: =[3]!Sound_speed(11,Q24,Q25) -> 398.4820934 | R38: =[3]!Sound_speed(11,R24,R25) -> 396.3946789 | S38: =[3]!Sound_speed(11,S24,S25) -> 394.30323 | T38: =[3]!Sound_speed(11,T24,T25) -> 392.2085528 | U38: =[3]!Sound_speed(11,U24,U25) -> 390.111615 | V38: =[3]!Sound_speed(11,V24,V25) -> 388.0135809 | W38: =[3]!Sound_speed(11,W24,W25) -> 385.9158555 | X38: =[3]!Sound_speed(11,X24,X25) -> 383.8201402 | Y38: =[3]!Sound_speed(11,Y24,Y25) -> 381.7285047 | AK38: slope | AL38: =SLOPE(AL37:AM37,AL36:AM36) -> 1.375
B39: S=Q/(rho*V) = cte | D39: =D23/(D37*D38) -> 0.02864507195 | H39: =H23/(H37*H38) -> 0.02894804107 | I39: 0.02894157025 | J39: 0.02893349893 | K39: 0.02891727427 | L39: 0.02890262155 | M39: 0.02888358333 | N39: 0.02885839602 | O39: 0.028824297 | P39: 0.02877669359 | Q39: 0.02870724831 | R39: 0.0286963352 | S39: 0.0286847875 | T39: 0.02867254959 | U39: 0.02865955862 | V39: 0.02864574318 | W39: 0.02863102164 | X39: 0.02861530018 | Y39: 0.02859847012 | AK39: intercept | AL39: =INTERCEPT(AL37:AM37,AL36:AM36) -> -24.625
B40: Hin | D40: =[3]!h_(11,D24,D25) -> 223.5710661 | H40: =[3]!h_(11,H24,H25) -> 433.598856 | I40: =[3]!h_(11,I24,I25) -> 412.7241315 | J40: =[3]!h_(11,J24,J25) -> 391.8340104 | K40: =[3]!h_(11,K24,K25) -> 360.4625977 | L40: =[3]!h_(11,L24,L25) -> 339.5175491 | M40: =[3]!h_(11,M24,M25) -> 318.5405637 | N40: =[3]!h_(11,N24,N25) -> 297.5227022 | O40: =[3]!h_(11,O24,O25) -> 276.4511793 | P40: =[3]!h_(11,P24,P25) -> 255.3067386 | Q40: =[3]!h_(11,Q24,Q25) -> 234.0580041 | R40: =[3]!h_(11,R24,R25) -> 231.3921641 | S40: =[3]!h_(11,S24,S25) -> 228.7237054 | T40: =[3]!h_(11,T24,T25) -> 226.0524531 | U40: =[3]!h_(11,U24,U25) -> 223.3782125 | V40: =[3]!h_(11,V24,V25) -> 220.7007662 | W40: =[3]!h_(11,W24,W25) -> 218.0198694 | X40: =[3]!h_(11,X24,X25) -> 215.3352455 | Y40: =[3]!h_(11,Y24,Y25) -> 212.6465795 | AK40: x | AL40: y
B41: Hout | D41: =[3]!h_(11,D26,D27) -> 175.9342849 | H41: =[3]!h_(11,H26,H27) -> 350.9237274 | I41: =[3]!h_(11,I26,I27) -> 332.5571113 | J41: =[3]!h_(11,J26,J27) -> 314.2912235 | K41: =[3]!h_(11,K26,K27) -> 287.111428 | L41: =[3]!h_(11,L26,L27) -> 269.1642133 | M41: =[3]!h_(11,M26,M27) -> 251.3845261 | N41: =[3]!h_(11,N26,N27) -> 233.8090928 | O41: =[3]!h_(11,O26,O27) -> 216.4929568 | P41: =[3]!h_(11,P26,P27) -> 199.5255518 | Q41: =[3]!h_(11,Q26,Q27) -> 183.0685482 | R41: =[3]!h_(11,R26,R27) -> 181.0608309 | S41: =[3]!h_(11,S26,S27) -> 179.0667708 | T41: =[3]!h_(11,T26,T27) -> 177.0874341 | U41: =[3]!h_(11,U26,U27) -> 175.1240183 | V41: =[3]!h_(11,V26,V27) -> 173.1778732 | W41: =[3]!h_(11,W26,W27) -> 171.2505254 | X41: =[3]!h_(11,X26,X27) -> 169.343708 | Y41: =[3]!h_(11,Y26,Y27) -> 167.459396 | AK41: 277 | AL41: =m*AK41+p -> 356.25
B42: Sin = Sout | D42: =[3]!S_(11,D24,D25) -> 15.48824406 | H42: =[3]!S_(11,H24,H25) -> 19.65514623 | I42: =[3]!S_(11,I24,I25) -> 19.37651722 | J42: =[3]!S_(11,J24,J25) -> 19.08088053 | K42: =[3]!S_(11,K24,K25) -> 18.60027392 | L42: =[3]!S_(11,L24,L25) -> 18.25060453 | M42: =[3]!S_(11,M24,M25) -> 17.87277602 | N42: =[3]!S_(11,N24,N25) -> 17.46121084 | O42: =[3]!S_(11,O24,O25) -> 17.00812708 | P42: =[3]!S_(11,P24,P25) -> 16.50190928 | Q42: =[3]!S_(11,Q24,Q25) -> 15.92335263 | R42: =[3]!S_(11,R24,R25) -> 15.84442794 | S42: =[3]!S_(11,S24,S25) -> 15.76374291 | T42: =[3]!S_(11,T24,T25) -> 15.68118207 | U42: =[3]!S_(11,U24,U25) -> 15.59661581 | V42: =[3]!S_(11,V24,V25) -> 15.50989787 | W42: =[3]!S_(11,W24,W25) -> 15.42086226 | X42: =[3]!S_(11,X24,X25) -> 15.3293195 | Y42: =[3]!S_(11,Y24,Y25) -> 15.23505189 | AK42: 31 | AL42: =m*AK42+p -> 18
B43: Tout(iso) | D43: =[1]!HeCalc(2,0,1,D26*10^5,8,D42*1000,1) -> 28.58076886 | H43: =[1]!HeCalc(2,0,1,H26*10^5,8,H42*1000,1) -> 56.60037235 | I43: =[1]!HeCalc(2,0,1,I26*10^5,8,I42*1000,1) -> 53.70441051 | J43: =[1]!HeCalc(2,0,1,J26*10^5,8,J42*1000,1) -> 50.81394003 | K43: =[1]!HeCalc(2,0,1,K26*10^5,8,K42*1000,1) -> 46.49208337 | L43: =[1]!HeCalc(2,0,1,L26*10^5,8,L42*1000,1) -> 43.62350946 | M43: =[1]!HeCalc(2,0,1,M26*10^5,8,M42*1000,1) -> 40.76919902 | N43: =[1]!HeCalc(2,0,1,N26*10^5,8,N42*1000,1) -> 37.93474126 | O43: =[1]!HeCalc(2,0,1,O26*10^5,8,O42*1000,1) -> 35.12906825 | P43: =[1]!HeCalc(2,0,1,P26*10^5,8,P42*1000,1) -> 32.36746642 | Q43: =[1]!HeCalc(2,0,1,Q26*10^5,8,Q42*1000,1) -> 29.67854262 | R43: =[1]!HeCalc(2,0,1,R26*10^5,8,R42*1000,1) -> 29.34995914 | S43: =[1]!HeCalc(2,0,1,S26*10^5,8,S42*1000,1) -> 29.02352951 | T43: =[1]!HeCalc(2,0,1,T26*10^5,8,T42*1000,1) -> 28.69944433 | U43: =[1]!HeCalc(2,0,1,U26*10^5,8,U42*1000,1) -> 28.37791711 | V43: =[1]!HeCalc(2,0,1,V26*10^5,8,V42*1000,1) -> 28.05918785 | W43: =[1]!HeCalc(2,0,1,W26*10^5,8,W42*1000,1) -> 27.74352703 | X43: =[1]!HeCalc(2,0,1,X26*10^5,8,X42*1000,1) -> 27.43124053 | Y43: =[1]!HeCalc(2,0,1,Y26*10^5,8,Y42*1000,1) -> 27.1226753 | AK43: 31 | AL43: =m*AK43+p -> 18
B44: Hout(iso) | D44: =[3]!h_(11,D26,D43) -> 162.4982696 | H44: =[3]!h_(11,H26,H43) -> 309.9877288 | I44: =[3]!h_(11,I26,I43) -> 294.8645662 | J44: =[3]!h_(11,J26,J43) -> 279.7586678 | K44: =[3]!h_(11,K26,K43) -> 257.1454458 | L44: =[3]!h_(11,L26,L43) -> 242.1134899 | M44: =[3]!h_(11,M26,M43) -> 227.1325213 | N44: =[3]!h_(11,N26,N43) -> 212.2249189 | O44: =[3]!h_(11,O26,O43) -> 197.4271648 | P44: =[3]!h_(11,P26,P43) -> 182.8027669 | Q44: =[3]!h_(11,Q26,Q43) -> 168.4718986 | R44: =[3]!h_(11,R26,R43) -> 166.7113743 | S44: =[3]!h_(11,S26,S43) -> 164.9597164 | T44: =[3]!h_(11,T26,T43) -> 163.2177207 | U44: =[3]!h_(11,U26,U43) -> 161.4862754 | V44: =[3]!h_(11,V26,V43) -> 159.7663751 | W44: =[3]!h_(11,W26,W43) -> 158.0591353 | X44: =[3]!h_(11,X26,X43) -> 156.3658101 | Y44: =[3]!h_(11,Y26,Y43) -> 154.6878123
B45: ΔHs | D45: =D40-D44 -> 61.07279652 | H45: 123.6111272 | I45: 117.8595654 | J45: 112.0753426 | K45: 103.3171519 | L45: 97.40405927 | M45: 91.40804238 | N45: 85.29778324 | O45: 79.02401449 | P45: 72.50397171 | Q45: 65.58610547 | R45: 64.68078984 | S45: 63.763989 | T45: 62.83473238 | U45: 61.89193712 | V45: 60.93439108 | W45: 59.96073416 | X45: 58.96943546 | Y45: 57.95876722
B46: u1 | C46: m/s | D46: =(2*52.7%*D45*1000*D28)^0.5 -> 224.0740223 | H46: =PI()*$D$47*H30 -> 224.0740223 | I46: =PI()*$D$47*I30 -> 224.0740223 | J46: 224.0740223 | K46: 224.0740223 | L46: 224.0740223 | M46: 224.0740223 | N46: 224.0740223 | O46: 224.0740223 | P46: 224.0740223 | Q46: 224.0740223 | R46: 224.0740223 | S46: 224.0740223 | T46: 224.0740223 | U46: 224.0740223 | V46: 224.0740223 | W46: 224.0740223 | X46: 224.0740223 | Y46: 224.0740223
B47: D1 | D47: =D46/PI()/D30 -> 0.03575186794
B48: Co = (2*ΔHs)^0,5 | D48: =(2000*D45)^0.5 -> 349.4933376 | H48: 497.2144954 | I48: 485.5091459 | J48: 473.4455462 | K48: 454.5704608 | L48: 441.3707269 | M48: 427.5699764 | N48: 413.0321616 | O48: 397.5525487 | P48: 380.7990854 | Q48: 362.1770437 | R48: 359.6687082 | S48: 357.1105963 | T48: 354.4988925 | U48: 351.8293254 | V48: 349.0970956 | W48: 346.2967923 | X48: 343.4222924 | Y48: 340.4666422
B49: u1/Co | D49: =D46/D48 -> 0.6411396104 | H49: 0.4506586682 | I49: 0.4615237925 | J49: 0.4732836207 | K49: 0.4929357309 | L49: 0.5076775796 | M49: 0.524063977 | N49: 0.5425098652 | O49: 0.563633721 | P49: 0.5884310938 | Q49: 0.6186864304 | R49: 0.6230011596 | S49: 0.6274639415 | T49: 0.6320866639 | U49: 0.6368827329 | V49: 0.6418673347 | W49: 0.6470577474 | X49: 0.6524737248 | Y49: 0.6581379628
B50: U1/C0 off de / U1/C0 nom | D50: =D49/$D$49 -> 1 | H50: =H49/$D49 -> 0.7029025518 | I50: =I49/$D49 -> 0.7198491328 | J50: 0.7381912036 | K50: 0.7688430459 | L50: 0.7918362418 | M50: 0.8173944778 | N50: 0.8461649483 | O50: 0.8791123054 | P50: 0.9177893305 | Q50: 0.9649792656 | R50: 0.9717090467 | S50: 0.9786697489 | T50: 0.985879914 | U50: 0.9933604516 | V50: 1.001135048 | W50: 1.009230653 | X50: 1.017678076 | Y50: 1.026512716
B51: Rdt | D51: =(0.321*D50^4-1.6098*D50^3+1.316*D50^2+0.9448*D50)*($D28/0.97215493) -> 0.7798756933 | H51: =(0.321*H50^4-1.6098*H50^3+1.316*H50^2+0.9448*H50)*($D28/0.97) -> 0.6703182774 | I51: 0.6817021358 | J51: 0.6934179489 | K51: 0.711538439 | L51: 0.723888016 | M51: 0.736316282 | N51: 0.7486144614 | O51: 0.7604197872 | P51: 0.7710627111 | Q51: 0.7791701087 | R51: 0.7798783577 | S51: 0.7804914995 | T51: 0.7809979726 | U51: 0.7813844082 | V51: 0.7816352619 | W51: 0.7817323513 | X51: 0.7816542736 | Y51: 0.7813756662
B54: TURBINE 2
H55: 5
D56: DESIGN | H56: =H21 -> start-up | I56: =I21 -> start-up | J56: start-up | K56: start-up | L56: start-up | M56: start-up | N56: start-up | O56: start-up | P56: start-up | Q56: start-up | R56: 0 | S56: 0 | T56: 0 | U56: 0 | V56: 0 | W56: 0 | X56: 0 | Y56: 0
B57: Delta Debit | H57: =H58-H23 -> -27.42267287 | I57: =I58-I23 -> -27.41429626 | J57: =J58-J23 -> -27.2964447 | K57: -26.79924445 | L57: -26.1298139 | M57: -25.02320371 | N57: -23.22904025 | O57: -20.30774316 | P57: -15.4330433 | Q57: -6.902834775 | R57: -5.424949611 | S57: -3.823312707 | T57: -2.084638743 | U57: -0.1938013275 | V57: 1.866490394 | W57: 4.116083447 | X57: 6.577863339 | Y57: 9.278349285
B58: m | C58: g/s | D58: 191.2 | H58: =H71*H59/H60^0.5 -> 78.67429416 | I58: =I71*I59/I60^0.5 -> 82.00202458 | J58: 85.82278602 | K58: 92.78413017 | L58: 98.54914125 | M58: 105.5917152 | N58: 114.4429658 | O58: 125.9871276 | P58: 141.8167557 | Q58: 165.124504 | R58: 168.851785 | S58: 172.8203015 | T58: 177.0550936 | U58: 181.5848098 | V58: 186.4423833 | W58: 191.6658684 | X58: 197.2994804 | Y58: 203.3949044
B59: Pin | C59: Bara | D59: 6.307 | H59: 4.864844283 | I59: 4.874947037 | J59: 4.890058268 | K59: 4.926261723 | L59: 4.963731 | M59: 5.017471047 | N59: 5.095708833 | O59: 5.212754147 | P59: 5.395680865 | Q59: 5.702092133 | R59: 5.754534186 | S59: 5.811309113 | T59: 5.872924698 | U59: 5.939969364 | V59: 6.013128605 | W59: 6.093205584 | X59: 6.181147091 | Y59: 6.278076616
B60: Tin | C60: K | D60: 18.21 | H60: =m*H27+p -> 63.99001861 | I60: =m*I27+p -> 59.14672648 | J60: 54.33290304 | K60: 47.17670676 | L60: 42.45715084 | M60: 37.78767061 | N60: 33.17959351 | O60: 28.64983967 | P60: 24.22576375 | Q60: =m*Q27+p -> 19.95655015 | R60: 19.43788892 | S60: 18.92337067 | T60: 18.41331887 | U60: 17.90809703 | V60: 17.40811522 | W60: 16.91383775 | X60: 16.42579255 | Y60: 15.94458227
B61: Pout | C61: Bara | D61: 1.35 | H61: 1.15 | I61: 1.15 | J61: 1.15 | K61: 1.15 | L61: 1.15 | M61: 1.15 | N61: 1.15 | O61: 1.15 | P61: 1.15 | Q61: 1.15 | R61: 1.15 | S61: 1.15 | T61: 1.15 | U61: 1.15 | V61: 1.15 | W61: 1.15 | X61: 1.15 | Y61: 1.15
B62: Tout | C62: K | D62: =[3]!T2_turb(11,D59,D60,D61,D63) -> 11.61835748 | H62: =[3]!T2_turb(11,H59,H60,H61,H63) -> 49.48675425 | I62: =[3]!T2_turb(11,I59,I60,I61,I63) -> 45.22604627 | J62: =[3]!T2_turb(11,J59,J60,J61,J63) -> 41.02348199 | K62: =[3]!T2_turb(11,K59,K60,K61,K63) -> 34.84652997 | L62: =[3]!T2_turb(11,L59,L60,L61,L63) -> 30.82841793 | M62: =[3]!T2_turb(11,M59,M60,M61,M63) -> 26.90618934 | N62: =[3]!T2_turb(11,N59,N60,N61,N63) -> 23.09831429 | O62: =[3]!T2_turb(11,O59,O60,O61,O63) -> 19.4296869 | P62: =[3]!T2_turb(11,P59,P60,P61,P63) -> 15.93503285 | Q62: =[3]!T2_turb(11,Q59,Q60,Q61,Q63) -> 12.66473161 | R62: =[3]!T2_turb(11,R59,R60,R61,R63) -> 12.27513014 | S62: =[3]!T2_turb(11,S59,S60,S61,S63) -> 11.89035374 | T62: =[3]!T2_turb(11,T59,T60,T61,T63) -> 11.51059711 | U62: =[3]!T2_turb(11,U59,U60,U61,U63) -> 11.13606568 | V62: =[3]!T2_turb(11,V59,V60,V61,V63) -> 10.76697614 | W62: =[3]!T2_turb(11,W59,W60,W61,W63) -> 10.40355681 | X62: =[3]!T2_turb(11,X59,X60,X61,X63) -> 10.04604793 | Y62: =[3]!T2_turb(11,Y59,Y60,Y61,Y63) -> 9.694701812
B63: Efficacity | C63: % | D63: 0.76 | H63: =(0.321*H85^4-1.6098*H85^3+1.316*H85^2+0.9448*H85)*($D$63/0.97215493) -> 0.5192919371 | I63: =(0.321*I85^4-1.6098*I85^3+1.316*I85^2+0.9448*I85)*($D$63/0.97215493) -> 0.5383257056 | J63: 0.5589518364 | K63: 0.593177357 | L63: 0.6183276937 | M63: 0.6453298794 | N63: 0.6739067709 | O63: 0.7032409616 | P63: 0.7313321605 | Q63: 0.7534949963 | R63: 0.7554102004 | S63: 0.7570448323 | T63: 0.7583624875 | U63: 0.7593223107 | V63: 0.7598783896 | W63: 0.7599790527 | X63: 0.7595660536 | Y63: 0.7585736178
B64: Power | C64: W | D64: =+D58*(D75-D76) -> 6144.650346 | H64: 5991.034087 | I64: 5991.034087 | J64: 5991.034087 | K64: 5991.034087 | L64: 5991.034087 | M64: 5991.034087 | N64: 5991.034087 | O64: 5991.034087 | P64: 5991.034087 | Q64: 5991.034087 | R64: 5991.034087 | S64: 5991.034087 | T64: 5991.034087 | U64: 5991.034087 | V64: 5991.034087 | W64: 5991.034087 | X64: 5991.034087 | Y64: 5991.034087
B65: Speed | C65: Hz | D65: 1496 | H65: 1496 | I65: 1496 | J65: 1496 | K65: 1496 | L65: 1496 | M65: 1496 | N65: 1496 | O65: 1496 | P65: 1496 | Q65: 1496 | R65: 1496 | S65: 1496 | T65: 1496 | U65: 1496 | V65: 1496 | W65: 1496 | X65: 1496 | Y65: 1496
H66: =(H64/$D64*$D68/H68)^(1/3)*$D65 -> 1496 | I66: =(I64/$D64*$D68/I68)^(1/3)*$D65 -> 1496 | J66: 1496 | K66: 1496 | L66: 1496 | M66: 1496 | N66: 1496 | O66: 1496 | P66: 1496 | Q66: 1496 | R66: 1496 | S66: 1496 | T66: 1496 | U66: 1496 | V66: 1496 | W66: 1496 | X66: 1496 | Y66: 1496
B67: Delta Speed Frein & Turbine | H67: =H65-H66 -> 3.681179805e-10 | I67: =I65-I66 -> 8.062670531e-10 | J67: 1.425860319e-09 | K67: 2.615934136e-09 | L67: 3.314653441e-09 | M67: 3.489958544e-09 | N67: 1.656371751e-08 | O67: 7.808921509e-09 | P67: 2.145952749e-08 | Q67: =Q65-Q66 -> 3.023433237e-08 | R67: =R65-R66 -> 8.349161362e-09 | S67: 3.933041626e-08 | T67: 2.984052117e-09 | U67: 3.023183126e-08 | V67: 5.750280252e-09 | W67: 1.229932423e-08 | X67: -1.168700692e-10 | Y67: 1.00158104e-09
B68: Brake Pressure | D68: 8 | H68: =($D68-$D61)+H61 -> 7.8 | I68: =($D68-$D61)+I61 -> 7.8 | J68: 7.8 | K68: 7.8 | L68: 7.8 | M68: 7.8 | N68: 7.8 | O68: 7.8 | P68: 7.8 | Q68: 7.8 | R68: 7.8 | S68: 7.8 | T68: 7.8 | U68: 7.8 | V68: 7.8 | W68: 7.8 | X68: 7.8 | Y68: 7.8
B69: Rho (brake) | D69: =[3]!rho_(11,D68,330) -> 1.16324325 | H69: =[3]!rho_(11,H68,330) -> 1.134254938 | I69: =[3]!rho_(11,I68,330) -> 1.134254938 | J69: =[3]!rho_(11,J68,330) -> 1.134254938 | K69: =[3]!rho_(11,K68,330) -> 1.134254938 | L69: =[3]!rho_(11,L68,330) -> 1.134254938 | M69: =[3]!rho_(11,M68,330) -> 1.134254938 | N69: =[3]!rho_(11,N68,330) -> 1.134254938 | O69: =[3]!rho_(11,O68,330) -> 1.134254938 | P69: =[3]!rho_(11,P68,330) -> 1.134254938 | Q69: =[3]!rho_(11,Q68,330) -> 1.134254938 | R69: =[3]!rho_(11,R68,330) -> 1.134254938 | S69: =[3]!rho_(11,S68,330) -> 1.134254938 | T69: =[3]!rho_(11,T68,330) -> 1.134254938 | U69: =[3]!rho_(11,U68,330) -> 1.134254938 | V69: =[3]!rho_(11,V68,330) -> 1.134254938 | W69: =[3]!rho_(11,W68,330) -> 1.134254938 | X69: =[3]!rho_(11,X68,330) -> 1.134254938 | Y69: =[3]!rho_(11,Y68,330) -> 1.134254938
B70: Wheel | C70: mm | D70: 39.5 | H70: =$D$35 -> 35.8 | I70: =$D$35 -> 35.8 | J70: 35.8 | K70: 35.8 | L70: 35.8 | M70: 35.8 | N70: 35.8 | O70: 35.8 | P70: 35.8 | Q70: 35.8 | R70: 35.8 | S70: 35.8 | T70: 35.8 | U70: 35.8 | V70: 35.8 | W70: 35.8 | X70: 35.8 | Y70: 35.8
B71: a = mÖT/P | D71: =D58*D60^0.5/D59 -> 129.3659642 | H71: =$D$71 -> 129.3659642 | I71: 129.3659642 | J71: 129.3659642 | K71: 129.3659642 | L71: 129.3659642 | M71: 129.3659642 | N71: 129.3659642 | O71: 129.3659642 | P71: 129.3659642 | Q71: 129.3659642 | R71: 129.3659642 | S71: 129.3659642 | T71: 129.3659642 | U71: 129.3659642 | V71: 129.3659642 | W71: 129.3659642 | X71: 129.3659642 | Y71: 129.3659642
B72: Rho (in) | C72: kg/m3 | D72: =[3]!rho_(11,D59,D60) -> 16.81725024 | H72: =[3]!rho_(11,H59,H60) -> 3.622536498 | I72: =[3]!rho_(11,I59,I60) -> 3.925042551 | J72: =[3]!rho_(11,J59,J60) -> 4.283466897 | K72: =[3]!rho_(11,K59,K60) -> 4.965319763 | L72: =[3]!rho_(11,L59,L60) -> 5.556411183 | M72: =[3]!rho_(11,M59,M60) -> 6.308729717 | N72: =[3]!rho_(11,N59,N60) -> 7.298201447 | O72: =[3]!rho_(11,O59,O60) -> 8.656713552 | P72: =[3]!rho_(11,P59,P60) -> 10.63445155 | Q72: =[3]!rho_(11,Q59,Q60) -> 13.76743638 | R72: =[3]!rho_(11,R59,R60) -> 14.29142897 | S72: =[3]!rho_(11,S59,S60) -> 14.85605274 | T72: =[3]!rho_(11,T59,T60) -> 15.46610808 | U72: =[3]!rho_(11,U59,U60) -> 16.12716507 | V72: =[3]!rho_(11,V59,V60) -> 16.84572029 | W72: =[3]!rho_(11,W59,W60) -> 17.629393 | X72: =[3]!rho_(11,X59,X60) -> 18.48717143 | Y72: =[3]!rho_(11,Y59,Y60) -> 19.42972474
B73: Sound Speed | D73: =[3]!Sound_speed(11,D59,D60) -> 258.3914638 | H73: =[3]!Sound_speed(11,H59,H60) -> 475.8760705 | I73: =[3]!Sound_speed(11,I59,I60) -> 457.9098758 | J73: =[3]!Sound_speed(11,J59,J60) -> 439.3163978 | K73: =[3]!Sound_speed(11,K59,K60) -> 410.0932418 | L73: =[3]!Sound_speed(11,L59,L60) -> 389.5941853 | M73: =[3]!Sound_speed(11,M59,M60) -> 368.1539321 | N73: =[3]!Sound_speed(11,N59,N60) -> 345.635089 | O73: =[3]!Sound_speed(11,O59,O60) -> 321.8689665 | P73: =[3]!Sound_speed(11,P59,P60) -> 296.6543708 | Q73: =[3]!Sound_speed(11,Q59,Q60) -> 269.7869263 | R73: =[3]!Sound_speed(11,R59,R60) -> 266.3062612 | S73: =[3]!Sound_speed(11,S59,S60) -> 262.7990227 | T73: =[3]!Sound_speed(11,T59,T60) -> 259.2659713 | U73: =[3]!Sound_speed(11,U59,U60) -> 255.7082372 | V73: =[3]!Sound_speed(11,V59,V60) -> 252.1274343 | W73: =[3]!Sound_speed(11,W59,W60) -> 248.5258094 | X73: =[3]!Sound_speed(11,X59,X60) -> 244.9064454 | Y73: =[3]!Sound_speed(11,Y59,Y60) -> 241.2735363
B74: S=Q/(rho*V) = cte | D74: =D58/(D72*D73) -> 0.04400020898 | H74: 0.04563795951 | I74: 0.04562471825 | J74: 0.04560681877 | K74: 0.04556631062 | L74: 0.04552458559 | M74: 0.04546304075 | N74: 0.0453686056 | O74: 0.0452161959 | P74: 0.04495331229 | Q74: 0.04445673333 | R74: 0.04436583131 | S74: 0.04426572485 | T74: 0.0441552009 | U74: 0.04403284698 | V74: 0.04389701169 | W74: 0.04374575587 | X74: 0.04357679228 | Y74: 0.0433874105
B75: Hin | D75: =[3]!h_(11,D59,D60) -> 105.9022075 | H75: =[3]!h_(11,H59,H60) -> 348.539766 | I75: =[3]!h_(11,I59,I60) -> 323.2800192 | J75: =[3]!h_(11,J59,J60) -> 298.1501891 | K75: =[3]!h_(11,K59,K60) -> 260.7307791 | L75: =[3]!h_(11,L59,L60) -> 235.9940165 | M75: =[3]!h_(11,M59,M60) -> 211.4508609 | N75: =[3]!h_(11,N59,N60) -> 187.1299653 | O75: =[3]!h_(11,O59,O60) -> 163.0684105 | P75: =[3]!h_(11,P59,P60) -> 139.3160681 | Q75: =[3]!h_(11,Q59,Q60) -> 115.9428329 | R75: =[3]!h_(11,R59,R60) -> 113.0523976 | S75: =[3]!h_(11,S59,S60) -> 110.1696129 | T75: =[3]!h_(11,T59,T60) -> 107.2947108 | U75: =[3]!h_(11,U59,U60) -> 104.4279257 | V75: =[3]!h_(11,V59,V60) -> 101.569492 | W75: =[3]!h_(11,W59,W60) -> 98.71963885 | X75: =[3]!h_(11,X59,X60) -> 95.87858435 | Y75: =[3]!h_(11,Y59,Y60) -> 93.04652699
B76: Hout | D76: =[3]!h_(11,D61,D62) -> 73.76491485 | H76: =[3]!h_(11,H61,H62) -> 272.3899365 | I76: =[3]!h_(11,I61,I62) -> 250.2204318 | J76: =[3]!h_(11,J61,J62) -> 228.3431557 | K76: =[3]!h_(11,K61,K62) -> 196.16118 | L76: =[3]!h_(11,L61,L62) -> 175.2016645 | M76: =[3]!h_(11,M61,M62) -> 154.7131322 | N76: =[3]!h_(11,N61,N62) -> 134.7804474 | O76: =[3]!h_(11,O61,O62) -> 115.5156628 | P76: =[3]!h_(11,P61,P62) -> 97.07117214 | Q76: =[3]!h_(11,Q61,Q62) -> 79.66091264 | R76: =[3]!h_(11,R61,R62) -> 77.57137447 | S76: =[3]!h_(11,S61,S62) -> 75.50334954 | T76: =[3]!h_(11,T61,T62) -> 73.45759283 | U76: =[3]!h_(11,U61,U62) -> 71.43489016 | V76: =[3]!h_(11,V61,V62) -> 69.43605765 | W76: =[3]!h_(11,W61,W62) -> 67.46193951 | X76: =[3]!h_(11,X61,X62) -> 65.51340511 | Y76: =[3]!h_(11,Y61,Y62) -> 63.5913442
B77: Sin = Sout | D77: =[3]!S_(11,D59,D60) -> 13.04156759 | H77: =[3]!S_(11,H59,H60) -> 20.29534557 | I77: =[3]!S_(11,I59,I60) -> 19.88050501 | J77: =[3]!S_(11,J59,J60) -> 19.43083865 | K77: =[3]!S_(11,K59,K60) -> 18.67682873 | L77: =[3]!S_(11,L59,L60) -> 18.10841565 | M77: =[3]!S_(11,M59,M60) -> 17.47333524 | N77: =[3]!S_(11,N59,N60) -> 16.7543557 | O77: =[3]!S_(11,O59,O60) -> 15.92679744 | P77: =[3]!S_(11,P59,P60) -> 14.95371845 | Q77: =[3]!S_(11,Q59,Q60) -> 13.77671791 | R77: =[3]!S_(11,R59,R60) -> 13.61098213 | S77: =[3]!S_(11,S59,S60) -> 13.44035821 | T77: =[3]!S_(11,T59,T60) -> 13.26457128 | U77: =[3]!S_(11,U59,U60) -> 13.0833241 | V77: =[3]!S_(11,V59,V60) -> 12.8962947 | W77: =[3]!S_(11,W59,W60) -> 12.70313363 | X77: =[3]!S_(11,X59,X60) -> 12.50346084 | Y77: =[3]!S_(11,Y59,Y60) -> 12.29686207
B78: Tout(iso) | D78: =[1]!HeCalc(2,0,1,D61*10^5,8,D77*1000,1) -> 9.763910711 | H78: =[1]!HeCalc(2,0,1,H61*10^5,8,H77*1000,1) -> 35.94710344 | I78: =[1]!HeCalc(2,0,1,I61*10^5,8,I77*1000,1) -> 33.19775224 | J78: =[1]!HeCalc(2,0,1,J61*10^5,8,J77*1000,1) -> 30.45663827 | K78: =[1]!HeCalc(2,0,1,K61*10^5,8,K77*1000,1) -> 26.36382615 | L78: =[1]!HeCalc(2,0,1,L61*10^5,8,L77*1000,1) -> 23.65096501 | M78: =[1]!HeCalc(2,0,1,M61*10^5,8,M77*1000,1) -> 20.95416797 | N78: =[1]!HeCalc(2,0,1,N61*10^5,8,N77*1000,1) -> 18.27790261 | O78: =[1]!HeCalc(2,0,1,O61*10^5,8,O77*1000,1) -> 15.62888884 | P78: =[1]!HeCalc(2,0,1,P61*10^5,8,P77*1000,1) -> 13.01793766 | Q78: =[1]!HeCalc(2,0,1,Q61*10^5,8,Q77*1000,1) -> 10.46411251 | R78: =[1]!HeCalc(2,0,1,R61*10^5,8,R77*1000,1) -> 10.15045726 | S78: =[1]!HeCalc(2,0,1,S61*10^5,8,S77*1000,1) -> 9.838343245 | T78: =[1]!HeCalc(2,0,1,T61*10^5,8,T77*1000,1) -> 9.527889934 | U78: =[1]!HeCalc(2,0,1,U61*10^5,8,U77*1000,1) -> 9.219231135 | V78: =[1]!HeCalc(2,0,1,V61*10^5,8,V77*1000,1) -> 8.912517428 | W78: =[1]!HeCalc(2,0,1,W61*10^5,8,W77*1000,1) -> 8.607919032 | X78: =[1]!HeCalc(2,0,1,X61*10^5,8,X77*1000,1) -> 8.305629436 | Y78: =[1]!HeCalc(2,0,1,Y61*10^5,8,Y77*1000,1) -> 8.005869849
B79: Hout(iso) | D79: =[3]!h_(11,D61,D78) -> 63.61629614 | H79: =[3]!h_(11,H61,H78) -> 201.8981102 | I79: =[3]!h_(11,I61,I78) -> 187.5636923 | J79: =[3]!h_(11,J61,J78) -> 173.2610147 | K79: =[3]!h_(11,K61,K78) -> 151.8769964 | L79: =[3]!h_(11,L61,L78) -> 137.6766475 | M79: =[3]!h_(11,M61,M78) -> 123.5303562 | N79: =[3]!h_(11,N61,N78) -> 109.4493125 | O79: =[3]!h_(11,O61,O78) -> 95.44898801 | P79: =[3]!h_(11,P61,P78) -> 81.55176039 | Q79: =[3]!h_(11,Q61,Q78) -> 67.79132502 | R79: =[3]!h_(11,R61,R78) -> 66.08318391 | S79: =[3]!h_(11,S61,S78) -> 64.37805356 | T79: =[3]!h_(11,T61,T78) -> 62.67605082 | U79: =[3]!h_(11,U61,U78) -> 60.97729205 | V79: =[3]!h_(11,V61,V78) -> 59.28189072 | W79: =[3]!h_(11,W61,W78) -> 57.58995344 | X79: =[3]!h_(11,X61,X78) -> 55.90157498 | Y79: =[3]!h_(11,Y61,Y78) -> 54.21683123
B80: ΔHs | D80: =D75-D79 -> 42.28591132 | H80: 146.6416558 | I80: 135.7163269 | J80: 124.8891744 | K80: 108.8537827 | L80: 98.31736902 | M80: 87.92050468 | N80: 77.68065285 | O80: 67.61942247 | P80: 57.7643077 | Q80: 48.15150787 | R80: 46.96921367 | S80: 45.79155934 | T80: 44.61865997 | U80: 43.45063367 | V80: 42.28760129 | W80: 41.12968541 | X80: 39.97700937 | Y80: 38.82969576
B81: u1 | C81: m/s | D81: =(2*52.7%*D80*1000*D63)^0.5 -> 184.0453922 | H81: =PI()*$D$82*H65 -> 184.0453922 | I81: 184.0453922 | J81: 184.0453922 | K81: 184.0453922 | L81: 184.0453922 | M81: 184.0453922 | N81: 184.0453922 | O81: 184.0453922 | P81: 184.0453922 | Q81: =PI()*$D$82*Q65 -> 184.0453922 | R81: =PI()*$D$82*R65 -> 184.0453922 | S81: 184.0453922 | T81: 184.0453922 | U81: 184.0453922 | V81: 184.0453922 | W81: 184.0453922 | X81: 184.0453922 | Y81: 184.0453922
B82: D1 | D82: =D81/PI()/D65 -> 0.0391600721
B83: Co = (2*ΔHs)^0,5 | D83: =(2000*D80)^0.5 -> 290.8123495 | H83: 541.556379 | I83: 520.9919902 | J83: 499.7782996 | K83: 466.5914329 | L83: 443.4351565 | M83: 419.3340069 | N83: 394.1589853 | O83: 367.7483446 | P83: 339.8950064 | Q83: 310.327272 | R83: 306.4937639 | S83: 302.627029 | T83: 298.7261621 | U83: 294.790209 | V83: 290.8181607 | W83: 286.8089448 | X83: 282.7614166 | Y83: 278.6743467
B84: u1/Co | D84: =D81/D83 -> 0.6328664946 | H84: 0.339845304 | I84: 0.3532595427 | J84: 0.3682540686 | K84: 0.3944465741 | L84: 0.4150446566 | M84: 0.4388992765 | N84: 0.4669318704 | O84: 0.50046559 | P84: 0.5414771878 | Q84: 0.5930687015 | R84: 0.6004865805 | S84: 0.6081591352 | T84: 0.6161006821 | U84: 0.6243266791 | V84: 0.6328538486 | W84: 0.641700322 | X84: 0.6508858048 | Y84: 0.6604317706
B85: U1/C0 off de / U1/C0 nom | D85: =D84/$D$49 -> 0.9870962336 | H85: =H84/$D84 -> 0.5369936738 | I85: =I84/$D84 -> 0.5581896747 | J85: 0.5818827063 | K85: 0.6232698009 | L85: 0.65581708 | M85: 0.6935100534 | N85: 0.737804694 | O85: 0.7907917298 | P85: 0.8555946514 | Q85: 0.9371150259 | R85: 0.9488361062 | S85: 0.9609596026 | T85: 0.9735081369 | U85: 0.9865061343 | V85: 0.9999800179 | W85: 1.013958437 | X85: 1.02847253 | Y85: 1.043556226
B86: Rdt | D86: =(0.321*D85^4-1.6098*D85^3+1.316*D85^2+0.9448*D85)*($D63/0.97215493) -> 0.7593560473 | H86: =(0.321*H85^4-1.6098*H85^3+1.316*H85^2+0.9448*H85)*($D63/0.97215493) -> 0.5192919371 | I86: =(0.321*I85^4-1.6098*I85^3+1.316*I85^2+0.9448*I85)*($D63/0.97215493) -> 0.5383257056 | J86: 0.5589518364 | K86: 0.593177357 | L86: 0.6183276937 | M86: 0.6453298794 | N86: 0.6739067709 | O86: 0.7032409616 | P86: 0.7313321605 | Q86: 0.7534949963 | R86: 0.7554102004 | S86: 0.7570448323 | T86: 0.7583624875 | U86: 0.7593223107 | V86: 0.7598783896 | W86: 0.7599790527 | X86: 0.7595660536 | Y86: 0.7585736178
B88: TURBINE 3
D90: DESIGN | F90: =F56 -> 0 | G90: =G56 -> 0 | H90: =H56 -> start-up | I90: =I56 -> start-up
B92: m | C92: g/s | D92: 399.8 | F92: =F105/(F95*F94)^0.5*F93 -> 161.4761819 | G92: =G105/(G95*G94)^0.5*G93 -> 95.0804152 | I92: 117.1010273
B93: Pin | C93: Bara | D93: 13.07 | F93: 13.07 | G93: 7.369 | I93: 10.48
B94: Tin | C94: K | D94: 7.292 | F94: 9.16 | G94: 7.912 | I94: 10.55
B95: Pout | C95: Bara | D95: 4.88 | F95: 4.88 | G95: 5.18 | I95: 5.18
B96: Tout | C96: K | D96: =[3]!T2_turb(11,D93,D94,D95,D97) -> 6.11984088 | F96: =[3]!T2_turb(11,F93,F94,F95,F97) -> 7.049446306 | G96: =[3]!T2_turb(11,G93,G94,G95,G97) -> 7.14472539 | H96: =[3]!T2_turb(11,H93,H94,H95,H97) ->  | I96: =[3]!T2_turb(11,I93,I94,I95,I97) -> 8.690381514
B97: Efficacity | C97: % | D97: 0.72 | F97: =(0.321*F119^4-1.6098*F119^3+1.316*F119^2+0.9448*F119)*($D$97/0.97215493) -> 0.5817973136 | G97: =(0.321*G119^4-1.6098*G119^3+1.316*G119^2+0.9448*G119)*($D$97/0.97215493) -> 0.5827244835 | H97: =(0.321*H119^4-1.6098*H119^3+1.316*H119^2+0.9448*H119)*($D$97/0.97215493) ->  | I97: =(0.321*I119^4-1.6098*I119^3+1.316*I119^2+0.9448*I119)*($D$97/0.97215493) -> 0.5020164146
B98: Power | C98: W | D98: =+D92*(D109-D110) -> 2075.54042 | F98: 954.7418418 | G98: 182.514095 | I98: 610.6783435
B99: Speed | C99: Hz | D99: 2076 | F99: 1602.55252 | G99: 914.2081865 | H99: 862.6625785 | I99: 1367.362934
F100: =(F98/$D98*$D102/F102)^(1/3)*$D99 -> 1602.552512 | G100: =(G98/$D98*$D102/G102)^(1/3)*$D99 -> 914.2081711 | H100: =(H98/$D98*$D102/H102)^(1/3)*$D99 ->  | I100: =(I98/$D98*$D102/I102)^(1/3)*$D99 -> 1367.36293
F101: =F99-F100 -> 7.275503322e-06 | G101: =G99-G100 -> 1.541953168e-05 | H101: =H99-H100 ->  | I101: =I99-I100 -> 4.300091632e-06
B102: Brake Pressure | D102: 10.1 | F102: =($D102-$D95)+F95 -> 10.1 | G102: =($D102-$D95)+G95 -> 10.4 | H102: =($D102-$D95)+H95 -> 5.22 | I102: =($D102-$D95)+I95 -> 10.4
B103: Rho (brake) | D103: =[3]!rho_(11,D102,330) -> 1.467334205 | F103: =[3]!rho_(11,F102,330) -> 1.467334205 | G103: =[3]!rho_(11,G102,330) -> 1.510733122 | H103: =[3]!rho_(11,H102,330) -> 0.7598798717 | I103: =[3]!rho_(11,I102,330) -> 1.510733122
B104: Wheel | C104: mm | D104: 29.5 | F104: =$D$104 -> 29.5 | G104: =$D$104 -> 29.5 | H104: =$D$104 -> 29.5 | I104: =$D$104 -> 29.5
B105: a = mÖT/P | D105: =D92*D94^0.5/D93 -> 82.60199418 | F105: =$D$105 -> 82.60199418 | G105: =$D$105 -> 82.60199418 | H105: 82.60199418 | I105: 82.60199418
B106: Rho (in) | C106: kg/m3 | D106: =[3]!rho_(11,D93,D94) -> 122.041385 | F106: =[3]!rho_(11,F93,F94) -> 92.04202254 | G106: =[3]!rho_(11,G93,G94) -> 70.6496495 | H106: =[3]!rho_(11,H93,H94) -> NUM | I106: =[3]!rho_(11,I93,I94) -> 58.78998557
B107: Sound Speed | D107: =[3]!Sound_speed(11,D93,D94) -> 249.0567129 | F107: =[3]!Sound_speed(11,F93,F94) -> 219.0353462 | G107: =[3]!Sound_speed(11,G93,G94) -> 170.7864441 | H107: =[3]!Sound_speed(11,H93,H94) -> NUM | I107: =[3]!Sound_speed(11,I93,I94) -> 204.2669237
B108: S=Q/(rho*V) = cte | D108: =D92/(D106*D107) -> 0.01315338131 | F108: 0.008009549968 | G108: 0.007880026204 | I108: 0.009751227821
B109: Hin | D109: =[3]!h_(11,D93,D94) -> 28.15088458 | F109: =[3]!h_(11,F93,F94) -> 40.89014045 | G109: =[3]!h_(11,G93,G94) -> 36.81164396 | H109: =[3]!h_(11,H93,H94) ->  | I109: =[3]!h_(11,I93,I94) -> 54.05983231
B110: Hout | D110: =[3]!h_(11,D95,D96) -> 22.9594378 | F110: =[3]!h_(11,F95,F96) -> 34.97755427 | G110: =[3]!h_(11,G95,G96) -> 34.89206784 | H110: =[3]!h_(11,H95,H96) ->  | I110: =[3]!h_(11,I95,I96) -> 48.84486232
B111: Sin = Sout | D111: =[3]!S_(11,D93,D94) -> 5.060004669 | F111: =[3]!S_(11,F93,F94) -> 6.606972814 | G111: =[3]!S_(11,G93,G94) -> 6.945830207 | H111: =[3]!S_(11,H93,H94) ->  | I111: =[3]!S_(11,I93,I94) -> 8.300020451
B112: Tout(iso) | D112: =[1]!HeCalc(2,0,1,D95*10^5,8,D111*1000,1) -> 5.935138784 | F112: =[1]!HeCalc(2,0,1,F95*10^5,8,F111*1000,1) -> 6.699995029 | G112: =[1]!HeCalc(2,0,1,G95*10^5,8,G111*1000,1) -> 7.024181985 | H112: =[1]!HeCalc(2,0,1,H95*10^5,8,H111*1000,1) ->  | I112: =[1]!HeCalc(2,0,1,I95*10^5,8,I111*1000,1) -> 8.048894673
